Workbook

Sheet Interface
C4: Localisation | H4: Occupation
O5: Température de consigne
D7: Station météo | E7: Cayenne | I7: Densité d'occupants (m²/pers) | J7: 22 | O7: Secteurs | P7: Pas encore de consensus
D9: Secteur | E9: Santé | I9: Valeur d'ajustement occupation | J9: 50 | O9: Valeurs d'ajutement occupation | R9: Mettre une valeur par défaut et le programmiste choisit ?
O11: Taux de percement
C12: Géométrie | H12: Protection solaire
O13: Ventilation naturelle | Q13: 5-15-50
D15: Surface utile totale (m²) | E15: 4287 | I15: Facteur solaire des murs | J15: Base | O15: Consommation des équipements spécifiques | R15: valeurs en kW, prendre le planning et appliquer un coef (0.6)
D17: Nombre de niveaux | E17: 2 | I17: Facteur solaire des baies | J17: Base | O17: Résultats finaux | P17: Retirer tout (image)
D19: Rapport Longueur / Largeur | E19: 3.5 | I19: Facteur solaire de la toiture | J19: Base
D21: Taux de percement / plancher | E21: 0.25
H22: Equipements
D23: Orientation façades principales | E23: Est / Ouest
I25: Brasseurs d'air | J25: Niveau de base | L25: =Conso(BanqueConso,I25,J25,$E$9) -> 8
C26: Climatisation
I27: Ventilation | J27: Niveau de base | L27: =Conso(BanqueConso,I27,J27,$E$9) -> 5
D29: Surface climatisée (%) | E29: 1 | I29: Eau chaude sanitaire | J29: Niveau de base | L29: =Conso(BanqueConso,I29,J29,$E$9) -> 10
D31: Température de consigne (°C) | E31: 26 | I31: Eclairage intérieur | J31: Niveau de base | L31: =Conso(BanqueConso,I31,J31,$E$9) -> 19
D33: Fonctionnement du climatiseur | E33: 7-18h, L-V | I33: Eclairage extérieur | J33: Niveau de base | L33: =Conso(BanqueConso,I33,J33,$E$9) -> 5
C35: Installation | D35: Centralisée DRV - Niveau de base | I35: Bureautique | J35: Niveau de base | L35: =Conso(BanqueConso,I35,J35,$E$9) -> 15
I37: Froid alimentaire | J37: Sans objet | L37: =Conso(BanqueConso,I37,J37,$E$9) -> 0
C38: Ventilation
I39: Chaud alimentaire | J39: Sans objet | L39: =Conso(BanqueConso,I39,J39,$E$9) -> 0
D41: VMC (m3/pers.h) | Planning | E41: 0 | F41: Jamais | I41: Autres | J41: Sans objet | L41: =Conso(BanqueConso,I41,J41,$E$9) -> 0
D43: Potentiel de ventilation naturelle | E43: Base (5 vol/h) | I43: Equip. spé. avec apports (W/m²) | L43: =Calculs!M125 -> 0
I45: Equip. spé. sans apports (W/m²) | L45: =Calculs!M132 -> 0
D49: Climatisation | E49: Ventilation naturelle
D50: Besoin (kWh/m²) | E50: Horaires ≥ 30°C | F50: % de temps ≥ 30°C | H50: Climatisation
H51: =Calculs!BB153 -> 211.5367373 | I51: Besoin (kWh/m²clim.an)
C52: Janvier | D52: =Calculs!K152 -> 16.26011395 | E52: =Calculs!K169 -> 11h-23h | F52: =Calculs!L169 -> 0.5416666667 | H52: =IF(OR(Surface=0,D35=""),"",Calculs!BB157*(1000/Surface)) -> 61.31499631 | I52: Consommation estimée (kWh/m²clim.an)
C53: Février | D53: =Calculs!K153 -> 14.67811712 | E53: =Calculs!K170 -> 11h-23h | F53: =Calculs!L170 -> 0.5416666667
C54: Mars | D54: =Calculs!K154 -> 16.04834141 | E54: =Calculs!K171 -> 11h-23h | F54: =Calculs!L171 -> 0.5416666667 | H54: Consommation
C55: Avril | D55: =Calculs!K155 -> 17.33070832 | E55: =Calculs!K172 -> 11h-0h | F55: =Calculs!L172 -> 0.5833333333 | H55: =IF(D35="","",Calculs!BB159*(1000/Surface)) -> 123.3149963 | I55: Consommation surf. (kWh/m².an)
C56: Mai | D56: =Calculs!K156 -> 17.9867872 | E56: =Calculs!K173 -> 10h-0h | F56: =Calculs!L173 -> 0.625
C57: Juin | D57: =Calculs!K157 -> 16.10703744 | E57: =Calculs!K174 -> 11h-23h | F57: =Calculs!L174 -> 0.5416666667 | H57: Ventilation naturelle
C58: Juillet | D58: =Calculs!K158 -> 18.59041738 | E58: =Calculs!K175 -> 11h-0h | F58: =Calculs!L175 -> 0.5833333333 | H58: =SUM(Calculs!J169:J180) -> 5174 | I58: Nombre d'heures annuel ≥ 30°C
C59: Août | D59: =Calculs!K159 -> 19.50658377 | E59: =Calculs!K176 -> 10h-0h | F59: =Calculs!L176 -> 0.625 | H59: =H58/8760 -> 0.5906392694 | I59: ="Pourcentage de temps ≥ 30°C (%)" -> Pourcentage de temps ≥ 30°C (%)
C60: Septembre | D60: =Calculs!K160 -> 19.58904053 | E60: =Calculs!K177 -> 10h-1h | F60: =Calculs!L177 -> 0.6666666667 | H60: =AVERAGE(Calculs!I169:I180) -> 3.447733155 | I60: Surchauffe moyenne (°C)
C61: Octobre | D61: =Calculs!K161 -> 20.98760672 | E61: =Calculs!K178 -> 10h-1h | F61: =Calculs!L178 -> 0.6666666667
C62: Novembre | D62: =Calculs!K162 -> 17.53767982 | E62: =Calculs!K179 -> 11h-0h | F62: =Calculs!L179 -> 0.5833333333
C63: Décembre | D63: =Calculs!K163 -> 16.91430363 | E63: =Calculs!K180 -> 11h-0h | F63: =Calculs!L180 -> 0.5833333333

Sheet Hypothèses (hidden)
B2: =Interface!E7 -> Cayenne | D2: Station météo
B3: Logement individuel | D3: Secteur
B5: =Interface!E15 -> 4287 | D5: Surface SHON totale (m²)
B6: =Interface!E19 -> 3.5 | D6: Rapport Longueur/Largeur | P6: 5.85 | Q6: Etanchéité par défaut des fenêtres (m3/h/m²)
B7: =Interface!E17 -> 2 | D7: Nombre de niveaux | O7: Logement | P7: 1 | Q7: Etanchéité par défaut des murs (m3/h/m²)
B8: =Interface!E23 -> Est / Ouest | D8: Orientation des plus grandes façades | O8: Commerces | P8: 2.5
B9: =Interface!E21 -> 0.25 | D9: Taux de percement ramené au plancher (%) | O9: Bureaux | P9: 1.2
O10: Enseignement | P10: 1.2
B11: =Interface!J15 -> Base | D11: Facteur solaire murs | O11: Santé | P11: 1.2
B12: =Interface!J17 -> Base | D12: Facteur solaire vitrage | O12: Hôtellerie | P12: 1.2
B13: =Interface!J19 -> Base | D13: Facteur solaire toiture | W13: Guyane | Y13: Facteurs solaire murs | AD13: Facteurs solaires baies | AI13: Conductance
O14: Valeurs d'occupation par défaut en fonction du secteur | Y14: =Données1!O5 -> Base | Z14: =Données1!O6 -> RTAA DOM 2016 | AA14: =Données1!O7 -> Ecodom | AB14: =Données1!O8 -> NF Habitat HQE | AC14: =Données1!O9 -> PERENE 2009 | AD14: =Y14 -> Base | AE14: =Z14 -> RTAA DOM 2016 | AF14: Ecodom | AG14: NF Habitat HQE | AH14: PERENE 2009 | AI14: =AD14 -> Base | AJ14: =AE14 -> RTAA DOM 2016 | AK14: =AF14 -> Ecodom | AL14: =AG14 -> NF Habitat HQE | AM14: =AH14 -> PERENE 2009
B15: =Interface!J9 -> 50 | D15: Valeur d'ajustement occupation | J15: 30 | K15: Température de référence (°C) | P15: Logement | Q15: Commerces | R15: Bureaux | S15: Enseignement | T15: Santé | U15: Hôtellerie | X15: Nord | Y15: 0.12 | Z15: 0.09 | AA15: 0.054 | AB15: 0.07 | AC15: 0.05 | AD15: 0.9 | AE15: 0.7 | AF15: 0.7 | AG15: 0.5 | AH15: 0.21 | AI15: 2 | AJ15: 1.8 | AK15: 1.6 | AL15: 1.5 | AM15: 1.7 | AN15: Murs
C16: =Interface!J7 -> 22 | D16: Densité d'occupants (m²/personne) | O16: Janvier | P16: 1 | Q16: 1 | R16: 1 | S16: 1 | T16: 1 | U16: 1 | X16: Est | Y16: 0.12 | Z16: 0.09 | AA16: 0.054 | AB16: 0.07 | AC16: 0.05 | AD16: 0.8 | AE16: 0.6 | AF16: 0.6 | AG16: 0.4 | AH16: 0.18 | AI16: 0.5 | AJ16: 0.45 | AK16: 0.4 | AL16: 0.375 | AM16: 0.425 | AN16: Toitures
J17: Valeurs par défaut | O17: Février | P17: 1 | Q17: 1 | R17: 1 | S17: 0.5 | T17: 1 | U17: 1 | X17: Sud | Y17: 0.12 | Z17: 0.09 | AA17: 0.054 | AB17: 0.07 | AC17: 0.05 | AD17: 0.9 | AE17: 0.7 | AF17: 0.7 | AG17: 0.5 | AH17: 0.21 | AI17: 5 | AJ17: 5 | AK17: 5 | AL17: 5 | AM17: 5 | AN17: Vitrages
O18: Mars | P18: 1 | Q18: 1 | R18: 1 | S18: 1 | T18: 1 | U18: 1 | X18: Ouest | Y18: 0.12 | Z18: 0.09 | AA18: 0.054 | AB18: 0.07 | AC18: 0.05 | AD18: 0.8 | AE18: 0.6 | AF18: 0.6 | AG18: 0.4 | AH18: 0.18 | AI18: 0.7 | AJ18: 0.7 | AK18: 0.7 | AL18: 0.7 | AM18: 0.7 | AN18: So
J19: Moyen | K19: Niveau d'inertie | O19: Avril | P19: 1 | Q19: 1 | R19: 1 | S19: 0.5 | T19: 1 | U19: 1 | X19: Nord-Est | Y19: 0.12 | Z19: 0.09 | AA19: 0.054 | AB19: 0.07 | AC19: 0.05 | AD19: 0.8 | AE19: 0.6 | AF19: 0.6 | AG19: 0.4 | AH19: 0.18
J20: 2 | K20: Umurs de base (Sans He et Hi) | O20: Mai | P20: 1 | Q20: 1 | R20: 1 | S20: 1 | T20: 1 | U20: 1 | X20: Nord-Ouest | Y20: 0.12 | Z20: 0.09 | AA20: 0.054 | AB20: 0.07 | AC20: 0.05 | AD20: 0.8 | AE20: 0.6 | AF20: 0.6 | AG20: 0.4 | AH20: 0.18
B21: =Interface!E31 -> 26 | D21: Température de consigne (°C) | J21: 0.5 | K21: Utoiture de base (Sans He et Hi) | O21: Juin | P21: 1 | Q21: 1 | R21: 1 | S21: 1 | T21: 1 | U21: 1 | X21: Sud-Ouest | Y21: 0.12 | Z21: 0.09 | AA21: 0.054 | AB21: 0.07 | AC21: 0.05 | AD21: 0.8 | AE21: 0.6 | AF21: 0.6 | AG21: 0.4 | AH21: 0.18
B22: =Interface!E29 -> 1 | D22: Surface climatisée (%) | J22: 0.5 | K22: Pourcentage d'amélioration Umurs / Fs | O22: Juillet | P22: 1 | Q22: 1 | R22: 1 | S22: 0 | T22: 1 | U22: 1 | X22: Sud-Est | Y22: 0.12 | Z22: 0.09 | AA22: 0.054 | AB22: 0.07 | AC22: 0.05 | AD22: 0.8 | AE22: 0.6 | AF22: 0.6 | AG22: 0.4 | AH22: 0.18
B23: =Interface!E33 -> 7-18h, L-V | D23: Planning de fonctionnement Climatiseur | J23: 0.5 | K23: Pourcentage d'amélioration Utoiture / Fs | O23: Août | P23: 1 | Q23: 0.5 | R23: 1 | S23: 0 | T23: 1 | U23: 1 | X23: Toiture | Y23: 0.05 | Z23: 0.03 | AA23: 0.018 | AB23: 0.01 | AC23: 0.02
J24: SV | K24: Type de vitrage | O24: Septembre | P24: 1 | Q24: 1 | R24: 1 | S24: 1 | T24: 1 | U24: 1
B25: =Interface!E41 -> 0 | D25: VMC : Renouvellement d'air contrôlé (m3/pers.h) | J25: 5 | K25: Uw | O25: Octobre | P25: 1 | Q25: 1 | R25: 1 | S25: =3/4 -> 0.75 | T25: 1 | U25: 1 | W25: Réunion | Y25: Facteurs solaire murs | AD25: Facteurs solaires baies | AI25: Conductance
B26: =Interface!F41 -> Jamais | D26: Planning de la VMC | J26: 0.7 | K26: SHGC | O26: Novembre | P26: 1 | Q26: 1 | R26: 1 | S26: 0.75 | T26: 1 | U26: 1 | Y26: =Y14 -> Base | Z26: =Z14 -> RTAA DOM 2016 | AA26: Ecodom | AB26: NF Habitat HQE | AC26: PERENE 2009 | AD26: Base | AE26: RTAA DOM 2016 | AF26: Ecodom | AG26: NF Habitat HQE | AH26: PERENE 2009 | AI26: Base | AJ26: RTAA DOM 2016 | AK26: Ecodom | AL26: NF Habitat HQE | AM26: PERENE 2009
J27: 0.87 | K27: Facteur solaire du vitrage | O27: Décembre | P27: 1 | Q27: 1 | R27: 1 | S27: 0.5 | T27: 1 | U27: 1 | X27: Nord | Y27: 0.12 | Z27: 0.09 | AA27: 0.054 | AB27: 0.04 | AC27: 0.027 | AD27: 0.9 | AE27: 0.6 | AF27: 0.42 | AG27: 0.25 | AH27: 0.3 | AI27: 2 | AJ27: 1.8 | AK27: 1.6 | AL27: 1.5 | AM27: 1.7 | AN27: Murs
B28: Base (5 vol/h) | D28: Potentiel de ventilation naturelle | J28: 4 | K28: Vitesse du vent considérée (m/s) | X28: Est | Y28: 0.12 | Z28: 0.09 | AA28: 0.054 | AB28: 0.04 | AC28: 0.027 | AD28: 0.8 | AE28: 0.6 | AF28: 0.36 | AG28: 0.35 | AH28: 0.3 | AI28: 0.5 | AJ28: 0.45 | AK28: 0.4 | AL28: 0.375 | AM28: 0.425 | AN28: Toitures
J29: 0.9 | K29: Coefficient de modulation du vent | O29: Secteur | P29: Planning associé | Q29: Par déf (h/sem) | X29: Sud | Y29: 0.12 | Z29: 0.09 | AA29: 0.054 | AB29: 0.04 | AC29: 0.027 | AD29: 0.9 | AE29: 0.8 | AF29: 0.42 | AG29: 0.45 | AH29: 0.4 | AI29: 5 | AJ29: 5 | AK29: 5 | AL29: 5 | AM29: 5 | AN29: Vitrages
J30: 120 | K30: Métabolisme (W) | O30: Logement | P30: 18h-8h L-V, Permanent le week-end | Q30: =5*(6+8)+24*2 -> 118 | X30: Ouest | Y30: 0.12 | Z30: 0.09 | AA30: 0.054 | AB30: 0.04 | AC30: 0.027 | AD30: 0.8 | AE30: 0.6 | AF30: 0.36 | AG30: 0.25 | AH30: 0.25 | AI30: 0.7 | AJ30: 0.7 | AK30: 0.7 | AL30: 0.7 | AM30: 0.7 | AN30: So
J31: =Hypothèses!J15 -> 30 | K31: Seuil de température d'inconfort | O31: Commerces | P31: 9h-20h, L-S | Q31: =(20-9)*6 -> 66 | X31: Nord-Est | Y31: 0.12 | Z31: 0.09 | AA31: 0.054 | AB31: 0.04 | AC31: 0.027 | AD31: 0.8 | AE31: 0.6 | AF31: 0.36 | AG31: 0.25 | AH31: 0.3
J32: 0 | K32: Epaisseur de dalle par défaut (m) | O32: Bureaux | P32: 8h-18h, L-V | Q32: 50 | X32: Nord-Ouest | Y32: 0.12 | Z32: 0.09 | AA32: 0.054 | AB32: 0.04 | AC32: 0.027 | AD32: 0.8 | AE32: 0.6 | AF32: 0.36 | AG32: 0.25 | AH32: 0.25
J33: 2.7 | K33: Hauteur sous plafond par défaut (m) | O33: Enseignement | P33: 8h-17h, L-V | Q33: 45 | X33: Sud-Ouest | Y33: 0.12 | Z33: 0.09 | AA33: 0.054 | AB33: 0.04 | AC33: 0.027 | AD33: 0.8 | AE33: 0.6 | AF33: 0.36 | AG33: 0.25 | AH33: 0.25
J34: 0 | K34: Epaisseur des murs (m) | O34: Santé | P34: 18h-8h L-V, Permanent le week-end | Q34: 118 | X34: Sud-Est | Y34: 0.12 | Z34: 0.09 | AA34: 0.054 | AB34: 0.04 | AC34: 0.027 | AD34: 0.8 | AE34: 0.8 | AF34: 0.36 | AG34: 0.45 | AH34: 0.3
J35: 0.87 | K35: Clair de jour des percements (%) | O35: Hôtellerie | P35: 18h-9h, L-D | Q35: 105 | X35: Toiture | Y35: 0.05 | Z35: 0.03 | AA35: 0.018 | AB35: 0.02 | AC35: 0.009
J36: 1 | K36: Coefficient de réduction des équipements spé
J37: =1.5*0.55 -> 0.825 | K37: Coefficient SEER Centralisée eau glacée | O37: Type de climatiseur | S37: Initial | T37: Final
J38: 0.6 | K38: Coefficient SEER Centralisée VRV | O38: Centralisée EG - Niveau de base | S38: =Données1!AR28 -> 3 | T38: =S38*Hypothèses!$J$37 -> 2.475
J39: 0.65 | K39: Coefficient SEER Climatisation Individuelle | O39: Centralisée EG - Performant | S39: =Données1!AR29 -> 3.25 | T39: =S39*Hypothèses!$J$37 -> 2.68125
O40: Centralisée EG - Très Performant | S40: =Données1!AR30 -> 3.6 | T40: =S40*Hypothèses!$J$37 -> 2.97
J41: R€du230228 | K41: Mot de passe | O41: Centralisée DRV - Niveau de base | S41: =Données1!AS28 -> 5.75 | T41: =Hypothèses!$J$38*S41 -> 3.45
J42: TRUE | K42: Verrouillage | O42: Centralisée DRV - Performant | S42: =Données1!AS29 -> 6.55 | T42: =Hypothèses!$J$38*S42 -> 3.93
O43: Centralisée DRV - Très Performant | S43: =Données1!AS30 -> 7.5 | T43: =Hypothèses!$J$38*S43 -> 4.5
O44: Individuelle - Niveau de base | S44: =Données1!AT28 -> 6.3 | T44: =S44*Hypothèses!$J$39 -> 4.095
O45: Individuelle - Performant | S45: =Données1!AT29 -> 7.75 | T45: =S45*Hypothèses!$J$39 -> 5.0375
O46: Individuelle - Très Performant | S46: =Données1!AT30 -> 9.25 | T46: =S46*Hypothèses!$J$39 -> 6.0125
O47: SEER final | T47: =IF(Interface!D35="","",VLOOKUP(Interface!D35,Hypothèses!O38:T46,6,FALSE)) -> 3.45
O49: Typologie | P49: Logement | S49: Commerces | V49: Bureaux | Y49: Enseignement | AB49: Santé | AE49: Hôtellerie
O50: Niveau de consommation | P50: Niveau de base | Q50: Performant | R50: Très performant | S50: Niveau de base | T50: Performant | U50: Très performant | V50: Niveau de base | W50: Performant | X50: Très performant | Y50: Niveau de base | Z50: Performant | AA50: Très performant | AB50: Niveau de base | AC50: Performant | AD50: Très performant | AE50: Niveau de base | AF50: Performant | AG50: Très performant
O51: Climatisation | P51: 40 | Q51: 25 | R51: 5 | S51: 70 | T51: 40 | U51: 10 | V51: 80 | W51: 40 | X51: 10 | Y51: 40 | Z51: 25 | AA51: 10 | AB51: 100 | AC51: 45 | AD51: 15 | AE51: 40 | AF51: 25 | AG51: 10
O52: Brasseurs d'air | P52: 10 | Q52: 5 | R52: 2 | S52: 10 | T52: 5 | U52: 2 | V52: 8 | W52: 4 | X52: 2 | Y52: 15 | Z52: 7 | AA52: 3 | AB52: 8 | AC52: 4 | AD52: 2 | AE52: 12 | AF52: 6 | AG52: 2
O53: Ventilation | P53: 3 | Q53: 2 | R53: 1 | S53: 3 | T53: 2 | U53: 1 | V53: 3 | W53: 2 | X53: 1 | Y53: 5 | Z53: 3 | AA53: 1 | AB53: 5 | AC53: 3 | AD53: 1 | AE53: 3 | AF53: 2 | AG53: 1
O54: Eau chaude sanitaire | P54: 6 | Q54: 3 | R54: 1 | S54: 6 | T54: 3 | U54: 1 | V54: 6 | W54: 3 | X54: 1 | Y54: 6 | Z54: 3 | AA54: 1 | AB54: 10 | AC54: 5 | AD54: 2 | AE54: 10 | AF54: 5 | AG54: 2
O55: Eclairage intérieur | P55: 8 | Q55: 5 | R55: 3 | S55: 40 | T55: 20 | U55: 10 | V55: 15 | W55: 8 | X55: 4 | Y55: 15 | Z55: 8 | AA55: 4 | AB55: 19 | AC55: 12 | AD55: 5 | AE55: 8 | AF55: 5 | AG55: 3
O56: Eclairage extérieur | P56: 5 | Q56: 3 | R56: 1 | S56: 5 | T56: 3 | U56: 1 | V56: 5 | W56: 3 | X56: 1 | Y56: 5 | Z56: 3 | AA56: 1 | AB56: 5 | AC56: 3 | AD56: 1 | AE56: 5 | AF56: 3 | AG56: 1
O57: Bureautique | P57: 12 | Q57: 9 | R57: 5 | S57: 20 | T57: 12 | U57: 5 | V57: 40 | W57: 20 | X57: 10 | Y57: 20 | Z57: 12 | AA57: 5 | AB57: 15 | AC57: 11 | AD57: 6 | AE57: 9 | AF57: 6 | AG57: 3
O58: Froid alimentaire | P58: 45 | Q58: 25 | R58: 15 | S58: 35 | T58: 20 | U58: 7 | V58: 10 | W58: 5 | X58: 1 | Y58: 10 | Z58: 5 | AA58: 1 | AB58: 7 | AC58: 3 | AD58: 1 | AE58: 19 | AF58: 9 | AG58: 2
O59: Chaud alimentaire | P59: 7 | Q59: 5 | R59: 3 | S59: 6 | T59: 3 | U59: 1 | V59: 6 | W59: 3 | X59: 1 | Y59: 6 | Z59: 3 | AA59: 1 | AB59: 10 | AC59: 6 | AD59: 3 | AE59: 20 | AF59: 12 | AG59: 5
O60: Autres | P60: 12 | Q60: 9 | R60: 6 | S60: 10 | T60: 6 | U60: 2 | V60: 10 | W60: 6 | X60: 2 | Y60: 10 | Z60: 6 | AA60: 2 | AB60: 10 | AC60: 6 | AD60: 2 | AE60: 10 | AF60: 6 | AG60: 2
O61: Consommation (kWh/m² par an) | P61: =SUM(P51:P60) -> 148 | Q61: =SUM(Q51:Q60) -> 91 | R61: 42 | S61: 205 | T61: 114 | U61: 40 | V61: 183 | W61: 94 | X61: 33 | Y61: 132 | Z61: 75 | AA61: 29 | AB61: 189 | AC61: 98 | AD61: 38 | AE61: 136 | AF61: 79 | AG61: 31
O62: En kWh/m2 (pour 70 m²) | P62: =P61*70 -> 10360 | Q62: =Q61*70 -> 6370 | R62: 2940

Sheet Calculs (hidden)
A2: Surface par niveau (m²) | B2: =Surface/NombreNiveaux -> 2143.5 | E2: Surface de toiture (m²) | F2: =B4*B5 -> 2143.5 | H2: Nord | I2: =IF(Station=Données1!$J$5,HLOOKUP(FsMur,Hypothèses!$Y$14:$AC$23,J2,FALSE),IF(Station=Données1!$J$6,HLOOKUP(FsMur,Hypothèses!$Y$26:$AC$35,J2,FALSE))) -> 0.12 | J2: 2 | K2: Murs | L2: =IF(Station=Données1!$J$5,HLOOKUP(FsMur,Hypothèses!$AI$14:$AM$18,M2,FALSE),IF(Station=Données1!$J$6,HLOOKUP(FsMur,Hypothèses!$AI$26:$AM$30,M2,FALSE))) -> 2 | M2: 2
A3: Hauteur du bâtiment (m) | B3: =(Hypothèses!J32+Hypothèses!J33)*NombreNiveaux -> 5.4 | E3: Volume total (m3) | F3: =Surface*Hypothèses!J33 -> 11574.9 | H3: Est | I3: =IF(Station=Données1!$J$5,HLOOKUP(FsMur,Hypothèses!$Y$14:$AC$23,J3,FALSE),IF(Station=Données1!$J$6,HLOOKUP(FsMur,Hypothèses!$Y$26:$AC$35,J3,FALSE))) -> 0.12 | J3: 3 | K3: Toiture | L3: =IF(Station=Données1!$J$5,HLOOKUP(FsToiture,Hypothèses!$AI$14:$AM$18,M3,FALSE),IF(Station=Données1!$J$6,HLOOKUP(FsToiture,Hypothèses!$AI$26:$AM$30,M3,FALSE))) -> 0.5 | M3: 3
A4: Largeur du bâtiment ext (m) | B4: =SQRT(B2/RapportForme)+Hypothèses!J34 -> 24.74729422 | E4: Volume par niveau (m3) | F4: =B2*Hypothèses!J33 -> 5787.45 | H4: Sud | I4: =IF(Station=Données1!$J$5,HLOOKUP(FsMur,Hypothèses!$Y$14:$AC$23,J4,FALSE),IF(Station=Données1!$J$6,HLOOKUP(FsMur,Hypothèses!$Y$26:$AC$35,J4,FALSE))) -> 0.12 | J4: 4 | K4: Vitrages | L4: =IF(Station=Données1!$J$5,HLOOKUP(FsBaie,Hypothèses!$AI$14:$AM$18,M4,FALSE),IF(Station=Données1!$J$6,HLOOKUP(FsBaie,Hypothèses!$AI$26:$AM$30,M4,FALSE))) -> 5 | M4: 4
A5: Longueur ext du bâtiment (m) | B5: =SQRT(B2*RapportForme)+Hypothèses!J34 -> 86.61552979 | E5: Surface totale de vitrage (m²) | F5: =TauxPercement*Surface*Hypothèses!J35 -> 932.4225 | H5: Ouest | I5: =IF(Station=Données1!$J$5,HLOOKUP(FsMur,Hypothèses!$Y$14:$AC$23,J5,FALSE),IF(Station=Données1!$J$6,HLOOKUP(FsMur,Hypothèses!$Y$26:$AC$35,J5,FALSE))) -> 0.12 | J5: 5 | K5: So | L5: =IF(Station=Données1!$J$5,HLOOKUP(FsBaie,Hypothèses!$AI$14:$AM$18,M5,FALSE),IF(Station=Données1!$J$6,HLOOKUP(FsBaie,Hypothèses!$AI$26:$AM$30,M5,FALSE))) -> 0.7 | M5: 5
H6: Nord-Est | I6: =IF(Station=Données1!$J$5,HLOOKUP(FsMur,Hypothèses!$Y$14:$AC$23,J6,FALSE),IF(Station=Données1!$J$6,HLOOKUP(FsMur,Hypothèses!$Y$26:$AC$35,J6,FALSE))) -> 0.12 | J6: 6
A7: Orientation | B7: =IF(Orientation="Nord / Sud","Nord",IF(Orientation="Nord-Est / Sud-Ouest","Nord-Est",IF(Orientation="Est / Ouest","Est","Nord-Ouest"))) -> Est | C7: =IF(Orientation="Nord / Sud","Est",IF(Orientation="Nord-Est / Sud-Ouest","Sud-Est",IF(Orientation="Est / Ouest","Sud","Nord-Est"))) -> Sud | D7: =IF(Orientation="Nord / Sud","Sud",IF(Orientation="Nord-Est / Sud-Ouest","Sud-Ouest",IF(Orientation="Est / Ouest","Ouest","Sud-Est"))) -> Ouest | E7: =IF(Orientation="Nord / Sud","Ouest",IF(Orientation="Nord-Est / Sud-Ouest","Nord-Ouest",IF(Orientation="Est / Ouest","Nord","Sud-Ouest"))) -> Nord | H7: Nord-Ouest | I7: =IF(Station=Données1!$J$5,HLOOKUP(FsMur,Hypothèses!$Y$14:$AC$23,J7,FALSE),IF(Station=Données1!$J$6,HLOOKUP(FsMur,Hypothèses!$Y$26:$AC$35,J7,FALSE))) -> 0.12 | J7: 7
A8: Surface totale ext (m²) | B8: =Calculs!$B$5*Calculs!$B$3 -> 467.7238608 | C8: =Calculs!$B$4*Calculs!$B$3 -> 133.6353888 | D8: =Calculs!$B$5*Calculs!$B$3 -> 467.7238608 | E8: =Calculs!$B$4*Calculs!$B$3 -> 133.6353888 | F8: =SUM(B8:E8) -> 1202.718499 | H8: Sud-Ouest | I8: =IF(Station=Données1!$J$5,HLOOKUP(FsMur,Hypothèses!$Y$14:$AC$23,J8,FALSE),IF(Station=Données1!$J$6,HLOOKUP(FsMur,Hypothèses!$Y$26:$AC$35,J8,FALSE))) -> 0.12 | J8: 8
A9: Surface totale int (m²) | B9: =Hypothèses!$J$33*Calculs!$B$5*NombreNiveaux -> 467.7238608 | C9: =Hypothèses!$J$33*Calculs!$B$4*NombreNiveaux -> 133.6353888 | D9: =Hypothèses!$J$33*Calculs!$B$5*NombreNiveaux -> 467.7238608 | E9: =Hypothèses!$J$33*Calculs!$B$4*NombreNiveaux -> 133.6353888 | F9: =SUM(B9:E9) -> 1202.718499 | H9: Sud-Est | I9: =IF(Station=Données1!$J$5,HLOOKUP(FsMur,Hypothèses!$Y$14:$AC$23,J9,FALSE),IF(Station=Données1!$J$6,HLOOKUP(FsMur,Hypothèses!$Y$26:$AC$35,J9,FALSE))) -> 0.12 | J9: 9
A10: Surface percement (m²) | B10: =Calculs!$F$5*(B8/$F$8) -> 362.60875 | C10: =Calculs!$F$5*(C8/$F$8) -> 103.6025 | D10: =Calculs!$F$5*(D8/$F$8) -> 362.60875 | E10: =Calculs!$F$5*(E8/$F$8) -> 103.6025 | F10: 932.4225 | H10: Toiture | I10: =IF(Station=Données1!$J$5,HLOOKUP(FsToiture,Hypothèses!$Y$14:$AC$23,J10,FALSE),IF(Station=Données1!$J$6,HLOOKUP(FsToiture,Hypothèses!$Y$26:$AC$35,J10,FALSE))) -> 0.05 | J10: 10
A11: Surface châssis (m²) | B11: =B10*(1-Hypothèses!$J$35) -> 47.1391375 | C11: =C10*(1-Hypothèses!$J$35) -> 13.468325 | D11: =D10*(1-Hypothèses!$J$35) -> 47.1391375 | E11: =E10*(1-Hypothèses!$J$35) -> 13.468325 | F11: 121.214925
A12: Surface vitrage (m²) | B12: =B10*Hypothèses!$J$35 -> 315.4696125 | C12: =C10*Hypothèses!$J$35 -> 90.134175 | D12: =D10*Hypothèses!$J$35 -> 315.4696125 | E12: =E10*Hypothèses!$J$35 -> 90.134175 | F12: 811.207575 | H12: Nord | I12: =IF(Station=Données1!$J$5,HLOOKUP(FsBaie,Hypothèses!$AD$14:$AH$22,J12,FALSE),IF(Station=Données1!$J$6,HLOOKUP(FsBaie,Hypothèses!$AD$26:$AH$34,J12,FALSE))) -> 0.9 | J12: 2
A13: Surface opaque (m²) | B13: =B8-B10 -> 105.1151108 | C13: =C8-C10 -> 30.03288881 | D13: =D8-D10 -> 105.1151108 | E13: =E8-E10 -> 30.03288881 | F13: 270.2959993 | H13: Est | I13: =IF(Station=Données1!$J$5,HLOOKUP(FsBaie,Hypothèses!$AD$14:$AH$22,J13,FALSE),IF(Station=Données1!$J$6,HLOOKUP(FsBaie,Hypothèses!$AD$26:$AH$34,J13,FALSE))) -> 0.8 | J13: 3
A14: Surface vitrée (%) | B14: =B12/B8 -> 0.6744783384 | C14: =C12/C8 -> 0.6744783384 | D14: =D12/D8 -> 0.6744783384 | E14: =E12/E8 -> 0.6744783384 | H14: Sud | I14: =IF(Station=Données1!$J$5,HLOOKUP(FsBaie,Hypothèses!$AD$14:$AH$22,J14,FALSE),IF(Station=Données1!$J$6,HLOOKUP(FsBaie,Hypothèses!$AD$26:$AH$34,J14,FALSE))) -> 0.9 | J14: 4
H15: Ouest | I15: =IF(Station=Données1!$J$5,HLOOKUP(FsBaie,Hypothèses!$AD$14:$AH$22,J15,FALSE),IF(Station=Données1!$J$6,HLOOKUP(FsBaie,Hypothèses!$AD$26:$AH$34,J15,FALSE))) -> 0.8 | J15: 5
B16: Apports solaire vitrage | H16: Nord-Est | I16: =IF(Station=Données1!$J$5,HLOOKUP(FsBaie,Hypothèses!$AD$14:$AH$22,J16,FALSE),IF(Station=Données1!$J$6,HLOOKUP(FsBaie,Hypothèses!$AD$26:$AH$34,J16,FALSE))) -> 0.8 | J16: 6
H17: Nord-Ouest | I17: =IF(Station=Données1!$J$5,HLOOKUP(FsBaie,Hypothèses!$AD$14:$AH$22,J17,FALSE),IF(Station=Données1!$J$6,HLOOKUP(FsBaie,Hypothèses!$AD$26:$AH$34,J17,FALSE))) -> 0.8 | J17: 7
B18: Surface développée de paroi opaque (m²) | C18: =C44+2*C45 -> 4557.295999 | E18: Transmission vitrage | F18: =Hypothèses!J27 -> 0.87 | H18: Sud-Ouest | I18: =IF(Station=Données1!$J$5,HLOOKUP(FsBaie,Hypothèses!$AD$14:$AH$22,J18,FALSE),IF(Station=Données1!$J$6,HLOOKUP(FsBaie,Hypothèses!$AD$26:$AH$34,J18,FALSE))) -> 0.8 | J18: 8
H19: Sud-Est | I19: =IF(Station=Données1!$J$5,HLOOKUP(FsBaie,Hypothèses!$AD$14:$AH$22,J19,FALSE),IF(Station=Données1!$J$6,HLOOKUP(FsBaie,Hypothèses!$AD$26:$AH$34,J19,FALSE))) -> 0.8 | J19: 9
C20: 1 | D20: 2 | E20: 3 | F20: 4
C21: =Calculs!$B$7 -> Est | D21: =Calculs!$C$7 -> Sud | E21: =Calculs!$D$7 -> Ouest | F21: =Calculs!$E$7 -> Nord | G21: Total
B22: Surface vitrage (m²) | C22: =B10 -> 362.60875 | D22: =C10 -> 103.6025 | E22: 362.60875 | F22: 103.6025 | G22: =C43 -> 932.4225
B23: Facteur solaire | C23: =VLOOKUP(C$21,$H$12:$I$19,2,FALSE) -> 0.8 | D23: =VLOOKUP(D$21,$H$12:$I$19,2,FALSE) -> 0.9 | E23: =VLOOKUP(E$21,$H$12:$I$19,2,FALSE) -> 0.8 | F23: 0.9 | I23: Ressort par les vitrages | J23: Atterit sur les PO | K23: Ressort par les PO | L23: Final
C24: =Calculs!$B$7 -> Est | D24: =Calculs!$C$7 -> Sud | E24: =Calculs!$D$7 -> Ouest | F24: =Calculs!$E$7 -> Nord | G24: Total (kWh)
B25: Janvier | C25: =(Données1!AS115*$C$23^4+Données1!AT115*$C$23^3+Données1!AU115*$C$23^2+Données1!AV115*$C$23+Données1!AW115)*Données1!AK31*C$22 -> 16342624.23 | D25: =(Données1!AX115*$D$23^4+Données1!AY115*$D$23^3+Données1!AZ115*$D$23^2+Données1!BA115*$D$23+Données1!BB115)*Données1!AL31*D$22 -> 6263222.917 | E25: =(Données1!BC115*$E$23^4+Données1!BD115*$E$23^3+Données1!BE115*$E$23^2+Données1!BF115*$E$23+Données1!BG115)*Données1!AM31*E$22 -> 15493179.25 | F25: =(Données1!BH115*$F$23^4+Données1!BI115*$F$23^3+Données1!BJ115*$F$23^2+Données1!BK115*$F$23+Données1!BL115)*Données1!AN31*F$22 -> 3147013.435 | G25: =SUM(C25:F25)/1000 -> 41246.03983 | I25: =G25*($G$22/$C$18)*Hypothèses!$J$27 -> 7341.875523 | J25: =G25-I25 -> 33904.1643 | K25: =J25*1*$C$47/8 -> 7676.113465 | L25: =G25-K25-I25 -> 26228.05084
B26: Février | C26: =(Données1!AS116*$C$23^4+Données1!AT116*$C$23^3+Données1!AU116*$C$23^2+Données1!AV116*$C$23+Données1!AW116)*Données1!AK32*C$22 -> 15490609.66 | D26: =(Données1!AX116*$D$23^4+Données1!AY116*$D$23^3+Données1!AZ116*$D$23^2+Données1!BA116*$D$23+Données1!BB116)*Données1!AL32*D$22 -> 4718315.04 | E26: =(Données1!BC116*$E$23^4+Données1!BD116*$E$23^3+Données1!BE116*$E$23^2+Données1!BF116*$E$23+Données1!BG116)*Données1!AM32*E$22 -> 14498217.53 | F26: =(Données1!BH116*$F$23^4+Données1!BI116*$F$23^3+Données1!BJ116*$F$23^2+Données1!BK116*$F$23+Données1!BL116)*Données1!AN32*F$22 -> 2986843.071 | G26: 37693.98531 | I26: =G26*$G$22/$C$18*Hypothèses!$J$27 -> 6709.602891 | J26: 30984.38242 | K26: 7015.056703 | L26: 23969.32571
B27: Mars | C27: =(Données1!AS117*$C$23^4+Données1!AT117*$C$23^3+Données1!AU117*$C$23^2+Données1!AV117*$C$23+Données1!AW117)*Données1!AK33*C$22 -> 17863573.88 | D27: =(Données1!AX117*$D$23^4+Données1!AY117*$D$23^3+Données1!AZ117*$D$23^2+Données1!BA117*$D$23+Données1!BB117)*Données1!AL33*D$22 -> 3548970.429 | E27: =(Données1!BC117*$E$23^4+Données1!BD117*$E$23^3+Données1!BE117*$E$23^2+Données1!BF117*$E$23+Données1!BG117)*Données1!AM33*E$22 -> 17815928.13 | F27: =(Données1!BH117*$F$23^4+Données1!BI117*$F$23^3+Données1!BJ117*$F$23^2+Données1!BK117*$F$23+Données1!BL117)*Données1!AN33*F$22 -> 3220708.204 | G27: 42449.18065 | I27: =G27*$G$22/$C$18*Hypothèses!$J$27 -> 7556.036935 | J27: 34893.14371 | K27: 7900.024548 | L27: 26993.11916
B28: Avril | C28: =(Données1!AS118*$C$23^4+Données1!AT118*$C$23^3+Données1!AU118*$C$23^2+Données1!AV118*$C$23+Données1!AW118)*Données1!AK34*C$22 -> 16897403.2 | D28: =(Données1!AX118*$D$23^4+Données1!AY118*$D$23^3+Données1!AZ118*$D$23^2+Données1!BA118*$D$23+Données1!BB118)*Données1!AL34*D$22 -> 3341617.713 | E28: =(Données1!BC118*$E$23^4+Données1!BD118*$E$23^3+Données1!BE118*$E$23^2+Données1!BF118*$E$23+Données1!BG118)*Données1!AM34*E$22 -> 17673903.84 | F28: =(Données1!BH118*$F$23^4+Données1!BI118*$F$23^3+Données1!BJ118*$F$23^2+Données1!BK118*$F$23+Données1!BL118)*Données1!AN34*F$22 -> 3830662.04 | G28: 41743.58679 | I28: =G28*$G$22/$C$18*Hypothèses!$J$27 -> 7430.439852 | J28: 34313.14694 | K28: 7768.709674 | L28: 26544.43726
B29: Mai | C29: =(Données1!AS119*$C$23^4+Données1!AT119*$C$23^3+Données1!AU119*$C$23^2+Données1!AV119*$C$23+Données1!AW119)*Données1!AK35*C$22 -> 16732275.21 | D29: =(Données1!AX119*$D$23^4+Données1!AY119*$D$23^3+Données1!AZ119*$D$23^2+Données1!BA119*$D$23+Données1!BB119)*Données1!AL35*D$22 -> 3055694.767 | E29: =(Données1!BC119*$E$23^4+Données1!BD119*$E$23^3+Données1!BE119*$E$23^2+Données1!BF119*$E$23+Données1!BG119)*Données1!AM35*E$22 -> 16669322.57 | F29: =(Données1!BH119*$F$23^4+Données1!BI119*$F$23^3+Données1!BJ119*$F$23^2+Données1!BK119*$F$23+Données1!BL119)*Données1!AN35*F$22 -> 5247147.968 | G29: 41704.44052 | I29: =G29*$G$22/$C$18*Hypothèses!$J$27 -> 7423.47174 | J29: 34280.96878 | K29: 7761.424339 | L29: 26519.54444
B30: Juin | C30: =(Données1!AS120*$C$23^4+Données1!AT120*$C$23^3+Données1!AU120*$C$23^2+Données1!AV120*$C$23+Données1!AW120)*Données1!AK36*C$22 -> 17622280.05 | D30: =(Données1!AX120*$D$23^4+Données1!AY120*$D$23^3+Données1!AZ120*$D$23^2+Données1!BA120*$D$23+Données1!BB120)*Données1!AL36*D$22 -> 3245659.752 | E30: =(Données1!BC120*$E$23^4+Données1!BD120*$E$23^3+Données1!BE120*$E$23^2+Données1!BF120*$E$23+Données1!BG120)*Données1!AM36*E$22 -> 16651610.57 | F30: =(Données1!BH120*$F$23^4+Données1!BI120*$F$23^3+Données1!BJ120*$F$23^2+Données1!BK120*$F$23+Données1!BL120)*Données1!AN36*F$22 -> 6275867.654 | G30: 43795.41802 | I30: =G30*$G$22/$C$18*Hypothèses!$J$27 -> 7795.669813 | J30: 35999.74821 | K30: 8150.566682 | L30: 27849.18153
B31: Juillet | C31: =(Données1!AS121*$C$23^4+Données1!AT121*$C$23^3+Données1!AU121*$C$23^2+Données1!AV121*$C$23+Données1!AW121)*Données1!AK37*C$22 -> 19858561.52 | D31: =(Données1!AX121*$D$23^4+Données1!AY121*$D$23^3+Données1!AZ121*$D$23^2+Données1!BA121*$D$23+Données1!BB121)*Données1!AL37*D$22 -> 3400081.672 | E31: =(Données1!BC121*$E$23^4+Données1!BD121*$E$23^3+Données1!BE121*$E$23^2+Données1!BF121*$E$23+Données1!BG121)*Données1!AM37*E$22 -> 19446965.37 | F31: =(Données1!BH121*$F$23^4+Données1!BI121*$F$23^3+Données1!BJ121*$F$23^2+Données1!BK121*$F$23+Données1!BL121)*Données1!AN37*F$22 -> 6666662.357 | G31: 49372.27093 | I31: =G31*$G$22/$C$18*Hypothèses!$J$27 -> 8788.360505 | J31: 40583.91042 | K31: 9188.449491 | L31: 31395.46093
B32: Août | C32: =(Données1!AS122*$C$23^4+Données1!AT122*$C$23^3+Données1!AU122*$C$23^2+Données1!AV122*$C$23+Données1!AW122)*Données1!AK38*C$22 -> 22526591.23 | D32: =(Données1!AX122*$D$23^4+Données1!AY122*$D$23^3+Données1!AZ122*$D$23^2+Données1!BA122*$D$23+Données1!BB122)*Données1!AL38*D$22 -> 3642696.334 | E32: =(Données1!BC122*$E$23^4+Données1!BD122*$E$23^3+Données1!BE122*$E$23^2+Données1!BF122*$E$23+Données1!BG122)*Données1!AM38*E$22 -> 21237207.7 | F32: =(Données1!BH122*$F$23^4+Données1!BI122*$F$23^3+Données1!BJ122*$F$23^2+Données1!BK122*$F$23+Données1!BL122)*Données1!AN38*F$22 -> 5368569.986 | G32: 52775.06525 | I32: =G32*$G$22/$C$18*Hypothèses!$J$27 -> 9394.06453 | J32: 43381.00072 | K32: 9821.728114 | L32: 33559.2726
B33: Septembre | C33: =(Données1!AS123*$C$23^4+Données1!AT123*$C$23^3+Données1!AU123*$C$23^2+Données1!AV123*$C$23+Données1!AW123)*Données1!AK39*C$22 -> 23414395.44 | D33: =(Données1!AX123*$D$23^4+Données1!AY123*$D$23^3+Données1!AZ123*$D$23^2+Données1!BA123*$D$23+Données1!BB123)*Données1!AL39*D$22 -> 3740725.969 | E33: =(Données1!BC123*$E$23^4+Données1!BD123*$E$23^3+Données1!BE123*$E$23^2+Données1!BF123*$E$23+Données1!BG123)*Données1!AM39*E$22 -> 23208748.04 | F33: =(Données1!BH123*$F$23^4+Données1!BI123*$F$23^3+Données1!BJ123*$F$23^2+Données1!BK123*$F$23+Données1!BL123)*Données1!AN39*F$22 -> 3623219.624 | G33: 53987.08907 | I33: =G33*$G$22/$C$18*Hypothèses!$J$27 -> 9609.807134 | J33: 44377.28194 | K33: 10047.29237 | L33: 34329.98956
B34: Octobre | C34: =(Données1!AS124*$C$23^4+Données1!AT124*$C$23^3+Données1!AU124*$C$23^2+Données1!AV124*$C$23+Données1!AW124)*Données1!AK40*C$22 -> 22569891.37 | D34: =(Données1!AX124*$D$23^4+Données1!AY124*$D$23^3+Données1!AZ124*$D$23^2+Données1!BA124*$D$23+Données1!BB124)*Données1!AL40*D$22 -> 5986349.042 | E34: =(Données1!BC124*$E$23^4+Données1!BD124*$E$23^3+Données1!BE124*$E$23^2+Données1!BF124*$E$23+Données1!BG124)*Données1!AM40*E$22 -> 25108480.25 | F34: =(Données1!BH124*$F$23^4+Données1!BI124*$F$23^3+Données1!BJ124*$F$23^2+Données1!BK124*$F$23+Données1!BL124)*Données1!AN40*F$22 -> 3638794.498 | G34: 57303.51515 | I34: =G34*$G$22/$C$18*Hypothèses!$J$27 -> 10200.13744 | J34: 47103.37771 | K34: 10664.49739 | L34: 36438.88032
B35: Novembre | C35: =(Données1!AS125*$C$23^4+Données1!AT125*$C$23^3+Données1!AU125*$C$23^2+Données1!AV125*$C$23+Données1!AW125)*Données1!AK41*C$22 -> 19896521.92 | D35: =(Données1!AX125*$D$23^4+Données1!AY125*$D$23^3+Données1!AZ125*$D$23^2+Données1!BA125*$D$23+Données1!BB125)*Données1!AL41*D$22 -> 7956827.51 | E35: =(Données1!BC125*$E$23^4+Données1!BD125*$E$23^3+Données1!BE125*$E$23^2+Données1!BF125*$E$23+Données1!BG125)*Données1!AM41*E$22 -> 22559465.17 | F35: =(Données1!BH125*$F$23^4+Données1!BI125*$F$23^3+Données1!BJ125*$F$23^2+Données1!BK125*$F$23+Données1!BL125)*Données1!AN41*F$22 -> 3272485.324 | G35: 53685.29993 | I35: =G35*$G$22/$C$18*Hypothèses!$J$27 -> 9556.088078 | J35: 44129.21185 | K35: 9991.127763 | L35: 34138.08408
B36: Décembre | C36: =(Données1!AS126*$C$23^4+Données1!AT126*$C$23^3+Données1!AU126*$C$23^2+Données1!AV126*$C$23+Données1!AW126)*Données1!AK42*C$22 -> 17612693.11 | D36: =(Données1!AX126*$D$23^4+Données1!AY126*$D$23^3+Données1!AZ126*$D$23^2+Données1!BA126*$D$23+Données1!BB126)*Données1!AL42*D$22 -> 7585163.4 | E36: =(Données1!BC126*$E$23^4+Données1!BD126*$E$23^3+Données1!BE126*$E$23^2+Données1!BF126*$E$23+Données1!BG126)*Données1!AM42*E$22 -> 17896900.32 | F36: =(Données1!BH126*$F$23^4+Données1!BI126*$F$23^3+Données1!BJ126*$F$23^2+Données1!BK126*$F$23+Données1!BL126)*Données1!AN42*F$22 -> 3236433.214 | G36: 46331.19005 | I36: =G36*$G$22/$C$18*Hypothèses!$J$27 -> 8247.042179 | J36: 38084.14787 | K36: 8622.487717 | L36: 29461.66015
G37: =SUM(G25:G36) -> 562087.0815 | I37: =SUM(I25:I36) -> 100052.5966 | J37: =SUM(J25:J36) -> 462034.4849 | K37: =SUM(K25:K36) -> 104607.4783 | L37: =SUM(L25:L36) -> 357427.0066
B39: Apport conduction enveloppe | I39: 20 | K39: 21 | M39: 22 | O39: 23 | Q39: 24 | S39: 25 | U39: 26
I40: Climatisation | K40: Climatisation | M40: Climatisation | O40: Climatisation | Q40: Climatisation | S40: Climatisation | U40: Climatisation
I41: Brut | J41: Net | K41: Brut | L41: Net | M41: Brut | N41: Net | O41: Brut | P41: Net | Q41: Brut | R41: Net | S41: Brut | T41: Net | U41: Brut | V41: Net
H42: Janvier | I42: =$C$47*SUM($C$43:$C$45)*(Données1!F196-$I$39)*24*VMOIS(H42)/1000 -> 32313.05093 | J42: =I42*(1-(5.5/8)*($C$47/8)) -> 27283.38651 | K42: =$C$47*SUM($C$43:$C$45)*(Données1!F196-$K$39)*24*VMOIS(H42)/1000 -> 27803.78799 | L42: =K42*(1-(5.5/8)*($C$47/8)) -> 23476.00962 | M42: =$C$47*SUM($C$43:$C$45)*(Données1!F196-$M$39)*24*VMOIS(H42)/1000 -> 23294.52505 | N42: =M42*(1-(5.5/8)*($C$47/8)) -> 19668.63272 | O42: =$C$47*SUM($C$43:$C$45)*(Données1!F196-$O$39)*24*VMOIS(H42)/1000 -> 18785.26211 | P42: =O42*(1-(5.5/8)*($C$47/8)) -> 15861.25582 | Q42: =$C$47*SUM($C$43:$C$45)*(Données1!F196-$Q$39)*24*VMOIS(H42)/1000 -> 14275.99918 | R42: =Q42*(1-(5.5/8)*($C$47/8)) -> 12053.87892 | S42: =$C$47*SUM($C$43:$C$45)*(Données1!F196-$S$39)*24*VMOIS(H42)/1000 -> 9766.736238 | T42: =S42*(1-(5.5/8)*($C$47/8)) -> 8246.502021 | U42: =$C$47*SUM($C$43:$C$45)*(Données1!F196-$U$39)*24*VMOIS(H42)/1000 -> 5257.4733 | V42: =U42*(1-(5.5/8)*($C$47/8)) -> 4439.125122
B43: Surface vitrage (m²) | C43: =SUM(C22:F22) -> 932.4225 | D43: Uw (avec Rse et Rsi) | F43: =Calculs!L4 -> 5 | H43: Février | I43: =$C$47*SUM($C$43:$C$45)*(Données1!F197-$I$39)*24*VMOIS(H43)/1000 -> 28922.84583 | J43: 24420.88133 | K43: =$C$47*SUM($C$43:$C$45)*(Données1!F197-$K$39)*24*VMOIS(H43)/1000 -> 24849.96318 | L43: 20981.96026 | M43: =$C$47*SUM($C$43:$C$45)*(Données1!F197-$M$39)*24*VMOIS(H43)/1000 -> 20777.08053 | N43: 17543.03919 | O43: =$C$47*SUM($C$43:$C$45)*(Données1!F197-$O$39)*24*VMOIS(H43)/1000 -> 16704.19787 | P43: 14104.11812 | Q43: =$C$47*SUM($C$43:$C$45)*(Données1!F197-$Q$39)*24*VMOIS(H43)/1000 -> 12631.31522 | R43: 10665.19705 | S43: =$C$47*SUM($C$43:$C$45)*(Données1!F197-$S$39)*24*VMOIS(H43)/1000 -> 8558.432566 | T43: 7226.275977 | U43: =$C$47*SUM($C$43:$C$45)*(Données1!F197-$U$39)*24*VMOIS(H43)/1000 -> 4485.549912 | V43: 3787.354907
B44: Surface murs opaques (m²) | C44: =Calculs!F13 -> 270.2959993 | D44: U_murs (sans Rse et Rsi) | F44: =Calculs!L2 -> 2 | H44: Mars | I44: =$C$47*SUM($C$43:$C$45)*(Données1!F198-$I$39)*24*VMOIS(H44)/1000 -> 32148.878 | J44: 27144.7678 | K44: =$C$47*SUM($C$43:$C$45)*(Données1!F198-$K$39)*24*VMOIS(H44)/1000 -> 27639.61506 | L44: 23337.3909 | M44: =$C$47*SUM($C$43:$C$45)*(Données1!F198-$M$39)*24*VMOIS(H44)/1000 -> 23130.35212 | N44: 19530.01401 | O44: =$C$47*SUM($C$43:$C$45)*(Données1!F198-$O$39)*24*VMOIS(H44)/1000 -> 18621.08918 | P44: 15722.63711 | Q44: =$C$47*SUM($C$43:$C$45)*(Données1!F198-$Q$39)*24*VMOIS(H44)/1000 -> 14111.82625 | R44: 11915.26021 | S44: =$C$47*SUM($C$43:$C$45)*(Données1!F198-$S$39)*24*VMOIS(H44)/1000 -> 9602.563308 | T44: 8107.883309 | U44: =$C$47*SUM($C$43:$C$45)*(Données1!F198-$U$39)*24*VMOIS(H44)/1000 -> 5093.30037 | V44: 4300.50641
B45: Surface toit (m²) | C45: =F2 -> 2143.5 | D45: U_toit (sans Rse et Rsi) | F45: =Calculs!L3 -> 0.5 | H45: Avril | I45: =$C$47*SUM($C$43:$C$45)*(Données1!F199-$I$39)*24*VMOIS(H45)/1000 -> 32131.22581 | J45: 27129.86325 | K45: =$C$47*SUM($C$43:$C$45)*(Données1!F199-$K$39)*24*VMOIS(H45)/1000 -> 27767.42297 | L45: 23445.30496 | M45: =$C$47*SUM($C$43:$C$45)*(Données1!F199-$M$39)*24*VMOIS(H45)/1000 -> 23403.62012 | N45: 19760.74667 | O45: =$C$47*SUM($C$43:$C$45)*(Données1!F199-$O$39)*24*VMOIS(H45)/1000 -> 19039.81728 | P45: 16076.18839 | Q45: =$C$47*SUM($C$43:$C$45)*(Données1!F199-$Q$39)*24*VMOIS(H45)/1000 -> 14676.01444 | R45: 12391.6301 | S45: =$C$47*SUM($C$43:$C$45)*(Données1!F199-$S$39)*24*VMOIS(H45)/1000 -> 10312.21159 | T45: 8707.071807 | U45: =$C$47*SUM($C$43:$C$45)*(Données1!F199-$U$39)*24*VMOIS(H45)/1000 -> 5948.408751 | V45: 5022.513518
H46: Mai | I46: =$C$47*SUM($C$43:$C$45)*(Données1!F200-$I$39)*24*VMOIS(H46)/1000 -> 35458.85276 | J46: 29939.53085 | K46: =$C$47*SUM($C$43:$C$45)*(Données1!F200-$K$39)*24*VMOIS(H46)/1000 -> 30949.58982 | L46: 26132.15395 | M46: =$C$47*SUM($C$43:$C$45)*(Données1!F200-$M$39)*24*VMOIS(H46)/1000 -> 26440.32688 | N46: 22324.77705 | O46: =$C$47*SUM($C$43:$C$45)*(Données1!F200-$O$39)*24*VMOIS(H46)/1000 -> 21931.06394 | P46: 18517.40016 | Q46: =$C$47*SUM($C$43:$C$45)*(Données1!F200-$Q$39)*24*VMOIS(H46)/1000 -> 17421.80101 | R46: 14710.02326 | S46: =$C$47*SUM($C$43:$C$45)*(Données1!F200-$S$39)*24*VMOIS(H46)/1000 -> 12912.53807 | T46: 10902.64636 | U46: =$C$47*SUM($C$43:$C$45)*(Données1!F200-$U$39)*24*VMOIS(H46)/1000 -> 8403.275131 | V46: 7095.26946
B47: U bat moyen (W/m²,K) | C47: =(C43*F47+C44*F48+C45*F49)/SUM(C43:C45) -> 1.811249709 | D47: Uw (avec Rse et Rsi) | F47: =F43 -> 5 | H47: Juin | I47: =$C$47*SUM($C$43:$C$45)*(Données1!F201-$I$39)*24*VMOIS(H47)/1000 -> 30183.34847 | J47: 25485.18134 | K47: =$C$47*SUM($C$43:$C$45)*(Données1!F201-$K$39)*24*VMOIS(H47)/1000 -> 25819.54562 | L47: 21800.62305 | M47: =$C$47*SUM($C$43:$C$45)*(Données1!F201-$M$39)*24*VMOIS(H47)/1000 -> 21455.74278 | N47: 18116.06476 | O47: =$C$47*SUM($C$43:$C$45)*(Données1!F201-$O$39)*24*VMOIS(H47)/1000 -> 17091.93994 | P47: 14431.50647 | Q47: =$C$47*SUM($C$43:$C$45)*(Données1!F201-$Q$39)*24*VMOIS(H47)/1000 -> 12728.13709 | R47: 10746.94818 | S47: =$C$47*SUM($C$43:$C$45)*(Données1!F201-$S$39)*24*VMOIS(H47)/1000 -> 8364.334252 | T47: 7062.389894 | U47: =$C$47*SUM($C$43:$C$45)*(Données1!F201-$U$39)*24*VMOIS(H47)/1000 -> 4000.531409 | V47: 3377.831605
B48: U bat parois opaques (W/m²,K) | C48: =(Calculs!C44*Calculs!F48+Calculs!C45*Calculs!F49)/(Calculs!C44+Calculs!C45) -> 0.5794710002 | D48: U_murs (avec Rse et Rsi) | F48: =1/(1/F44+1/F76+1/F75) -> 1.503323263 | H48: Juillet | I48: =$C$47*SUM($C$43:$C$45)*(Données1!F202-$I$39)*24*VMOIS(H48)/1000 -> 33155.20427 | J48: 27994.45509 | K48: =$C$47*SUM($C$43:$C$45)*(Données1!F202-$K$39)*24*VMOIS(H48)/1000 -> 28645.94133 | L48: 24187.07819 | M48: =$C$47*SUM($C$43:$C$45)*(Données1!F202-$M$39)*24*VMOIS(H48)/1000 -> 24136.67839 | N48: 20379.70129 | O48: =$C$47*SUM($C$43:$C$45)*(Données1!F202-$O$39)*24*VMOIS(H48)/1000 -> 19627.41545 | P48: 16572.32439 | Q48: =$C$47*SUM($C$43:$C$45)*(Données1!F202-$Q$39)*24*VMOIS(H48)/1000 -> 15118.15252 | R48: 12764.94749 | S48: =$C$47*SUM($C$43:$C$45)*(Données1!F202-$S$39)*24*VMOIS(H48)/1000 -> 10608.88958 | T48: 8957.570596 | U48: =$C$47*SUM($C$43:$C$45)*(Données1!F202-$U$39)*24*VMOIS(H48)/1000 -> 6099.626641 | V48: 5150.193697
D49: U_toit (avec Rse et Rsi) | F49: =1/(1/F45+1/F79+1/F78) -> 0.4629729501 | H49: Août | I49: =$C$47*SUM($C$43:$C$45)*(Données1!F203-$I$39)*24*VMOIS(H49)/1000 -> 35954.85653 | J49: 30358.32952 | K49: =$C$47*SUM($C$43:$C$45)*(Données1!F203-$K$39)*24*VMOIS(H49)/1000 -> 31445.59359 | L49: 26550.95262 | M49: =$C$47*SUM($C$43:$C$45)*(Données1!F203-$M$39)*24*VMOIS(H49)/1000 -> 26936.33065 | N49: 22743.57572 | O49: =$C$47*SUM($C$43:$C$45)*(Données1!F203-$O$39)*24*VMOIS(H49)/1000 -> 22427.06772 | P49: 18936.19882 | Q49: =$C$47*SUM($C$43:$C$45)*(Données1!F203-$Q$39)*24*VMOIS(H49)/1000 -> 17917.80478 | R49: 15128.82192 | S49: =$C$47*SUM($C$43:$C$45)*(Données1!F203-$S$39)*24*VMOIS(H49)/1000 -> 13408.54184 | T49: 11321.44502 | U49: =$C$47*SUM($C$43:$C$45)*(Données1!F203-$U$39)*24*VMOIS(H49)/1000 -> 8899.278902 | V49: 7514.068125
H50: Septembre | I50: =$C$47*SUM($C$43:$C$45)*(Données1!F204-$I$39)*24*VMOIS(H50)/1000 -> 35246.87497 | J50: 29760.54832 | K50: =$C$47*SUM($C$43:$C$45)*(Données1!F204-$K$39)*24*VMOIS(H50)/1000 -> 30883.07213 | L50: 26075.99003 | M50: =$C$47*SUM($C$43:$C$45)*(Données1!F204-$M$39)*24*VMOIS(H50)/1000 -> 26519.26929 | N50: 22391.43174 | O50: =$C$47*SUM($C$43:$C$45)*(Données1!F204-$O$39)*24*VMOIS(H50)/1000 -> 22155.46645 | P50: 18706.87345 | Q50: =$C$47*SUM($C$43:$C$45)*(Données1!F204-$Q$39)*24*VMOIS(H50)/1000 -> 17791.6636 | R50: 15022.31516 | S50: =$C$47*SUM($C$43:$C$45)*(Données1!F204-$S$39)*24*VMOIS(H50)/1000 -> 13427.86076 | T50: 11337.75687 | U50: =$C$47*SUM($C$43:$C$45)*(Données1!F204-$U$39)*24*VMOIS(H50)/1000 -> 9064.057916 | V50: 7653.198581
H51: Octobre | I51: =$C$47*SUM($C$43:$C$45)*(Données1!F205-$I$39)*24*VMOIS(H51)/1000 -> 37937.43217 | J51: 32032.30879 | K51: =$C$47*SUM($C$43:$C$45)*(Données1!F205-$K$39)*24*VMOIS(H51)/1000 -> 33428.16923 | L51: 28224.93189 | M51: =$C$47*SUM($C$43:$C$45)*(Données1!F205-$M$39)*24*VMOIS(H51)/1000 -> 28918.90629 | N51: 24417.55499 | O51: =$C$47*SUM($C$43:$C$45)*(Données1!F205-$O$39)*24*VMOIS(H51)/1000 -> 24409.64335 | P51: 20610.17809 | Q51: =$C$47*SUM($C$43:$C$45)*(Données1!F205-$Q$39)*24*VMOIS(H51)/1000 -> 19900.38041 | R51: 16802.80119 | S51: =$C$47*SUM($C$43:$C$45)*(Données1!F205-$S$39)*24*VMOIS(H51)/1000 -> 15391.11748 | T51: 12995.42429 | U51: =$C$47*SUM($C$43:$C$45)*(Données1!F205-$U$39)*24*VMOIS(H51)/1000 -> 10881.85454 | V51: 9188.047393
H52: Novembre | I52: =$C$47*SUM($C$43:$C$45)*(Données1!F206-$I$39)*24*VMOIS(H52)/1000 -> 32619.27473 | J52: 27541.94528 | K52: =$C$47*SUM($C$43:$C$45)*(Données1!F206-$K$39)*24*VMOIS(H52)/1000 -> 28255.47189 | L52: 23857.38699 | M52: =$C$47*SUM($C$43:$C$45)*(Données1!F206-$M$39)*24*VMOIS(H52)/1000 -> 23891.66905 | N52: 20172.8287 | O52: =$C$47*SUM($C$43:$C$45)*(Données1!F206-$O$39)*24*VMOIS(H52)/1000 -> 19527.8662 | P52: 16488.27041 | Q52: =$C$47*SUM($C$43:$C$45)*(Données1!F206-$Q$39)*24*VMOIS(H52)/1000 -> 15164.06336 | R52: 12803.71212 | S52: =$C$47*SUM($C$43:$C$45)*(Données1!F206-$S$39)*24*VMOIS(H52)/1000 -> 10800.26052 | T52: 9119.15383 | U52: =$C$47*SUM($C$43:$C$45)*(Données1!F206-$U$39)*24*VMOIS(H52)/1000 -> 6436.457673 | V52: 5434.59554
H53: Décembre | I53: =$C$47*SUM($C$43:$C$45)*(Données1!F207-$I$39)*24*VMOIS(H53)/1000 -> 33087.92897 | J53: 27937.65148 | K53: =$C$47*SUM($C$43:$C$45)*(Données1!F207-$K$39)*24*VMOIS(H53)/1000 -> 28578.66604 | L53: 24130.27458 | M53: =$C$47*SUM($C$43:$C$45)*(Données1!F207-$M$39)*24*VMOIS(H53)/1000 -> 24069.4031 | N53: 20322.89769 | O53: =$C$47*SUM($C$43:$C$45)*(Données1!F207-$O$39)*24*VMOIS(H53)/1000 -> 19560.14016 | P53: 16515.52079 | Q53: =$C$47*SUM($C$43:$C$45)*(Données1!F207-$Q$39)*24*VMOIS(H53)/1000 -> 15050.87722 | R53: 12708.14389 | S53: =$C$47*SUM($C$43:$C$45)*(Données1!F207-$S$39)*24*VMOIS(H53)/1000 -> 10541.61428 | T53: 8900.766989 | U53: =$C$47*SUM($C$43:$C$45)*(Données1!F207-$U$39)*24*VMOIS(H53)/1000 -> 6032.351347 | V53: 5093.39009
I54: =SUM(I42:I53) -> 399159.7734 | J54: 337028.8496 | K54: 346066.8388 | L54: 292200.057 | M54: 292973.9043 | N54: 247371.2645 | O54: 239880.9697 | P54: 202542.472 | Q54: 186788.0351 | R54: 157713.6795 | S54: 133695.1005 | T54: 112884.887 | U54: 80602.16589 | V54: 68056.09445
B55: Apports renouvellement d'air
J57: 20 | O57: 21 | T57: 22 | Y57: 23 | AD57: 24 | AI57: 25 | AN57: 26
B58: Volume batiment (m3) | C58: =Calculs!F3 -> 11574.9 | I58: Pv sat int | J58: Etanchéité | L58: VMC (kWh) | N58: Pv sat int | O58: Etanchéité | Q58: VMC (kWh) | S58: Pv sat int | T58: Etanchéité | V58: VMC (kWh) | X58: Pv sat int | Y58: Etanchéité | AA58: VMC (kWh) | AC58: Pv sat int | AD58: Etanchéité | AF58: VMC (kWh) | AH58: Pv sat int | AI58: Etanchéité | AK58: VMC (kWh) | AM58: Pv sat int | AN58: Etanchéité | AP58: VMC (kWh)
I59: =EXP(23.3265-3802.7/(J57+273.18)-(472.68/(J57+273.18))^2) -> 2336.977937 | J59: SENSIBLE | K59: LATENT | L59: SENSIBLE | M59: LATENT | N59: =EXP(23.3265-3802.7/(O57+273.18)-(472.68/(O57+273.18))^2) -> 2485.790975 | O59: SENSIBLE | P59: LATENT | Q59: SENSIBLE | R59: LATENT | S59: =EXP(23.3265-3802.7/(T57+273.18)-(472.68/(T57+273.18))^2) -> 2642.817205 | T59: SENSIBLE | U59: LATENT | V59: SENSIBLE | W59: LATENT | X59: =EXP(23.3265-3802.7/(Y57+273.18)-(472.68/(Y57+273.18))^2) -> 2808.435991 | Y59: SENSIBLE | Z59: LATENT | AA59: SENSIBLE | AB59: LATENT | AC59: =EXP(23.3265-3802.7/(AD57+273.18)-(472.68/(AD57+273.18))^2) -> 2983.040487 | AD59: SENSIBLE | AE59: LATENT | AF59: SENSIBLE | AG59: LATENT | AH59: =EXP(23.3265-3802.7/(AI57+273.18)-(472.68/(AI57+273.18))^2) -> 3167.037975 | AI59: SENSIBLE | AJ59: LATENT | AK59: SENSIBLE | AL59: LATENT | AM59: =EXP(23.3265-3802.7/(AN57+273.18)-(472.68/(AN57+273.18))^2) -> 3360.850216 | AN59: SENSIBLE | AO59: LATENT | AP59: SENSIBLE | AQ59: LATENT
C60: De base | D60: ="+ ajustement" -> + ajustement | H60: Janvier | I60: =(0.622*I59*Données1!$BK263/100)/(101325-I59*Données1!$BK263/100) -> 0.01104504513 | J60: =0.279166*Données1!$AD229*$D$61*Données1!$AD229/(1.292*273.15/($J$57+273))*(Données1!$Z229-$J$57)*24*VMOIS($H60)/1000 -> 14264.78736 | K60: =0.680555*Données1!$AD229*$D$61*Données1!$AD229/(1.292*273.15/($J$57+273))*(Données1!$AC229-I60)*24*VMOIS($H60) -> 42983.25106 | L60: =0.279166*Données1!$Y229*$C$64*Données1!$Y229/(1.292*273.15/($J$57+273))*(Données1!$U229-$J$57)*$C$66*VMOIS($H60)/1000 -> 0 | M60: =0.680555*Données1!$Y229*$C$64*Données1!$Y229/(1.292*273.15/($J$57+273))*(Données1!$X229-I60)*$C$66*VMOIS($H60) -> 0 | N60: =(0.622*N59*Données1!$BL263/100)/(101325-N59*Données1!$BL263/100) -> 0.01145817189 | O60: =0.279166*Données1!$AD229*$D$61*Données1!$AD229/(1.292*273.15/($O$57+273))*(Données1!$Z229-$O$57)*24*VMOIS($H60)/1000 -> 12316.03786 | P60: =0.680555*Données1!$AD229*$D$61*Données1!$AD229/(1.292*273.15/($O$57+273))*(Données1!$AC229-N60)*24*VMOIS($H60) -> 41118.28203 | Q60: =0.279166*Données1!$Y229*$C$64*Données1!$Y229/(1.292*273.15/($O$57+273))*(Données1!$U229-$O$57)*$C$66*VMOIS($H60)/1000 -> 0 | R60: =0.680555*Données1!$Y229*$C$64*Données1!$Y229/(1.292*273.15/($O$57+273))*(Données1!X229-N60)*$C$66*VMOIS($H60) -> 0 | S60: =(0.622*S59*Données1!$BM263/100)/(101325-S59*Données1!$BM263/100) -> 0.01190917843 | T60: =0.279166*Données1!$AD229*$D$61*Données1!$AD229/(1.292*273.15/($T$57+273))*(Données1!$Z229-$T$57)*24*VMOIS($H60)/1000 -> 10353.70038 | U60: =0.680555*Données1!$AD229*$D$61*Données1!$AD229/(1.292*273.15/($T$57+273))*(Données1!$AC229-S60)*24*VMOIS($H60) -> 39054.54988 | V60: =0.279166*Données1!$Y229*$C$64*Données1!$Y229/(1.292*273.15/($T$57+273))*(Données1!$U229-$T$57)*$C$66*VMOIS($H60)/1000 -> 0 | W60: =0.680555*Données1!$Y229*$C$64*Données1!$Y229/(1.292*273.15/($T$57+273))*(Données1!X229-S60)*$C$66*VMOIS($H60) -> 0 | X60: =(0.622*X59*Données1!$BN263/100)/(101325-X59*Données1!$BN263/100) -> 0.01240663117 | Y60: =0.279166*Données1!$AD229*$D$61*Données1!$AD229/(1.292*273.15/($Y$57+273))*(Données1!$Z229-$Y$57)*24*VMOIS($H60)/1000 -> 8377.774896 | Z60: =0.680555*Données1!$AD229*$D$61*Données1!$AD229/(1.292*273.15/($Y$57+273))*(Données1!$AC229-X60)*24*VMOIS($H60) -> 36748.17565 | AA60: =0.279166*Données1!$Y229*$C$64*Données1!$Y229/(1.292*273.15/($Y$57+273))*(Données1!$U229-$Y$57)*$C$66*VMOIS($H60)/1000 -> 0 | AB60: =0.680555*Données1!$Y229*$C$64*Données1!$Y229/(1.292*273.15/($Y$57+273))*(Données1!X229-X60)*$C$66*VMOIS($H60) -> 0 | AC60: =(0.622*AC59*Données1!$BO263/100)/(101325-AC59*Données1!$BO263/100) -> 0.01296222491 | AD60: =0.279166*Données1!$AD229*$D$61*Données1!$AD229/(1.292*273.15/($AD$57+273))*(Données1!$Z229-$AD$57)*24*VMOIS($H60)/1000 -> 6388.261424 | AE60: =0.680555*Données1!$AD229*$D$61*Données1!$AD229/(1.292*273.15/($AD$57+273))*(Données1!$AC229-AC60)*24*VMOIS($H60) -> 34139.324 | AF60: =0.279166*Données1!$Y229*$C$64*Données1!$Y229/(1.292*273.15/($AD$57+273))*(Données1!$U229-$AD$57)*$C$66*VMOIS($H60)/1000 -> 0 | AG60: =0.680555*Données1!$Y229*$C$64*Données1!$Y229/(1.292*273.15/($AD$57+273))*(Données1!X229-AC60)*$C$66*VMOIS($H60) -> 0 | AH60: =(0.622*AH59*Données1!$BP263/100)/(101325-AH59*Données1!$BP263/100) -> 0.01359047395 | AI60: =0.279166*Données1!$AD229*$D$61*Données1!$AD229/(1.292*273.15/($AI$57+273))*(Données1!$Z229-$AI$57)*24*VMOIS($H60)/1000 -> 4385.159961 | AJ60: =0.680555*Données1!$AD229*$D$61*Données1!$AD229/(1.292*273.15/($AI$57+273))*(Données1!$AC229-AH60)*24*VMOIS($H60) -> 31153.46887 | AK60: =0.279166*Données1!$Y229*$C$64*Données1!$Y229/(1.292*273.15/($AI$57+273))*(Données1!$U229-$AI$57)*$C$66*VMOIS($H60)/1000 -> 0 | AL60: =0.680555*Données1!$Y229*$C$64*Données1!$Y229/(1.292*273.15/($AI$57+273))*(Données1!X229-AH60)*$C$66*VMOIS($H60) -> 0 | AM60: =(0.622*AM59*Données1!$BQ263/100)/(101325-AM59*Données1!$BQ263/100) -> 0.01430714798 | AN60: =0.279166*Données1!$AD229*$D$61*Données1!$AD229/(1.292*273.15/($AN$57+273))*(Données1!$Z229-$AN$57)*24*VMOIS($H60)/1000 -> 2368.470506 | AO60: =0.680555*Données1!$AD229*$D$61*Données1!$AD229/(1.292*273.15/($AN$57+273))*(Données1!$AC229-AM60)*24*VMOIS($H60) -> 27708.90581 | AP60: =0.279166*Données1!$Y229*$C$64*Données1!$Y229/(1.292*273.15/($AN$57+273))*(Données1!$U229-$AN$57)*$C$66*VMOIS($H60)/1000 -> 0 | AQ60: =0.680555*Données1!$Y229*$C$64*Données1!$Y229/(1.292*273.15/($AN$57+273))*(Données1!X229-AM60)*$C$66*VMOIS($H60) -> 0
B61: Renouvellement étanchéité(m3/h) | C61: =MROUND(C43*Données1!Z245+(C44+C45)*Données1!Y245,0.1) -> 8351.2 | D61: =C61 -> 8351.2 | H61: Février | I61: =(0.622*I59*Données1!$BK264/100)/(101325-I59*Données1!$BK264/100) -> 0.01085334575 | J61: =0.279166*Données1!$AD230*$D$61*Données1!$AD230/(1.292*273.15/($J$57+273))*(Données1!$Z230-$J$57)*24*VMOIS($H61)/1000 -> 12773.65941 | K61: =0.680555*Données1!$AD230*$D$61*Données1!$AD230/(1.292*273.15/($J$57+273))*(Données1!$AC230-I61)*24*VMOIS($H61) -> 37308.70607 | L61: =0.279166*Données1!$Y230*$C$64*Données1!$Y230/(1.292*273.15/($J$57+273))*(Données1!$U230-$J$57)*$C$66*VMOIS($H61)/1000 -> 0 | M61: =0.680555*Données1!$Y230*$C$64*Données1!$Y230/(1.292*273.15/($J$57+273))*(Données1!$X230-I61)*$C$66*VMOIS($H61) -> 0 | N61: =(0.622*N59*Données1!$BK264/100)/(101325-N59*Données1!$BK264/100) -> 0.01155730177 | O61: =0.279166*Données1!$AD230*$D$61*Données1!$AD230/(1.292*273.15/($O$57+273))*(Données1!$Z230-$O$57)*24*VMOIS($H61)/1000 -> 11012.344 | P61: =0.680555*Données1!$AD230*$D$61*Données1!$AD230/(1.292*273.15/($O$57+273))*(Données1!$AC230-N61)*24*VMOIS($H61) -> 34338.60492 | Q61: =0.279166*Données1!$Y230*$C$64*Données1!$Y230/(1.292*273.15/($O$57+273))*(Données1!$U230-$O$57)*$C$66*VMOIS($H61)/1000 -> 0 | R61: =0.680555*Données1!$Y230*$C$64*Données1!$Y230/(1.292*273.15/($O$57+273))*(Données1!X230-N61)*$C$66*VMOIS($H61) -> 0 | S61: =(0.622*S59*Données1!$BM264/100)/(101325-S59*Données1!$BM264/100) -> 0.01166858054 | T61: =0.279166*Données1!$AD230*$D$61*Données1!$AD230/(1.292*273.15/($T$57+273))*(Données1!$Z230-$T$57)*24*VMOIS($H61)/1000 -> 9238.750273 | U61: =0.680555*Données1!$AD230*$D$61*Données1!$AD230/(1.292*273.15/($T$57+273))*(Données1!$AC230-S61)*24*VMOIS($H61) -> 33964.10643 | V61: =0.279166*Données1!$Y230*$C$64*Données1!$Y230/(1.292*273.15/($T$57+273))*(Données1!$U230-$T$57)*$C$66*VMOIS($H61)/1000 -> 0 | W61: =0.680555*Données1!$Y230*$C$64*Données1!$Y230/(1.292*273.15/($T$57+273))*(Données1!X230-S61)*$C$66*VMOIS($H61) -> 0 | X61: =(0.622*X59*Données1!$BN264/100)/(101325-X59*Données1!$BN264/100) -> 0.01213111973 | Y61: =0.279166*Données1!$AD230*$D$61*Données1!$AD230/(1.292*273.15/($Y$57+273))*(Données1!$Z230-$Y$57)*24*VMOIS($H61)/1000 -> 7452.87824 | Z61: =0.680555*Données1!$AD230*$D$61*Données1!$AD230/(1.292*273.15/($Y$57+273))*(Données1!$AC230-X61)*24*VMOIS($H61) -> 32030.20323 | AA61: =0.279166*Données1!$Y230*$C$64*Données1!$Y230/(1.292*273.15/($Y$57+273))*(Données1!$U230-$Y$57)*$C$66*VMOIS($H61)/1000 -> 0 | AB61: =0.680555*Données1!$Y230*$C$64*Données1!$Y230/(1.292*273.15/($Y$57+273))*(Données1!X230-X61)*$C$66*VMOIS($H61) -> 0 | AC61: =(0.622*AC59*Données1!$BO264/100)/(101325-AC59*Données1!$BO264/100) -> 0.01264347653 | AD61: =0.279166*Données1!$AD230*$D$61*Données1!$AD230/(1.292*273.15/($AD$57+273))*(Données1!$Z230-$AD$57)*24*VMOIS($H61)/1000 -> 5654.727897 | AE61: =0.680555*Données1!$AD230*$D$61*Données1!$AD230/(1.292*273.15/($AD$57+273))*(Données1!$AC230-AC61)*24*VMOIS($H61) -> 29861.01902 | AF61: =0.279166*Données1!$Y230*$C$64*Données1!$Y230/(1.292*273.15/($AD$57+273))*(Données1!$U230-$AD$57)*$C$66*VMOIS($H61)/1000 -> 0 | AG61: =0.680555*Données1!$Y230*$C$64*Données1!$Y230/(1.292*273.15/($AD$57+273))*(Données1!X230-AC61)*$C$66*VMOIS($H61) -> 0 | AH61: =(0.622*AH59*Données1!$BP264/100)/(101325-AH59*Données1!$BP264/100) -> 0.0132201622 | AI61: =0.279166*Données1!$AD230*$D$61*Données1!$AD230/(1.292*273.15/($AI$57+273))*(Données1!$Z230-$AI$57)*24*VMOIS($H61)/1000 -> 3844.299245 | AJ61: =0.680555*Données1!$AD230*$D$61*Données1!$AD230/(1.292*273.15/($AI$57+273))*(Données1!$AC230-AH61)*24*VMOIS($H61) -> 27389.59814 | AK61: =0.279166*Données1!$Y230*$C$64*Données1!$Y230/(1.292*273.15/($AI$57+273))*(Données1!$U230-$AI$57)*$C$66*VMOIS($H61)/1000 -> 0 | AL61: =0.680555*Données1!$Y230*$C$64*Données1!$Y230/(1.292*273.15/($AI$57+273))*(Données1!X230-AH61)*$C$66*VMOIS($H61) -> 0 | AM61: =(0.622*AM59*Données1!$BQ264/100)/(101325-AM59*Données1!$BQ264/100) -> 0.01387483984 | AN61: =0.279166*Données1!$AD230*$D$61*Données1!$AD230/(1.292*273.15/($AN$57+273))*(Données1!$Z230-$AN$57)*24*VMOIS($H61)/1000 -> 2021.592283 | AO61: =0.680555*Données1!$AD230*$D$61*Données1!$AD230/(1.292*273.15/($AN$57+273))*(Données1!$AC230-AM61)*24*VMOIS($H61) -> 24551.91186 | AP61: =0.279166*Données1!$Y230*$C$64*Données1!$Y230/(1.292*273.15/($AN$57+273))*(Données1!$U230-$AN$57)*$C$66*VMOIS($H61)/1000 -> 0 | AQ61: =0.680555*Données1!$Y230*$C$64*Données1!$Y230/(1.292*273.15/($AN$57+273))*(Données1!X230-AM61)*$C$66*VMOIS($H61) -> 0
B62: Renouvellement étanchéité (vol/h) | C62: =MROUND(C61/C58,0.001) -> 0.721 | D62: =C62 -> 0.721 | H62: Mars | I62: =(0.622*I59*Données1!$BK265/100)/(101325-I59*Données1!$BK265/100) -> 0.01088509577 | J62: =0.279166*Données1!$AD231*$D$61*Données1!$AD231/(1.292*273.15/($J$57+273))*(Données1!$Z231-$J$57)*24*VMOIS($H62)/1000 -> 14195.75572 | K62: =0.680555*Données1!$AD231*$D$61*Données1!$AD231/(1.292*273.15/($J$57+273))*(Données1!$AC231-I62)*24*VMOIS($H62) -> 41143.3725 | L62: =0.279166*Données1!$Y231*$C$64*Données1!$Y231/(1.292*273.15/($J$57+273))*(Données1!$U231-$J$57)*$C$66*VMOIS($H62)/1000 -> 0 | M62: =0.680555*Données1!$Y231*$C$64*Données1!$Y231/(1.292*273.15/($J$57+273))*(Données1!$X231-I62)*$C$66*VMOIS($H62) -> 0 | N62: =(0.622*N59*Données1!$BK265/100)/(101325-N59*Données1!$BK265/100) -> 0.01159114883 | O62: =0.279166*Données1!$AD231*$D$61*Données1!$AD231/(1.292*273.15/($O$57+273))*(Données1!$Z231-$O$57)*24*VMOIS($H62)/1000 -> 12246.28599 | P62: =0.680555*Données1!$AD231*$D$61*Données1!$AD231/(1.292*273.15/($O$57+273))*(Données1!$AC231-N62)*24*VMOIS($H62) -> 37844.92154 | Q62: =0.279166*Données1!$Y231*$C$64*Données1!$Y231/(1.292*273.15/($O$57+273))*(Données1!$U231-$O$57)*$C$66*VMOIS($H62)/1000 -> 0 | R62: =0.680555*Données1!$Y231*$C$64*Données1!$Y231/(1.292*273.15/($O$57+273))*(Données1!X231-N62)*$C$66*VMOIS($H62) -> 0 | S62: =(0.622*S59*Données1!$BM265/100)/(101325-S59*Données1!$BM265/100) -> 0.01172069789 | T62: =0.279166*Données1!$AD231*$D$61*Données1!$AD231/(1.292*273.15/($T$57+273))*(Données1!$Z231-$T$57)*24*VMOIS($H62)/1000 -> 10283.22496 | U62: =0.680555*Données1!$AD231*$D$61*Données1!$AD231/(1.292*273.15/($T$57+273))*(Données1!$AC231-S62)*24*VMOIS($H62) -> 37340.52344 | V62: =0.279166*Données1!$Y231*$C$64*Données1!$Y231/(1.292*273.15/($T$57+273))*(Données1!$U231-$T$57)*$C$66*VMOIS($H62)/1000 -> 0 | W62: =0.680555*Données1!$Y231*$C$64*Données1!$Y231/(1.292*273.15/($T$57+273))*(Données1!X231-S62)*$C$66*VMOIS($H62) -> 0 | X62: =(0.622*X59*Données1!$BN265/100)/(101325-X59*Données1!$BN265/100) -> 0.01220449159 | Y62: =0.279166*Données1!$AD231*$D$61*Données1!$AD231/(1.292*273.15/($Y$57+273))*(Données1!$Z231-$Y$57)*24*VMOIS($H62)/1000 -> 8306.57265 | Z62: =0.680555*Données1!$AD231*$D$61*Données1!$AD231/(1.292*273.15/($Y$57+273))*(Données1!$AC231-X62)*24*VMOIS($H62) -> 35094.72693 | AA62: =0.279166*Données1!$Y231*$C$64*Données1!$Y231/(1.292*273.15/($Y$57+273))*(Données1!$U231-$Y$57)*$C$66*VMOIS($H62)/1000 -> 0 | AB62: =0.680555*Données1!$Y231*$C$64*Données1!$Y231/(1.292*273.15/($Y$57+273))*(Données1!X231-X62)*$C$66*VMOIS($H62) -> 0 | AC62: =(0.622*AC59*Données1!$BO265/100)/(101325-AC59*Données1!$BO265/100) -> 0.01275042978 | AD62: =0.279166*Données1!$AD231*$D$61*Données1!$AD231/(1.292*273.15/($AD$57+273))*(Données1!$Z231-$AD$57)*24*VMOIS($H62)/1000 -> 6316.329049 | AE62: =0.680555*Données1!$AD231*$D$61*Données1!$AD231/(1.292*273.15/($AD$57+273))*(Données1!$AC231-AC62)*24*VMOIS($H62) -> 32527.13395 | AF62: =0.279166*Données1!$Y231*$C$64*Données1!$Y231/(1.292*273.15/($AD$57+273))*(Données1!$U231-$AD$57)*$C$66*VMOIS($H62)/1000 -> 0 | AG62: =0.680555*Données1!$Y231*$C$64*Données1!$Y231/(1.292*273.15/($AD$57+273))*(Données1!X231-AC62)*$C$66*VMOIS($H62) -> 0 | AH62: =(0.622*AH59*Données1!$BP265/100)/(101325-AH59*Données1!$BP265/100) -> 0.01336992546 | AI62: =0.279166*Données1!$AD231*$D$61*Données1!$AD231/(1.292*273.15/($AI$57+273))*(Données1!$Z231-$AI$57)*24*VMOIS($H62)/1000 -> 4312.494158 | AJ62: =0.680555*Données1!$AD231*$D$61*Données1!$AD231/(1.292*273.15/($AI$57+273))*(Données1!$AC231-AH62)*24*VMOIS($H62) -> 29578.31204 | AK62: =0.279166*Données1!$Y231*$C$64*Données1!$Y231/(1.292*273.15/($AI$57+273))*(Données1!$U231-$AI$57)*$C$66*VMOIS($H62)/1000 -> 0 | AL62: =0.680555*Données1!$Y231*$C$64*Données1!$Y231/(1.292*273.15/($AI$57+273))*(Données1!X231-AH62)*$C$66*VMOIS($H62) -> 0 | AM62: =(0.622*AM59*Données1!$BQ265/100)/(101325-AM59*Données1!$BQ265/100) -> 0.01407006653 | AN62: =0.279166*Données1!$AD231*$D$61*Données1!$AD231/(1.292*273.15/($AN$57+273))*(Données1!$Z231-$AN$57)*24*VMOIS($H62)/1000 -> 2295.06798 | AO62: =0.680555*Données1!$AD231*$D$61*Données1!$AD231/(1.292*273.15/($AN$57+273))*(Données1!$AC231-AM62)*24*VMOIS($H62) -> 26209.49632 | AP62: =0.279166*Données1!$Y231*$C$64*Données1!$Y231/(1.292*273.15/($AN$57+273))*(Données1!$U231-$AN$57)*$C$66*VMOIS($H62)/1000 -> 0 | AQ62: =0.680555*Données1!$Y231*$C$64*Données1!$Y231/(1.292*273.15/($AN$57+273))*(Données1!X231-AM62)*$C$66*VMOIS($H62) -> 0
H63: Avril | I63: =(0.622*I59*Données1!$BK266/100)/(101325-I59*Données1!$BK266/100) -> 0.01101536364 | J63: =0.279166*Données1!$AD232*$D$61*Données1!$AD232/(1.292*273.15/($J$57+273))*(Données1!$Z232-$J$57)*24*VMOIS($H63)/1000 -> 14165.90056 | K63: =0.680555*Données1!$AD232*$D$61*Données1!$AD232/(1.292*273.15/($J$57+273))*(Données1!$AC232-I63)*24*VMOIS($H63) -> 43673.78915 | L63: =0.279166*Données1!$Y232*$C$64*Données1!$Y232/(1.292*273.15/($J$57+273))*(Données1!$U232-$J$57)*$C$66*VMOIS($H63)/1000 -> 0 | M63: =0.680555*Données1!$Y232*$C$64*Données1!$Y232/(1.292*273.15/($J$57+273))*(Données1!$X232-I63)*$C$66*VMOIS($H63) -> 0 | N63: =(0.622*N59*Données1!$BK266/100)/(101325-N59*Données1!$BK266/100) -> 0.01173002303 | O63: =0.279166*Données1!$AD232*$D$61*Données1!$AD232/(1.292*273.15/($O$57+273))*(Données1!$Z232-$O$57)*24*VMOIS($H63)/1000 -> 12283.78426 | P63: =0.680555*Données1!$AD232*$D$61*Données1!$AD232/(1.292*273.15/($O$57+273))*(Données1!$AC232-N63)*24*VMOIS($H63) -> 40459.57796 | Q63: =0.279166*Données1!$Y232*$C$64*Données1!$Y232/(1.292*273.15/($O$57+273))*(Données1!$U232-$O$57)*$C$66*VMOIS($H63)/1000 -> 0 | R63: =0.680555*Données1!$Y232*$C$64*Données1!$Y232/(1.292*273.15/($O$57+273))*(Données1!X232-N63)*$C$66*VMOIS($H63) -> 0 | S63: =(0.622*S59*Données1!$BM266/100)/(101325-S59*Données1!$BM266/100) -> 0.01184969707 | T63: =0.279166*Données1!$AD232*$D$61*Données1!$AD232/(1.292*273.15/($T$57+273))*(Données1!$Z232-$T$57)*24*VMOIS($H63)/1000 -> 10388.53555 | U63: =0.680555*Données1!$AD232*$D$61*Données1!$AD232/(1.292*273.15/($T$57+273))*(Données1!$AC232-S63)*24*VMOIS($H63) -> 40032.08029 | V63: =0.279166*Données1!$Y232*$C$64*Données1!$Y232/(1.292*273.15/($T$57+273))*(Données1!$U232-$T$57)*$C$66*VMOIS($H63)/1000 -> 0 | W63: =0.680555*Données1!$Y232*$C$64*Données1!$Y232/(1.292*273.15/($T$57+273))*(Données1!X232-S63)*$C$66*VMOIS($H63) -> 0 | X63: =(0.622*X59*Données1!$BN266/100)/(101325-X59*Données1!$BN266/100) -> 0.01232368254 | Y63: =0.279166*Données1!$AD232*$D$61*Données1!$AD232/(1.292*273.15/($Y$57+273))*(Données1!$Z232-$Y$57)*24*VMOIS($H63)/1000 -> 8480.154438 | Z63: =0.680555*Données1!$AD232*$D$61*Données1!$AD232/(1.292*273.15/($Y$57+273))*(Données1!$AC232-X63)*24*VMOIS($H63) -> 37921.97832 | AA63: =0.279166*Données1!$Y232*$C$64*Données1!$Y232/(1.292*273.15/($Y$57+273))*(Données1!$U232-$Y$57)*$C$66*VMOIS($H63)/1000 -> 0 | AB63: =0.680555*Données1!$Y232*$C$64*Données1!$Y232/(1.292*273.15/($Y$57+273))*(Données1!X232-X63)*$C$66*VMOIS($H63) -> 0 | AC63: =(0.622*AC59*Données1!$BO266/100)/(101325-AC59*Données1!$BO266/100) -> 0.01284693418 | AD63: =0.279166*Données1!$AD232*$D$61*Données1!$AD232/(1.292*273.15/($AD$57+273))*(Données1!$Z232-$AD$57)*24*VMOIS($H63)/1000 -> 6558.640914 | AE63: =0.680555*Données1!$AD232*$D$61*Données1!$AD232/(1.292*273.15/($AD$57+273))*(Données1!$AC232-AC63)*24*VMOIS($H63) -> 35562.48396 | AF63: =0.279166*Données1!$Y232*$C$64*Données1!$Y232/(1.292*273.15/($AD$57+273))*(Données1!$U232-$AD$57)*$C$66*VMOIS($H63)/1000 -> 0 | AG63: =0.680555*Données1!$Y232*$C$64*Données1!$Y232/(1.292*273.15/($AD$57+273))*(Données1!X232-AC63)*$C$66*VMOIS($H63) -> 0 | AH63: =(0.622*AH59*Données1!$BP266/100)/(101325-AH59*Données1!$BP266/100) -> 0.01343407325 | AI63: =0.279166*Données1!$AD232*$D$61*Données1!$AD232/(1.292*273.15/($AI$57+273))*(Données1!$Z232-$AI$57)*24*VMOIS($H63)/1000 -> 4623.99498 | AJ63: =0.680555*Données1!$AD232*$D$61*Données1!$AD232/(1.292*273.15/($AI$57+273))*(Données1!$AC232-AH63)*24*VMOIS($H63) -> 32881.48582 | AK63: =0.279166*Données1!$Y232*$C$64*Données1!$Y232/(1.292*273.15/($AI$57+273))*(Données1!$U232-$AI$57)*$C$66*VMOIS($H63)/1000 -> 0 | AL63: =0.680555*Données1!$Y232*$C$64*Données1!$Y232/(1.292*273.15/($AI$57+273))*(Données1!X232-AH63)*$C$66*VMOIS($H63) -> 0 | AM63: =(0.622*AM59*Données1!$BQ266/100)/(101325-AM59*Données1!$BQ266/100) -> 0.0140955953 | AN63: =0.279166*Données1!$AD232*$D$61*Données1!$AD232/(1.292*273.15/($AN$57+273))*(Données1!$Z232-$AN$57)*24*VMOIS($H63)/1000 -> 2676.216638 | AO63: =0.680555*Données1!$AD232*$D$61*Données1!$AD232/(1.292*273.15/($AN$57+273))*(Données1!$AC232-AM63)*24*VMOIS($H63) -> 29825.68278 | AP63: =0.279166*Données1!$Y232*$C$64*Données1!$Y232/(1.292*273.15/($AN$57+273))*(Données1!$U232-$AN$57)*$C$66*VMOIS($H63)/1000 -> 0 | AQ63: =0.680555*Données1!$Y232*$C$64*Données1!$Y232/(1.292*273.15/($AN$57+273))*(Données1!X232-AM63)*$C$66*VMOIS($H63) -> 0
B64: Renouvellement VMC (m3/h) | C64: =IF(VMCPlan=Données1!$X$5,0,Surface/Hypothèses!C16*Hypothèses!B25) -> 0 | H64: Mai | I64: =(0.622*I59*Données1!$BK267/100)/(101325-I59*Données1!$BK267/100) -> 0.01117652711 | J64: =0.279166*Données1!$AD233*$D$61*Données1!$AD233/(1.292*273.15/($J$57+273))*(Données1!$Z233-$J$57)*24*VMOIS($H64)/1000 -> 15581.01076 | K64: =0.680555*Données1!$AD233*$D$61*Données1!$AD233/(1.292*273.15/($J$57+273))*(Données1!$AC233-I64)*24*VMOIS($H64) -> 48184.40459 | L64: =0.279166*Données1!$Y233*$C$64*Données1!$Y233/(1.292*273.15/($J$57+273))*(Données1!$U233-$J$57)*$C$66*VMOIS($H64)/1000 -> 0 | M64: =0.680555*Données1!$Y233*$C$64*Données1!$Y233/(1.292*273.15/($J$57+273))*(Données1!$X233-I64)*$C$66*VMOIS($H64) -> 0 | N64: =(0.622*N59*Données1!$BK267/100)/(101325-N59*Données1!$BK267/100) -> 0.01190183913 | O64: =0.279166*Données1!$AD233*$D$61*Données1!$AD233/(1.292*273.15/($O$57+273))*(Données1!$Z233-$O$57)*24*VMOIS($H64)/1000 -> 13646.0059 | P64: =0.680555*Données1!$AD233*$D$61*Données1!$AD233/(1.292*273.15/($O$57+273))*(Données1!$AC233-N64)*24*VMOIS($H64) -> 44833.39944 | Q64: =0.279166*Données1!$Y233*$C$64*Données1!$Y233/(1.292*273.15/($O$57+273))*(Données1!$U233-$O$57)*$C$66*VMOIS($H64)/1000 -> 0 | R64: =0.680555*Données1!$Y233*$C$64*Données1!$Y233/(1.292*273.15/($O$57+273))*(Données1!X233-N64)*$C$66*VMOIS($H64) -> 0 | S64: =(0.622*S59*Données1!$BM267/100)/(101325-S59*Données1!$BM267/100) -> 0.0120371416 | T64: =0.279166*Données1!$AD233*$D$61*Données1!$AD233/(1.292*273.15/($T$57+273))*(Données1!$Z233-$T$57)*24*VMOIS($H64)/1000 -> 11697.476 | U64: =0.680555*Données1!$AD233*$D$61*Données1!$AD233/(1.292*273.15/($T$57+273))*(Données1!$AC233-S64)*24*VMOIS($H64) -> 44327.87666 | V64: =0.279166*Données1!$Y233*$C$64*Données1!$Y233/(1.292*273.15/($T$57+273))*(Données1!$U233-$T$57)*$C$66*VMOIS($H64)/1000 -> 0 | W64: =0.680555*Données1!$Y233*$C$64*Données1!$Y233/(1.292*273.15/($T$57+273))*(Données1!X233-S64)*$C$66*VMOIS($H64) -> 0 | X64: =(0.622*X59*Données1!$BN267/100)/(101325-X59*Données1!$BN267/100) -> 0.01252952059 | Y64: =0.279166*Données1!$AD233*$D$61*Données1!$AD233/(1.292*273.15/($Y$57+273))*(Données1!$Z233-$Y$57)*24*VMOIS($H64)/1000 -> 9735.421047 | Z64: =0.680555*Données1!$AD233*$D$61*Données1!$AD233/(1.292*273.15/($Y$57+273))*(Données1!$AC233-X64)*24*VMOIS($H64) -> 42075.43361 | AA64: =0.279166*Données1!$Y233*$C$64*Données1!$Y233/(1.292*273.15/($Y$57+273))*(Données1!$U233-$Y$57)*$C$66*VMOIS($H64)/1000 -> 0 | AB64: =0.680555*Données1!$Y233*$C$64*Données1!$Y233/(1.292*273.15/($Y$57+273))*(Données1!X233-X64)*$C$66*VMOIS($H64) -> 0 | AC64: =(0.622*AC59*Données1!$BO267/100)/(101325-AC59*Données1!$BO267/100) -> 0.01307933696 | AD64: =0.279166*Données1!$AD233*$D$61*Données1!$AD233/(1.292*273.15/($AD$57+273))*(Données1!$Z233-$AD$57)*24*VMOIS($H64)/1000 -> 7759.841043 | AE64: =0.680555*Données1!$AD233*$D$61*Données1!$AD233/(1.292*273.15/($AD$57+273))*(Données1!$AC233-AC64)*24*VMOIS($H64) -> 39525.52671 | AF64: =0.279166*Données1!$Y233*$C$64*Données1!$Y233/(1.292*273.15/($AD$57+273))*(Données1!$U233-$AD$57)*$C$66*VMOIS($H64)/1000 -> 0 | AG64: =0.680555*Données1!$Y233*$C$64*Données1!$Y233/(1.292*273.15/($AD$57+273))*(Données1!X233-AC64)*$C$66*VMOIS($H64) -> 0 | AH64: =(0.622*AH59*Données1!$BP267/100)/(101325-AH59*Données1!$BP267/100) -> 0.01369667421 | AI64: =0.279166*Données1!$AD233*$D$61*Données1!$AD233/(1.292*273.15/($AI$57+273))*(Données1!$Z233-$AI$57)*24*VMOIS($H64)/1000 -> 5770.735989 | AJ64: =0.680555*Données1!$AD233*$D$61*Données1!$AD233/(1.292*273.15/($AI$57+273))*(Données1!$AC233-AH64)*24*VMOIS($H64) -> 36625.77739 | AK64: =0.279166*Données1!$Y233*$C$64*Données1!$Y233/(1.292*273.15/($AI$57+273))*(Données1!$U233-$AI$57)*$C$66*VMOIS($H64)/1000 -> 0 | AL64: =0.680555*Données1!$Y233*$C$64*Données1!$Y233/(1.292*273.15/($AI$57+273))*(Données1!X233-AH64)*$C$66*VMOIS($H64) -> 0 | AM64: =(0.622*AM59*Données1!$BQ267/100)/(101325-AM59*Données1!$BQ267/100) -> 0.01439821791 | AN64: =0.279166*Données1!$AD233*$D$61*Données1!$AD233/(1.292*273.15/($AN$57+273))*(Données1!$Z233-$AN$57)*24*VMOIS($H64)/1000 -> 3768.105885 | AO64: =0.680555*Données1!$AD233*$D$61*Données1!$AD233/(1.292*273.15/($AN$57+273))*(Données1!$AC233-AM64)*24*VMOIS($H64) -> 33290.59893 | AP64: =0.279166*Données1!$Y233*$C$64*Données1!$Y233/(1.292*273.15/($AN$57+273))*(Données1!$U233-$AN$57)*$C$66*VMOIS($H64)/1000 -> 0 | AQ64: =0.680555*Données1!$Y233*$C$64*Données1!$Y233/(1.292*273.15/($AN$57+273))*(Données1!X233-AM64)*$C$66*VMOIS($H64) -> 0
B65: Renouvellement VMC (vol/h) | C65: =C64/C58 -> 0 | H65: Juin | I65: =(0.622*I59*Données1!$BK268/100)/(101325-I59*Données1!$BK268/100) -> 0.0110657967 | J65: =0.279166*Données1!$AD234*$D$61*Données1!$AD234/(1.292*273.15/($J$57+273))*(Données1!$Z234-$J$57)*24*VMOIS($H65)/1000 -> 13346.76728 | K65: =0.680555*Données1!$AD234*$D$61*Données1!$AD234/(1.292*273.15/($J$57+273))*(Données1!$AC234-I65)*24*VMOIS($H65) -> 43257.63152 | L65: =0.279166*Données1!$Y234*$C$64*Données1!$Y234/(1.292*273.15/($J$57+273))*(Données1!$U234-$J$57)*$C$66*VMOIS($H65)/1000 -> 0 | M65: =0.680555*Données1!$Y234*$C$64*Données1!$Y234/(1.292*273.15/($J$57+273))*(Données1!$X234-I65)*$C$66*VMOIS($H65) -> 0 | N65: =(0.622*N59*Données1!$BK268/100)/(101325-N59*Données1!$BK268/100) -> 0.01178378902 | O65: =0.279166*Données1!$AD234*$D$61*Données1!$AD234/(1.292*273.15/($O$57+273))*(Données1!$Z234-$O$57)*24*VMOIS($H65)/1000 -> 11456.10474 | P65: =0.680555*Données1!$AD234*$D$61*Données1!$AD234/(1.292*273.15/($O$57+273))*(Données1!$AC234-N65)*24*VMOIS($H65) -> 40016.24947 | Q65: =0.279166*Données1!$Y234*$C$64*Données1!$Y234/(1.292*273.15/($O$57+273))*(Données1!$U234-$O$57)*$C$66*VMOIS($H65)/1000 -> 0 | R65: =0.680555*Données1!$Y234*$C$64*Données1!$Y234/(1.292*273.15/($O$57+273))*(Données1!X234-N65)*$C$66*VMOIS($H65) -> 0 | S65: =(0.622*S59*Données1!$BM268/100)/(101325-S59*Données1!$BM268/100) -> 0.01190816037 | T65: =0.279166*Données1!$AD234*$D$61*Données1!$AD234/(1.292*273.15/($T$57+273))*(Données1!$Z234-$T$57)*24*VMOIS($H65)/1000 -> 9552.270668 | U65: =0.680555*Données1!$AD234*$D$61*Données1!$AD234/(1.292*273.15/($T$57+273))*(Données1!$AC234-S65)*24*VMOIS($H65) -> 39563.31315 | V65: =0.279166*Données1!$Y234*$C$64*Données1!$Y234/(1.292*273.15/($T$57+273))*(Données1!$U234-$T$57)*$C$66*VMOIS($H65)/1000 -> 0 | W65: =0.680555*Données1!$Y234*$C$64*Données1!$Y234/(1.292*273.15/($T$57+273))*(Données1!X234-S65)*$C$66*VMOIS($H65) -> 0 | X65: =(0.622*X59*Données1!$BN268/100)/(101325-X59*Données1!$BN268/100) -> 0.01238648849 | Y65: =0.279166*Données1!$AD234*$D$61*Données1!$AD234/(1.292*273.15/($Y$57+273))*(Données1!$Z234-$Y$57)*24*VMOIS($H65)/1000 -> 7635.265071 | Z65: =0.680555*Données1!$AD234*$D$61*Données1!$AD234/(1.292*273.15/($Y$57+273))*(Données1!$AC234-X65)*24*VMOIS($H65) -> 37424.29485 | AA65: =0.279166*Données1!$Y234*$C$64*Données1!$Y234/(1.292*273.15/($Y$57+273))*(Données1!$U234-$Y$57)*$C$66*VMOIS($H65)/1000 -> 0 | AB65: =0.680555*Données1!$Y234*$C$64*Données1!$Y234/(1.292*273.15/($Y$57+273))*(Données1!X234-X65)*$C$66*VMOIS($H65) -> 0 | AC65: =(0.622*AC59*Données1!$BO268/100)/(101325-AC59*Données1!$BO268/100) -> 0.01291524863 | AD65: =0.279166*Données1!$AD234*$D$61*Données1!$AD234/(1.292*273.15/($AD$57+273))*(Données1!$Z234-$AD$57)*24*VMOIS($H65)/1000 -> 5705.087946 | AE65: =0.680555*Données1!$AD234*$D$61*Données1!$AD234/(1.292*273.15/($AD$57+273))*(Données1!$AC234-AC65)*24*VMOIS($H65) -> 35029.44277 | AF65: =0.279166*Données1!$Y234*$C$64*Données1!$Y234/(1.292*273.15/($AD$57+273))*(Données1!$U234-$AD$57)*$C$66*VMOIS($H65)/1000 -> 0 | AG65: =0.680555*Données1!$Y234*$C$64*Données1!$Y234/(1.292*273.15/($AD$57+273))*(Données1!X234-AC65)*$C$66*VMOIS($H65) -> 0 | AH65: =(0.622*AH59*Données1!$BP268/100)/(101325-AH59*Données1!$BP268/100) -> 0.0135068989 | AI65: =0.279166*Données1!$AD234*$D$61*Données1!$AD234/(1.292*273.15/($AI$57+273))*(Données1!$Z234-$AI$57)*24*VMOIS($H65)/1000 -> 3761.739293 | AJ65: =0.680555*Données1!$AD234*$D$61*Données1!$AD234/(1.292*273.15/($AI$57+273))*(Données1!$AC234-AH65)*24*VMOIS($H65) -> 32316.72374 | AK65: =0.279166*Données1!$Y234*$C$64*Données1!$Y234/(1.292*273.15/($AI$57+273))*(Données1!$U234-$AI$57)*$C$66*VMOIS($H65)/1000 -> 0 | AL65: =0.680555*Données1!$Y234*$C$64*Données1!$Y234/(1.292*273.15/($AI$57+273))*(Données1!X234-AH65)*$C$66*VMOIS($H65) -> 0 | AM65: =(0.622*AM59*Données1!$BQ268/100)/(101325-AM59*Données1!$BQ268/100) -> 0.01417611614 | AN65: =0.279166*Données1!$AD234*$D$61*Données1!$AD234/(1.292*273.15/($AN$57+273))*(Données1!$Z234-$AN$57)*24*VMOIS($H65)/1000 -> 1805.219111 | AO65: =0.680555*Données1!$AD234*$D$61*Données1!$AD234/(1.292*273.15/($AN$57+273))*(Données1!$AC234-AM65)*24*VMOIS($H65) -> 29212.65398 | AP65: =0.279166*Données1!$Y234*$C$64*Données1!$Y234/(1.292*273.15/($AN$57+273))*(Données1!$U234-$AN$57)*$C$66*VMOIS($H65)/1000 -> 0 | AQ65: =0.680555*Données1!$Y234*$C$64*Données1!$Y234/(1.292*273.15/($AN$57+273))*(Données1!X234-AM65)*$C$66*VMOIS($H65) -> 0
B66: Temps renouv. Heure par jour VMC | C66: =IF(VMCPlan=Données1!$X$5,0,IF(VMCPlan="Permanent",24,IF(VMCPlan="Nuit",8,C106))) -> 0 | H66: Juillet | I66: =(0.622*I59*Données1!$BK269/100)/(101325-I59*Données1!$BK269/100) -> 0.01069227079 | J66: =0.279166*Données1!$AD235*$D$61*Données1!$AD235/(1.292*273.15/($J$57+273))*(Données1!$Z235-$J$57)*24*VMOIS($H66)/1000 -> 14618.36442 | K66: =0.680555*Données1!$AD235*$D$61*Données1!$AD235/(1.292*273.15/($J$57+273))*(Données1!$AC235-I66)*24*VMOIS($H66) -> 43430.3947 | L66: =0.279166*Données1!$Y235*$C$64*Données1!$Y235/(1.292*273.15/($J$57+273))*(Données1!$U235-$J$57)*$C$66*VMOIS($H66)/1000 -> 0 | M66: =0.680555*Données1!$Y235*$C$64*Données1!$Y235/(1.292*273.15/($J$57+273))*(Données1!$X235-I66)*$C$66*VMOIS($H66) -> 0 | N66: =(0.622*N59*Données1!$BK269/100)/(101325-N59*Données1!$BK269/100) -> 0.01138559141 | O66: =0.279166*Données1!$AD235*$D$61*Données1!$AD235/(1.292*273.15/($O$57+273))*(Données1!$Z235-$O$57)*24*VMOIS($H66)/1000 -> 12673.30493 | P66: =0.680555*Données1!$AD235*$D$61*Données1!$AD235/(1.292*273.15/($O$57+273))*(Données1!$AC235-N66)*24*VMOIS($H66) -> 40206.77969 | Q66: =0.279166*Données1!$Y235*$C$64*Données1!$Y235/(1.292*273.15/($O$57+273))*(Données1!$U235-$O$57)*$C$66*VMOIS($H66)/1000 -> 0 | R66: =0.680555*Données1!$Y235*$C$64*Données1!$Y235/(1.292*273.15/($O$57+273))*(Données1!X235-N66)*$C$66*VMOIS($H66) -> 0 | S66: =(0.622*S59*Données1!$BM269/100)/(101325-S59*Données1!$BM269/100) -> 0.01147266976 | T66: =0.279166*Données1!$AD235*$D$61*Données1!$AD235/(1.292*273.15/($T$57+273))*(Données1!$Z235-$T$57)*24*VMOIS($H66)/1000 -> 10714.67434 | U66: =0.680555*Données1!$AD235*$D$61*Données1!$AD235/(1.292*273.15/($T$57+273))*(Données1!$AC235-S66)*24*VMOIS($H66) -> 39918.60693 | V66: =0.279166*Données1!$Y235*$C$64*Données1!$Y235/(1.292*273.15/($T$57+273))*(Données1!$U235-$T$57)*$C$66*VMOIS($H66)/1000 -> 0 | W66: =0.680555*Données1!$Y235*$C$64*Données1!$Y235/(1.292*273.15/($T$57+273))*(Données1!X235-S66)*$C$66*VMOIS($H66) -> 0 | X66: =(0.622*X59*Données1!$BN269/100)/(101325-X59*Données1!$BN269/100) -> 0.01190967404 | Y66: =0.279166*Données1!$AD235*$D$61*Données1!$AD235/(1.292*273.15/($Y$57+273))*(Données1!$Z235-$Y$57)*24*VMOIS($H66)/1000 -> 8742.47265 | Z66: =0.680555*Données1!$AD235*$D$61*Données1!$AD235/(1.292*273.15/($Y$57+273))*(Données1!$AC235-X66)*24*VMOIS($H66) -> 37914.17379 | AA66: =0.279166*Données1!$Y235*$C$64*Données1!$Y235/(1.292*273.15/($Y$57+273))*(Données1!$U235-$Y$57)*$C$66*VMOIS($H66)/1000 -> 0 | AB66: =0.680555*Données1!$Y235*$C$64*Données1!$Y235/(1.292*273.15/($Y$57+273))*(Données1!X235-X66)*$C$66*VMOIS($H66) -> 0 | AC66: =(0.622*AC59*Données1!$BO269/100)/(101325-AC59*Données1!$BO269/100) -> 0.01238563986 | AD66: =0.279166*Données1!$AD235*$D$61*Données1!$AD235/(1.292*273.15/($AD$57+273))*(Données1!$Z235-$AD$57)*24*VMOIS($H66)/1000 -> 6756.699861 | AE66: =0.680555*Données1!$AD235*$D$61*Données1!$AD235/(1.292*273.15/($AD$57+273))*(Données1!$AC235-AC66)*24*VMOIS($H66) -> 35703.86688 | AF66: =0.279166*Données1!$Y235*$C$64*Données1!$Y235/(1.292*273.15/($AD$57+273))*(Données1!$U235-$AD$57)*$C$66*VMOIS($H66)/1000 -> 0 | AG66: =0.680555*Données1!$Y235*$C$64*Données1!$Y235/(1.292*273.15/($AD$57+273))*(Données1!X235-AC66)*$C$66*VMOIS($H66) -> 0 | AH66: =(0.622*AH59*Données1!$BP269/100)/(101325-AH59*Données1!$BP269/100) -> 0.01291409597 | AI66: =0.279166*Données1!$AD235*$D$61*Données1!$AD235/(1.292*273.15/($AI$57+273))*(Données1!$Z235-$AI$57)*24*VMOIS($H66)/1000 -> 4757.355974 | AJ66: =0.680555*Données1!$AD235*$D$61*Données1!$AD235/(1.292*273.15/($AI$57+273))*(Données1!$AC235-AH66)*24*VMOIS($H66) -> 33219.06285 | AK66: =0.279166*Données1!$Y235*$C$64*Données1!$Y235/(1.292*273.15/($AI$57+273))*(Données1!$U235-$AI$57)*$C$66*VMOIS($H66)/1000 -> 0 | AL66: =0.680555*Données1!$Y235*$C$64*Données1!$Y235/(1.292*273.15/($AI$57+273))*(Données1!X235-AH66)*$C$66*VMOIS($H66) -> 0 | AM66: =(0.622*AM59*Données1!$BQ269/100)/(101325-AM59*Données1!$BQ269/100) -> 0.01350337629 | AN66: =0.279166*Données1!$AD235*$D$61*Données1!$AD235/(1.292*273.15/($AN$57+273))*(Données1!$Z235-$AN$57)*24*VMOIS($H66)/1000 -> 2744.440988 | AO66: =0.680555*Données1!$AD235*$D$61*Données1!$AD235/(1.292*273.15/($AN$57+273))*(Données1!$AC235-AM66)*24*VMOIS($H66) -> 30415.93697 | AP66: =0.279166*Données1!$Y235*$C$64*Données1!$Y235/(1.292*273.15/($AN$57+273))*(Données1!$U235-$AN$57)*$C$66*VMOIS($H66)/1000 -> 0 | AQ66: =0.680555*Données1!$Y235*$C$64*Données1!$Y235/(1.292*273.15/($AN$57+273))*(Données1!X235-AM66)*$C$66*VMOIS($H66) -> 0
H67: Août | I67: =(0.622*I59*Données1!$BK270/100)/(101325-I59*Données1!$BK270/100) -> 0.01058116959 | J67: =0.279166*Données1!$AD236*$D$61*Données1!$AD236/(1.292*273.15/($J$57+273))*(Données1!$Z236-$J$57)*24*VMOIS($H67)/1000 -> 15787.41432 | K67: =0.680555*Données1!$AD236*$D$61*Données1!$AD236/(1.292*273.15/($J$57+273))*(Données1!$AC236-I67)*24*VMOIS($H67) -> 45642.62126 | L67: =0.279166*Données1!$Y236*$C$64*Données1!$Y236/(1.292*273.15/($J$57+273))*(Données1!$U236-$J$57)*$C$66*VMOIS($H67)/1000 -> 0 | M67: =0.680555*Données1!$Y236*$C$64*Données1!$Y236/(1.292*273.15/($J$57+273))*(Données1!$X236-I67)*$C$66*VMOIS($H67) -> 0 | N67: =(0.622*N59*Données1!$BK270/100)/(101325-N59*Données1!$BK270/100) -> 0.01126715776 | O67: =0.279166*Données1!$AD236*$D$61*Données1!$AD236/(1.292*273.15/($O$57+273))*(Données1!$Z236-$O$57)*24*VMOIS($H67)/1000 -> 13854.56689 | P67: =0.680555*Données1!$AD236*$D$61*Données1!$AD236/(1.292*273.15/($O$57+273))*(Données1!$AC236-N67)*24*VMOIS($H67) -> 42475.96653 | Q67: =0.279166*Données1!$Y236*$C$64*Données1!$Y236/(1.292*273.15/($O$57+273))*(Données1!$U236-$O$57)*$C$66*VMOIS($H67)/1000 -> 0 | R67: =0.680555*Données1!$Y236*$C$64*Données1!$Y236/(1.292*273.15/($O$57+273))*(Données1!X236-N67)*$C$66*VMOIS($H67) -> 0 | S67: =(0.622*S59*Données1!$BM270/100)/(101325-S59*Données1!$BM270/100) -> 0.0113244266 | T67: =0.279166*Données1!$AD236*$D$61*Données1!$AD236/(1.292*273.15/($T$57+273))*(Données1!$Z236-$T$57)*24*VMOIS($H67)/1000 -> 11908.20429 | U67: =0.680555*Données1!$AD236*$D$61*Données1!$AD236/(1.292*273.15/($T$57+273))*(Données1!$AC236-S67)*24*VMOIS($H67) -> 42342.13028 | V67: =0.279166*Données1!$Y236*$C$64*Données1!$Y236/(1.292*273.15/($T$57+273))*(Données1!$U236-$T$57)*$C$66*VMOIS($H67)/1000 -> 0 | W67: =0.680555*Données1!$Y236*$C$64*Données1!$Y236/(1.292*273.15/($T$57+273))*(Données1!X236-S67)*$C$66*VMOIS($H67) -> 0 | X67: =(0.622*X59*Données1!$BN270/100)/(101325-X59*Données1!$BN270/100) -> 0.01173606143 | Y67: =0.279166*Données1!$AD236*$D$61*Données1!$AD236/(1.292*273.15/($Y$57+273))*(Données1!$Z236-$Y$57)*24*VMOIS($H67)/1000 -> 9948.32653 | Z67: =0.680555*Données1!$AD236*$D$61*Données1!$AD236/(1.292*273.15/($Y$57+273))*(Données1!$AC236-X67)*24*VMOIS($H67) -> 40478.43856 | AA67: =0.279166*Données1!$Y236*$C$64*Données1!$Y236/(1.292*273.15/($Y$57+273))*(Données1!$U236-$Y$57)*$C$66*VMOIS($H67)/1000 -> 0 | AB67: =0.680555*Données1!$Y236*$C$64*Données1!$Y236/(1.292*273.15/($Y$57+273))*(Données1!X236-X67)*$C$66*VMOIS($H67) -> 0 | AC67: =(0.622*AC59*Données1!$BO270/100)/(101325-AC59*Données1!$BO270/100) -> 0.01218008984 | AD67: =0.279166*Données1!$AD236*$D$61*Données1!$AD236/(1.292*273.15/($AD$57+273))*(Données1!$Z236-$AD$57)*24*VMOIS($H67)/1000 -> 7974.933602 | AE67: =0.680555*Données1!$AD236*$D$61*Données1!$AD236/(1.292*273.15/($AD$57+273))*(Données1!$AC236-AC67)*24*VMOIS($H67) -> 38442.69247 | AF67: =0.279166*Données1!$Y236*$C$64*Données1!$Y236/(1.292*273.15/($AD$57+273))*(Données1!$U236-$AD$57)*$C$66*VMOIS($H67)/1000 -> 0 | AG67: =0.680555*Données1!$Y236*$C$64*Données1!$Y236/(1.292*273.15/($AD$57+273))*(Données1!X236-AC67)*$C$66*VMOIS($H67) -> 0 | AH67: =(0.622*AH59*Données1!$BP270/100)/(101325-AH59*Données1!$BP270/100) -> 0.01266116967 | AI67: =0.279166*Données1!$AD236*$D$61*Données1!$AD236/(1.292*273.15/($AI$57+273))*(Données1!$Z236-$AI$57)*24*VMOIS($H67)/1000 -> 5988.025508 | AJ67: =0.680555*Données1!$AD236*$D$61*Données1!$AD236/(1.292*273.15/($AI$57+273))*(Données1!$AC236-AH67)*24*VMOIS($H67) -> 36210.42492 | AK67: =0.279166*Données1!$Y236*$C$64*Données1!$Y236/(1.292*273.15/($AI$57+273))*(Données1!$U236-$AI$57)*$C$66*VMOIS($H67)/1000 -> 0 | AL67: =0.680555*Données1!$Y236*$C$64*Données1!$Y236/(1.292*273.15/($AI$57+273))*(Données1!X236-AH67)*$C$66*VMOIS($H67) -> 0 | AM67: =(0.622*AM59*Données1!$BQ270/100)/(101325-AM59*Données1!$BQ270/100) -> 0.01318990375 | AN67: =0.279166*Données1!$AD236*$D$61*Données1!$AD236/(1.292*273.15/($AN$57+273))*(Données1!$Z236-$AN$57)*24*VMOIS($H67)/1000 -> 3987.602248 | AO67: =0.680555*Données1!$AD236*$D$61*Données1!$AD236/(1.292*273.15/($AN$57+273))*(Données1!$AC236-AM67)*24*VMOIS($H67) -> 33727.57902 | AP67: =0.279166*Données1!$Y236*$C$64*Données1!$Y236/(1.292*273.15/($AN$57+273))*(Données1!$U236-$AN$57)*$C$66*VMOIS($H67)/1000 -> 0 | AQ67: =0.680555*Données1!$Y236*$C$64*Données1!$Y236/(1.292*273.15/($AN$57+273))*(Données1!X236-AM67)*$C$66*VMOIS($H67) -> 0
H68: Septembre | I68: =(0.622*I59*Données1!$BK271/100)/(101325-I59*Données1!$BK271/100) -> 0.01061395746 | J68: =0.279166*Données1!$AD237*$D$61*Données1!$AD237/(1.292*273.15/($J$57+273))*(Données1!$Z237-$J$57)*24*VMOIS($H68)/1000 -> 15465.9033 | K68: =0.680555*Données1!$AD237*$D$61*Données1!$AD237/(1.292*273.15/($J$57+273))*(Données1!$AC237-I68)*24*VMOIS($H68) -> 45711.17061 | L68: =0.279166*Données1!$Y237*$C$64*Données1!$Y237/(1.292*273.15/($J$57+273))*(Données1!$U237-$J$57)*$C$66*VMOIS($H68)/1000 -> 0 | M68: =0.680555*Données1!$Y237*$C$64*Données1!$Y237/(1.292*273.15/($J$57+273))*(Données1!$X237-I68)*$C$66*VMOIS($H68) -> 0 | N68: =(0.622*N59*Données1!$BK271/100)/(101325-N59*Données1!$BK271/100) -> 0.01130210929 | O68: =0.279166*Données1!$AD237*$D$61*Données1!$AD237/(1.292*273.15/($O$57+273))*(Données1!$Z237-$O$57)*24*VMOIS($H68)/1000 -> 13597.36884 | P68: =0.680555*Données1!$AD237*$D$61*Données1!$AD237/(1.292*273.15/($O$57+273))*(Données1!$AC237-N68)*24*VMOIS($H68) -> 42644.00208 | Q68: =0.279166*Données1!$Y237*$C$64*Données1!$Y237/(1.292*273.15/($O$57+273))*(Données1!$U237-$O$57)*$C$66*VMOIS($H68)/1000 -> 0 | R68: =0.680555*Données1!$Y237*$C$64*Données1!$Y237/(1.292*273.15/($O$57+273))*(Données1!X237-N68)*$C$66*VMOIS($H68) -> 0 | S68: =(0.622*S59*Données1!$BM271/100)/(101325-S59*Données1!$BM271/100) -> 0.01135348493 | T68: =0.279166*Données1!$AD237*$D$61*Données1!$AD237/(1.292*273.15/($T$57+273))*(Données1!$Z237-$T$57)*24*VMOIS($H68)/1000 -> 11715.76418 | U68: =0.680555*Données1!$AD237*$D$61*Données1!$AD237/(1.292*273.15/($T$57+273))*(Données1!$AC237-S68)*24*VMOIS($H68) -> 42547.59697 | V68: =0.279166*Données1!$Y237*$C$64*Données1!$Y237/(1.292*273.15/($T$57+273))*(Données1!$U237-$T$57)*$C$66*VMOIS($H68)/1000 -> 0 | W68: =0.680555*Données1!$Y237*$C$64*Données1!$Y237/(1.292*273.15/($T$57+273))*(Données1!X237-S68)*$C$66*VMOIS($H68) -> 0 | X68: =(0.622*X59*Données1!$BN271/100)/(101325-X59*Données1!$BN271/100) -> 0.01175869031 | Y68: =0.279166*Données1!$AD237*$D$61*Données1!$AD237/(1.292*273.15/($Y$57+273))*(Données1!$Z237-$Y$57)*24*VMOIS($H68)/1000 -> 9821.089321 | Z68: =0.680555*Données1!$AD237*$D$61*Données1!$AD237/(1.292*273.15/($Y$57+273))*(Données1!$AC237-X68)*24*VMOIS($H68) -> 40781.00603 | AA68: =0.279166*Données1!$Y237*$C$64*Données1!$Y237/(1.292*273.15/($Y$57+273))*(Données1!$U237-$Y$57)*$C$66*VMOIS($H68)/1000 -> 0 | AB68: =0.680555*Données1!$Y237*$C$64*Données1!$Y237/(1.292*273.15/($Y$57+273))*(Données1!X237-X68)*$C$66*VMOIS($H68) -> 0 | AC68: =(0.622*AC59*Données1!$BO271/100)/(101325-AC59*Données1!$BO271/100) -> 0.01219399684 | AD68: =0.279166*Données1!$AD237*$D$61*Données1!$AD237/(1.292*273.15/($AD$57+273))*(Données1!$Z237-$AD$57)*24*VMOIS($H68)/1000 -> 7913.344265 | AE68: =0.680555*Données1!$AD237*$D$61*Données1!$AD237/(1.292*273.15/($AD$57+273))*(Données1!$AC237-AC68)*24*VMOIS($H68) -> 38859.07713 | AF68: =0.279166*Données1!$Y237*$C$64*Données1!$Y237/(1.292*273.15/($AD$57+273))*(Données1!$U237-$AD$57)*$C$66*VMOIS($H68)/1000 -> 0 | AG68: =0.680555*Données1!$Y237*$C$64*Données1!$Y237/(1.292*273.15/($AD$57+273))*(Données1!X237-AC68)*$C$66*VMOIS($H68) -> 0 | AH68: =(0.622*AH59*Données1!$BP271/100)/(101325-AH59*Données1!$BP271/100) -> 0.01266489074 | AI68: =0.279166*Données1!$AD237*$D$61*Données1!$AD237/(1.292*273.15/($AI$57+273))*(Données1!$Z237-$AI$57)*24*VMOIS($H68)/1000 -> 5992.529012 | AJ68: =0.680555*Données1!$AD237*$D$61*Données1!$AD237/(1.292*273.15/($AI$57+273))*(Données1!$AC237-AH68)*24*VMOIS($H68) -> 36754.32552 | AK68: =0.279166*Données1!$Y237*$C$64*Données1!$Y237/(1.292*273.15/($AI$57+273))*(Données1!$U237-$AI$57)*$C$66*VMOIS($H68)/1000 -> 0 | AL68: =0.680555*Données1!$Y237*$C$64*Données1!$Y237/(1.292*273.15/($AI$57+273))*(Données1!X237-AH68)*$C$66*VMOIS($H68) -> 0 | AM68: =(0.622*AM59*Données1!$BQ271/100)/(101325-AM59*Données1!$BQ271/100) -> 0.01318104163 | AN68: =0.279166*Données1!$AD237*$D$61*Données1!$AD237/(1.292*273.15/($AN$57+273))*(Données1!$Z237-$AN$57)*24*VMOIS($H68)/1000 -> 4058.64356 | AO68: =0.680555*Données1!$AD237*$D$61*Données1!$AD237/(1.292*273.15/($AN$57+273))*(Données1!$AC237-AM68)*24*VMOIS($H68) -> 34418.98935 | AP68: =0.279166*Données1!$Y237*$C$64*Données1!$Y237/(1.292*273.15/($AN$57+273))*(Données1!$U237-$AN$57)*$C$66*VMOIS($H68)/1000 -> 0 | AQ68: =0.680555*Données1!$Y237*$C$64*Données1!$Y237/(1.292*273.15/($AN$57+273))*(Données1!X237-AM68)*$C$66*VMOIS($H68) -> 0
H69: Octobre | I69: =(0.622*I59*Données1!$BK272/100)/(101325-I59*Données1!$BK272/100) -> 0.01054230979 | J69: =0.279166*Données1!$AD238*$D$61*Données1!$AD238/(1.292*273.15/($J$57+273))*(Données1!$Z238-$J$57)*24*VMOIS($H69)/1000 -> 16609.38127 | K69: =0.680555*Données1!$AD238*$D$61*Données1!$AD238/(1.292*273.15/($J$57+273))*(Données1!$AC238-I69)*24*VMOIS($H69) -> 47476.66185 | L69: =0.279166*Données1!$Y238*$C$64*Données1!$Y238/(1.292*273.15/($J$57+273))*(Données1!$U238-$J$57)*$C$66*VMOIS($H69)/1000 -> 0 | M69: =0.680555*Données1!$Y238*$C$64*Données1!$Y238/(1.292*273.15/($J$57+273))*(Données1!$X238-I69)*$C$66*VMOIS($H69) -> 0 | N69: =(0.622*N59*Données1!$BK272/100)/(101325-N59*Données1!$BK272/100) -> 0.01122573393 | O69: =0.279166*Données1!$AD238*$D$61*Données1!$AD238/(1.292*273.15/($O$57+273))*(Données1!$Z238-$O$57)*24*VMOIS($H69)/1000 -> 14685.13099 | P69: =0.680555*Données1!$AD238*$D$61*Données1!$AD238/(1.292*273.15/($O$57+273))*(Données1!$AC238-N69)*24*VMOIS($H69) -> 44338.33445 | Q69: =0.279166*Données1!$Y238*$C$64*Données1!$Y238/(1.292*273.15/($O$57+273))*(Données1!$U238-$O$57)*$C$66*VMOIS($H69)/1000 -> 0 | R69: =0.680555*Données1!$Y238*$C$64*Données1!$Y238/(1.292*273.15/($O$57+273))*(Données1!X238-N69)*$C$66*VMOIS($H69) -> 0 | S69: =(0.622*S59*Données1!$BM272/100)/(101325-S59*Données1!$BM272/100) -> 0.01126782363 | T69: =0.279166*Données1!$AD238*$D$61*Données1!$AD238/(1.292*273.15/($T$57+273))*(Données1!$Z238-$T$57)*24*VMOIS($H69)/1000 -> 12747.40495 | U69: =0.680555*Données1!$AD238*$D$61*Données1!$AD238/(1.292*273.15/($T$57+273))*(Données1!$AC238-S69)*24*VMOIS($H69) -> 44285.19587 | V69: =0.279166*Données1!$Y238*$C$64*Données1!$Y238/(1.292*273.15/($T$57+273))*(Données1!$U238-$T$57)*$C$66*VMOIS($H69)/1000 -> 0 | W69: =0.680555*Données1!$Y238*$C$64*Données1!$Y238/(1.292*273.15/($T$57+273))*(Données1!X238-S69)*$C$66*VMOIS($H69) -> 0 | X69: =(0.622*X59*Données1!$BN272/100)/(101325-X59*Données1!$BN272/100) -> 0.01166555449 | Y69: =0.279166*Données1!$AD238*$D$61*Données1!$AD238/(1.292*273.15/($Y$57+273))*(Données1!$Z238-$Y$57)*24*VMOIS($H69)/1000 -> 10796.20313 | Z69: =0.680555*Données1!$AD238*$D$61*Données1!$AD238/(1.292*273.15/($Y$57+273))*(Données1!$AC238-X69)*24*VMOIS($H69) -> 42501.54366 | AA69: =0.279166*Données1!$Y238*$C$64*Données1!$Y238/(1.292*273.15/($Y$57+273))*(Données1!$U238-$Y$57)*$C$66*VMOIS($H69)/1000 -> 0 | AB69: =0.680555*Données1!$Y238*$C$64*Données1!$Y238/(1.292*273.15/($Y$57+273))*(Données1!X238-X69)*$C$66*VMOIS($H69) -> 0 | AC69: =(0.622*AC59*Données1!$BO272/100)/(101325-AC59*Données1!$BO272/100) -> 0.01209014017 | AD69: =0.279166*Données1!$AD238*$D$61*Données1!$AD238/(1.292*273.15/($AD$57+273))*(Données1!$Z238-$AD$57)*24*VMOIS($H69)/1000 -> 8831.525556 | AE69: =0.680555*Données1!$AD238*$D$61*Données1!$AD238/(1.292*273.15/($AD$57+273))*(Données1!$AC238-AC69)*24*VMOIS($H69) -> 40573.81585 | AF69: =0.279166*Données1!$Y238*$C$64*Données1!$Y238/(1.292*273.15/($AD$57+273))*(Données1!$U238-$AD$57)*$C$66*VMOIS($H69)/1000 -> 0 | AG69: =0.680555*Données1!$Y238*$C$64*Données1!$Y238/(1.292*273.15/($AD$57+273))*(Données1!X238-AC69)*$C$66*VMOIS($H69) -> 0 | AH69: =(0.622*AH59*Données1!$BP272/100)/(101325-AH59*Données1!$BP272/100) -> 0.01254682565 | AI69: =0.279166*Données1!$AD238*$D$61*Données1!$AD238/(1.292*273.15/($AI$57+273))*(Données1!$Z238-$AI$57)*24*VMOIS($H69)/1000 -> 6853.372213 | AJ69: =0.680555*Données1!$AD238*$D$61*Données1!$AD238/(1.292*273.15/($AI$57+273))*(Données1!$AC238-AH69)*24*VMOIS($H69) -> 38475.01573 | AK69: =0.279166*Données1!$Y238*$C$64*Données1!$Y238/(1.292*273.15/($AI$57+273))*(Données1!$U238-$AI$57)*$C$66*VMOIS($H69)/1000 -> 0 | AL69: =0.680555*Données1!$Y238*$C$64*Données1!$Y238/(1.292*273.15/($AI$57+273))*(Données1!X238-AH69)*$C$66*VMOIS($H69) -> 0 | AM69: =(0.622*AM59*Données1!$BQ272/100)/(101325-AM59*Données1!$BQ272/100) -> 0.01304159217 | AN69: =0.279166*Données1!$AD238*$D$61*Données1!$AD238/(1.292*273.15/($AN$57+273))*(Données1!$Z238-$AN$57)*24*VMOIS($H69)/1000 -> 4861.743103 | AO69: =0.680555*Données1!$AD238*$D$61*Données1!$AD238/(1.292*273.15/($AN$57+273))*(Données1!$AC238-AM69)*24*VMOIS($H69) -> 36174.18589 | AP69: =0.279166*Données1!$Y238*$C$64*Données1!$Y238/(1.292*273.15/($AN$57+273))*(Données1!$U238-$AN$57)*$C$66*VMOIS($H69)/1000 -> 0 | AQ69: =0.680555*Données1!$Y238*$C$64*Données1!$Y238/(1.292*273.15/($AN$57+273))*(Données1!X238-AM69)*$C$66*VMOIS($H69) -> 0
H70: Novembre | I70: =(0.622*I59*Données1!$BK273/100)/(101325-I59*Données1!$BK273/100) -> 0.01068183618 | J70: =0.279166*Données1!$AD239*$D$61*Données1!$AD239/(1.292*273.15/($J$57+273))*(Données1!$Z239-$J$57)*24*VMOIS($H70)/1000 -> 14370.36622 | K70: =0.680555*Données1!$AD239*$D$61*Données1!$AD239/(1.292*273.15/($J$57+273))*(Données1!$AC239-I70)*24*VMOIS($H70) -> 43517.73018 | L70: =0.279166*Données1!$Y239*$C$64*Données1!$Y239/(1.292*273.15/($J$57+273))*(Données1!$U239-$J$57)*$C$66*VMOIS($H70)/1000 -> 0 | M70: =0.680555*Données1!$Y239*$C$64*Données1!$Y239/(1.292*273.15/($J$57+273))*(Données1!$X239-I70)*$C$66*VMOIS($H70) -> 0 | N70: =(0.622*N59*Données1!$BK273/100)/(101325-N59*Données1!$BK273/100) -> 0.01137446802 | O70: =0.279166*Données1!$AD239*$D$61*Données1!$AD239/(1.292*273.15/($O$57+273))*(Données1!$Z239-$O$57)*24*VMOIS($H70)/1000 -> 12490.38457 | P70: =0.680555*Données1!$AD239*$D$61*Données1!$AD239/(1.292*273.15/($O$57+273))*(Données1!$AC239-N70)*24*VMOIS($H70) -> 40409.07663 | Q70: =0.279166*Données1!$Y239*$C$64*Données1!$Y239/(1.292*273.15/($O$57+273))*(Données1!$U239-$O$57)*$C$66*VMOIS($H70)/1000 -> 0 | R70: =0.680555*Données1!$Y239*$C$64*Données1!$Y239/(1.292*273.15/($O$57+273))*(Données1!X239-N70)*$C$66*VMOIS($H70) -> 0 | S70: =(0.622*S59*Données1!$BM273/100)/(101325-S59*Données1!$BM273/100) -> 0.01144652173 | T70: =0.279166*Données1!$AD239*$D$61*Données1!$AD239/(1.292*273.15/($T$57+273))*(Données1!$Z239-$T$57)*24*VMOIS($H70)/1000 -> 10597.28029 | U70: =0.680555*Données1!$AD239*$D$61*Données1!$AD239/(1.292*273.15/($T$57+273))*(Données1!$AC239-S70)*24*VMOIS($H70) -> 40206.52939 | V70: =0.279166*Données1!$Y239*$C$64*Données1!$Y239/(1.292*273.15/($T$57+273))*(Données1!$U239-$T$57)*$C$66*VMOIS($H70)/1000 -> 0 | W70: =0.680555*Données1!$Y239*$C$64*Données1!$Y239/(1.292*273.15/($T$57+273))*(Données1!X239-S70)*$C$66*VMOIS($H70) -> 0 | X70: =(0.622*X59*Données1!$BN273/100)/(101325-X59*Données1!$BN273/100) -> 0.01186939251 | Y70: =0.279166*Données1!$AD239*$D$61*Données1!$AD239/(1.292*273.15/($Y$57+273))*(Données1!$Z239-$Y$57)*24*VMOIS($H70)/1000 -> 8691.053373 | Z70: =0.680555*Données1!$AD239*$D$61*Données1!$AD239/(1.292*273.15/($Y$57+273))*(Données1!$AC239-X70)*24*VMOIS($H70) -> 38340.69797 | AA70: =0.279166*Données1!$Y239*$C$64*Données1!$Y239/(1.292*273.15/($Y$57+273))*(Données1!$U239-$Y$57)*$C$66*VMOIS($H70)/1000 -> 0 | AB70: =0.680555*Données1!$Y239*$C$64*Données1!$Y239/(1.292*273.15/($Y$57+273))*(Données1!X239-X70)*$C$66*VMOIS($H70) -> 0 | AC70: =(0.622*AC59*Données1!$BO273/100)/(101325-AC59*Données1!$BO273/100) -> 0.01232745466 | AD70: =0.279166*Données1!$AD239*$D$61*Données1!$AD239/(1.292*273.15/($AD$57+273))*(Données1!$Z239-$AD$57)*24*VMOIS($H70)/1000 -> 6771.703821 | AE70: =0.680555*Données1!$AD239*$D$61*Données1!$AD239/(1.292*273.15/($AD$57+273))*(Données1!$AC239-AC70)*24*VMOIS($H70) -> 36294.15867 | AF70: =0.279166*Données1!$Y239*$C$64*Données1!$Y239/(1.292*273.15/($AD$57+273))*(Données1!$U239-$AD$57)*$C$66*VMOIS($H70)/1000 -> 0 | AG70: =0.680555*Données1!$Y239*$C$64*Données1!$Y239/(1.292*273.15/($AD$57+273))*(Données1!X239-AC70)*$C$66*VMOIS($H70) -> 0 | AH70: =(0.622*AH59*Données1!$BP273/100)/(101325-AH59*Données1!$BP273/100) -> 0.01282774053 | AI70: =0.279166*Données1!$AD239*$D$61*Données1!$AD239/(1.292*273.15/($AI$57+273))*(Données1!$Z239-$AI$57)*24*VMOIS($H70)/1000 -> 4839.231635 | AJ70: =0.680555*Données1!$AD239*$D$61*Données1!$AD239/(1.292*273.15/($AI$57+273))*(Données1!$AC239-AH70)*24*VMOIS($H70) -> 34031.70246 | AK70: =0.279166*Données1!$Y239*$C$64*Données1!$Y239/(1.292*273.15/($AI$57+273))*(Données1!$U239-$AI$57)*$C$66*VMOIS($H70)/1000 -> 0 | AL70: =0.680555*Données1!$Y239*$C$64*Données1!$Y239/(1.292*273.15/($AI$57+273))*(Données1!X239-AH70)*$C$66*VMOIS($H70) -> 0 | AM70: =(0.622*AM59*Données1!$BQ273/100)/(101325-AM59*Données1!$BQ273/100) -> 0.01338016182 | AN70: =0.279166*Données1!$AD239*$D$61*Données1!$AD239/(1.292*273.15/($AN$57+273))*(Données1!$Z239-$AN$57)*24*VMOIS($H70)/1000 -> 2893.636814 | AO70: =0.680555*Données1!$AD239*$D$61*Données1!$AD239/(1.292*273.15/($AN$57+273))*(Données1!$AC239-AM70)*24*VMOIS($H70) -> 31503.8996 | AP70: =0.279166*Données1!$Y239*$C$64*Données1!$Y239/(1.292*273.15/($AN$57+273))*(Données1!$U239-$AN$57)*$C$66*VMOIS($H70)/1000 -> 0 | AQ70: =0.680555*Données1!$Y239*$C$64*Données1!$Y239/(1.292*273.15/($AN$57+273))*(Données1!X239-AM70)*$C$66*VMOIS($H70) -> 0
H71: Décembre | I71: =(0.622*I59*Données1!$BK274/100)/(101325-I59*Données1!$BK274/100) -> 0.01088139571 | J71: =0.279166*Données1!$AD240*$D$61*Données1!$AD240/(1.292*273.15/($J$57+273))*(Données1!$Z240-$J$57)*24*VMOIS($H71)/1000 -> 14590.1517 | K71: =0.680555*Données1!$AD240*$D$61*Données1!$AD240/(1.292*273.15/($J$57+273))*(Données1!$AC240-I71)*24*VMOIS($H71) -> 43971.16752 | L71: =0.279166*Données1!$Y240*$C$64*Données1!$Y240/(1.292*273.15/($J$57+273))*(Données1!$U240-$J$57)*$C$66*VMOIS($H71)/1000 -> 0 | M71: =0.680555*Données1!$Y240*$C$64*Données1!$Y240/(1.292*273.15/($J$57+273))*(Données1!$X240-I71)*$C$66*VMOIS($H71) -> 0 | N71: =(0.622*N59*Données1!$BK274/100)/(101325-N59*Données1!$BK274/100) -> 0.01158720437 | O71: =0.279166*Données1!$AD240*$D$61*Données1!$AD240/(1.292*273.15/($O$57+273))*(Données1!$Z240-$O$57)*24*VMOIS($H71)/1000 -> 12644.79771 | P71: =0.680555*Données1!$AD240*$D$61*Données1!$AD240/(1.292*273.15/($O$57+273))*(Données1!$AC240-N71)*24*VMOIS($H71) -> 40688.32369 | Q71: =0.279166*Données1!$Y240*$C$64*Données1!$Y240/(1.292*273.15/($O$57+273))*(Données1!$U240-$O$57)*$C$66*VMOIS($H71)/1000 -> 0 | R71: =0.680555*Données1!$Y240*$C$64*Données1!$Y240/(1.292*273.15/($O$57+273))*(Données1!X240-N71)*$C$66*VMOIS($H71) -> 0 | S71: =(0.622*S59*Données1!$BM274/100)/(101325-S59*Données1!$BM274/100) -> 0.01169383189 | T71: =0.279166*Données1!$AD240*$D$61*Données1!$AD240/(1.292*273.15/($T$57+273))*(Données1!$Z240-$T$57)*24*VMOIS($H71)/1000 -> 10685.87128 | U71: =0.680555*Données1!$AD240*$D$61*Données1!$AD240/(1.292*273.15/($T$57+273))*(Données1!$AC240-S71)*24*VMOIS($H71) -> 40306.33985 | V71: =0.279166*Données1!$Y240*$C$64*Données1!$Y240/(1.292*273.15/($T$57+273))*(Données1!$U240-$T$57)*$C$66*VMOIS($H71)/1000 -> 0 | W71: =0.680555*Données1!$Y240*$C$64*Données1!$Y240/(1.292*273.15/($T$57+273))*(Données1!X240-S71)*$C$66*VMOIS($H71) -> 0 | X71: =(0.622*X59*Données1!$BN274/100)/(101325-X59*Données1!$BN274/100) -> 0.01215052843 | Y71: =0.279166*Données1!$AD240*$D$61*Données1!$AD240/(1.292*273.15/($Y$57+273))*(Données1!$Z240-$Y$57)*24*VMOIS($H71)/1000 -> 8713.372402 | Z71: =0.680555*Données1!$AD240*$D$61*Données1!$AD240/(1.292*273.15/($Y$57+273))*(Données1!$AC240-X71)*24*VMOIS($H71) -> 38206.57761 | AA71: =0.279166*Données1!$Y240*$C$64*Données1!$Y240/(1.292*273.15/($Y$57+273))*(Données1!$U240-$Y$57)*$C$66*VMOIS($H71)/1000 -> 0 | AB71: =0.680555*Données1!$Y240*$C$64*Données1!$Y240/(1.292*273.15/($Y$57+273))*(Données1!X240-X71)*$C$66*VMOIS($H71) -> 0 | AC71: =(0.622*AC59*Données1!$BO274/100)/(101325-AC59*Données1!$BO274/100) -> 0.01265133503 | AD71: =0.279166*Données1!$AD240*$D$61*Données1!$AD240/(1.292*273.15/($AD$57+273))*(Données1!$Z240-$AD$57)*24*VMOIS($H71)/1000 -> 6727.301075 | AE71: =0.680555*Données1!$AD240*$D$61*Données1!$AD240/(1.292*273.15/($AD$57+273))*(Données1!$AC240-AC71)*24*VMOIS($H71) -> 35874.97265 | AF71: =0.279166*Données1!$Y240*$C$64*Données1!$Y240/(1.292*273.15/($AD$57+273))*(Données1!$U240-$AD$57)*$C$66*VMOIS($H71)/1000 -> 0 | AG71: =0.680555*Données1!$Y240*$C$64*Données1!$Y240/(1.292*273.15/($AD$57+273))*(Données1!X240-AC71)*$C$66*VMOIS($H71) -> 0 | AH71: =(0.622*AH59*Données1!$BP274/100)/(101325-AH59*Données1!$BP274/100) -> 0.01321075236 | AI71: =0.279166*Données1!$AD240*$D$61*Données1!$AD240/(1.292*273.15/($AI$57+273))*(Données1!$Z240-$AI$57)*24*VMOIS($H71)/1000 -> 4727.6573 | AJ71: =0.680555*Données1!$AD240*$D$61*Données1!$AD240/(1.292*273.15/($AI$57+273))*(Données1!$AC240-AH71)*24*VMOIS($H71) -> 33237.8477 | AK71: =0.279166*Données1!$Y240*$C$64*Données1!$Y240/(1.292*273.15/($AI$57+273))*(Données1!$U240-$AI$57)*$C$66*VMOIS($H71)/1000 -> 0 | AL71: =0.680555*Données1!$Y240*$C$64*Données1!$Y240/(1.292*273.15/($AI$57+273))*(Données1!X240-AH71)*$C$66*VMOIS($H71) -> 0 | AM71: =(0.622*AM59*Données1!$BQ274/100)/(101325-AM59*Données1!$BQ274/100) -> 0.01384278592 | AN71: =0.279166*Données1!$AD240*$D$61*Données1!$AD240/(1.292*273.15/($AN$57+273))*(Données1!$Z240-$AN$57)*24*VMOIS($H71)/1000 -> 2714.441079 | AO71: =0.680555*Données1!$AD240*$D$61*Données1!$AD240/(1.292*273.15/($AN$57+273))*(Données1!$AC240-AM71)*24*VMOIS($H71) -> 30223.01538 | AP71: =0.279166*Données1!$Y240*$C$64*Données1!$Y240/(1.292*273.15/($AN$57+273))*(Données1!$U240-$AN$57)*$C$66*VMOIS($H71)/1000 -> 0 | AQ71: =0.680555*Données1!$Y240*$C$64*Données1!$Y240/(1.292*273.15/($AN$57+273))*(Données1!X240-AM71)*$C$66*VMOIS($H71) -> 0
B72: Apports solaires parois opaques | I72: H spé. Int | N72: H spé. Int | S72: H spé. Int | X72: H spé. Int | AC72: H spé. Int | AH72: H spé. Int | AM72: H spé. Int
F74: MURS
B75: coeff échanges radiatif int et ext | C75: 5.5 | E75: He (W/m².K) | F75: =C76+C75 -> 24.88
B76: coeff échanges convectif ext | C76: =Données1!T202 -> 19.38 | E76: Hi (W/m².K) | F76: =C75+C77 -> 8
B77: coeff échanges convectif int MURS | C77: 2.5 | F77: TOIT
B78: coeff échanges convectif int TOIT | C78: 2.85 | E78: He (W/m².K) | F78: =C76+C75 -> 24.88
E79: Hi (W/m².K) | F79: =C75+C78 -> 8.35
C81: =Calculs!$B$7 -> Est | D81: =Calculs!$C$7 -> Sud | E81: =Calculs!$D$7 -> Ouest | F81: =Calculs!$E$7 -> Nord | G81: Toit
B82: Surf paroi opaque (m²) | C82: =Calculs!B13 -> 105.1151108 | D82: =Calculs!C13 -> 30.03288881 | E82: =Calculs!D13 -> 105.1151108 | F82: =Calculs!E13 -> 30.03288881 | G82: =Calculs!F2 -> 2143.5
B83: Facteur solaire | C83: =VLOOKUP(C81,$H$2:$I$10,2,FALSE) -> 0.12 | D83: =VLOOKUP(D81,$H$2:$I$10,2,FALSE) -> 0.12 | E83: =VLOOKUP(E81,$H$2:$I$10,2,FALSE) -> 0.12 | F83: 0.12 | G83: =I10 -> 0.05
C85: Brut | D85: Net 1 | E85: Net 2 | F85: Net 3 | G85: 20 | H85: 21 | I85: 22 | J85: 23 | K85: 24 | L85: 25 | M85: 26
B86: Janvier | C86: =(Données1!AK31*$C$82*$C$83+Données1!AL31*$D$82*$D$83+Données1!AM31*$E$82*$E$83+Données1!AN31*$F$82*$F$83+Données1!AO31*$G$82*$G$83)/1000 -> 14750.90008 | D86: =C86*(1-(5.5/8)*($C$47/8)) -> 12454.85947 | E86: =D86-K25-I25 -> -2563.12952 | F86: =E86-(F119+F135)*($C$47/8) -> -3700.729933 | G86: =F86+I42 -> 28612.32099 | H86: =F86+K42 -> 24103.05806 | I86: =F86+M42 -> 19593.79512 | J86: =F86+O42 -> 15084.53218 | K86: =F86+Q42 -> 10575.26924 | L86: =F86+S42 -> 6066.006305 | M86: =F86+U42 -> 1556.743367
B87: Février | C87: =(Données1!AK32*$C$82*$C$83+Données1!AL32*$D$82*$D$83+Données1!AM32*$E$82*$E$83+Données1!AN32*$F$82*$F$83+Données1!AO32*$G$82*$G$83)/1000 -> 14076.26306 | D87: 11885.23258 | E87: -1839.427011 | F87: -2866.937061 | G87: 26055.90877 | H87: 21983.02612 | I87: 17910.14347 | J87: 13837.26081 | K87: 9764.378158 | L87: 5691.495505 | M87: 1618.612851
B88: Mars | C88: =(Données1!AK33*$C$82*$C$83+Données1!AL33*$D$82*$D$83+Données1!AM33*$E$82*$E$83+Données1!AN33*$F$82*$F$83+Données1!AO33*$G$82*$G$83)/1000 -> 16854.14193 | D88: 14230.72274 | E88: -1225.33874 | F88: -2362.939153 | G88: 29785.93885 | H88: 25276.67591 | I88: 20767.41297 | J88: 16258.15003 | K88: 11748.88709 | L88: 7239.624156 | M88: 2730.361218
B89: Avril | C89: =(Données1!AK34*$C$82*$C$83+Données1!AL34*$D$82*$D$83+Données1!AM34*$E$82*$E$83+Données1!AN34*$F$82*$F$83+Données1!AO34*$G$82*$G$83)/1000 -> 16781.32951 | D89: 14169.24389 | E89: -1029.905639 | F89: -2130.809264 | G89: 30000.41654 | H89: 25636.6137 | I89: 21272.81086 | J89: 16909.00802 | K89: 12545.20517 | L89: 8181.402329 | M89: 3817.599486
B90: Mai | C90: =(Données1!AK35*$C$82*$C$83+Données1!AL35*$D$82*$D$83+Données1!AM35*$E$82*$E$83+Données1!AN35*$F$82*$F$83+Données1!AO35*$G$82*$G$83)/1000 -> 16676.43077 | D90: 14080.67308 | E90: -1104.222995 | F90: -2241.823407 | G90: 33217.02935 | H90: 28707.76641 | I90: 24198.50348 | J90: 19689.24054 | K90: 15179.9776 | L90: 10670.71466 | M90: 6161.451724
B91: Juin | C91: =(Données1!AK36*$C$82*$C$83+Données1!AL36*$D$82*$D$83+Données1!AM36*$E$82*$E$83+Données1!AN36*$F$82*$F$83+Données1!AO36*$G$82*$G$83)/1000 -> 16928.53471 | D91: 14293.53597 | E91: -1652.700527 | F91: -2753.604152 | G91: 27429.74432 | H91: 23065.94147 | I91: 18702.13863 | J91: 14338.33579 | K91: 9974.532943 | L91: 5610.7301 | M91: 1246.927256
B92: Juillet | C92: =(Données1!AK37*$C$82*$C$83+Données1!AL37*$D$82*$D$83+Données1!AM37*$E$82*$E$83+Données1!AN37*$F$82*$F$83+Données1!AO37*$G$82*$G$83)/1000 -> 19852.35382 | D92: 16762.25015 | E92: -1214.55985 | F92: -2352.160263 | G92: 30803.04401 | H92: 26293.78107 | I92: 21784.51813 | J92: 17275.25519 | K92: 12765.99225 | L92: 8256.729316 | M92: 3747.466378
B93: Août | C93: =(Données1!AK38*$C$82*$C$83+Données1!AL38*$D$82*$D$83+Données1!AM38*$E$82*$E$83+Données1!AN38*$F$82*$F$83+Données1!AO38*$G$82*$G$83)/1000 -> 21693.34528 | D93: 18316.68341 | E93: -899.1092299 | F93: -2036.709643 | G93: 33918.14689 | H93: 29408.88395 | I93: 24899.62101 | J93: 20390.35807 | K93: 15881.09514 | L93: 11371.8322 | M93: 6862.56926
B94: Septembre | C94: =(Données1!AK39*$C$82*$C$83+Données1!AL39*$D$82*$D$83+Données1!AM39*$E$82*$E$83+Données1!AN39*$F$82*$F$83+Données1!AO39*$G$82*$G$83)/1000 -> 22454.67539 | D94: 18959.50925 | E94: -697.5902602 | F94: -1798.493885 | G94: 33448.38109 | H94: 29084.57825 | I94: 24720.7754 | J94: 20356.97256 | K94: 15993.16972 | L94: 11629.36687 | M94: 7265.56403
B95: Octobre | C95: =(Données1!AK40*$C$82*$C$83+Données1!AL40*$D$82*$D$83+Données1!AM40*$E$82*$E$83+Données1!AN40*$F$82*$F$83+Données1!AO40*$G$82*$G$83)/1000 -> 22358.78173 | D95: 18878.54184 | E95: -1986.093001 | F95: -3123.693414 | G95: 34813.73875 | H95: 30304.47581 | I95: 25795.21288 | J95: 21285.94994 | K95: 16776.687 | L95: 12267.42406 | M95: 7758.161124
B96: Novembre | C96: =(Données1!AK41*$C$82*$C$83+Données1!AL41*$D$82*$D$83+Données1!AM41*$E$82*$E$83+Données1!AN41*$F$82*$F$83+Données1!AO41*$G$82*$G$83)/1000 -> 19341.8385 | D96: 16331.19871 | E96: -3216.01713 | F96: -4316.920756 | G96: 28302.35398 | H96: 23938.55113 | I96: 19574.74829 | J96: 15210.94545 | K96: 10847.1426 | L96: 6483.33976 | M96: 2119.536917
B97: Décembre | C97: =(Données1!AK42*$C$82*$C$83+Données1!AL42*$D$82*$D$83+Données1!AM42*$E$82*$E$83+Données1!AN42*$F$82*$F$83+Données1!AO42*$G$82*$G$83)/1000 -> 16113.72456 | D97: 13605.5545 | E97: -3263.975397 | F97: -4401.57581 | G97: 28686.35316 | H97: 24177.09023 | I97: 19667.82729 | J97: 15158.56435 | K97: 10649.30141 | L97: 6140.038475 | M97: 1630.775537
B99: Apports internes - Occupations
F101: Climatisation | I101: Surchauffe
B102: Métabolisme (W) | C102: =Hypothèses!J30 -> 120 | F102: Sensible | G102: Latent | H102: Charge sensible (W) | I102: Sensible | J102: Latent | K102: Charge sensible (W) | L102: Tint
E103: Janvier | F103: =$C$105*($H$103)*$C$106*VMOIS(E103)/1000 -> 8656.525292 | G103: =$C$105*($C$102-$H$103)*$C$106*VMOIS(E103)/1000 -> 8740.900163 | H103: =6.461927+0.946892*C102+0.0000255737*C102*C102+7.139322*TempConsigne-0.0627909*C102*TempConsigne+0.0000589172*TempConsigne*C102*C102-0.19855*TempConsigne*TempConsigne+0.000940018*TempConsigne*TempConsigne*C102-0.00000149532*C102*C102*TempConsigne*TempConsigne -> 59.70900911 | I103: =$C$105*K103*$C$106*VMOIS(E103)/1000 -> 6147.951151 | J103: =$C$105*($C$102-K103)*$C$106*VMOIS(E103)/1000 -> 11249.4743 | K103: =6.461927+0.946892*$C$102+0.0000255737*$C$102*$C$102+7.139322*L103-0.0627909*$C$102*L103+0.0000589172*L103*$C$102*$C$102-0.19855*L103*L103+0.000940018*L103*L103*$C$102-0.00000149532*$C$102*$C$102*L103*L103 -> 42.40593759 | L103: =Données1!H196 -> 29.16592742
B104: Nb d'heures / semaine | C104: =VLOOKUP(Secteur,TableOccupationPD,3,FALSE)+ValeurAjustementOccupation -> 168 | E104: Février | F104: 7818.797038 | G104: 7895.006599 | I104: 5602.041035 | J104: 10111.7626 | K104: 42.78053486 | L104: =Données1!H197 -> 29.10132068
B105: Nombre d'occupants | C105: =Surface/Hypothèses!C16 -> 194.8636364 | E105: Mars | F105: 8656.525292 | G105: 8740.900163 | I105: 6178.571707 | J105: 11218.85375 | K105: 42.61714509 | L105: =Données1!H198 -> 29.12951949
B106: Nb H/J | C106: =C104/7 -> 24 | E106: Avril | F106: 8377.28254 | G106: 8458.935642 | I106: 5788.435591 | J106: 11047.78259 | K106: 41.25702479 | L106: =Données1!H199 -> 29.363125
B107: Surface de plancher (m²) | C107: =Surface -> 4287 | E107: Mai | F107: 8656.525292 | G107: 8740.900163 | I107: 5553.250254 | J107: 11844.1752 | K107: 38.30394515 | L107: =Données1!H200 -> 29.86355847
E108: Juin | F108: 8377.28254 | G108: 8458.935642 | I108: 6151.63746 | J108: 10684.58072 | K108: 43.84574299 | L108: =Données1!H201 -> 28.91675347
B109: Nb d'heures par an | C109: =C104*52.14 -> 8759.52 | E109: Juillet | F109: 8656.525292 | G109: 8740.900163 | I109: 5990.22948 | J109: 11407.19597 | K109: 41.31804096 | L109: =Données1!H202 -> 29.35268817
E110: Août | F110: 8656.525292 | G110: 8740.900163 | I110: 5458.101077 | J110: 11939.32438 | K110: 37.64764683 | L110: =Données1!H203 -> 29.97355511
E111: Septembre | F111: 8377.28254 | G111: 8458.935642 | I111: 5195.020914 | J111: 11641.19727 | K111: 37.02746679 | L111: =Données1!H204 -> 30.07710069
E112: Octobre | F112: 8656.525292 | G112: 8740.900163 | I112: 5074.021732 | J112: 12323.40372 | K112: 34.99843178 | L112: =Données1!H205 -> 30.41322245
E113: Novembre | F113: 8377.28254 | G113: 8458.935642 | I113: 5696.494142 | J113: 11139.72404 | K113: 40.6017129 | L113: =Données1!H206 -> 29.47496528
E114: Décembre | F114: 8656.525292 | G114: 8740.900163 | I114: 6002.868927 | J114: 11394.55653 | K114: 41.40522247 | L114: =Données1!H207 -> 29.33776882
B116: Apports internes - Eclairage
B118: Apports éclairage Wh/jour | C118: =M119*Surface*1000/365 -> 223158.9041 | F118: Radiatif | G118: Convectif | H118: Total | M118: Consommation avec apports | N118: kWh/m².an
E119: Janvier | F119: =$C$120*$C$118*VMOIS(E119)/1000 -> 2767.170411 | G119: =($C$121+$C$122)*$C$118*VMOIS(E119)/1000 -> 4150.755616 | H119: =G119+F119 -> 6917.926027 | L119: Eclairage intérieur | M119: =Interface!L31 -> 19 | Q119: W/m²
B120: Fraction radiative | C120: 0.4 | E120: Février | F120: =$C$120*$C$118*VMOIS(E120)/1000 -> 2499.379726 | G120: 3749.069589 | H120: 6248.449315 | L120: Bureautique | M120: =Interface!L35 -> 15 | P120: Equipements spécifiques avec apports | Q120: =Interface!J43 -> 0
B121: Fraction convective | C121: 0.4 | E121: Mars | F121: 2767.170411 | G121: 4150.755616 | H121: 6917.926027 | L121: Autres | M121: =Interface!L41 -> 0
B122: Fraction lumineuse | C122: =1-C120-C121 -> 0.2 | E122: Avril | F122: 2677.906849 | G122: 4016.860274 | H122: 6694.767123 | L122: Froid alimentaire | M122: =Interface!L37 -> 0
E123: Mai | F123: 2767.170411 | G123: 4150.755616 | H123: 6917.926027 | L123: Chaud alimentaire | M123: =Interface!L39 -> 0
E124: Juin | F124: 2677.906849 | G124: 4016.860274 | H124: 6694.767123 | L124: Brasseurs d'air | M124: =Interface!L25 -> 8
E125: Juillet | F125: 2767.170411 | G125: 4150.755616 | H125: 6917.926027 | L125: Equipements spécifiques sans apports | M125: =Hypothèses!J36*Q120*C109/1000 -> 0
E126: Août | F126: 2767.170411 | G126: 4150.755616 | H126: 6917.926027
E127: Septembre | F127: 2677.906849 | G127: 4016.860274 | H127: 6694.767123 | M127: Consommation sans apports | N127: kWh/m².an
E128: Octobre | F128: 2767.170411 | G128: 4150.755616 | H128: 6917.926027 | Q128: W/m²
E129: Novembre | F129: 2677.906849 | G129: 4016.860274 | H129: 6694.767123 | L129: Eclairage extérieur | M129: =Interface!L33 -> 5 | P129: Equipements spécifiques sans apports | Q129: =Interface!J45 -> 0
E130: Décembre | F130: 2767.170411 | G130: 4150.755616 | H130: 6917.926027 | L130: Ventilation | M130: =Interface!L27 -> 5
H131: =SUM(G119:H130) -> 130324.8 | L131: Eau chaude sanitaire | M131: =Interface!L29 -> 10
B132: Apports internes - Equipements | L132: Equipements spécifiques sans apports | M132: =Hypothèses!J36*Q129*C109/1000 -> 0
B134: Apports kWh/m².an | C134: =SUM(M120:M123,M125) -> 15 | F134: Radiatif | G134: Convectif | H134: Total | M134: =SUM(M129:M132,M119:M125)*Surface -> 265794 | N134: kWh/an
B135: Apports équipement Wh/jour | C135: =C134*Surface*1000/365 -> 176178.0822 | E135: Janvier | F135: =($C$137*$C$135+$C$141*$C$143)*VMOIS(E135)/1000 -> 2257.428493 | G135: =($C$138*$C$135+$C$141*$C$144)*VMOIS(E135)/1000 -> 4369.216438 | H135: =G135+F135 -> 6626.644932
E136: Février | F136: =($C$137*$C$135+$C$141*$C$143)*VMOIS(E136)/1000 -> 2038.967671 | G136: =($C$138*$C$135+$C$141*$C$144)*VMOIS(E136)/1000 -> 3946.389041 | H136: 5985.356712
B137: Fraction radiative | C137: 0.2 | E137: Mars | F137: 2257.428493 | G137: 4369.216438 | H137: 6626.644932
B138: Fraction convective | C138: =1-C137 -> 0.8 | E138: Avril | F138: 2184.608219 | G138: 4228.273973 | H138: 6412.882192
E139: Mai | F139: 2257.428493 | G139: 4369.216438 | H139: 6626.644932
B140: Apports brasseurs d'air kWh/m².an | C140: =M124 -> 8 | E140: Juin | F140: 2184.608219 | G140: 4228.273973 | H140: 6412.882192
B141: Apports brasseurs d'air Wh/jour | C141: =C140*Surface*1000/365 -> 93961.64384 | E141: Juillet | F141: 2257.428493 | G141: 4369.216438 | H141: 6626.644932
E142: Août | F142: 2257.428493 | G142: 4369.216438 | H142: 6626.644932
B143: Fraction radiative | C143: 0.4 | E143: Septembre | F143: 2184.608219 | G143: 4228.273973 | H143: 6412.882192
B144: Fraction convective | C144: 0 | E144: Octobre | F144: 2257.428493 | G144: 4369.216438 | H144: 6626.644932
E145: Novembre | F145: 2184.608219 | G145: 4228.273973 | H145: 6412.882192
E146: Décembre | F146: 2257.428493 | G146: 4369.216438 | H146: 6626.644932
H147: =SUM(G135:H146) -> 129467.4
B148: Conclusion Climatisation
AF149: Zone climatisée
C150: APPORTS INTERNES | G150: Coeff intermittence | I150: Zone climatisée | K150: BESOIN PAR m² | M150: 20 | O150: 21 | Q150: 22 | S150: 23 | U150: 24 | W150: 25 | Y150: 26 | AA150: 27 | AC150: 28 | AF150: 20 | AH150: 21 | AJ150: 22 | AL150: 23 | AN150: 24 | AP150: 25 | AR150: 26 | AT150: 27 | AV150: 28 | AY150: Choix
C151: Sensible | D151: Latent | E151: Eclairage | F151: Equipement | G151: Sensible | H151: Latent | I151: Sensible | J151: Latent | M151: Sensible | N151: Latent | O151: Sensible | P151: Latent | Q151: Sensible | R151: Latent | S151: Sensible | T151: Latent | U151: Sensible | V151: Latent | W151: Sensible | X151: Latent | Y151: Sensible | Z151: Latent | AA151: Sensible | AB151: Latent | AC151: Sensible | AD151: Latent | AF151: Sensible | AG151: Latent | AH151: Sensible | AI151: Latent | AJ151: Sensible | AK151: Latent | AL151: Sensible | AM151: Latent | AN151: Sensible | AO151: Latent | AP151: Sensible | AQ151: Latent | AR151: Sensible | AS151: Latent | AT151: Sensible | AU151: Latent | AV151: Sensible | AW151: Latent | AY151: Sensible | AZ151: Latent
B152: Janvier | C152: =F103 -> 8656.525292 | D152: =G103 -> 8740.900163 | E152: =H119 -> 6917.926027 | F152: =H135 -> 6626.644932 | G152: =Données2!BD21 -> 0.5564738867 | H152: =Données2!BD239 -> 0.4918450792 | I152: =AY152 -> 47337.71936 | J152: =AZ152 -> 22369.38913 | K152: =IF(SurfaceClimatisée=0,0,(I152+J152)/($C$107*SurfaceClimatisée)) -> 16.26011395 | M152: =SUM(J60,G86,G25)*$G152+L60+$C152+$E152+$F152 -> 69013.43148 | N152: =(K60+M60)*$H152+$D152 -> 29882.00068 | O152: =SUM(O60,H86,G25)*$G152+Q60+$C152+$E152+$F152 -> 65419.7162 | P152: =(P60+R60)*$H152+$D152 -> 28964.72484 | Q152: =SUM(T60,I86,G25)*$G152+V60+$C152+$E152+$F152 -> 61818.43956 | R152: =(U60+W60)*$H152+$D152 -> 27949.68834 | S152: =SUM(Y60,J86,G25)*$G152+AA60+$C152+$E152+$F152 -> 58209.60155 | T152: =(Z60+AB60)*$H152+$D152 -> 26815.30952 | U152: =SUM(AD60,K86,G25)*$G152+AF60+$C152+$E152+$F152 -> 54593.20218 | V152: =(AE60+AG60)*$H152+$D152 -> 25532.15868 | W152: =SUM(AI60,L86,G25)*$G152+AK60+$C152+$E152+$F152 -> 50969.24145 | X152: =(AJ60+AL60)*$H152+$D152 -> 24063.58052 | Y152: =SUM(AN60,M86,G25)*$G152+AP60+$C152+$E152+$F152 -> 47337.71936 | Z152: =(AO60+AQ60)*$H152+$D152 -> 22369.38913 | AA152: =((-U152+Y152)*0.5)*(AA$150-23)+(-Y152+3*U152)*0.5 -> 43709.97795 | AB152: =((-V152+Z152)*0.5)*(AA$150-23)+(-Z152+3*V152)*0.5 -> 20788.00436 | AC152: =((-U152+Y152)*0.5)*(AC$150-23)+(-Y152+3*U152)*0.5 -> 40082.23654 | AD152: =((-V152+Z152)*0.5)*(AC$150-23)+(-Z152+3*V152)*0.5 -> 19206.61959 | AF152: =IF(Calculs!$C258=FALSE,0,M152*Calculs!$F258)*SurfaceClimatisée -> 69013.43148 | AG152: =IF(Calculs!$C258=FALSE,0,N152*Calculs!$F258)*SurfaceClimatisée -> 29882.00068 | AH152: =IF(Calculs!$C258=FALSE,0,O152*Calculs!$F258)*SurfaceClimatisée -> 65419.7162 | AI152: =IF(Calculs!$C258=FALSE,0,P152*Calculs!$F258)*SurfaceClimatisée -> 28964.72484 | AJ152: =IF(Calculs!$C258=FALSE,0,Q152*Calculs!$F258)*SurfaceClimatisée -> 61818.43956 | AK152: =IF(Calculs!$C258=FALSE,0,R152*Calculs!$F258)*SurfaceClimatisée -> 27949.68834 | AL152: =IF(Calculs!$C258=FALSE,0,S152*Calculs!$F258)*SurfaceClimatisée -> 58209.60155 | AM152: =IF(Calculs!$C258=FALSE,0,T152*Calculs!$F258)*SurfaceClimatisée -> 26815.30952 | AN152: =IF(Calculs!$C258=FALSE,0,U152*Calculs!$F258)*SurfaceClimatisée -> 54593.20218 | AO152: =IF(Calculs!$C258=FALSE,0,V152*Calculs!$F258)*SurfaceClimatisée -> 25532.15868 | AP152: =IF(Calculs!$C258=FALSE,0,W152*Calculs!$F258)*SurfaceClimatisée -> 50969.24145 | AQ152: =IF(Calculs!$C258=FALSE,0,X152*Calculs!$F258)*SurfaceClimatisée -> 24063.58052 | AR152: =IF(Calculs!$C258=FALSE,0,Y152*Calculs!$F258)*SurfaceClimatisée -> 47337.71936 | AS152: =IF(Calculs!$C258=FALSE,0,Z152*Calculs!$F258)*SurfaceClimatisée -> 22369.38913 | AT152: =IF(Calculs!$C258=FALSE,0,AA152*Calculs!$F258)*SurfaceClimatisée -> 43709.97795 | AU152: =IF(Calculs!$C258=FALSE,0,AB152*Calculs!$F258)*SurfaceClimatisée -> 20788.00436 | AV152: =IF(Calculs!$C258=FALSE,0,AC152*Calculs!$F258)*SurfaceClimatisée -> 40082.23654 | AW152: =IF(Calculs!$C258=FALSE,0,AD152*Calculs!$F258)*SurfaceClimatisée -> 19206.61959 | AY152: =IF(TempConsigne=20,AF152,IF(TempConsigne=21,AH152,IF(TempConsigne=22,AJ152,IF(TempConsigne=23,AL152,IF(TempConsigne=24,AN152,IF(TempConsigne=25,AP152,IF(TempConsigne=26,AR152,IF(TempConsigne=27,AT152,IF(TempConsigne=28,AV152))))))))) -> 47337.71936 | AZ152: =IF(TempConsigne=20,AG152,IF(TempConsigne=21,AI152,IF(TempConsigne=22,AK152,IF(TempConsigne=23,AM152,IF(TempConsigne=24,AO152,IF(TempConsigne=25,AQ152,IF(TempConsigne=26,AS152,IF(TempConsigne=27,AU152,IF(TempConsigne=28,AW152))))))))) -> 22369.38913 | BB152: =SUM(AY164:AZ164) -> 906857.9927 | BC152: Total brut kWh
B153: Février | C153: =F104 -> 7818.797038 | D153: =G104 -> 7895.006599 | E153: 6248.449315 | F153: =H136 -> 5985.356712 | G153: =Données2!BD22 -> 0.5531793408 | H153: =Données2!BD240 -> 0.4933325878 | I153: 42917.82329 | J153: 20007.26481 | K153: 14.67811712 | M153: 62383.85194 | N153: 26300.60711 | O153: 59156.4941 | P153: 24835.35943 | Q153: 55922.34415 | R153: 24650.60712 | S153: 52681.4021 | T153: 23696.54965 | U153: 49433.66793 | V153: 22626.42039 | W153: 46179.14166 | X153: 21407.18793 | Y153: 42917.82329 | Z153: 20007.26481 | AA153: 39659.90096 | AB153: 18697.68702 | AC153: 36401.97864 | AD153: 17388.10924 | AF153: =IF(Calculs!$C259=FALSE,0,M153*Calculs!$F259)*SurfaceClimatisée -> 62383.85194 | AG153: =IF(Calculs!$C259=FALSE,0,N153*Calculs!$F259)*SurfaceClimatisée -> 26300.60711 | AH153: =IF(Calculs!$C259=FALSE,0,O153*Calculs!$F259)*SurfaceClimatisée -> 59156.4941 | AI153: =IF(Calculs!$C259=FALSE,0,P153*Calculs!$F259)*SurfaceClimatisée -> 24835.35943 | AJ153: =IF(Calculs!$C259=FALSE,0,Q153*Calculs!$F259)*SurfaceClimatisée -> 55922.34415 | AK153: =IF(Calculs!$C259=FALSE,0,R153*Calculs!$F259)*SurfaceClimatisée -> 24650.60712 | AL153: =IF(Calculs!$C259=FALSE,0,S153*Calculs!$F259)*SurfaceClimatisée -> 52681.4021 | AM153: =IF(Calculs!$C259=FALSE,0,T153*Calculs!$F259)*SurfaceClimatisée -> 23696.54965 | AN153: =IF(Calculs!$C259=FALSE,0,U153*Calculs!$F259)*SurfaceClimatisée -> 49433.66793 | AO153: =IF(Calculs!$C259=FALSE,0,V153*Calculs!$F259)*SurfaceClimatisée -> 22626.42039 | AP153: =IF(Calculs!$C259=FALSE,0,W153*Calculs!$F259)*SurfaceClimatisée -> 46179.14166 | AQ153: =IF(Calculs!$C259=FALSE,0,X153*Calculs!$F259)*SurfaceClimatisée -> 21407.18793 | AR153: =IF(Calculs!$C259=FALSE,0,Y153*Calculs!$F259)*SurfaceClimatisée -> 42917.82329 | AS153: =IF(Calculs!$C259=FALSE,0,Z153*Calculs!$F259)*SurfaceClimatisée -> 20007.26481 | AT153: =IF(Calculs!$C259=FALSE,0,AA153*Calculs!$F259)*SurfaceClimatisée -> 39659.90096 | AU153: =IF(Calculs!$C259=FALSE,0,AB153*Calculs!$F259)*SurfaceClimatisée -> 18697.68702 | AV153: =IF(Calculs!$C259=FALSE,0,AC153*Calculs!$F259)*SurfaceClimatisée -> 36401.97864 | AW153: =IF(Calculs!$C259=FALSE,0,AD153*Calculs!$F259)*SurfaceClimatisée -> 17388.10924 | AY153: 42917.82329 | AZ153: 20007.26481 | BB153: =BB152/($C$107*SurfaceClimatisée) -> 211.5367373 | BC153: Besoin/m²
B154: Mars | C154: 8656.525292 | D154: 8740.900163 | E154: 6917.926027 | F154: 6626.644932 | G154: =Données2!BD23 -> 0.5367672169 | H154: =Données2!BD241 -> 0.472135323 | I154: 47683.91045 | J154: 21115.32917 | K154: 16.04834141 | M154: 68594.3566 | N154: 28166.13962 | O154: 65127.52064 | P154: 26608.82442 | Q154: 61653.38932 | R154: 26370.68026 | S154: 58171.96264 | T154: 25310.3604 | U154: 54683.2406 | V154: 24098.10905 | W154: 51187.22321 | X154: 22705.86607 | Y154: 47683.91045 | Z154: 21115.32917 | AA154: 44184.24538 | AB154: 19623.93923 | AC154: 40684.5803 | AD154: 18132.54929 | AF154: =IF(Calculs!$C260=FALSE,0,M154*Calculs!$F260)*SurfaceClimatisée -> 68594.3566 | AG154: =IF(Calculs!$C260=FALSE,0,N154*Calculs!$F260)*SurfaceClimatisée -> 28166.13962 | AH154: =IF(Calculs!$C260=FALSE,0,O154*Calculs!$F260)*SurfaceClimatisée -> 65127.52064 | AI154: =IF(Calculs!$C260=FALSE,0,P154*Calculs!$F260)*SurfaceClimatisée -> 26608.82442 | AJ154: =IF(Calculs!$C260=FALSE,0,Q154*Calculs!$F260)*SurfaceClimatisée -> 61653.38932 | AK154: =IF(Calculs!$C260=FALSE,0,R154*Calculs!$F260)*SurfaceClimatisée -> 26370.68026 | AL154: =IF(Calculs!$C260=FALSE,0,S154*Calculs!$F260)*SurfaceClimatisée -> 58171.96264 | AM154: =IF(Calculs!$C260=FALSE,0,T154*Calculs!$F260)*SurfaceClimatisée -> 25310.3604 | AN154: =IF(Calculs!$C260=FALSE,0,U154*Calculs!$F260)*SurfaceClimatisée -> 54683.2406 | AO154: =IF(Calculs!$C260=FALSE,0,V154*Calculs!$F260)*SurfaceClimatisée -> 24098.10905 | AP154: =IF(Calculs!$C260=FALSE,0,W154*Calculs!$F260)*SurfaceClimatisée -> 51187.22321 | AQ154: =IF(Calculs!$C260=FALSE,0,X154*Calculs!$F260)*SurfaceClimatisée -> 22705.86607 | AR154: =IF(Calculs!$C260=FALSE,0,Y154*Calculs!$F260)*SurfaceClimatisée -> 47683.91045 | AS154: =IF(Calculs!$C260=FALSE,0,Z154*Calculs!$F260)*SurfaceClimatisée -> 21115.32917 | AT154: =IF(Calculs!$C260=FALSE,0,AA154*Calculs!$F260)*SurfaceClimatisée -> 44184.24538 | AU154: =IF(Calculs!$C260=FALSE,0,AB154*Calculs!$F260)*SurfaceClimatisée -> 19623.93923 | AV154: =IF(Calculs!$C260=FALSE,0,AC154*Calculs!$F260)*SurfaceClimatisée -> 40684.5803 | AW154: =IF(Calculs!$C260=FALSE,0,AD154*Calculs!$F260)*SurfaceClimatisée -> 18132.54929 | AY154: 47683.91045 | AZ154: 21115.32917
B155: Avril | C155: 8377.28254 | D155: 8458.935642 | E155: 6694.767123 | F155: 6412.882192 | G155: =Données2!BD24 -> 0.6052186699 | H155: =Données2!BD242 -> 0.5082432595 | I155: 50679.10869 | J155: 23617.63787 | K155: 17.33070832 | M155: 73479.20962 | N155: 30655.84459 | O155: 69699.06275 | P155: 29022.24342 | Q155: 65910.96789 | R155: 28804.97061 | S155: 62114.92506 | T155: 27732.52551 | U155: 58310.93425 | V155: 26533.3284 | W155: 54498.99546 | X155: 25170.72917 | Y155: 50679.10869 | Z155: 23617.63787 | AA155: 46863.19591 | AB155: 22159.79261 | AC155: 43047.28313 | AD155: 20701.94734 | AF155: =IF(Calculs!$C261=FALSE,0,M155*Calculs!$F261)*SurfaceClimatisée -> 73479.20962 | AG155: =IF(Calculs!$C261=FALSE,0,N155*Calculs!$F261)*SurfaceClimatisée -> 30655.84459 | AH155: =IF(Calculs!$C261=FALSE,0,O155*Calculs!$F261)*SurfaceClimatisée -> 69699.06275 | AI155: =IF(Calculs!$C261=FALSE,0,P155*Calculs!$F261)*SurfaceClimatisée -> 29022.24342 | AJ155: =IF(Calculs!$C261=FALSE,0,Q155*Calculs!$F261)*SurfaceClimatisée -> 65910.96789 | AK155: =IF(Calculs!$C261=FALSE,0,R155*Calculs!$F261)*SurfaceClimatisée -> 28804.97061 | AL155: =IF(Calculs!$C261=FALSE,0,S155*Calculs!$F261)*SurfaceClimatisée -> 62114.92506 | AM155: =IF(Calculs!$C261=FALSE,0,T155*Calculs!$F261)*SurfaceClimatisée -> 27732.52551 | AN155: =IF(Calculs!$C261=FALSE,0,U155*Calculs!$F261)*SurfaceClimatisée -> 58310.93425 | AO155: =IF(Calculs!$C261=FALSE,0,V155*Calculs!$F261)*SurfaceClimatisée -> 26533.3284 | AP155: =IF(Calculs!$C261=FALSE,0,W155*Calculs!$F261)*SurfaceClimatisée -> 54498.99546 | AQ155: =IF(Calculs!$C261=FALSE,0,X155*Calculs!$F261)*SurfaceClimatisée -> 25170.72917 | AR155: =IF(Calculs!$C261=FALSE,0,Y155*Calculs!$F261)*SurfaceClimatisée -> 50679.10869 | AS155: =IF(Calculs!$C261=FALSE,0,Z155*Calculs!$F261)*SurfaceClimatisée -> 23617.63787 | AT155: =IF(Calculs!$C261=FALSE,0,AA155*Calculs!$F261)*SurfaceClimatisée -> 46863.19591 | AU155: =IF(Calculs!$C261=FALSE,0,AB155*Calculs!$F261)*SurfaceClimatisée -> 22159.79261 | AV155: =IF(Calculs!$C261=FALSE,0,AC155*Calculs!$F261)*SurfaceClimatisée -> 43047.28313 | AW155: =IF(Calculs!$C261=FALSE,0,AD155*Calculs!$F261)*SurfaceClimatisée -> 20701.94734 | AY155: 50679.10869 | AZ155: 23617.63787
B156: Mai | C156: 8656.525292 | D156: 8740.900163 | E156: 6917.926027 | F156: 6626.644932 | G156: =Données2!BD25 -> 0.5668630287 | H156: =Données2!BD243 -> 0.5075894179 | I156: 51470.50081 | J156: 25638.8559 | K156: 17.9867872 | M156: 73503.60652 | N156: 33198.79405 | O156: 69850.58936 | P156: 31497.85929 | Q156: 66189.90535 | R156: 31241.26128 | S156: 62521.5545 | T156: 30097.94502 | U156: 58845.53678 | V156: 28803.63926 | W156: 55161.85222 | X156: 27331.75719 | Y156: 51470.50081 | Z156: 25638.8559 | AA156: 47782.98282 | AB156: 24056.46422 | AC156: 44095.46484 | AD156: 22474.07254 | AF156: =IF(Calculs!$C262=FALSE,0,M156*Calculs!$F262)*SurfaceClimatisée -> 73503.60652 | AG156: =IF(Calculs!$C262=FALSE,0,N156*Calculs!$F262)*SurfaceClimatisée -> 33198.79405 | AH156: =IF(Calculs!$C262=FALSE,0,O156*Calculs!$F262)*SurfaceClimatisée -> 69850.58936 | AI156: =IF(Calculs!$C262=FALSE,0,P156*Calculs!$F262)*SurfaceClimatisée -> 31497.85929 | AJ156: =IF(Calculs!$C262=FALSE,0,Q156*Calculs!$F262)*SurfaceClimatisée -> 66189.90535 | AK156: =IF(Calculs!$C262=FALSE,0,R156*Calculs!$F262)*SurfaceClimatisée -> 31241.26128 | AL156: =IF(Calculs!$C262=FALSE,0,S156*Calculs!$F262)*SurfaceClimatisée -> 62521.5545 | AM156: =IF(Calculs!$C262=FALSE,0,T156*Calculs!$F262)*SurfaceClimatisée -> 30097.94502 | AN156: =IF(Calculs!$C262=FALSE,0,U156*Calculs!$F262)*SurfaceClimatisée -> 58845.53678 | AO156: =IF(Calculs!$C262=FALSE,0,V156*Calculs!$F262)*SurfaceClimatisée -> 28803.63926 | AP156: =IF(Calculs!$C262=FALSE,0,W156*Calculs!$F262)*SurfaceClimatisée -> 55161.85222 | AQ156: =IF(Calculs!$C262=FALSE,0,X156*Calculs!$F262)*SurfaceClimatisée -> 27331.75719 | AR156: =IF(Calculs!$C262=FALSE,0,Y156*Calculs!$F262)*SurfaceClimatisée -> 51470.50081 | AS156: =IF(Calculs!$C262=FALSE,0,Z156*Calculs!$F262)*SurfaceClimatisée -> 25638.8559 | AT156: =IF(Calculs!$C262=FALSE,0,AA156*Calculs!$F262)*SurfaceClimatisée -> 47782.98282 | AU156: =IF(Calculs!$C262=FALSE,0,AB156*Calculs!$F262)*SurfaceClimatisée -> 24056.46422 | AV156: =IF(Calculs!$C262=FALSE,0,AC156*Calculs!$F262)*SurfaceClimatisée -> 44095.46484 | AW156: =IF(Calculs!$C262=FALSE,0,AD156*Calculs!$F262)*SurfaceClimatisée -> 22474.07254 | AY156: 51470.50081 | AZ156: 25638.8559 | BB156: =Calculs!BB152*0.001 -> 906.8579927 | BC156: Besoin annuel (MWh/an)
B157: Juin | C157: 8377.28254 | D157: 8458.935642 | E157: 6694.767123 | F157: 6412.882192 | G157: =Données2!BD26 -> 0.5372062533 | H157: =Données2!BD244 -> 0.4771972267 | I157: 46651.7364 | J157: 22399.13311 | K157: 16.10703744 | M157: 66917.5013 | N157: 29101.35744 | O157: 63557.56339 | P157: 27554.57891 | Q157: 60190.54964 | R157: 27338.43896 | S157: 56816.46007 | T157: 26317.70536 | U157: 53435.29468 | V157: 25174.88859 | W157: 50047.05345 | X157: 23880.38659 | Y157: 46651.7364 | Z157: 22399.13311 | AA157: 43259.95726 | AB157: 21011.25537 | AC157: 39868.17812 | AD157: 19623.37763 | AF157: =IF(Calculs!$C263=FALSE,0,M157*Calculs!$F263)*SurfaceClimatisée -> 66917.5013 | AG157: =IF(Calculs!$C263=FALSE,0,N157*Calculs!$F263)*SurfaceClimatisée -> 29101.35744 | AH157: =IF(Calculs!$C263=FALSE,0,O157*Calculs!$F263)*SurfaceClimatisée -> 63557.56339 | AI157: =IF(Calculs!$C263=FALSE,0,P157*Calculs!$F263)*SurfaceClimatisée -> 27554.57891 | AJ157: =IF(Calculs!$C263=FALSE,0,Q157*Calculs!$F263)*SurfaceClimatisée -> 60190.54964 | AK157: =IF(Calculs!$C263=FALSE,0,R157*Calculs!$F263)*SurfaceClimatisée -> 27338.43896 | AL157: =IF(Calculs!$C263=FALSE,0,S157*Calculs!$F263)*SurfaceClimatisée -> 56816.46007 | AM157: =IF(Calculs!$C263=FALSE,0,T157*Calculs!$F263)*SurfaceClimatisée -> 26317.70536 | AN157: =IF(Calculs!$C263=FALSE,0,U157*Calculs!$F263)*SurfaceClimatisée -> 53435.29468 | AO157: =IF(Calculs!$C263=FALSE,0,V157*Calculs!$F263)*SurfaceClimatisée -> 25174.88859 | AP157: =IF(Calculs!$C263=FALSE,0,W157*Calculs!$F263)*SurfaceClimatisée -> 50047.05345 | AQ157: =IF(Calculs!$C263=FALSE,0,X157*Calculs!$F263)*SurfaceClimatisée -> 23880.38659 | AR157: =IF(Calculs!$C263=FALSE,0,Y157*Calculs!$F263)*SurfaceClimatisée -> 46651.7364 | AS157: =IF(Calculs!$C263=FALSE,0,Z157*Calculs!$F263)*SurfaceClimatisée -> 22399.13311 | AT157: =IF(Calculs!$C263=FALSE,0,AA157*Calculs!$F263)*SurfaceClimatisée -> 43259.95726 | AU157: =IF(Calculs!$C263=FALSE,0,AB157*Calculs!$F263)*SurfaceClimatisée -> 21011.25537 | AV157: =IF(Calculs!$C263=FALSE,0,AC157*Calculs!$F263)*SurfaceClimatisée -> 39868.17812 | AW157: =IF(Calculs!$C263=FALSE,0,AD157*Calculs!$F263)*SurfaceClimatisée -> 19623.37763 | AY157: 46651.7364 | AZ157: 22399.13311 | BB157: =BB156/BB158 -> 262.8573892 | BC157: Consommation annuelle clim (MWh/an)
B158: Juillet | C158: 8656.525292 | D158: 8740.900163 | E158: 6917.926027 | F158: 6626.644932 | G158: =Données2!BD27 -> 0.5986534906 | H158: =Données2!BD245 -> 0.503414955 | I158: 55644.38159 | J158: 24052.7377 | K158: 18.59041738 | M158: 78949.66329 | N158: 30604.41036 | O158: 75085.76063 | P158: 28981.59435 | Q158: 71213.7336 | R158: 28836.52387 | S158: 67333.58217 | T158: 27827.46226 | U158: 63445.30636 | V158: 26714.7607 | W158: 59548.90617 | X158: 25463.87319 | Y158: 55644.38159 | Z158: 24052.7377 | AA158: 51743.9192 | AB158: 22721.7262 | AC158: 47843.45681 | AD158: 21390.7147 | AF158: =IF(Calculs!$C264=FALSE,0,M158*Calculs!$F264)*SurfaceClimatisée -> 78949.66329 | AG158: =IF(Calculs!$C264=FALSE,0,N158*Calculs!$F264)*SurfaceClimatisée -> 30604.41036 | AH158: =IF(Calculs!$C264=FALSE,0,O158*Calculs!$F264)*SurfaceClimatisée -> 75085.76063 | AI158: =IF(Calculs!$C264=FALSE,0,P158*Calculs!$F264)*SurfaceClimatisée -> 28981.59435 | AJ158: =IF(Calculs!$C264=FALSE,0,Q158*Calculs!$F264)*SurfaceClimatisée -> 71213.7336 | AK158: =IF(Calculs!$C264=FALSE,0,R158*Calculs!$F264)*SurfaceClimatisée -> 28836.52387 | AL158: =IF(Calculs!$C264=FALSE,0,S158*Calculs!$F264)*SurfaceClimatisée -> 67333.58217 | AM158: =IF(Calculs!$C264=FALSE,0,T158*Calculs!$F264)*SurfaceClimatisée -> 27827.46226 | AN158: =IF(Calculs!$C264=FALSE,0,U158*Calculs!$F264)*SurfaceClimatisée -> 63445.30636 | AO158: =IF(Calculs!$C264=FALSE,0,V158*Calculs!$F264)*SurfaceClimatisée -> 26714.7607 | AP158: =IF(Calculs!$C264=FALSE,0,W158*Calculs!$F264)*SurfaceClimatisée -> 59548.90617 | AQ158: =IF(Calculs!$C264=FALSE,0,X158*Calculs!$F264)*SurfaceClimatisée -> 25463.87319 | AR158: =IF(Calculs!$C264=FALSE,0,Y158*Calculs!$F264)*SurfaceClimatisée -> 55644.38159 | AS158: =IF(Calculs!$C264=FALSE,0,Z158*Calculs!$F264)*SurfaceClimatisée -> 24052.7377 | AT158: =IF(Calculs!$C264=FALSE,0,AA158*Calculs!$F264)*SurfaceClimatisée -> 51743.9192 | AU158: =IF(Calculs!$C264=FALSE,0,AB158*Calculs!$F264)*SurfaceClimatisée -> 22721.7262 | AV158: =IF(Calculs!$C264=FALSE,0,AC158*Calculs!$F264)*SurfaceClimatisée -> 47843.45681 | AW158: =IF(Calculs!$C264=FALSE,0,AD158*Calculs!$F264)*SurfaceClimatisée -> 21390.7147 | AY158: 55644.38159 | AZ158: 24052.7377 | BB158: =Hypothèses!T47 -> 3.45 | BC158: Coefficient SEER
B159: Août | C159: 8656.525292 | D159: 8740.900163 | E159: 6917.926027 | F159: 6626.644932 | G159: =Données2!BD28 -> 0.5701745218 | H159: =Données2!BD246 -> 0.4864042944 | I159: 58478.58519 | J159: 25146.13944 | K159: 19.50658377 | M159: 80632.93843 | N159: 30941.66715 | O159: 76959.81123 | P159: 29401.39269 | Q159: 73278.97803 | R159: 29336.29416 | S159: 69590.43882 | T159: 28429.78651 | U159: 65894.19361 | V159: 27439.59087 | W159: 62190.2424 | X159: 26353.80635 | Y159: 58478.58519 | Z159: 25146.13944 | AA159: 54770.78098 | AB159: 23999.41372 | AC159: 51062.97676 | AD159: 22852.688 | AF159: =IF(Calculs!$C265=FALSE,0,M159*Calculs!$F265)*SurfaceClimatisée -> 80632.93843 | AG159: =IF(Calculs!$C265=FALSE,0,N159*Calculs!$F265)*SurfaceClimatisée -> 30941.66715 | AH159: =IF(Calculs!$C265=FALSE,0,O159*Calculs!$F265)*SurfaceClimatisée -> 76959.81123 | AI159: =IF(Calculs!$C265=FALSE,0,P159*Calculs!$F265)*SurfaceClimatisée -> 29401.39269 | AJ159: =IF(Calculs!$C265=FALSE,0,Q159*Calculs!$F265)*SurfaceClimatisée -> 73278.97803 | AK159: =IF(Calculs!$C265=FALSE,0,R159*Calculs!$F265)*SurfaceClimatisée -> 29336.29416 | AL159: =IF(Calculs!$C265=FALSE,0,S159*Calculs!$F265)*SurfaceClimatisée -> 69590.43882 | AM159: =IF(Calculs!$C265=FALSE,0,T159*Calculs!$F265)*SurfaceClimatisée -> 28429.78651 | AN159: =IF(Calculs!$C265=FALSE,0,U159*Calculs!$F265)*SurfaceClimatisée -> 65894.19361 | AO159: =IF(Calculs!$C265=FALSE,0,V159*Calculs!$F265)*SurfaceClimatisée -> 27439.59087 | AP159: =IF(Calculs!$C265=FALSE,0,W159*Calculs!$F265)*SurfaceClimatisée -> 62190.2424 | AQ159: =IF(Calculs!$C265=FALSE,0,X159*Calculs!$F265)*SurfaceClimatisée -> 26353.80635 | AR159: =IF(Calculs!$C265=FALSE,0,Y159*Calculs!$F265)*SurfaceClimatisée -> 58478.58519 | AS159: =IF(Calculs!$C265=FALSE,0,Z159*Calculs!$F265)*SurfaceClimatisée -> 25146.13944 | AT159: =IF(Calculs!$C265=FALSE,0,AA159*Calculs!$F265)*SurfaceClimatisée -> 54770.78098 | AU159: =IF(Calculs!$C265=FALSE,0,AB159*Calculs!$F265)*SurfaceClimatisée -> 23999.41372 | AV159: =IF(Calculs!$C265=FALSE,0,AC159*Calculs!$F265)*SurfaceClimatisée -> 51062.97676 | AW159: =IF(Calculs!$C265=FALSE,0,AD159*Calculs!$F265)*SurfaceClimatisée -> 22852.688 | AY159: 58478.58519 | AZ159: 25146.13944 | BB159: =Calculs!BB157+(Calculs!M134/1000) -> 528.6513892 | BC159: Consommation totale estimée (MWh/an)
B160: Septembre | C160: 8377.28254 | D160: 8458.935642 | E160: 6694.767123 | F160: 6412.882192 | G160: =Données2!BD29 -> 0.5754531836 | H160: =Données2!BD247 -> 0.4779558017 | I160: 59068.52545 | J160: 24909.69129 | K160: 19.58904053 | M160: 80699.85481 | N160: 30306.85484 | O160: 77113.43647 | P160: 28840.88385 | Q160: 73519.49684 | R160: 28794.80646 | S160: 69918.03592 | T160: 27950.45408 | U160: 66309.05372 | V160: 27031.85701 | W160: 62692.55023 | X160: 26025.87876 | Y160: 59068.52545 | Z160: 24909.69129 | AA160: 55448.26131 | AB160: 23848.60843 | AC160: 51827.99718 | AD160: 22787.52557 | AF160: =IF(Calculs!$C266=FALSE,0,M160*Calculs!$F266)*SurfaceClimatisée -> 80699.85481 | AG160: =IF(Calculs!$C266=FALSE,0,N160*Calculs!$F266)*SurfaceClimatisée -> 30306.85484 | AH160: =IF(Calculs!$C266=FALSE,0,O160*Calculs!$F266)*SurfaceClimatisée -> 77113.43647 | AI160: =IF(Calculs!$C266=FALSE,0,P160*Calculs!$F266)*SurfaceClimatisée -> 28840.88385 | AJ160: =IF(Calculs!$C266=FALSE,0,Q160*Calculs!$F266)*SurfaceClimatisée -> 73519.49684 | AK160: =IF(Calculs!$C266=FALSE,0,R160*Calculs!$F266)*SurfaceClimatisée -> 28794.80646 | AL160: =IF(Calculs!$C266=FALSE,0,S160*Calculs!$F266)*SurfaceClimatisée -> 69918.03592 | AM160: =IF(Calculs!$C266=FALSE,0,T160*Calculs!$F266)*SurfaceClimatisée -> 27950.45408 | AN160: =IF(Calculs!$C266=FALSE,0,U160*Calculs!$F266)*SurfaceClimatisée -> 66309.05372 | AO160: =IF(Calculs!$C266=FALSE,0,V160*Calculs!$F266)*SurfaceClimatisée -> 27031.85701 | AP160: =IF(Calculs!$C266=FALSE,0,W160*Calculs!$F266)*SurfaceClimatisée -> 62692.55023 | AQ160: =IF(Calculs!$C266=FALSE,0,X160*Calculs!$F266)*SurfaceClimatisée -> 26025.87876 | AR160: =IF(Calculs!$C266=FALSE,0,Y160*Calculs!$F266)*SurfaceClimatisée -> 59068.52545 | AS160: =IF(Calculs!$C266=FALSE,0,Z160*Calculs!$F266)*SurfaceClimatisée -> 24909.69129 | AT160: =IF(Calculs!$C266=FALSE,0,AA160*Calculs!$F266)*SurfaceClimatisée -> 55448.26131 | AU160: =IF(Calculs!$C266=FALSE,0,AB160*Calculs!$F266)*SurfaceClimatisée -> 23848.60843 | AV160: =IF(Calculs!$C266=FALSE,0,AC160*Calculs!$F266)*SurfaceClimatisée -> 51827.99718 | AW160: =IF(Calculs!$C266=FALSE,0,AD160*Calculs!$F266)*SurfaceClimatisée -> 22787.52557 | AY160: 59068.52545 | AZ160: 24909.69129
B161: Octobre | C161: 8656.525292 | D161: 8740.900163 | E161: 6917.926027 | F161: 6626.644932 | G161: =Données2!BD30 -> 0.5916681381 | H161: =Données2!BD248 -> 0.4882048848 | I161: 63572.5556 | J161: 26401.31442 | K161: 20.98760672 | M161: 86531.18204 | N161: 31919.23839 | O161: 82724.67726 | P161: 30387.09163 | Q161: 78910.19929 | R161: 30361.14911 | S161: 75087.74814 | T161: 29490.36139 | U161: 71257.32381 | V161: 28549.23526 | W161: 67418.9263 | X161: 27524.59078 | Y161: 63572.5556 | Z161: 26401.31442 | AA161: 59730.1715 | AB161: 25327.354 | AC161: 55887.7874 | AD161: 24253.39358 | AF161: =IF(Calculs!$C267=FALSE,0,M161*Calculs!$F267)*SurfaceClimatisée -> 86531.18204 | AG161: =IF(Calculs!$C267=FALSE,0,N161*Calculs!$F267)*SurfaceClimatisée -> 31919.23839 | AH161: =IF(Calculs!$C267=FALSE,0,O161*Calculs!$F267)*SurfaceClimatisée -> 82724.67726 | AI161: =IF(Calculs!$C267=FALSE,0,P161*Calculs!$F267)*SurfaceClimatisée -> 30387.09163 | AJ161: =IF(Calculs!$C267=FALSE,0,Q161*Calculs!$F267)*SurfaceClimatisée -> 78910.19929 | AK161: =IF(Calculs!$C267=FALSE,0,R161*Calculs!$F267)*SurfaceClimatisée -> 30361.14911 | AL161: =IF(Calculs!$C267=FALSE,0,S161*Calculs!$F267)*SurfaceClimatisée -> 75087.74814 | AM161: =IF(Calculs!$C267=FALSE,0,T161*Calculs!$F267)*SurfaceClimatisée -> 29490.36139 | AN161: =IF(Calculs!$C267=FALSE,0,U161*Calculs!$F267)*SurfaceClimatisée -> 71257.32381 | AO161: =IF(Calculs!$C267=FALSE,0,V161*Calculs!$F267)*SurfaceClimatisée -> 28549.23526 | AP161: =IF(Calculs!$C267=FALSE,0,W161*Calculs!$F267)*SurfaceClimatisée -> 67418.9263 | AQ161: =IF(Calculs!$C267=FALSE,0,X161*Calculs!$F267)*SurfaceClimatisée -> 27524.59078 | AR161: =IF(Calculs!$C267=FALSE,0,Y161*Calculs!$F267)*SurfaceClimatisée -> 63572.5556 | AS161: =IF(Calculs!$C267=FALSE,0,Z161*Calculs!$F267)*SurfaceClimatisée -> 26401.31442 | AT161: =IF(Calculs!$C267=FALSE,0,AA161*Calculs!$F267)*SurfaceClimatisée -> 59730.1715 | AU161: =IF(Calculs!$C267=FALSE,0,AB161*Calculs!$F267)*SurfaceClimatisée -> 25327.354 | AV161: =IF(Calculs!$C267=FALSE,0,AC161*Calculs!$F267)*SurfaceClimatisée -> 55887.7874 | AW161: =IF(Calculs!$C267=FALSE,0,AD161*Calculs!$F267)*SurfaceClimatisée -> 24253.39358 | AY161: 63572.5556 | AZ161: 26401.31442
B162: Novembre | C162: 8377.28254 | D162: 8458.935642 | E162: 6694.767123 | F162: 6412.882192 | G162: =Données2!BD31 -> 0.5203551099 | H162: =Données2!BD249 -> 0.4664855904 | I162: 52028.98256 | J162: 23155.05084 | K162: 17.53767982 | M162: 71625.32 | N162: 28759.3297 | O162: 68376.33484 | P162: 27309.18761 | Q162: 65120.52124 | R162: 27214.70224 | S162: 61857.87922 | T162: 26344.31877 | U162: 58588.40876 | V162: 25389.63767 | W162: 55312.10988 | X162: 24334.23446 | Y162: 52028.98256 | Z162: 23155.05084 | AA162: 48749.26946 | AB162: 22037.75743 | AC162: 45469.55636 | AD162: 20920.46401 | AF162: =IF(Calculs!$C268=FALSE,0,M162*Calculs!$F268)*SurfaceClimatisée -> 71625.32 | AG162: =IF(Calculs!$C268=FALSE,0,N162*Calculs!$F268)*SurfaceClimatisée -> 28759.3297 | AH162: =IF(Calculs!$C268=FALSE,0,O162*Calculs!$F268)*SurfaceClimatisée -> 68376.33484 | AI162: =IF(Calculs!$C268=FALSE,0,P162*Calculs!$F268)*SurfaceClimatisée -> 27309.18761 | AJ162: =IF(Calculs!$C268=FALSE,0,Q162*Calculs!$F268)*SurfaceClimatisée -> 65120.52124 | AK162: =IF(Calculs!$C268=FALSE,0,R162*Calculs!$F268)*SurfaceClimatisée -> 27214.70224 | AL162: =IF(Calculs!$C268=FALSE,0,S162*Calculs!$F268)*SurfaceClimatisée -> 61857.87922 | AM162: =IF(Calculs!$C268=FALSE,0,T162*Calculs!$F268)*SurfaceClimatisée -> 26344.31877 | AN162: =IF(Calculs!$C268=FALSE,0,U162*Calculs!$F268)*SurfaceClimatisée -> 58588.40876 | AO162: =IF(Calculs!$C268=FALSE,0,V162*Calculs!$F268)*SurfaceClimatisée -> 25389.63767 | AP162: =IF(Calculs!$C268=FALSE,0,W162*Calculs!$F268)*SurfaceClimatisée -> 55312.10988 | AQ162: =IF(Calculs!$C268=FALSE,0,X162*Calculs!$F268)*SurfaceClimatisée -> 24334.23446 | AR162: =IF(Calculs!$C268=FALSE,0,Y162*Calculs!$F268)*SurfaceClimatisée -> 52028.98256 | AS162: =IF(Calculs!$C268=FALSE,0,Z162*Calculs!$F268)*SurfaceClimatisée -> 23155.05084 | AT162: =IF(Calculs!$C268=FALSE,0,AA162*Calculs!$F268)*SurfaceClimatisée -> 48749.26946 | AU162: =IF(Calculs!$C268=FALSE,0,AB162*Calculs!$F268)*SurfaceClimatisée -> 22037.75743 | AV162: =IF(Calculs!$C268=FALSE,0,AC162*Calculs!$F268)*SurfaceClimatisée -> 45469.55636 | AW162: =IF(Calculs!$C268=FALSE,0,AD162*Calculs!$F268)*SurfaceClimatisée -> 20920.46401 | AY162: 52028.98256 | AZ162: 23155.05084
B163: Décembre | C163: 8656.525292 | D163: 8740.900163 | E163: 6917.926027 | F163: 6626.644932 | G163: =Données2!BD32 -> 0.5402977698 | H163: =Données2!BD250 -> 0.4694857068 | I163: 49581.44575 | J163: 22930.1739 | K163: 16.91430363 | M163: 70615.93397 | N163: 29384.73483 | O163: 67128.51884 | P163: 27843.48657 | Q163: 63633.77055 | R163: 27664.15062 | S163: 60131.68909 | T163: 26678.34226 | U163: 56622.27448 | V163: 25583.68705 | W163: 53105.5267 | X163: 24345.59459 | Y163: 49581.44575 | Z163: 22930.1739 | AA163: 46061.03139 | AB163: 21603.41732 | AC163: 42540.61703 | AD163: 20276.66075 | AF163: =IF(Calculs!$C269=FALSE,0,M163*Calculs!$F269)*SurfaceClimatisée -> 70615.93397 | AG163: =IF(Calculs!$C269=FALSE,0,N163*Calculs!$F269)*SurfaceClimatisée -> 29384.73483 | AH163: =IF(Calculs!$C269=FALSE,0,O163*Calculs!$F269)*SurfaceClimatisée -> 67128.51884 | AI163: =IF(Calculs!$C269=FALSE,0,P163*Calculs!$F269)*SurfaceClimatisée -> 27843.48657 | AJ163: =IF(Calculs!$C269=FALSE,0,Q163*Calculs!$F269)*SurfaceClimatisée -> 63633.77055 | AK163: =IF(Calculs!$C269=FALSE,0,R163*Calculs!$F269)*SurfaceClimatisée -> 27664.15062 | AL163: =IF(Calculs!$C269=FALSE,0,S163*Calculs!$F269)*SurfaceClimatisée -> 60131.68909 | AM163: =IF(Calculs!$C269=FALSE,0,T163*Calculs!$F269)*SurfaceClimatisée -> 26678.34226 | AN163: =IF(Calculs!$C269=FALSE,0,U163*Calculs!$F269)*SurfaceClimatisée -> 56622.27448 | AO163: =IF(Calculs!$C269=FALSE,0,V163*Calculs!$F269)*SurfaceClimatisée -> 25583.68705 | AP163: =IF(Calculs!$C269=FALSE,0,W163*Calculs!$F269)*SurfaceClimatisée -> 53105.5267 | AQ163: =IF(Calculs!$C269=FALSE,0,X163*Calculs!$F269)*SurfaceClimatisée -> 24345.59459 | AR163: =IF(Calculs!$C269=FALSE,0,Y163*Calculs!$F269)*SurfaceClimatisée -> 49581.44575 | AS163: =IF(Calculs!$C269=FALSE,0,Z163*Calculs!$F269)*SurfaceClimatisée -> 22930.1739 | AT163: =IF(Calculs!$C269=FALSE,0,AA163*Calculs!$F269)*SurfaceClimatisée -> 46061.03139 | AU163: =IF(Calculs!$C269=FALSE,0,AB163*Calculs!$F269)*SurfaceClimatisée -> 21603.41732 | AV163: =IF(Calculs!$C269=FALSE,0,AC163*Calculs!$F269)*SurfaceClimatisée -> 42540.61703 | AW163: =IF(Calculs!$C269=FALSE,0,AD163*Calculs!$F269)*SurfaceClimatisée -> 20276.66075 | AY163: 49581.44575 | AZ163: 22930.1739
I164: =SUM(I152:I163) -> 625115.2751 | J164: =SUM(J152:J163) -> 281742.7176 | AF164: =SUM(AF152:AF163) -> 882946.85 | AG164: 359220.9788 | AH164: 840199.4857 | AI164: 341247.227 | AJ164: 797362.2955 | AK164: 338563.273 | AL164: 754435.2793 | AM164: 326691.1207 | AN164: 711418.4372 | AO164: 313477.3129 | AP164: 668311.7691 | AQ164: 298607.4856 | AR164: 625115.2751 | AS164: 281742.7176 | AT164: 581963.6941 | AU164: 265875.4199 | AV164: 538812.1131 | AW164: 250008.1223 | AY164: =SUM(AY152:AY163) -> 625115.2751 | AZ164: =SUM(AZ152:AZ163) -> 281742.7176
B165: Conclusion Ventilation
C167: APPORTS INTERNES | H167: Puissance / jour (W) | J167: Nb d'heures d'inconfort (sans clim) | K167: Plage | L167: Pourcentage d'inconfort
C168: Sensible | D168: Latent | E168: Eclairage | F168: Equipement | G168: Sensible | I168: Surchauffe moyenne mensuelle (°C)
B169: Janvier | C169: =I103 -> 6147.951151 | D169: =J103 -> 11249.4743 | E169: =E152 -> 6917.926027 | F169: =F152 -> 6626.644932 | G169: =IF(SUM(G25,F86,$C169,$E169:$F169)>0,SUM(G25,F86,$C169,$E169:$F169),0) -> 57237.832 | H169: =(G169/(VMOIS($B169)*24))*1000 -> 76932.5699 | I169: =H169/($C$182*$C$183+Données1!AD229*1005/3600*$C$184*$F$182) -> 3.070370801 | J169: =C249 -> 403 | K169: =C255 -> 11h-23h | L169: =J169/(VMOIS(B169)*24) -> 0.5416666667
B170: Février | C170: 5602.041035 | D170: 10111.7626 | E170: 6248.449315 | F170: 5985.356712 | G170: 52662.89531 | H170: 78367.40373 | I170: =H170/($C$182*$C$183+Données1!AD230*1005/3600*$C$184*$F$182) -> 3.127124495 | J170: =D249 -> 364 | K170: =D255 -> 11h-23h | L170: =J170/(VMOIS(B170)*24) -> 0.5416666667
B171: Mars | C171: 6178.571707 | D171: 11218.85375 | E171: 6917.926027 | F171: 6626.644932 | G171: 59809.38416 | H171: 80388.9572 | I171: =H171/($C$182*$C$183+Données1!AD231*1005/3600*$C$184*$F$182) -> 3.208019832 | J171: =E249 -> 403 | K171: =E255 -> 11h-23h | L171: 0.5416666667
B172: Avril | C172: 5788.435591 | D172: 11047.78259 | E172: 6694.767123 | F172: 6412.882192 | G172: 58508.86243 | H172: 81262.30893 | I172: =H172/($C$182*$C$183+Données1!AD232*1005/3600*$C$184*$F$182) -> 3.24478524 | J172: =F249 -> 420 | K172: =F255 -> 11h-0h | L172: 0.5833333333
B173: Mai | C173: 5553.250254 | D173: 11844.1752 | E173: 6917.926027 | F173: 6626.644932 | G173: 58560.43832 | H173: 78710.26656 | I173: =H173/($C$182*$C$183+Données1!AD233*1005/3600*$C$184*$F$182) -> 3.146850283 | J173: =G249 -> 465 | K173: =G255 -> 10h-0h | L173: 0.625
B174: Juin | C174: 6151.63746 | D174: 10684.58072 | E174: 6694.767123 | F174: 6412.882192 | G174: 60301.10065 | H174: 83751.52868 | I174: =H174/($C$182*$C$183+Données1!AD234*1005/3600*$C$184*$F$182) -> 3.340410781 | J174: =H249 -> 390 | K174: =H255 -> 11h-23h | L174: 0.5416666667
B175: Juillet | C175: 5990.22948 | D175: 11407.19597 | E175: 6917.926027 | F175: 6626.644932 | G175: 66554.9111 | H175: 89455.52567 | I175: =H175/($C$182*$C$183+Données1!AD235*1005/3600*$C$184*$F$182) -> 3.571844414 | J175: =I249 -> 434 | K175: =I255 -> 11h-0h | L175: 0.5833333333
B176: Août | C176: 5458.101077 | D176: 11939.32438 | E176: 6917.926027 | F176: 6626.644932 | G176: 69741.02764 | H176: 93737.94038 | I176: =H176/($C$182*$C$183+Données1!AD236*1005/3600*$C$184*$F$182) -> 3.748697378 | J176: =J249 -> 465 | K176: =J255 -> 10h-0h | L176: 0.625
B177: Septembre | C177: 5195.020914 | D177: 11641.19727 | E177: 6694.767123 | F177: 6412.882192 | G177: 70491.26541 | H177: 97904.5353 | I177: =H177/($C$182*$C$183+Données1!AD237*1005/3600*$C$184*$F$182) -> 3.916345153 | J177: =K249 -> 480 | K177: =K255 -> 10h-1h | L177: 0.6666666667
B178: Octobre | C178: 5074.021732 | D178: 12323.40372 | E178: 6917.926027 | F178: 6626.644932 | G178: 72798.41443 | H178: 97847.33123 | I178: =H178/($C$182*$C$183+Données1!AD238*1005/3600*$C$184*$F$182) -> 3.91736625 | J178: =L249 -> 496 | K178: =L255 -> 10h-1h | L178: 0.6666666667
B179: Novembre | C179: 5696.494142 | D179: 11139.72404 | E179: 6694.767123 | F179: 6412.882192 | G179: 68172.52263 | H179: 94684.0592 | I179: =H179/($C$182*$C$183+Données1!AD239*1005/3600*$C$184*$F$182) -> 3.781779597 | J179: =M249 -> 420 | K179: =M255 -> 11h-0h | L179: 0.5833333333
B180: Décembre | C180: 6002.868927 | D180: 11394.55653 | E180: 6917.926027 | F180: 6626.644932 | G180: 61477.05413 | H180: 82630.44909 | I180: =H180/($C$182*$C$183+Données1!AD240*1005/3600*$C$184*$F$182) -> 3.299203632 | J180: =N249 -> 434 | K180: =N255 -> 11h-0h | L180: 0.5833333333
B182: U_bat | C182: =C47 -> 1.811249709 | E182: Renouv Air | F182: =VLOOKUP(PotentielVN,TablePotentielVN,2,FALSE) -> 5
B183: Surf_enveloppe | C183: =SUM(Calculs!C43:C45) -> 3346.218499 | E183: Période omega | F183: =PI()/12 -> 0.2617993878
B184: Volume_bat | C184: =Calculs!C58 -> 11574.9
B186: Text | C186: Janvier | D186: Février | E186: Mars | F186: Avril | G186: Mai | H186: Juin | I186: Juillet | J186: Août | K186: Septembre | L186: Octobre | M186: Novembre | N186: Décembre
B187: 0 | C187: =IF(Station="Saint-Denis",Données1!C296,Données1!C323) -> 26.24193548 | D187: =IF(Station="Saint-Denis",Données1!D296,Données1!D323) -> 26.23571429 | E187: =IF(Station="Saint-Denis",Données1!E296,Données1!E323) -> 26.42903226 | F187: =IF(Station="Saint-Denis",Données1!F296,Données1!F323) -> 26.3925 | G187: =IF(Station="Saint-Denis",Données1!G296,Données1!G323) -> 26.75403226 | H187: =IF(Station="Saint-Denis",Données1!H296,Données1!H323) -> 25.56833333 | I187: =IF(Station="Saint-Denis",Données1!I296,Données1!I323) -> 26.06209677 | J187: =IF(Station="Saint-Denis",Données1!J296,Données1!J323) -> 26.58790323 | K187: =IF(Station="Saint-Denis",Données1!K296,Données1!K323) -> 26.40333333 | L187: =IF(Station="Saint-Denis",Données1!L296,Données1!L323) -> 26.82177419 | M187: =IF(Station="Saint-Denis",Données1!M296,Données1!M323) -> 26.04333333 | N187: =IF(Station="Saint-Denis",Données1!N296,Données1!N323) -> 26.03387097
B188: 1 | C188: =IF(Station="Saint-Denis",Données1!C297,Données1!C324) -> 25.91532258 | D188: =IF(Station="Saint-Denis",Données1!D297,Données1!D324) -> 25.80892857 | E188: =IF(Station="Saint-Denis",Données1!E297,Données1!E324) -> 25.96854839 | F188: =IF(Station="Saint-Denis",Données1!F297,Données1!F324) -> 25.96 | G188: =IF(Station="Saint-Denis",Données1!G297,Données1!G324) -> 26.29516129 | H188: =IF(Station="Saint-Denis",Données1!H297,Données1!H324) -> 25.15083333 | I188: =IF(Station="Saint-Denis",Données1!I297,Données1!I324) -> 25.47258065 | J188: =IF(Station="Saint-Denis",Données1!J297,Données1!J324) -> 25.89919355 | K188: =IF(Station="Saint-Denis",Données1!K297,Données1!K324) -> 25.91583333 | L188: =IF(Station="Saint-Denis",Données1!L297,Données1!L324) -> 26.13145161 | M188: =IF(Station="Saint-Denis",Données1!M297,Données1!M324) -> 25.5925 | N188: =IF(Station="Saint-Denis",Données1!N297,Données1!N324) -> 25.71209677
B189: 2 | C189: =IF(Station="Saint-Denis",Données1!C298,Données1!C325) -> 25.50483871 | D189: =IF(Station="Saint-Denis",Données1!D298,Données1!D325) -> 25.43035714 | E189: =IF(Station="Saint-Denis",Données1!E298,Données1!E325) -> 25.43870968 | F189: =IF(Station="Saint-Denis",Données1!F298,Données1!F325) -> 25.5775 | G189: =IF(Station="Saint-Denis",Données1!G298,Données1!G325) -> 25.88790323 | H189: =IF(Station="Saint-Denis",Données1!H298,Données1!H325) -> 24.73666667 | I189: =IF(Station="Saint-Denis",Données1!I298,Données1!I325) -> 24.94193548 | J189: =IF(Station="Saint-Denis",Données1!J298,Données1!J325) -> 25.33225806 | K189: =IF(Station="Saint-Denis",Données1!K298,Données1!K325) -> 25.37083333 | L189: =IF(Station="Saint-Denis",Données1!L298,Données1!L325) -> 25.575 | M189: =IF(Station="Saint-Denis",Données1!M298,Données1!M325) -> 25.04583333 | N189: =IF(Station="Saint-Denis",Données1!N298,Données1!N325) -> 25.22096774
B190: 3 | C190: =IF(Station="Saint-Denis",Données1!C299,Données1!C326) -> 25.0983871 | D190: =IF(Station="Saint-Denis",Données1!D299,Données1!D326) -> 25.13214286 | E190: =IF(Station="Saint-Denis",Données1!E299,Données1!E326) -> 25.04435484 | F190: =IF(Station="Saint-Denis",Données1!F299,Données1!F326) -> 25.27833333 | G190: =IF(Station="Saint-Denis",Données1!G299,Données1!G326) -> 25.59596774 | H190: =IF(Station="Saint-Denis",Données1!H299,Données1!H326) -> 24.33166667 | I190: =IF(Station="Saint-Denis",Données1!I299,Données1!I326) -> 24.44193548 | J190: =IF(Station="Saint-Denis",Données1!J299,Données1!J326) -> 24.75887097 | K190: =IF(Station="Saint-Denis",Données1!K299,Données1!K326) -> 24.85083333 | L190: =IF(Station="Saint-Denis",Données1!L299,Données1!L326) -> 25.02016129 | M190: =IF(Station="Saint-Denis",Données1!M299,Données1!M326) -> 24.51083333 | N190: =IF(Station="Saint-Denis",Données1!N299,Données1!N326) -> 24.77983871
B191: 4 | C191: =IF(Station="Saint-Denis",Données1!C300,Données1!C327) -> 24.83790323 | D191: =IF(Station="Saint-Denis",Données1!D300,Données1!D327) -> 24.88392857 | E191: =IF(Station="Saint-Denis",Données1!E300,Données1!E327) -> 24.86935484 | F191: =IF(Station="Saint-Denis",Données1!F300,Données1!F327) -> 24.94916667 | G191: =IF(Station="Saint-Denis",Données1!G300,Données1!G327) -> 25.41129032 | H191: =IF(Station="Saint-Denis",Données1!H300,Données1!H327) -> 23.935 | I191: =IF(Station="Saint-Denis",Données1!I300,Données1!I327) -> 24.10483871 | J191: =IF(Station="Saint-Denis",Données1!J300,Données1!J327) -> 24.39032258 | K191: =IF(Station="Saint-Denis",Données1!K300,Données1!K327) -> 24.54833333 | L191: =IF(Station="Saint-Denis",Données1!L300,Données1!L327) -> 24.69435484 | M191: =IF(Station="Saint-Denis",Données1!M300,Données1!M327) -> 24.125 | N191: =IF(Station="Saint-Denis",Données1!N300,Données1!N327) -> 24.4983871
B192: 5 | C192: =IF(Station="Saint-Denis",Données1!C301,Données1!C328) -> 24.68225806 | D192: =IF(Station="Saint-Denis",Données1!D301,Données1!D328) -> 24.69910714 | E192: =IF(Station="Saint-Denis",Données1!E301,Données1!E328) -> 24.68387097 | F192: =IF(Station="Saint-Denis",Données1!F301,Données1!F328) -> 24.68083333 | G192: =IF(Station="Saint-Denis",Données1!G301,Données1!G328) -> 25.25725806 | H192: =IF(Station="Saint-Denis",Données1!H301,Données1!H328) -> 23.65166667 | I192: =IF(Station="Saint-Denis",Données1!I301,Données1!I328) -> 23.7516129 | J192: =IF(Station="Saint-Denis",Données1!J301,Données1!J328) -> 24.13225806 | K192: =IF(Station="Saint-Denis",Données1!K301,Données1!K328) -> 24.215 | L192: =IF(Station="Saint-Denis",Données1!L301,Données1!L328) -> 24.42177419 | M192: =IF(Station="Saint-Denis",Données1!M301,Données1!M328) -> 23.805 | N192: =IF(Station="Saint-Denis",Données1!N301,Données1!N328) -> 24.24516129
B193: 6 | C193: =IF(Station="Saint-Denis",Données1!C302,Données1!C329) -> 24.59032258 | D193: =IF(Station="Saint-Denis",Données1!D302,Données1!D329) -> 24.52857143 | E193: =IF(Station="Saint-Denis",Données1!E302,Données1!E329) -> 24.53790323 | F193: =IF(Station="Saint-Denis",Données1!F302,Données1!F329) -> 24.54 | G193: =IF(Station="Saint-Denis",Données1!G302,Données1!G329) -> 25.06451613 | H193: =IF(Station="Saint-Denis",Données1!H302,Données1!H329) -> 23.46 | I193: =IF(Station="Saint-Denis",Données1!I302,Données1!I329) -> 23.43790323 | J193: =IF(Station="Saint-Denis",Données1!J302,Données1!J329) -> 23.99596774 | K193: =IF(Station="Saint-Denis",Données1!K302,Données1!K329) -> 23.94333333 | L193: =IF(Station="Saint-Denis",Données1!L302,Données1!L329) -> 24.18467742 | M193: =IF(Station="Saint-Denis",Données1!M302,Données1!M329) -> 23.56166667 | N193: =IF(Station="Saint-Denis",Données1!N302,Données1!N329) -> 24.05725806
B194: 7 | C194: =IF(Station="Saint-Denis",Données1!C303,Données1!C330) -> 24.53709677 | D194: =IF(Station="Saint-Denis",Données1!D303,Données1!D330) -> 24.475 | E194: =IF(Station="Saint-Denis",Données1!E303,Données1!E330) -> 24.57903226 | F194: =IF(Station="Saint-Denis",Données1!F303,Données1!F330) -> 24.53083333 | G194: =IF(Station="Saint-Denis",Données1!G303,Données1!G330) -> 25.06854839 | H194: =IF(Station="Saint-Denis",Données1!H303,Données1!H330) -> 23.47666667 | I194: =IF(Station="Saint-Denis",Données1!I303,Données1!I330) -> 23.41048387 | J194: =IF(Station="Saint-Denis",Données1!J303,Données1!J330) -> 23.99274194 | K194: =IF(Station="Saint-Denis",Données1!K303,Données1!K330) -> 23.91583333 | L194: =IF(Station="Saint-Denis",Données1!L303,Données1!L330) -> 24.24274194 | M194: =IF(Station="Saint-Denis",Données1!M303,Données1!M330) -> 23.61666667 | N194: =IF(Station="Saint-Denis",Données1!N303,Données1!N330) -> 24.05967742
B195: 8 | C195: =IF(Station="Saint-Denis",Données1!C304,Données1!C331) -> 24.99516129 | D195: =IF(Station="Saint-Denis",Données1!D304,Données1!D331) -> 24.90267857 | E195: =IF(Station="Saint-Denis",Données1!E304,Données1!E331) -> 24.98064516 | F195: =IF(Station="Saint-Denis",Données1!F304,Données1!F331) -> 25.15166667 | G195: =IF(Station="Saint-Denis",Données1!G304,Données1!G331) -> 25.78870968 | H195: =IF(Station="Saint-Denis",Données1!H304,Données1!H331) -> 24.47166667 | I195: =IF(Station="Saint-Denis",Données1!I304,Données1!I331) -> 24.31612903 | J195: =IF(Station="Saint-Denis",Données1!J304,Données1!J331) -> 24.78145161 | K195: =IF(Station="Saint-Denis",Données1!K304,Données1!K331) -> 24.92916667 | L195: =IF(Station="Saint-Denis",Données1!L304,Données1!L331) -> 25.37177419 | M195: =IF(Station="Saint-Denis",Données1!M304,Données1!M331) -> 24.58083333 | N195: =IF(Station="Saint-Denis",Données1!N304,Données1!N331) -> 24.76370968
B196: 9 | C196: =IF(Station="Saint-Denis",Données1!C305,Données1!C332) -> 25.86290323 | D196: =IF(Station="Saint-Denis",Données1!D305,Données1!D332) -> 25.66785714 | E196: =IF(Station="Saint-Denis",Données1!E305,Données1!E332) -> 25.81048387 | F196: =IF(Station="Saint-Denis",Données1!F305,Données1!F332) -> 26.14416667 | G196: =IF(Station="Saint-Denis",Données1!G305,Données1!G332) -> 26.78951613 | H196: =IF(Station="Saint-Denis",Données1!H305,Données1!H332) -> 25.69166667 | I196: =IF(Station="Saint-Denis",Données1!I305,Données1!I332) -> 25.60241935 | J196: =IF(Station="Saint-Denis",Données1!J305,Données1!J332) -> 26.15967742 | K196: =IF(Station="Saint-Denis",Données1!K305,Données1!K332) -> 26.44833333 | L196: =IF(Station="Saint-Denis",Données1!L305,Données1!L332) -> 26.9016129 | M196: =IF(Station="Saint-Denis",Données1!M305,Données1!M332) -> 25.9825 | N196: =IF(Station="Saint-Denis",Données1!N305,Données1!N332) -> 25.93709677
B197: 10 | C197: =IF(Station="Saint-Denis",Données1!C306,Données1!C333) -> 26.86451613 | D197: =IF(Station="Saint-Denis",Données1!D306,Données1!D333) -> 26.68125 | E197: =IF(Station="Saint-Denis",Données1!E306,Données1!E333) -> 26.8 | F197: =IF(Station="Saint-Denis",Données1!F306,Données1!F333) -> 27.15166667 | G197: =IF(Station="Saint-Denis",Données1!G306,Données1!G333) -> 27.81693548 | H197: =IF(Station="Saint-Denis",Données1!H306,Données1!H333) -> 26.9725 | I197: =IF(Station="Saint-Denis",Données1!I306,Données1!I333) -> 26.91935484 | J197: =IF(Station="Saint-Denis",Données1!J306,Données1!J333) -> 27.70564516 | K197: =IF(Station="Saint-Denis",Données1!K306,Données1!K333) -> 28.03583333 | L197: =IF(Station="Saint-Denis",Données1!L306,Données1!L333) -> 28.40806452 | M197: =IF(Station="Saint-Denis",Données1!M306,Données1!M333) -> 27.39166667 | N197: =IF(Station="Saint-Denis",Données1!N306,Données1!N333) -> 27.2266129
B198: 11 | C198: =IF(Station="Saint-Denis",Données1!C307,Données1!C334) -> 27.88387097 | D198: =IF(Station="Saint-Denis",Données1!D307,Données1!D334) -> 27.69464286 | E198: =IF(Station="Saint-Denis",Données1!E307,Données1!E334) -> 27.73629032 | F198: =IF(Station="Saint-Denis",Données1!F307,Données1!F334) -> 28.175 | G198: =IF(Station="Saint-Denis",Données1!G307,Données1!G334) -> 28.84596774 | H198: =IF(Station="Saint-Denis",Données1!H307,Données1!H334) -> 28.1475 | I198: =IF(Station="Saint-Denis",Données1!I307,Données1!I334) -> 28.30564516 | J198: =IF(Station="Saint-Denis",Données1!J307,Données1!J334) -> 29.1516129 | K198: =IF(Station="Saint-Denis",Données1!K307,Données1!K334) -> 29.50333333 | L198: =IF(Station="Saint-Denis",Données1!L307,Données1!L334) -> 29.85967742 | M198: =IF(Station="Saint-Denis",Données1!M307,Données1!M334) -> 28.715 | N198: =IF(Station="Saint-Denis",Données1!N307,Données1!N334) -> 28.35241935
B199: 12 | C199: =IF(Station="Saint-Denis",Données1!C308,Données1!C335) -> 28.71209677 | D199: =IF(Station="Saint-Denis",Données1!D308,Données1!D335) -> 28.52142857 | E199: =IF(Station="Saint-Denis",Données1!E308,Données1!E335) -> 28.55 | F199: =IF(Station="Saint-Denis",Données1!F308,Données1!F335) -> 28.92083333 | G199: =IF(Station="Saint-Denis",Données1!G308,Données1!G335) -> 29.6766129 | H199: =IF(Station="Saint-Denis",Données1!H308,Données1!H335) -> 29.155 | I199: =IF(Station="Saint-Denis",Données1!I308,Données1!I335) -> 29.47822581 | J199: =IF(Station="Saint-Denis",Données1!J308,Données1!J335) -> 30.35483871 | K199: =IF(Station="Saint-Denis",Données1!K308,Données1!K335) -> 30.69 | L199: =IF(Station="Saint-Denis",Données1!L308,Données1!L335) -> 31.06370968 | M199: =IF(Station="Saint-Denis",Données1!M308,Données1!M335) -> 29.8375 | N199: =IF(Station="Saint-Denis",Données1!N308,Données1!N335) -> 29.30403226
B200: 13 | C200: =IF(Station="Saint-Denis",Données1!C309,Données1!C336) -> 29.37741935 | D200: =IF(Station="Saint-Denis",Données1!D309,Données1!D336) -> 29.19107143 | E200: =IF(Station="Saint-Denis",Données1!E309,Données1!E336) -> 29.13951613 | F200: =IF(Station="Saint-Denis",Données1!F309,Données1!F336) -> 29.58583333 | G200: =IF(Station="Saint-Denis",Données1!G309,Données1!G336) -> 30.29112903 | H200: =IF(Station="Saint-Denis",Données1!H309,Données1!H336) -> 29.79916667 | I200: =IF(Station="Saint-Denis",Données1!I309,Données1!I336) -> 30.34677419 | J200: =IF(Station="Saint-Denis",Données1!J309,Données1!J336) -> 31.33306452 | K200: =IF(Station="Saint-Denis",Données1!K309,Données1!K336) -> 31.60916667 | L200: =IF(Station="Saint-Denis",Données1!L309,Données1!L336) -> 32.01048387 | M200: =IF(Station="Saint-Denis",Données1!M309,Données1!M336) -> 30.76083333 | N200: =IF(Station="Saint-Denis",Données1!N309,Données1!N336) -> 29.96290323
B201: 14 | C201: =IF(Station="Saint-Denis",Données1!C310,Données1!C337) -> 29.87419355 | D201: =IF(Station="Saint-Denis",Données1!D310,Données1!D337) -> 29.64464286 | E201: =IF(Station="Saint-Denis",Données1!E310,Données1!E337) -> 29.49596774 | F201: =IF(Station="Saint-Denis",Données1!F310,Données1!F337) -> 30.06833333 | G201: =IF(Station="Saint-Denis",Données1!G310,Données1!G337) -> 30.69596774 | H201: =IF(Station="Saint-Denis",Données1!H310,Données1!H337) -> 30.18583333 | I201: =IF(Station="Saint-Denis",Données1!I310,Données1!I337) -> 30.94435484 | J201: =IF(Station="Saint-Denis",Données1!J310,Données1!J337) -> 31.98064516 | K201: =IF(Station="Saint-Denis",Données1!K310,Données1!K337) -> 32.23833333 | L201: =IF(Station="Saint-Denis",Données1!L310,Données1!L337) -> 32.66532258 | M201: =IF(Station="Saint-Denis",Données1!M310,Données1!M337) -> 31.3825 | N201: =IF(Station="Saint-Denis",Données1!N310,Données1!N337) -> 30.53951613
B202: 15 | C202: =IF(Station="Saint-Denis",Données1!C311,Données1!C338) -> 30.0766129 | D202: =IF(Station="Saint-Denis",Données1!D311,Données1!D338) -> 29.83660714 | E202: =IF(Station="Saint-Denis",Données1!E311,Données1!E338) -> 29.69919355 | F202: =IF(Station="Saint-Denis",Données1!F311,Données1!F338) -> 30.27333333 | G202: =IF(Station="Saint-Denis",Données1!G311,Données1!G338) -> 30.83951613 | H202: =IF(Station="Saint-Denis",Données1!H311,Données1!H338) -> 30.4225 | I202: =IF(Station="Saint-Denis",Données1!I311,Données1!I338) -> 31.39919355 | J202: =IF(Station="Saint-Denis",Données1!J311,Données1!J338) -> 32.28145161 | K202: =IF(Station="Saint-Denis",Données1!K311,Données1!K338) -> 32.54666667 | L202: =IF(Station="Saint-Denis",Données1!L311,Données1!L338) -> 32.99112903 | M202: =IF(Station="Saint-Denis",Données1!M311,Données1!M338) -> 31.63916667 | N202: =IF(Station="Saint-Denis",Données1!N311,Données1!N338) -> 30.92096774
B203: 16 | C203: =IF(Station="Saint-Denis",Données1!C312,Données1!C339) -> 30.06774194 | D203: =IF(Station="Saint-Denis",Données1!D312,Données1!D339) -> 29.90267857 | E203: =IF(Station="Saint-Denis",Données1!E312,Données1!E339) -> 29.82177419 | F203: =IF(Station="Saint-Denis",Données1!F312,Données1!F339) -> 30.33166667 | G203: =IF(Station="Saint-Denis",Données1!G312,Données1!G339) -> 30.79032258 | H203: =IF(Station="Saint-Denis",Données1!H312,Données1!H339) -> 30.41583333 | I203: =IF(Station="Saint-Denis",Données1!I312,Données1!I339) -> 31.43629032 | J203: =IF(Station="Saint-Denis",Données1!J312,Données1!J339) -> 32.29193548 | K203: =IF(Station="Saint-Denis",Données1!K312,Données1!K339) -> 32.52333333 | L203: =IF(Station="Saint-Denis",Données1!L312,Données1!L339) -> 32.95483871 | M203: =IF(Station="Saint-Denis",Données1!M312,Données1!M339) -> 31.55 | N203: =IF(Station="Saint-Denis",Données1!N312,Données1!N339) -> 30.9516129
B204: 17 | C204: =IF(Station="Saint-Denis",Données1!C313,Données1!C340) -> 29.75483871 | D204: =IF(Station="Saint-Denis",Données1!D313,Données1!D340) -> 29.69196429 | E204: =IF(Station="Saint-Denis",Données1!E313,Données1!E340) -> 29.68870968 | F204: =IF(Station="Saint-Denis",Données1!F313,Données1!F340) -> 30.0975 | G204: =IF(Station="Saint-Denis",Données1!G313,Données1!G340) -> 30.53790323 | H204: =IF(Station="Saint-Denis",Données1!H313,Données1!H340) -> 30.07416667 | I204: =IF(Station="Saint-Denis",Données1!I313,Données1!I340) -> 31.10322581 | J204: =IF(Station="Saint-Denis",Données1!J313,Données1!J340) -> 31.83709677 | K204: =IF(Station="Saint-Denis",Données1!K313,Données1!K340) -> 32.04666667 | L204: =IF(Station="Saint-Denis",Données1!L313,Données1!L340) -> 32.43145161 | M204: =IF(Station="Saint-Denis",Données1!M313,Données1!M340) -> 31.10916667 | N204: =IF(Station="Saint-Denis",Données1!N313,Données1!N340) -> 30.54354839
B205: 18 | C205: =IF(Station="Saint-Denis",Données1!C314,Données1!C341) -> 29.21209677 | D205: =IF(Station="Saint-Denis",Données1!D314,Données1!D341) -> 29.21339286 | E205: =IF(Station="Saint-Denis",Données1!E314,Données1!E341) -> 29.25564516 | F205: =IF(Station="Saint-Denis",Données1!F314,Données1!F341) -> 29.56416667 | G205: =IF(Station="Saint-Denis",Données1!G314,Données1!G341) -> 29.96774194 | H205: =IF(Station="Saint-Denis",Données1!H314,Données1!H341) -> 29.47166667 | I205: =IF(Station="Saint-Denis",Données1!I314,Données1!I341) -> 30.46048387 | J205: =IF(Station="Saint-Denis",Données1!J314,Données1!J341) -> 31.05645161 | K205: =IF(Station="Saint-Denis",Données1!K314,Données1!K341) -> 31.17666667 | L205: =IF(Station="Saint-Denis",Données1!L314,Données1!L341) -> 31.49354839 | M205: =IF(Station="Saint-Denis",Données1!M314,Données1!M341) -> 30.29166667 | N205: =IF(Station="Saint-Denis",Données1!N314,Données1!N341) -> 29.77177419
B206: 19 | C206: =IF(Station="Saint-Denis",Données1!C315,Données1!C342) -> 28.52258065 | D206: =IF(Station="Saint-Denis",Données1!D315,Données1!D342) -> 28.62053571 | E206: =IF(Station="Saint-Denis",Données1!E315,Données1!E342) -> 28.63064516 | F206: =IF(Station="Saint-Denis",Données1!F315,Données1!F342) -> 28.91083333 | G206: =IF(Station="Saint-Denis",Données1!G315,Données1!G342) -> 29.28306452 | H206: =IF(Station="Saint-Denis",Données1!H315,Données1!H342) -> 28.59666667 | I206: =IF(Station="Saint-Denis",Données1!I315,Données1!I342) -> 29.50645161 | J206: =IF(Station="Saint-Denis",Données1!J315,Données1!J342) -> 30.1 | K206: =IF(Station="Saint-Denis",Données1!K315,Données1!K342) -> 30.10416667 | L206: =IF(Station="Saint-Denis",Données1!L315,Données1!L342) -> 30.41048387 | M206: =IF(Station="Saint-Denis",Données1!M315,Données1!M342) -> 29.31833333 | N206: =IF(Station="Saint-Denis",Données1!N315,Données1!N342) -> 29.00645161
B207: 20 | C207: =IF(Station="Saint-Denis",Données1!C316,Données1!C343) -> 27.99596774 | D207: =IF(Station="Saint-Denis",Données1!D316,Données1!D343) -> 28.08214286 | E207: =IF(Station="Saint-Denis",Données1!E316,Données1!E343) -> 28.17903226 | F207: =IF(Station="Saint-Denis",Données1!F316,Données1!F343) -> 28.29583333 | G207: =IF(Station="Saint-Denis",Données1!G316,Données1!G343) -> 28.72983871 | H207: =IF(Station="Saint-Denis",Données1!H316,Données1!H343) -> 27.9425 | I207: =IF(Station="Saint-Denis",Données1!I316,Données1!I343) -> 28.77903226 | J207: =IF(Station="Saint-Denis",Données1!J316,Données1!J343) -> 29.33629032 | K207: =IF(Station="Saint-Denis",Données1!K316,Données1!K343) -> 29.28666667 | L207: =IF(Station="Saint-Denis",Données1!L316,Données1!L343) -> 29.625 | M207: =IF(Station="Saint-Denis",Données1!M316,Données1!M343) -> 28.6 | N207: =IF(Station="Saint-Denis",Données1!N316,Données1!N343) -> 28.41854839
B208: 21 | C208: =IF(Station="Saint-Denis",Données1!C317,Données1!C344) -> 27.54435484 | D208: =IF(Station="Saint-Denis",Données1!D317,Données1!D344) -> 27.64821429 | E208: =IF(Station="Saint-Denis",Données1!E317,Données1!E344) -> 27.73548387 | F208: =IF(Station="Saint-Denis",Données1!F317,Données1!F344) -> 27.89416667 | G208: =IF(Station="Saint-Denis",Données1!G317,Données1!G344) -> 28.25 | H208: =IF(Station="Saint-Denis",Données1!H317,Données1!H344) -> 27.36333333 | I208: =IF(Station="Saint-Denis",Données1!I317,Données1!I344) -> 28.10241935 | J208: =IF(Station="Saint-Denis",Données1!J317,Données1!J344) -> 28.65645161 | K208: =IF(Station="Saint-Denis",Données1!K317,Données1!K344) -> 28.57166667 | L208: =IF(Station="Saint-Denis",Données1!L317,Données1!L344) -> 28.91532258 | M208: =IF(Station="Saint-Denis",Données1!M317,Données1!M344) -> 27.94833333 | N208: =IF(Station="Saint-Denis",Données1!N317,Données1!N344) -> 27.8483871
B209: 22 | C209: =IF(Station="Saint-Denis",Données1!C318,Données1!C345) -> 27.13951613 | D209: =IF(Station="Saint-Denis",Données1!D318,Données1!D345) -> 27.20625 | E209: =IF(Station="Saint-Denis",Données1!E318,Données1!E345) -> 27.22983871 | F209: =IF(Station="Saint-Denis",Données1!F318,Données1!F345) -> 27.3825 | G209: =IF(Station="Saint-Denis",Données1!G318,Données1!G345) -> 27.7983871 | H209: =IF(Station="Saint-Denis",Données1!H318,Données1!H345) -> 26.79166667 | I209: =IF(Station="Saint-Denis",Données1!I318,Données1!I345) -> 27.41129032 | J209: =IF(Station="Saint-Denis",Données1!J318,Données1!J345) -> 27.96935484 | K209: =IF(Station="Saint-Denis",Données1!K318,Données1!K345) -> 27.84333333 | L209: =IF(Station="Saint-Denis",Données1!L318,Données1!L345) -> 28.21532258 | M209: =IF(Station="Saint-Denis",Données1!M318,Données1!M345) -> 27.31583333 | N209: =IF(Station="Saint-Denis",Données1!N318,Données1!N345) -> 27.27741935
B210: 23 | C210: =IF(Station="Saint-Denis",Données1!C319,Données1!C346) -> 26.68870968 | D210: =IF(Station="Saint-Denis",Données1!D319,Données1!D346) -> 26.72321429 | E210: =IF(Station="Saint-Denis",Données1!E319,Données1!E346) -> 26.81451613 | F210: =IF(Station="Saint-Denis",Données1!F319,Données1!F346) -> 26.85 | G210: =IF(Station="Saint-Denis",Données1!G319,Données1!G346) -> 27.29032258 | H210: =IF(Station="Saint-Denis",Données1!H319,Données1!H346) -> 26.18 | I210: =IF(Station="Saint-Denis",Données1!I319,Données1!I346) -> 26.74274194 | J210: =IF(Station="Saint-Denis",Données1!J319,Données1!J346) -> 27.28387097 | K210: =IF(Station="Saint-Denis",Données1!K319,Données1!K346) -> 27.1225 | L210: =IF(Station="Saint-Denis",Données1!L319,Données1!L346) -> 27.51693548 | M210: =IF(Station="Saint-Denis",Données1!M319,Données1!M346) -> 26.6675 | N210: =IF(Station="Saint-Denis",Données1!N319,Données1!N346) -> 26.66129032
B212: Tint | C212: Janvier | D212: Février | E212: Mars | F212: Avril | G212: Mai | H212: Juin | I212: Juillet | J212: Août | K212: Septembre | L212: Octobre | M212: Novembre | N212: Décembre
B213: 0 | C213: =IF($B213<C$241,C$247+C$248+C$245*SIN($F$183*$B213+$C$243),C$247+C$248+C$246*SIN($F$183*$B213+$C$243)) -> 29.73604626 | D213: =IF($B213<D$241,D$247+D$248+D$245*SIN($F$183*$B213+$C$243),D$247+D$248+D$246*SIN($F$183*$B213+$C$243)) -> 29.72840891 | E213: 29.8447628 | F213: 30.06871824 | G213: 30.47786519 | H213: 29.59911137 | I213: 30.1748698 | J213: 30.96494415 | K213: 31.20128621 | L213: 31.52632034 | M213: 30.51189371 | N213: 30.01234193 | O213: 1
B214: 1 | C214: 29.0851453 | D214: 29.07820953 | E214: 29.20295576 | F214: 29.36750819 | G214: 29.78478947 | H214: 28.74329293 | I214: 29.19861822 | J214: 29.97922425 | K214: 30.17104221 | L214: 30.47920615 | M214: 29.54300988 | N214: 29.20019672 | O214: 1
B215: 2 | C215: 28.51268894 | D215: 28.50637018 | E215: 28.63849733 | F215: 28.75080583 | G215: 29.1752411 | H215: 27.99061511 | I215: 28.34002148 | J215: 29.11230029 | K215: 29.26496005 | L215: 29.55828695 | M215: 28.69089296 | N215: 28.48592877 | O215: 1
... 53 more rows

Sheet Données1 (hidden)
AB1: Poste de consommation
AB2: Climatisation
AB3: Brasseurs d'air
B4: Jan | C4: Orientation des plus grandes façades | E4: U | G4: Installation | H4: consigne clim | J4: Localisation | K4: correspondance pour nom tableaux | M4: % vitrage | O4: Facteur solaire murs | Q4: TempInconfort | X4: VMC | Z4: Typologie | AA4: Niveau de consommation | AB4: Ventilation
B5: Fév | C5: Nord / Sud | E5: 0.5 | G5: Centralisée Eau-Glacée | H5: 28 | J5: Cayenne | K5: Cayenne | M5: 0 | O5: Base | Q5: 28 | X5: Jamais | Z5: Logement | AA5: Sans objet | AB5: Eau chaude sanitaire
B6: Mars | C6: Est / Ouest | E6: 1 | G6: Centralisée VRV | H6: 27 | J6: Saint-Denis | K6: SaintDenis | M6: 0.05 | O6: RTAA DOM 2016 | Q6: 29 | X6: Permanent | Z6: Commerces | AA6: Niveau de base | AB6: Eclairage intérieur
B7: Avril | C7: Nord-Est / Sud-Ouest | E7: 1.5 | G7: Individuelle | H7: 26 | M7: 0.1 | O7: Ecodom | Q7: 30 | X7: Occupation | Z7: Bureaux | AA7: Performant | AB7: Eclairage extérieur
B8: Mai | C8: Nord-Ouest / Sud-Est | E8: 2 | H8: 25 | M8: 0.15 | O8: NF Habitat HQE | Q8: 31 | X8: Nuit | Z8: Enseignement | AA8: Très performant | AB8: Bureautique
B9: Juin | E9: 3 | H9: 24 | M9: 0.2 | O9: PERENE 2009 | Z9: Santé | AB9: Froid alimentaire
B10: Juil | C10: Orientation | H10: 23 | M10: 0.25 | O10: Niveau ventilation | Z10: Hôtellerie | AB10: Chaud alimentaire
B11: Août | C11: Nord | E11: coeff d'absorption solaire | H11: 22 | J11: PLANNING RENOUV. AIR | M11: 0.3 | O11: Base (5 vol/h) | P11: 5 | AB11: Autres
B12: Sept | C12: Sud | E12: Couleur claire | F12: 0.4 | H12: 21 | J12: Type | M12: 0.35 | O12: Décharge (15 vol/h) | P12: 15 | AB12: Equipements spécifiques avec apports
B13: Oct | C13: Est | E13: Couleur moyenne | F13: 0.6 | H13: 20 | J13: Permanent | M13: 0.4 | O13: Confort (50 vol/h) | P13: 50 | AB13: Equipements spécifiques sans apports
B14: Nov | C14: Ouest | E14: couleur sombre | F14: 0.8 | J14: Jour-calé sur l'occupation | M14: 0.45
B15: Déc | J15: Nuit | M15: 0.5
M16: 0.55
C17: Type de vitrage | E17: exposition au vent | J17: Attention, si chgt de formulation dans ce tableau, modifier à la main les formules (apports renouv. Air et peut être d'autre) | M17: 0.6 | O17: Facteur solaire murs
C18: SV | E18: Type | F18: K_vent | M18: 0.65 | O18: Léger
C19: DV | E19: Zone littorale au vent | F19: 1.15 | M19: 0.7 | O19: Moyen
C20: Attention, si chgt de formulation dans ce tableau, modifier à la main les formules (apports par clo transmis vitrage)) | E20: Zone au vent | F20: 1 | M20: 0.75 | O20: Lourd | AR20: Valeurs limites
E21: Zone continentale | F21: 0.9 | M21: 0.8 | AR21: Centralisée Eau Glacée | AS21: Centralisée DRV | AT21: Climatisation individuelle
E22: Zone sous le vent | F22: 0.65 | M22: 0.85 | AR22: 2.9 | AS22: 5.6 | AT22: 5.6
M23: 0.9 | AR23: 3.1 | AS23: 6.1 | AT23: 7
M24: 0.95 | AR24: 3.4 | AS24: 7 | AT24: 8.5
M25: 1
AR26: Valeurs hypothétiques
B27: APPORT SOLAIRE CLO INCIDENT (Wh/m² de paroi) | AR27: Centralisée Eau Glacée | AS27: Centralisée DRV | AT27: Climatisation individuelle
AR28: 3 | AS28: 5.75 | AT28: 6.3
B29: CAYENNE (Wh/m² de paroi) | M29: CAYENNE (Wh/m² de paroi) | X29: CAYENNE (Wh/m² de paroi) | AJ29: (Wh/m² de paroi) | AR29: 3.25 | AS29: 6.55 | AT29: 7.75
B30: RDC | C30: NORD | D30: NORD-EST | E30: EST | F30: SUD-EST | G30: SUD | H30: SUD-OUEST | I30: OUEST | J30: NORD-OUEST | K30: TOIT | M30: Etage | N30: NORD | O30: NORD-EST | P30: EST | Q30: SUD-EST | R30: SUD | S30: SUD-OUEST | T30: OUEST | U30: NORD-OUEST | V30: TOIT | X30: MOYEN | Y30: NORD | Z30: NORD-EST | AA30: EST | AB30: SUD-EST | AC30: SUD | AD30: SUD-OUEST | AE30: OUEST | AF30: NORD-OUEST | AG30: TOIT | AJ30: Tampon 1 | AK30: =Calculs!B7 -> Est | AL30: =Calculs!C7 -> Sud | AM30: =Calculs!D7 -> Ouest | AN30: =Calculs!E7 -> Nord | AO30: TOIT | AR30: 3.6 | AS30: 7.5 | AT30: 9.25
B31: Janvier | C31: 38722.33711 | D31: 46302.73292 | E31: 66796.87513 | F31: 76592.17891 | G31: 79597.47416 | H31: 72860.15026 | I31: 63476.19683 | J31: 45340.29283 | K31: 118322.7579 | M31: Janvier | N31: 38722.33711 | O31: 46302.73292 | P31: 66796.87513 | Q31: 76592.17891 | R31: 79597.47416 | S31: 72860.15026 | T31: 63476.19683 | U31: 45340.29283 | V31: 118322.7579 | X31: Janvier | Y31: =(C31+(NombreNiveaux-1)*N31)/NombreNiveaux -> 38722.33711 | Z31: =(D31+(NombreNiveaux-1)*O31)/NombreNiveaux -> 46302.73292 | AA31: =(E31+(NombreNiveaux-1)*P31)/NombreNiveaux -> 66796.87513 | AB31: =(F31+(NombreNiveaux-1)*Q31)/NombreNiveaux -> 76592.17891 | AC31: =(G31+(NombreNiveaux-1)*R31)/NombreNiveaux -> 79597.47416 | AD31: =(H31+(NombreNiveaux-1)*S31)/NombreNiveaux -> 72860.15026 | AE31: =(I31+(NombreNiveaux-1)*T31)/NombreNiveaux -> 63476.19683 | AF31: =(J31+(NombreNiveaux-1)*U31)/NombreNiveaux -> 45340.29283 | AG31: =(K31+(NombreNiveaux-1)*V31)/NombreNiveaux -> 118322.7579 | AJ31: Janvier | AK31: =HLOOKUP(AK30,INDIRECT(VLOOKUP(Station,$J$5:$K$8,2,FALSE)&1),2,FALSE) -> 66796.87513 | AL31: =HLOOKUP(AL30,INDIRECT(VLOOKUP(Station,$J$5:$K$8,2,FALSE)&1),2,FALSE) -> 79597.47416 | AM31: =HLOOKUP(AM30,INDIRECT(VLOOKUP(Station,$J$5:$K$8,2,FALSE)&1),2,FALSE) -> 63476.19683 | AN31: =HLOOKUP(AN30,INDIRECT(VLOOKUP(Station,$J$5:$K$8,2,FALSE)&1),2,FALSE) -> 38722.33711 | AO31: =HLOOKUP(AO30,INDIRECT(VLOOKUP(Station,$J$5:$K$8,2,FALSE)&1),2,FALSE) -> 118322.7579
B32: Février | C32: 36751.52542 | D32: 47290.59489 | E32: 63580.59282 | F32: 66799.17155 | G32: 62626.03458 | H32: 62846.30485 | I32: 59701.89532 | J32: 45755.84229 | K32: 113487.7476 | M32: Février | N32: 36751.52542 | O32: 47290.59489 | P32: 63580.59282 | Q32: 66799.17155 | R32: 62626.03458 | S32: 62846.30485 | T32: 59701.89532 | U32: 45755.84229 | V32: 113487.7476 | X32: Février | Y32: 36751.52542 | Z32: 47290.59489 | AA32: 63580.59282 | AB32: 66799.17155 | AC32: 62626.03458 | AD32: 62846.30485 | AE32: 59701.89532 | AF32: 45755.84229 | AG32: 113487.7476 | AJ32: Février | AK32: =HLOOKUP(AK30,INDIRECT(VLOOKUP(Station,$J$5:$K$8,2,FALSE)&1),3,FALSE) -> 63580.59282 | AL32: =HLOOKUP(AL30,INDIRECT(VLOOKUP(Station,$J$5:$K$8,2,FALSE)&1),3,FALSE) -> 62626.03458 | AM32: =HLOOKUP(AM30,INDIRECT(VLOOKUP(Station,$J$5:$K$8,2,FALSE)&1),3,FALSE) -> 59701.89532 | AN32: =HLOOKUP(AN30,INDIRECT(VLOOKUP(Station,$J$5:$K$8,2,FALSE)&1),3,FALSE) -> 36751.52542 | AO32: =HLOOKUP(AO30,INDIRECT(VLOOKUP(Station,$J$5:$K$8,2,FALSE)&1),3,FALSE) -> 113487.7476
B33: Mars | C33: 40358.52189 | D33: 62190.5464 | E33: 74379.22767 | F33: 66390.3173 | G33: 45949.6597 | H33: 66066.91729 | I33: 74171.79527 | J33: 62220.99515 | K33: 136872.3768 | M33: Mars | N33: 40358.52189 | O33: 62190.5464 | P33: 74379.22767 | Q33: 66390.3173 | R33: 45949.6597 | S33: 66066.91729 | T33: 74171.79527 | U33: 62220.99515 | V33: 136872.3768 | X33: Mars | Y33: 40358.52189 | Z33: 62190.5464 | AA33: 74379.22767 | AB33: 66390.3173 | AC33: 45949.6597 | AD33: 66066.91729 | AE33: 74171.79527 | AF33: 62220.99515 | AG33: 136872.3768 | AJ33: Mars | AK33: =HLOOKUP(AK30,INDIRECT(VLOOKUP(Station,$J$5:$K$8,2,FALSE)&1),4,FALSE) -> 74379.22767 | AL33: =HLOOKUP(AL30,INDIRECT(VLOOKUP(Station,$J$5:$K$8,2,FALSE)&1),4,FALSE) -> 45949.6597 | AM33: =HLOOKUP(AM30,INDIRECT(VLOOKUP(Station,$J$5:$K$8,2,FALSE)&1),4,FALSE) -> 74171.79527 | AN33: =HLOOKUP(AN30,INDIRECT(VLOOKUP(Station,$J$5:$K$8,2,FALSE)&1),4,FALSE) -> 40358.52189 | AO33: =HLOOKUP(AO30,INDIRECT(VLOOKUP(Station,$J$5:$K$8,2,FALSE)&1),4,FALSE) -> 136872.3768
B34: Avril | C34: 51259.02013 | D34: 65994.24687 | E34: 71079.65996 | F34: 58904.58332 | G34: 41239.41946 | H34: 61012.41173 | I34: 74284.53726 | J34: 68408.85852 | K34: 136359.9088 | M34: Avril | N34: 51259.02013 | O34: 65994.24687 | P34: 71079.65996 | Q34: 58904.58332 | R34: 41239.41946 | S34: 61012.41173 | T34: 74284.53726 | U34: 68408.85852 | V34: 136359.9088 | X34: Avril | Y34: 51259.02013 | Z34: 65994.24687 | AA34: 71079.65996 | AB34: 58904.58332 | AC34: 41239.41946 | AD34: 61012.41173 | AE34: 74284.53726 | AF34: 68408.85852 | AG34: 136359.9088 | AJ34: Avril | AK34: =HLOOKUP(AK30,INDIRECT(VLOOKUP(Station,$J$5:$K$8,2,FALSE)&1),5,FALSE) -> 71079.65996 | AL34: =HLOOKUP(AL30,INDIRECT(VLOOKUP(Station,$J$5:$K$8,2,FALSE)&1),5,FALSE) -> 41239.41946 | AM34: =HLOOKUP(AM30,INDIRECT(VLOOKUP(Station,$J$5:$K$8,2,FALSE)&1),5,FALSE) -> 74284.53726 | AN34: =HLOOKUP(AN30,INDIRECT(VLOOKUP(Station,$J$5:$K$8,2,FALSE)&1),5,FALSE) -> 51259.02013 | AO34: =HLOOKUP(AO30,INDIRECT(VLOOKUP(Station,$J$5:$K$8,2,FALSE)&1),5,FALSE) -> 136359.9088
B35: Mai | C35: 71923.87933 | D35: 75376.20873 | E35: 72127.36542 | F35: 51046.12044 | G35: 37598.70916 | H35: 50843.55166 | I35: 71760.37306 | J35: 75055.83413 | K35: 134982.4505 | M35: Mai | N35: 71923.87933 | O35: 75376.20873 | P35: 72127.36542 | Q35: 51046.12044 | R35: 37598.70916 | S35: 50843.55166 | T35: 71760.37306 | U35: 75055.83413 | V35: 134982.4505 | X35: Mai | Y35: 71923.87933 | Z35: 75376.20873 | AA35: 72127.36542 | AB35: 51046.12044 | AC35: 37598.70916 | AD35: 50843.55166 | AE35: 71760.37306 | AF35: 75055.83413 | AG35: 134982.4505 | AJ35: Mai | AK35: =HLOOKUP(AK30,INDIRECT(VLOOKUP(Station,$J$5:$K$8,2,FALSE)&1),6,FALSE) -> 72127.36542 | AL35: =HLOOKUP(AL30,INDIRECT(VLOOKUP(Station,$J$5:$K$8,2,FALSE)&1),6,FALSE) -> 37598.70916 | AM35: =HLOOKUP(AM30,INDIRECT(VLOOKUP(Station,$J$5:$K$8,2,FALSE)&1),6,FALSE) -> 71760.37306 | AN35: =HLOOKUP(AN30,INDIRECT(VLOOKUP(Station,$J$5:$K$8,2,FALSE)&1),6,FALSE) -> 71923.87933 | AO35: =HLOOKUP(AO30,INDIRECT(VLOOKUP(Station,$J$5:$K$8,2,FALSE)&1),6,FALSE) -> 134982.4505
B36: Juin | C36: 82725.1063 | D36: 83373.09092 | E36: 76128.67947 | F36: 51441.15444 | G36: 39936.1279 | H36: 49907.22587 | I36: 71588.24628 | J36: 78487.12236 | K36: 136442.2341 | M36: Juin | N36: 82725.1063 | O36: 83373.09092 | P36: 76128.67947 | Q36: 51441.15444 | R36: 39936.1279 | S36: 49907.22587 | T36: 71588.24628 | U36: 78487.12236 | V36: 136442.2341 | X36: Juin | Y36: 82725.1063 | Z36: 83373.09092 | AA36: 76128.67947 | AB36: 51441.15444 | AC36: 39936.1279 | AD36: 49907.22587 | AE36: 71588.24628 | AF36: 78487.12236 | AG36: 136442.2341 | AJ36: Juin | AK36: =HLOOKUP(AK30,INDIRECT(VLOOKUP(Station,$J$5:$K$8,2,FALSE)&1),7,FALSE) -> 76128.67947 | AL36: =HLOOKUP(AL30,INDIRECT(VLOOKUP(Station,$J$5:$K$8,2,FALSE)&1),7,FALSE) -> 39936.1279 | AM36: =HLOOKUP(AM30,INDIRECT(VLOOKUP(Station,$J$5:$K$8,2,FALSE)&1),7,FALSE) -> 71588.24628 | AN36: =HLOOKUP(AN30,INDIRECT(VLOOKUP(Station,$J$5:$K$8,2,FALSE)&1),7,FALSE) -> 82725.1063 | AO36: =HLOOKUP(AO30,INDIRECT(VLOOKUP(Station,$J$5:$K$8,2,FALSE)&1),7,FALSE) -> 136442.2341
B37: Juillet | C37: 90644.23813 | D37: 92641.81191 | E37: 86061.59079 | F37: 57591.67468 | G37: 41836.20802 | H37: 56788.18852 | I37: 84164.93706 | J37: 90760.55662 | K37: 160743.6037 | M37: Juillet | N37: 90644.23813 | O37: 92641.81191 | P37: 86061.59079 | Q37: 57591.67468 | R37: 41836.20802 | S37: 56788.18852 | T37: 84164.93706 | U37: 90760.55662 | V37: 160743.6037 | X37: Juillet | Y37: 90644.23813 | Z37: 92641.81191 | AA37: 86061.59079 | AB37: 57591.67468 | AC37: 41836.20802 | AD37: 56788.18852 | AE37: 84164.93706 | AF37: 90760.55662 | AG37: 160743.6037 | AJ37: Juillet | AK37: =HLOOKUP(AK30,INDIRECT(VLOOKUP(Station,$J$5:$K$8,2,FALSE)&1),8,FALSE) -> 86061.59079 | AL37: =HLOOKUP(AL30,INDIRECT(VLOOKUP(Station,$J$5:$K$8,2,FALSE)&1),8,FALSE) -> 41836.20802 | AM37: =HLOOKUP(AM30,INDIRECT(VLOOKUP(Station,$J$5:$K$8,2,FALSE)&1),8,FALSE) -> 84164.93706 | AN37: =HLOOKUP(AN30,INDIRECT(VLOOKUP(Station,$J$5:$K$8,2,FALSE)&1),8,FALSE) -> 90644.23813 | AO37: =HLOOKUP(AO30,INDIRECT(VLOOKUP(Station,$J$5:$K$8,2,FALSE)&1),8,FALSE) -> 160743.6037
B38: Août | C38: 76385.31534 | D38: 93981.62876 | E38: 96455.88002 | F38: 70184.69797 | G38: 44821.45321 | H38: 67494.10552 | I38: 90564.64979 | J38: 88345.24648 | K38: 176323.5876 | M38: Août | N38: 76385.31534 | O38: 93981.62876 | P38: 96455.88002 | Q38: 70184.69797 | R38: 44821.45321 | S38: 67494.10552 | T38: 90564.64979 | U38: 88345.24648 | V38: 176323.5876 | X38: Août | Y38: 76385.31534 | Z38: 93981.62876 | AA38: 96455.88002 | AB38: 70184.69797 | AC38: 44821.45321 | AD38: 67494.10552 | AE38: 90564.64979 | AF38: 88345.24648 | AG38: 176323.5876 | AJ38: Août | AK38: =HLOOKUP(AK30,INDIRECT(VLOOKUP(Station,$J$5:$K$8,2,FALSE)&1),9,FALSE) -> 96455.88002 | AL38: =HLOOKUP(AL30,INDIRECT(VLOOKUP(Station,$J$5:$K$8,2,FALSE)&1),9,FALSE) -> 44821.45321 | AM38: =HLOOKUP(AM30,INDIRECT(VLOOKUP(Station,$J$5:$K$8,2,FALSE)&1),9,FALSE) -> 90564.64979 | AN38: =HLOOKUP(AN30,INDIRECT(VLOOKUP(Station,$J$5:$K$8,2,FALSE)&1),9,FALSE) -> 76385.31534 | AO38: =HLOOKUP(AO30,INDIRECT(VLOOKUP(Station,$J$5:$K$8,2,FALSE)&1),9,FALSE) -> 176323.5876
B39: Septembre | C39: 47731.87862 | D39: 81307.04634 | E39: 98307.57385 | F39: 83145.45236 | G39: 50152.17635 | H39: 82426.48835 | I39: 97364.17249 | J39: 80682.7235 | K39: 183193.2783 | M39: Septembre | N39: 47731.87862 | O39: 81307.04634 | P39: 98307.57385 | Q39: 83145.45236 | R39: 50152.17635 | S39: 82426.48835 | T39: 97364.17249 | U39: 80682.7235 | V39: 183193.2783 | X39: Septembre | Y39: 47731.87862 | Z39: 81307.04634 | AA39: 98307.57385 | AB39: 83145.45236 | AC39: 50152.17635 | AD39: 82426.48835 | AE39: 97364.17249 | AF39: 80682.7235 | AG39: 183193.2783 | AJ39: Septembre | AK39: =HLOOKUP(AK30,INDIRECT(VLOOKUP(Station,$J$5:$K$8,2,FALSE)&1),10,FALSE) -> 98307.57385 | AL39: =HLOOKUP(AL30,INDIRECT(VLOOKUP(Station,$J$5:$K$8,2,FALSE)&1),10,FALSE) -> 50152.17635 | AM39: =HLOOKUP(AM30,INDIRECT(VLOOKUP(Station,$J$5:$K$8,2,FALSE)&1),10,FALSE) -> 97364.17249 | AN39: =HLOOKUP(AN30,INDIRECT(VLOOKUP(Station,$J$5:$K$8,2,FALSE)&1),10,FALSE) -> 47731.87862 | AO39: =HLOOKUP(AO30,INDIRECT(VLOOKUP(Station,$J$5:$K$8,2,FALSE)&1),10,FALSE) -> 183193.2783
B40: Octobre | C40: 44773.44318 | D40: 67995.85705 | E40: 93603.92517 | F40: 93765.57981 | G40: 84545.33346 | H40: 102973.018 | I40: 103307.179 | J40: 72508.90823 | K40: 181095.6272 | M40: Octobre | N40: 44773.44318 | O40: 67995.85705 | P40: 93603.92517 | Q40: 93765.57981 | R40: 84545.33346 | S40: 102973.018 | T40: 103307.179 | U40: 72508.90823 | V40: 181095.6272 | X40: Octobre | Y40: 44773.44318 | Z40: 67995.85705 | AA40: 93603.92517 | AB40: 93765.57981 | AC40: 84545.33346 | AD40: 102973.018 | AE40: 103307.179 | AF40: 72508.90823 | AG40: 181095.6272 | AJ40: Octobre | AK40: =HLOOKUP(AK30,INDIRECT(VLOOKUP(Station,$J$5:$K$8,2,FALSE)&1),11,FALSE) -> 93603.92517 | AL40: =HLOOKUP(AL30,INDIRECT(VLOOKUP(Station,$J$5:$K$8,2,FALSE)&1),11,FALSE) -> 84545.33346 | AM40: =HLOOKUP(AM30,INDIRECT(VLOOKUP(Station,$J$5:$K$8,2,FALSE)&1),11,FALSE) -> 103307.179 | AN40: =HLOOKUP(AN30,INDIRECT(VLOOKUP(Station,$J$5:$K$8,2,FALSE)&1),11,FALSE) -> 44773.44318 | AO40: =HLOOKUP(AO30,INDIRECT(VLOOKUP(Station,$J$5:$K$8,2,FALSE)&1),11,FALSE) -> 181095.6272
B41: Novembre | C41: 40266.20239 | D41: 52461.94298 | E41: 81611.93544 | F41: 94507.40803 | G41: 104203.6197 | H41: 104893.4576 | I41: 91825.23362 | J41: 56518.92567 | K41: 155199.1873 | M41: Novembre | N41: 40266.20239 | O41: 52461.94298 | P41: 81611.93544 | Q41: 94507.40803 | R41: 104203.6197 | S41: 104893.4576 | T41: 91825.23362 | U41: 56518.92567 | V41: 155199.1873 | X41: Novembre | Y41: 40266.20239 | Z41: 52461.94298 | AA41: 81611.93544 | AB41: 94507.40803 | AC41: 104203.6197 | AD41: 104893.4576 | AE41: 91825.23362 | AF41: 56518.92567 | AG41: 155199.1873 | AJ41: Novembre | AK41: =HLOOKUP(AK30,INDIRECT(VLOOKUP(Station,$J$5:$K$8,2,FALSE)&1),12,FALSE) -> 81611.93544 | AL41: =HLOOKUP(AL30,INDIRECT(VLOOKUP(Station,$J$5:$K$8,2,FALSE)&1),12,FALSE) -> 104203.6197 | AM41: =HLOOKUP(AM30,INDIRECT(VLOOKUP(Station,$J$5:$K$8,2,FALSE)&1),12,FALSE) -> 91825.23362 | AN41: =HLOOKUP(AN30,INDIRECT(VLOOKUP(Station,$J$5:$K$8,2,FALSE)&1),12,FALSE) -> 40266.20239 | AO41: =HLOOKUP(AO30,INDIRECT(VLOOKUP(Station,$J$5:$K$8,2,FALSE)&1),12,FALSE) -> 155199.1873
B42: Décembre | C42: 39822.60023 | D42: 47139.5226 | E42: 71854.82732 | F42: 85803.98102 | G42: 95282.54937 | H42: 87171.10044 | I42: 73008.38958 | J42: 47403.86321 | K42: 128757.0351 | M42: Décembre | N42: 39822.60023 | O42: 47139.5226 | P42: 71854.82732 | Q42: 85803.98102 | R42: 95282.54937 | S42: 87171.10044 | T42: 73008.38958 | U42: 47403.86321 | V42: 128757.0351 | X42: Décembre | Y42: 39822.60023 | Z42: 47139.5226 | AA42: 71854.82732 | AB42: 85803.98102 | AC42: 95282.54937 | AD42: 87171.10044 | AE42: 73008.38958 | AF42: 47403.86321 | AG42: 128757.0351 | AJ42: Décembre | AK42: =HLOOKUP(AK30,INDIRECT(VLOOKUP(Station,$J$5:$K$8,2,FALSE)&1),13,FALSE) -> 71854.82732 | AL42: =HLOOKUP(AL30,INDIRECT(VLOOKUP(Station,$J$5:$K$8,2,FALSE)&1),13,FALSE) -> 95282.54937 | AM42: =HLOOKUP(AM30,INDIRECT(VLOOKUP(Station,$J$5:$K$8,2,FALSE)&1),13,FALSE) -> 73008.38958 | AN42: =HLOOKUP(AN30,INDIRECT(VLOOKUP(Station,$J$5:$K$8,2,FALSE)&1),13,FALSE) -> 39822.60023 | AO42: =HLOOKUP(AO30,INDIRECT(VLOOKUP(Station,$J$5:$K$8,2,FALSE)&1),13,FALSE) -> 128757.0351
B45: ST-DENIS REUNION (Wh/m² de paroi) | M45: ST-DENIS REUNION (Wh/m² de paroi) | X45: ST-DENIS REUNION (Wh/m² de paroi)
B46: RDC | C46: NORD | D46: NORD-EST | E46: EST | F46: SUD-EST | G46: SUD | H46: SUD-OUEST | I46: OUEST | J46: NORD-OUEST | K46: TOIT | M46: Etage | N46: NORD | O46: NORD-EST | P46: EST | Q46: SUD-EST | R46: SUD | S46: SUD-OUEST | T46: OUEST | U46: NORD-OUEST | V46: TOIT | X46: MOYEN | Y46: NORD | Z46: NORD-EST | AA46: EST | AB46: SUD-EST | AC46: SUD | AD46: SUD-OUEST | AE46: OUEST | AF46: NORD-OUEST | AG46: TOIT
B47: Janvier | C47: 48746.90317 | D47: 87953.34762 | E47: 117782.7103 | F47: 106699.7947 | G47: 72280.68349 | H47: 94107.84694 | I47: 102936.5212 | J47: 79549.89063 | K47: 198759.6117 | M47: Janvier | N47: 48746.90317 | O47: 87953.34762 | P47: 117782.7103 | Q47: 106699.7947 | R47: 72280.68349 | S47: 94107.84694 | T47: 102936.5212 | U47: 79549.89063 | V47: 198759.6117 | X47: Janvier | Y47: =(C47+(NombreNiveaux-1)*N47)/NombreNiveaux -> 48746.90317 | Z47: =(D47+(NombreNiveaux-1)*O47)/NombreNiveaux -> 87953.34762 | AA47: =(E47+(NombreNiveaux-1)*P47)/NombreNiveaux -> 117782.7103 | AB47: =(F47+(NombreNiveaux-1)*Q47)/NombreNiveaux -> 106699.7947 | AC47: =(G47+(NombreNiveaux-1)*R47)/NombreNiveaux -> 72280.68349 | AD47: =(H47+(NombreNiveaux-1)*S47)/NombreNiveaux -> 94107.84694 | AE47: =(I47+(NombreNiveaux-1)*T47)/NombreNiveaux -> 102936.5212 | AF47: =(J47+(NombreNiveaux-1)*U47)/NombreNiveaux -> 79549.89063 | AG47: =(K47+(NombreNiveaux-1)*V47)/NombreNiveaux -> 198759.6117
B48: Février | C48: 54614.74053 | D48: 77682.4477 | E48: 87599.46793 | F48: 72745.10271 | G48: 47361.42488 | H48: 70989.07686 | I48: 85389.60201 | J48: 76322.11092 | K48: 161964.8405 | M48: Février | N48: 54614.74053 | O48: 77682.4477 | P48: 87599.46793 | Q48: 72745.10271 | R48: 47361.42488 | S48: 70989.07686 | T48: 85389.60201 | U48: 76322.11092 | V48: 161964.8405 | X48: Février | Y48: 54614.74053 | Z48: 77682.4477 | AA48: 87599.46793 | AB48: 72745.10271 | AC48: 47361.42488 | AD48: 70989.07686 | AE48: 85389.60201 | AF48: 76322.11092 | AG48: 161964.8405
B49: Mars | C49: 88503.74224 | D49: 101798.3629 | E49: 99506.30297 | F49: 70574.70432 | G49: 44455.78451 | H49: 71684.15884 | I49: 100969.8549 | J49: 102756.58 | K49: 178017.0309 | M49: Mars | N49: 88503.74224 | O49: 101798.3629 | P49: 99506.30297 | Q49: 70574.70432 | R49: 44455.78451 | S49: 71684.15884 | T49: 100969.8549 | U49: 102756.58 | V49: 178017.0309 | X49: Mars | Y49: 88503.74224 | Z49: 101798.3629 | AA49: 99506.30297 | AB49: 70574.70432 | AC49: 44455.78451 | AD49: 71684.15884 | AE49: 100969.8549 | AF49: 102756.58 | AG49: 178017.0309
B50: Avril | C50: 108592.2439 | D50: 103764.3973 | E50: 85321.84907 | F50: 51350.67502 | G50: 36639.9169 | H50: 49710.4755 | I50: 80832.10113 | J50: 99042.98341 | K50: 146868.8434 | M50: Avril | N50: 108592.2439 | O50: 103764.3973 | P50: 85321.84907 | Q50: 51350.67502 | R50: 36639.9169 | S50: 49710.4755 | T50: 80832.10113 | U50: 99042.98341 | V50: 146868.8434 | X50: Avril | Y50: 108592.2439 | Z50: 103764.3973 | AA50: 85321.84907 | AB50: 51350.67502 | AC50: 36639.9169 | AD50: 49710.4755 | AE50: 80832.10113 | AF50: 99042.98341 | AG50: 146868.8434
B51: Mai | C51: 134468.2816 | D51: 113748.5888 | E51: 79438.11664 | F51: 41113.62842 | G51: 32919.77495 | H51: 39593.01807 | I51: 76114.56301 | J51: 110569.2938 | K51: 132588.2725 | M51: Mai | N51: 134468.2816 | O51: 113748.5888 | P51: 79438.11664 | Q51: 41113.62842 | R51: 32919.77495 | S51: 39593.01807 | T51: 76114.56301 | U51: 110569.2938 | V51: 132588.2725 | X51: Mai | Y51: 134468.2816 | Z51: 113748.5888 | AA51: 79438.11664 | AB51: 41113.62842 | AC51: 32919.77495 | AD51: 39593.01807 | AE51: 76114.56301 | AF51: 110569.2938 | AG51: 132588.2725
B52: Juin | C52: 141212.597 | D52: 115962.6348 | E52: 74497.62084 | F52: 34256.33747 | G52: 28207.14822 | H52: 32886.65809 | I52: 70015.32878 | J52: 110993.7975 | K52: 119463.4767 | M52: Juin | N52: 141212.597 | O52: 115962.6348 | P52: 74497.62084 | Q52: 34256.33747 | R52: 28207.14822 | S52: 32886.65809 | T52: 70015.32878 | U52: 110993.7975 | V52: 119463.4767 | X52: Juin | Y52: 141212.597 | Z52: 115962.6348 | AA52: 74497.62084 | AB52: 34256.33747 | AC52: 28207.14822 | AD52: 32886.65809 | AE52: 70015.32878 | AF52: 110993.7975 | AG52: 119463.4767
B53: Juillet | C53: 144511.807 | D53: 120833.2276 | E53: 79711.0791 | F53: 37875.53331 | G53: 30432.76407 | H53: 35649.34932 | I53: 73321.83267 | J53: 114023.9172 | K53: 130521.8534 | M53: Juillet | N53: 144511.807 | O53: 120833.2276 | P53: 79711.0791 | Q53: 37875.53331 | R53: 30432.76407 | S53: 35649.34932 | T53: 73321.83267 | U53: 114023.9172 | V53: 130521.8534 | X53: Juillet | Y53: 144511.807 | Z53: 120833.2276 | AA53: 79711.0791 | AB53: 37875.53331 | AC53: 30432.76407 | AD53: 35649.34932 | AE53: 73321.83267 | AF53: 114023.9172 | AG53: 130521.8534
B54: Août | C54: 129206.5179 | D54: 115595.0596 | E54: 88182.77131 | F54: 49198.85001 | G54: 36415.70243 | H54: 48545.38959 | I54: 86141.85843 | J54: 113365.2239 | K54: 148452.445 | M54: Août | N54: 129206.5179 | O54: 115595.0596 | P54: 88182.77131 | Q54: 49198.85001 | R54: 36415.70243 | S54: 48545.38959 | T54: 86141.85843 | U54: 113365.2239 | V54: 148452.445 | X54: Août | Y54: 129206.5179 | Z54: 115595.0596 | AA54: 88182.77131 | AB54: 49198.85001 | AC54: 36415.70243 | AD54: 48545.38959 | AE54: 86141.85843 | AF54: 113365.2239 | AG54: 148452.445
B55: Septembre | C55: 99136.25705 | D55: 100929.5368 | E55: 91009.49798 | F55: 59842.44881 | G55: 40198.18755 | H55: 65064.25628 | I55: 99220.92324 | J55: 107327.6802 | K55: 164789.2748 | M55: Septembre | N55: 99136.25705 | O55: 100929.5368 | P55: 91009.49798 | Q55: 59842.44881 | R55: 40198.18755 | S55: 65064.25628 | T55: 99220.92324 | U55: 107327.6802 | V55: 164789.2748 | X55: Septembre | Y55: 99136.25705 | Z55: 100929.5368 | AA55: 91009.49798 | AB55: 59842.44881 | AC55: 40198.18755 | AD55: 65064.25628 | AE55: 99220.92324 | AF55: 107327.6802 | AG55: 164789.2748
B56: Octobre | C56: 73755.5164 | D56: 99579.73269 | E56: 107213.7281 | F56: 82855.20465 | G56: 50633.47651 | H56: 81404.6551 | I56: 104637.996 | J56: 97378.48433 | K56: 185262.2245 | M56: Octobre | N56: 73755.5164 | O56: 99579.73269 | P56: 107213.7281 | Q56: 82855.20465 | R56: 50633.47651 | S56: 81404.6551 | T56: 104637.996 | U56: 97378.48433 | V56: 185262.2245 | X56: Octobre | Y56: 73755.5164 | Z56: 99579.73269 | AA56: 107213.7281 | AB56: 82855.20465 | AC56: 50633.47651 | AD56: 81404.6551 | AE56: 104637.996 | AF56: 97378.48433 | AG56: 185262.2245
B57: Novembre | C57: 51109.33849 | D57: 84466.64042 | E57: 105252.5389 | F57: 92468.61732 | G57: 62405.02302 | H57: 91859.29841 | I57: 104414.9374 | J57: 83893.50127 | K57: 192884.146 | M57: Novembre | N57: 51109.33849 | O57: 84466.64042 | P57: 105252.5389 | Q57: 92468.61732 | R57: 62405.02302 | S57: 91859.29841 | T57: 104414.9374 | U57: 83893.50127 | V57: 192884.146 | X57: Novembre | Y57: 51109.33849 | Z57: 84466.64042 | AA57: 105252.5389 | AB57: 92468.61732 | AC57: 62405.02302 | AD57: 91859.29841 | AE57: 104414.9374 | AF57: 83893.50127 | AG57: 192884.146
B58: Décembre | C58: 51016.72212 | D58: 79137.96524 | E58: 104313.7306 | F58: 98360.80975 | G58: 77858.88991 | H58: 98304.83049 | I58: 104564.3453 | J58: 79544.99909 | K58: 197689.2767 | M58: Décembre | N58: 51016.72212 | O58: 79137.96524 | P58: 104313.7306 | Q58: 98360.80975 | R58: 77858.88991 | S58: 98304.83049 | T58: 104564.3453 | U58: 79544.99909 | V58: 197689.2767 | X58: Décembre | Y58: 51016.72212 | Z58: 79137.96524 | AA58: 104313.7306 | AB58: 98360.80975 | AC58: 77858.88991 | AD58: 98304.83049 | AE58: 104564.3453 | AF58: 79544.99909 | AG58: 197689.2767
B60: APPORT SOLAIRE CLO TRANSMIS FENETRE
D61: CGCS = x
D62: % solaire transmis = a * x² + b*x+c | AB62: CGCS = | AC62: =Hypothèses!J26 -> 0.7
B63: CAYENNE
B64: DV | C64: ORIENTATION | AR64: Tampon 1 | AS64: ORIENTATION
C65: NORD | H65: NORD-EST | M65: EST | R65: SUD-EST | W65: SUD | AB65: SUD-OUEST | AG65: OUEST | AL65: NORD-OUEST | AS65: NORD | AX65: NORD-EST | BC65: EST | BH65: SUD-EST | BM65: SUD | BR65: SUD-OUEST | BW65: OUEST | CB65: NORD-OUEST
C66: a | D66: b | E66: c | F66: d | G66: e | H66: a | I66: b | J66: c | K66: d | L66: e | M66: a | N66: b | O66: c | P66: d | Q66: e | R66: a | S66: b | T66: c | U66: d | V66: e | W66: a | X66: b | Y66: c | Z66: d | AA66: e | AB66: a | AC66: b | AD66: c | AE66: d | AF66: e | AG66: a | AH66: b | AI66: c | AJ66: d | AK66: e | AL66: a | AM66: b | AN66: c | AO66: d | AP66: e | AS66: a | AT66: b | AU66: c | AV66: d | AW66: e | AX66: a | AY66: b | AZ66: c | BA66: d | BB66: e | BC66: a | BD66: b | BE66: c | BF66: d | BG66: e | BH66: a | BI66: b | BJ66: c | BK66: d | BL66: e | BM66: a | BN66: b | BO66: c | BP66: d | BQ66: e | BR66: a | BS66: b | BT66: c | BU66: d | BV66: e | BW66: a | BX66: b | BY66: c | BZ66: d | CA66: e | CB66: a | CC66: b | CD66: c | CE66: d | CF66: e
B67: Janvier | C67: 0.2335817163 | D67: -0.9475665732 | E67: 1.239937104 | F67: 0.2989787095 | G67: -0.008044505861 | H67: 0.1277617825 | I67: -0.7372410259 | J67: 1.098209193 | K67: 0.2952082244 | L67: -0.008115769125 | M67: 0.245262125 | N67: -0.9743296218 | O67: 1.262401821 | P67: 0.3015999081 | Q67: -0.008098417229 | R67: 0.245262125 | S67: -0.9743296218 | T67: 1.262401821 | U67: 0.3015999081 | V67: -0.008098417229 | W67: -0.03267721573 | X67: -0.4478609816 | Y67: 0.9400064252 | Z67: 0.3075898781 | AA67: -0.008732323355 | AB67: 0.2490785116 | AC67: -0.9793965892 | AD67: 1.262672093 | AE67: 0.3001760793 | AF67: -0.008052112417 | AG67: 0.2490785116 | AH67: -0.9793965892 | AI67: 1.262672093 | AJ67: 0.3001760793 | AK67: -0.008052112417 | AL67: 0.1344834234 | AM67: -0.7505885223 | AN67: 1.10718644 | AO67: 0.2954329795 | AP67: -0.008110871972 | AR67: Janvier | AS67: =IF(Hypothèses!$J$24="SV",Données1!C83,Données1!C67) -> -2.47533954 | AT67: =IF(Hypothèses!$J$24="SV",Données1!D83,Données1!D67) -> 4.305793994 | AU67: =IF(Hypothèses!$J$24="SV",Données1!E83,Données1!E67) -> -1.640066459 | AV67: =IF(Hypothèses!$J$24="SV",Données1!F83,Données1!F67) -> 0.7012263985 | AW67: =IF(Hypothèses!$J$24="SV",Données1!G83,Données1!G67) -> -0.03305070754 | AX67: =IF(Hypothèses!$J$24="SV",Données1!H83,Données1!H67) -> -2.545155165 | AY67: =IF(Hypothèses!$J$24="SV",Données1!I83,Données1!I67) -> 4.467502026 | AZ67: =IF(Hypothèses!$J$24="SV",Données1!J83,Données1!J67) -> -1.778286653 | BA67: =IF(Hypothèses!$J$24="SV",Données1!K83,Données1!K67) -> 0.7198615746 | BB67: =IF(Hypothèses!$J$24="SV",Données1!L83,Données1!L67) -> -0.03472755316 | BC67: =IF(Hypothèses!$J$24="SV",Données1!M83,Données1!M67) -> -2.479354477 | BD67: =IF(Hypothèses!$J$24="SV",Données1!N83,Données1!N67) -> 4.308377697 | BE67: =IF(Hypothèses!$J$24="SV",Données1!O83,Données1!O67) -> -1.632500479 | BF67: =IF(Hypothèses!$J$24="SV",Données1!P83,Données1!P67) -> 0.7027677097 | BG67: =IF(Hypothèses!$J$24="SV",Données1!Q83,Données1!Q67) -> -0.03303376723 | BH67: =IF(Hypothèses!$J$24="SV",Données1!R83,Données1!R67) -> -2.479354477 | BI67: =IF(Hypothèses!$J$24="SV",Données1!S83,Données1!S67) -> 4.308377697 | BJ67: =IF(Hypothèses!$J$24="SV",Données1!T83,Données1!T67) -> -1.632500479 | BK67: =IF(Hypothèses!$J$24="SV",Données1!U83,Données1!U67) -> 0.7027677097 | BL67: =IF(Hypothèses!$J$24="SV",Données1!V83,Données1!V67) -> -0.03303376723 | BM67: =IF(Hypothèses!$J$24="SV",Données1!W83,Données1!W67) -> -2.777785029 | BN67: =IF(Hypothèses!$J$24="SV",Données1!X83,Données1!X67) -> 4.935337324 | BO67: =IF(Hypothèses!$J$24="SV",Données1!Y83,Données1!Y67) -> -2.076849472 | BP67: =IF(Hypothèses!$J$24="SV",Données1!Z83,Données1!Z67) -> 0.7837633561 | BQ67: =IF(Hypothèses!$J$24="SV",Données1!AA83,Données1!AA67) -> -0.03899410464 | BR67: =IF(Hypothèses!$J$24="SV",Données1!AB83,Données1!AB67) -> -2.46817316 | BS67: =IF(Hypothèses!$J$24="SV",Données1!AC83,Données1!AC67) -> 4.287459605 | BT67: =IF(Hypothèses!$J$24="SV",Données1!AD83,Données1!AD67) -> -1.621760554 | BU67: =IF(Hypothèses!$J$24="SV",Données1!AE83,Données1!AE67) -> 0.6996067107 | BV67: =IF(Hypothèses!$J$24="SV",Données1!AF83,Données1!AF67) -> -0.03285595213 | BW67: =IF(Hypothèses!$J$24="SV",Données1!AG83,Données1!AG67) -> -2.46817316 | BX67: =IF(Hypothèses!$J$24="SV",Données1!AH83,Données1!AH67) -> 4.287459605 | BY67: =IF(Hypothèses!$J$24="SV",Données1!AI83,Données1!AI67) -> -1.621760554 | BZ67: =IF(Hypothèses!$J$24="SV",Données1!AJ83,Données1!AJ67) -> 0.6996067107 | CA67: =IF(Hypothèses!$J$24="SV",Données1!AK83,Données1!AK67) -> -0.03285595213 | CB67: =IF(Hypothèses!$J$24="SV",Données1!AL83,Données1!AL67) -> -2.541236893 | CC67: =IF(Hypothèses!$J$24="SV",Données1!AM83,Données1!AM67) -> 4.45818349 | CD67: =IF(Hypothèses!$J$24="SV",Données1!AN83,Données1!AN67) -> -1.769975886 | CE67: =IF(Hypothèses!$J$24="SV",Données1!AO83,Données1!AO67) -> 0.7188202082 | CF67: =IF(Hypothèses!$J$24="SV",Données1!AP83,Données1!AP67) -> -0.0346288568
B68: Février | C68: 0.2335817163 | D68: -0.9475665732 | E68: 1.239937104 | F68: 0.2989787095 | G68: -0.008044505861 | H68: 0.109884515 | I68: -0.7084420227 | J68: 1.087207845 | K68: 0.2987347907 | L68: -0.008244589751 | M68: 0.199927076 | N68: -0.891079911 | O68: 1.214867095 | P68: 0.3042410037 | Q68: -0.008248235823 | R68: 0.199927076 | S68: -0.891079911 | T68: 1.214867095 | U68: 0.3042410037 | V68: -0.008248235823 | W68: -0.03412738298 | X68: -0.4181975744 | Y68: 0.8865894471 | Z68: 0.2909800932 | AA68: -0.008268860462 | AB68: 0.2040477569 | AC68: -0.8961939408 | AD68: 1.214473402 | AE68: 0.3024854113 | AF68: -0.008192102835 | AG68: 0.2040477569 | AH68: -0.8961939408 | AI68: 1.214473402 | AJ68: 0.3024854113 | AK68: -0.008192102835 | AL68: 0.1249351539 | AM68: -0.7375043503 | AN68: 1.10572617 | AO68: 0.2987361411 | AP68: -0.008219499097 | AR68: Février | AS68: =IF(Hypothèses!$J$24="SV",Données1!C84,Données1!C68) -> -2.47533954 | AT68: =IF(Hypothèses!$J$24="SV",Données1!D84,Données1!D68) -> 4.305793994 | AU68: =IF(Hypothèses!$J$24="SV",Données1!E84,Données1!E68) -> -1.640066459 | AV68: =IF(Hypothèses!$J$24="SV",Données1!F84,Données1!F68) -> 0.7012263985 | AW68: =IF(Hypothèses!$J$24="SV",Données1!G84,Données1!G68) -> -0.03305070754 | AX68: =IF(Hypothèses!$J$24="SV",Données1!H84,Données1!H68) -> -2.582952392 | AY68: =IF(Hypothèses!$J$24="SV",Données1!I84,Données1!I68) -> 4.54027025 | AZ68: =IF(Hypothèses!$J$24="SV",Données1!J84,Données1!J68) -> -1.81937305 | BA68: =IF(Hypothèses!$J$24="SV",Données1!K84,Données1!K68) -> 0.7303565855 | BB68: =IF(Hypothèses!$J$24="SV",Données1!L84,Données1!L68) -> -0.03536155438 | BC68: =IF(Hypothèses!$J$24="SV",Données1!M84,Données1!M68) -> -2.531721967 | BD68: =IF(Hypothèses!$J$24="SV",Données1!N84,Données1!N68) -> 4.416645811 | BE68: =IF(Hypothèses!$J$24="SV",Données1!O84,Données1!O68) -> -1.706402563 | BF68: =IF(Hypothèses!$J$24="SV",Données1!P84,Données1!P68) -> 0.717152439 | BG68: =IF(Hypothèses!$J$24="SV",Données1!Q84,Données1!Q68) -> -0.0340520751 | BH68: =IF(Hypothèses!$J$24="SV",Données1!R84,Données1!R68) -> -2.531721967 | BI68: =IF(Hypothèses!$J$24="SV",Données1!S84,Données1!S68) -> 4.416645811 | BJ68: =IF(Hypothèses!$J$24="SV",Données1!T84,Données1!T68) -> -1.706402563 | BK68: =IF(Hypothèses!$J$24="SV",Données1!U84,Données1!U68) -> 0.717152439 | BL68: =IF(Hypothèses!$J$24="SV",Données1!V84,Données1!V68) -> -0.0340520751 | BM68: =IF(Hypothèses!$J$24="SV",Données1!W84,Données1!W68) -> -2.673818433 | BN68: =IF(Hypothèses!$J$24="SV",Données1!X84,Données1!X68) -> 4.754115295 | BO68: =IF(Hypothèses!$J$24="SV",Données1!Y84,Données1!Y68) -> -2.007006598 | BP68: =IF(Hypothèses!$J$24="SV",Données1!Z84,Données1!Z68) -> 0.7544846174 | BQ68: =IF(Hypothèses!$J$24="SV",Données1!AA84,Données1!AA68) -> -0.0376053327 | BR68: =IF(Hypothèses!$J$24="SV",Données1!AB84,Données1!AB68) -> -2.5177469 | BS68: =IF(Hypothèses!$J$24="SV",Données1!AC84,Données1!AC68) -> 4.390700124 | BT68: =IF(Hypothèses!$J$24="SV",Données1!AD84,Données1!AD68) -> -1.693424342 | BU68: =IF(Hypothèses!$J$24="SV",Données1!AE84,Données1!AE68) -> 0.7132106626 | BV68: =IF(Hypothèses!$J$24="SV",Données1!AF84,Données1!AF68) -> -0.03383408049 | BW68: =IF(Hypothèses!$J$24="SV",Données1!AG84,Données1!AG68) -> -2.5177469 | BX68: =IF(Hypothèses!$J$24="SV",Données1!AH84,Données1!AH68) -> 4.390700124 | BY68: =IF(Hypothèses!$J$24="SV",Données1!AI84,Données1!AI68) -> -1.693424342 | BZ68: =IF(Hypothèses!$J$24="SV",Données1!AJ84,Données1!AJ68) -> 0.7132106626 | CA68: =IF(Hypothèses!$J$24="SV",Données1!AK84,Données1!AK68) -> -0.03383408049 | CB68: =IF(Hypothèses!$J$24="SV",Données1!AL84,Données1!AL68) -> -2.570454289 | CC68: =IF(Hypothèses!$J$24="SV",Données1!AM84,Données1!AM68) -> 4.512841864 | CD68: =IF(Hypothèses!$J$24="SV",Données1!AN84,Données1!AN68) -> -1.798104444 | CE68: =IF(Hypothèses!$J$24="SV",Données1!AO84,Données1!AO68) -> 0.7269717102 | CF68: =IF(Hypothèses!$J$24="SV",Données1!AP84,Données1!AP68) -> -0.03508925836
B69: Mars | C69: 0.2237495999 | D69: -0.9199649932 | E69: 1.211307533 | F69: 0.2937765134 | G69: -0.007914246614 | H69: 0.1158541347 | I69: -0.7286274037 | J69: 1.111202513 | K69: 0.3041241366 | L69: -0.008385574173 | M69: 0.1187855871 | N69: -0.7365319384 | O69: 1.119124873 | P69: 0.3055225438 | Q69: -0.008419839098 | R69: 0.1187855871 | S69: -0.7365319384 | T69: 1.119124873 | U69: 0.3055225438 | V69: -0.008419839098 | W69: 0.166951184 | X69: -0.7983128093 | Y69: 1.1184154 | Z69: 0.2864179945 | AA69: -0.007802369316 | AB69: 0.1194922661 | AC69: -0.737889971 | AD69: 1.119982023 | AE69: 0.3055195675 | AF69: -0.008418569683 | AG69: 0.1194922661 | AH69: -0.737889971 | AI69: 1.119982023 | AJ69: 0.3055195675 | AK69: -0.008418569683 | AL69: 0.1198693878 | AM69: -0.7369475317 | AN69: 1.117233915 | AO69: 0.304482086 | AP69: -0.00838886734 | AR69: Mars | AS69: =IF(Hypothèses!$J$24="SV",Données1!C85,Données1!C69) -> -2.439167806 | AT69: =IF(Hypothèses!$J$24="SV",Données1!D85,Données1!D69) -> 4.245242863 | AU69: =IF(Hypothèses!$J$24="SV",Données1!E85,Données1!E69) -> -1.621489691 | AV69: =IF(Hypothèses!$J$24="SV",Données1!F85,Données1!F69) -> 0.6909450914 | AW69: =IF(Hypothèses!$J$24="SV",Données1!G85,Données1!G69) -> -0.03261282354 | AX69: =IF(Hypothèses!$J$24="SV",Données1!H85,Données1!H69) -> -2.605671539 | AY69: =IF(Hypothèses!$J$24="SV",Données1!I85,Données1!I69) -> 4.577390662 | AZ69: =IF(Hypothèses!$J$24="SV",Données1!J85,Données1!J69) -> -1.82885818 | BA69: =IF(Hypothèses!$J$24="SV",Données1!K85,Données1!K69) -> 0.7370007611 | BB69: =IF(Hypothèses!$J$24="SV",Données1!L85,Données1!L69) -> -0.0356259698 | BC69: =IF(Hypothèses!$J$24="SV",Données1!M85,Données1!M69) -> -2.61063476 | BD69: =IF(Hypothèses!$J$24="SV",Données1!N85,Données1!N69) -> 4.584884268 | BE69: =IF(Hypothèses!$J$24="SV",Données1!O85,Données1!O69) -> -1.829533122 | BF69: =IF(Hypothèses!$J$24="SV",Données1!P85,Données1!P69) -> 0.7384553886 | BG69: =IF(Hypothèses!$J$24="SV",Données1!Q85,Données1!Q69) -> -0.03567179097 | BH69: =IF(Hypothèses!$J$24="SV",Données1!R85,Données1!R69) -> -2.61063476 | BI69: =IF(Hypothèses!$J$24="SV",Données1!S85,Données1!S69) -> 4.584884268 | BJ69: =IF(Hypothèses!$J$24="SV",Données1!T85,Données1!T69) -> -1.829533122 | BK69: =IF(Hypothèses!$J$24="SV",Données1!U85,Données1!U69) -> 0.7384553886 | BL69: =IF(Hypothèses!$J$24="SV",Données1!V85,Données1!V69) -> -0.03567179097 | BM69: =IF(Hypothèses!$J$24="SV",Données1!W85,Données1!W69) -> -2.436807361 | BN69: =IF(Hypothèses!$J$24="SV",Données1!X85,Données1!X69) -> 4.261895659 | BO69: =IF(Hypothèses!$J$24="SV",Données1!Y85,Données1!Y69) -> -1.667263041 | BP69: =IF(Hypothèses!$J$24="SV",Données1!Z85,Données1!Z69) -> 0.6898044118 | BQ69: =IF(Hypothèses!$J$24="SV",Données1!AA85,Données1!AA69) -> -0.03296975982 | BR69: =IF(Hypothèses!$J$24="SV",Données1!AB85,Données1!AB69) -> -2.609916336 | BS69: =IF(Hypothèses!$J$24="SV",Données1!AC85,Données1!AC69) -> 4.583358215 | BT69: =IF(Hypothèses!$J$24="SV",Données1!AD85,Données1!AD69) -> -1.828425318 | BU69: =IF(Hypothèses!$J$24="SV",Données1!AE85,Données1!AE69) -> 0.7382606476 | BV69: =IF(Hypothèses!$J$24="SV",Données1!AF85,Données1!AF69) -> -0.03565712365 | BW69: =IF(Hypothèses!$J$24="SV",Données1!AG85,Données1!AG69) -> -2.609916336 | BX69: =IF(Hypothèses!$J$24="SV",Données1!AH85,Données1!AH69) -> 4.583358215 | BY69: =IF(Hypothèses!$J$24="SV",Données1!AI85,Données1!AI69) -> -1.828425318 | BZ69: =IF(Hypothèses!$J$24="SV",Données1!AJ85,Données1!AJ69) -> 0.7382606476 | CA69: =IF(Hypothèses!$J$24="SV",Données1!AK85,Données1!AK69) -> -0.03565712365 | CB69: =IF(Hypothèses!$J$24="SV",Données1!AL85,Données1!AL69) -> -2.60374304 | CC69: =IF(Hypothèses!$J$24="SV",Données1!AM85,Données1!AM69) -> 4.572470188 | CD69: =IF(Hypothèses!$J$24="SV",Données1!AN85,Données1!AN69) -> -1.823998253 | CE69: =IF(Hypothèses!$J$24="SV",Données1!AO85,Données1!AO69) -> 0.7365080461 | CF69: =IF(Hypothèses!$J$24="SV",Données1!AP85,Données1!AP69) -> -0.03557161656
B70: Avril | C70: 0.1136124775 | D70: -0.6835473581 | E70: 1.030178285 | F70: 0.2791959885 | G70: -0.007688491995 | H70: 0.1556414434 | I70: -0.8046564521 | J70: 1.158625961 | K70: 0.3036553215 | L70: -0.008305865045 | M70: 0.1044169877 | N70: -0.7034253723 | O70: 1.091133987 | P70: 0.3021748799 | Q70: -0.008350120847 | R70: 0.1044169877 | S70: -0.7034253723 | T70: 1.091133987 | U70: 0.3021748799 | V70: -0.008350120847 | W70: 0.2326134406 | X70: -0.9442375182 | Y70: 1.235946002 | Z70: 0.2980993801 | AA70: -0.008021319281 | AB70: 0.09923305045 | AC70: -0.694807398 | AD70: 1.08743207 | AE70: 0.3030386541 | AF70: -0.008382982498 | AG70: 0.09923305045 | AH70: -0.694807398 | AI70: 1.08743207 | AJ70: 0.3030386541 | AK70: -0.008382982498 | AL70: 0.1577118133 | AM70: -0.8092022792 | AN70: 1.162227467 | AO70: 0.3039979689 | AP70: -0.008311997338 | AR70: Avril | AS70: =IF(Hypothèses!$J$24="SV",Données1!C86,Données1!C70) -> -2.431233818 | AT70: =IF(Hypothèses!$J$24="SV",Données1!D86,Données1!D70) -> 4.271550048 | AU70: =IF(Hypothèses!$J$24="SV",Données1!E86,Données1!E70) -> -1.707701276 | AV70: =IF(Hypothèses!$J$24="SV",Données1!F86,Données1!F70) -> 0.6877737462 | AW70: =IF(Hypothèses!$J$24="SV",Données1!G86,Données1!G70) -> -0.03325696482 | AX70: =IF(Hypothèses!$J$24="SV",Données1!H86,Données1!H70) -> -2.567158063 | AY70: =IF(Hypothèses!$J$24="SV",Données1!I86,Données1!I70) -> 4.495145136 | AZ70: =IF(Hypothèses!$J$24="SV",Données1!J86,Données1!J70) -> -1.768461775 | BA70: =IF(Hypothèses!$J$24="SV",Données1!K86,Données1!K70) -> 0.7265926951 | BB70: =IF(Hypothèses!$J$24="SV",Données1!L86,Données1!L70) -> -0.0348323576 | BC70: =IF(Hypothèses!$J$24="SV",Données1!M86,Données1!M70) -> -2.606846061 | BD70: =IF(Hypothèses!$J$24="SV",Données1!N86,Données1!N70) -> 4.583919918 | BE70: =IF(Hypothèses!$J$24="SV",Données1!O86,Données1!O70) -> -1.839948833 | BF70: =IF(Hypothèses!$J$24="SV",Données1!P86,Données1!P70) -> 0.737101284 | BG70: =IF(Hypothèses!$J$24="SV",Données1!Q86,Données1!Q70) -> -0.03572054919 | BH70: =IF(Hypothèses!$J$24="SV",Données1!R86,Données1!R70) -> -2.606846061 | BI70: =IF(Hypothèses!$J$24="SV",Données1!S86,Données1!S70) -> 4.583919918 | BJ70: =IF(Hypothèses!$J$24="SV",Données1!T86,Données1!T70) -> -1.839948833 | BK70: =IF(Hypothèses!$J$24="SV",Données1!U86,Données1!U70) -> 0.737101284 | BL70: =IF(Hypothèses!$J$24="SV",Données1!V86,Données1!V70) -> -0.03572054919 | BM70: =IF(Hypothèses!$J$24="SV",Données1!W86,Données1!W70) -> -2.468398614 | BN70: =IF(Hypothèses!$J$24="SV",Données1!X86,Données1!X70) -> 4.293836132 | BO70: =IF(Hypothèses!$J$24="SV",Données1!Y86,Données1!Y70) -> -1.635730682 | BP70: =IF(Hypothèses!$J$24="SV",Données1!Z86,Données1!Z70) -> 0.699258848 | BQ70: =IF(Hypothèses!$J$24="SV",Données1!AA86,Données1!AA70) -> -0.03296024967 | BR70: =IF(Hypothèses!$J$24="SV",Données1!AB86,Données1!AB70) -> -2.616009516 | BS70: =IF(Hypothèses!$J$24="SV",Données1!AC86,Données1!AC70) -> 4.601824591 | BT70: =IF(Hypothèses!$J$24="SV",Données1!AD86,Données1!AD70) -> -1.850500859 | BU70: =IF(Hypothèses!$J$24="SV",Données1!AE86,Données1!AE70) -> 0.7396530625 | BV70: =IF(Hypothèses!$J$24="SV",Données1!AF86,Données1!AF70) -> -0.03587969417 | BW70: =IF(Hypothèses!$J$24="SV",Données1!AG86,Données1!AG70) -> -2.616009516 | BX70: =IF(Hypothèses!$J$24="SV",Données1!AH86,Données1!AH70) -> 4.601824591 | BY70: =IF(Hypothèses!$J$24="SV",Données1!AI86,Données1!AI70) -> -1.850500859 | BZ70: =IF(Hypothèses!$J$24="SV",Données1!AJ86,Données1!AJ70) -> 0.7396530625 | CA70: =IF(Hypothèses!$J$24="SV",Données1!AK86,Données1!AK70) -> -0.03587969417 | CB70: =IF(Hypothèses!$J$24="SV",Données1!AL86,Données1!AL70) -> -2.56691997 | CC70: =IF(Hypothèses!$J$24="SV",Données1!AM86,Données1!AM70) -> 4.493923981 | CD70: =IF(Hypothèses!$J$24="SV",Données1!AN86,Données1!AN70) -> -1.766443128 | CE70: =IF(Hypothèses!$J$24="SV",Données1!AO86,Données1!AO70) -> 0.7265762573 | CF70: =IF(Hypothèses!$J$24="SV",Données1!AP86,Données1!AP70) -> -0.03481534476
B71: Mai | C71: -0.1287776787 | D71: -0.2287258762 | E71: 0.757222098 | F71: 0.2867269219 | G71: -0.008308189191 | H71: 0.1961728187 | I71: -0.8827642791 | J71: 1.20819857 | K71: 0.3035821122 | L71: -0.008236018434 | M71: 0.05660805635 | N71: -0.6013885432 | O71: 1.013613661 | P71: 0.2960938977 | Q71: -0.008259783764 | R71: 0.05660805635 | S71: -0.6013885432 | T71: 1.013613661 | U71: 0.2960938977 | V71: -0.008259783764 | W71: 0.2335817163 | X71: -0.9475665732 | Y71: 1.239937104 | Z71: 0.2989787095 | AA71: -0.008044505861 | AB71: 0.06029059554 | AC71: -0.6088069283 | AD71: 1.018735762 | AE71: 0.2962845427 | AF71: -0.008258981689 | AG71: 0.06029059554 | AH71: -0.6088069283 | AI71: 1.018735762 | AJ71: 0.2962845427 | AK71: -0.008258981689 | AL71: 0.2092459325 | AM71: -0.9065482472 | AN71: 1.221478341 | AO71: 0.3026826919 | AP71: -0.008188951759 | AR71: Mai | AS71: =IF(Hypothèses!$J$24="SV",Données1!C87,Données1!C71) -> -2.73470675 | AT71: =IF(Hypothèses!$J$24="SV",Données1!D87,Données1!D71) -> 4.89636809 | AU71: =IF(Hypothèses!$J$24="SV",Données1!E87,Données1!E71) -> -2.13034432 | AV71: =IF(Hypothèses!$J$24="SV",Données1!F87,Données1!F71) -> 0.7707022273 | AW71: =IF(Hypothèses!$J$24="SV",Données1!G87,Données1!G71) -> -0.039090366 | AX71: =IF(Hypothèses!$J$24="SV",Données1!H87,Données1!H71) -> -2.531345917 | AY71: =IF(Hypothèses!$J$24="SV",Données1!I87,Données1!I71) -> 4.417426153 | AZ71: =IF(Hypothèses!$J$24="SV",Données1!J87,Données1!J71) -> -1.709407787 | BA71: =IF(Hypothèses!$J$24="SV",Données1!K87,Données1!K71) -> 0.7170397517 | BB71: =IF(Hypothèses!$J$24="SV",Données1!L87,Données1!L71) -> -0.03407492368 | BC71: =IF(Hypothèses!$J$24="SV",Données1!M87,Données1!M71) -> -2.615743548 | BD71: =IF(Hypothèses!$J$24="SV",Données1!N87,Données1!N71) -> 4.617739012 | BE71: =IF(Hypothèses!$J$24="SV",Données1!O87,Données1!O71) -> -1.887771703 | BF71: =IF(Hypothèses!$J$24="SV",Données1!P87,Données1!P71) -> 0.7390447592 | BG71: =IF(Hypothèses!$J$24="SV",Données1!Q87,Données1!Q71) -> -0.03617637165 | BH71: =IF(Hypothèses!$J$24="SV",Données1!R87,Données1!R71) -> -2.615743548 | BI71: =IF(Hypothèses!$J$24="SV",Données1!S87,Données1!S71) -> 4.617739012 | BJ71: =IF(Hypothèses!$J$24="SV",Données1!T87,Données1!T71) -> -1.887771703 | BK71: =IF(Hypothèses!$J$24="SV",Données1!U87,Données1!U71) -> 0.7390447592 | BL71: =IF(Hypothèses!$J$24="SV",Données1!V87,Données1!V71) -> -0.03617637165 | BM71: =IF(Hypothèses!$J$24="SV",Données1!W87,Données1!W71) -> -2.47533954 | BN71: =IF(Hypothèses!$J$24="SV",Données1!X87,Données1!X71) -> 4.305793994 | BO71: =IF(Hypothèses!$J$24="SV",Données1!Y87,Données1!Y71) -> -1.640066459 | BP71: =IF(Hypothèses!$J$24="SV",Données1!Z87,Données1!Z71) -> 0.7012263985 | BQ71: =IF(Hypothèses!$J$24="SV",Données1!AA87,Données1!AA71) -> -0.03305070754 | BR71: =IF(Hypothèses!$J$24="SV",Données1!AB87,Données1!AB71) -> -2.613829412 | BS71: =IF(Hypothèses!$J$24="SV",Données1!AC87,Données1!AC71) -> 4.613023795 | BT71: =IF(Hypothèses!$J$24="SV",Données1!AD87,Données1!AD71) -> -1.883340561 | BU71: =IF(Hypothèses!$J$24="SV",Données1!AE87,Données1!AE71) -> 0.7385390713 | BV71: =IF(Hypothèses!$J$24="SV",Données1!AF87,Données1!AF71) -> -0.03612508136 | BW71: =IF(Hypothèses!$J$24="SV",Données1!AG87,Données1!AG71) -> -2.613829412 | BX71: =IF(Hypothèses!$J$24="SV",Données1!AH87,Données1!AH71) -> 4.613023795 | BY71: =IF(Hypothèses!$J$24="SV",Données1!AI87,Données1!AI71) -> -1.883340561 | BZ71: =IF(Hypothèses!$J$24="SV",Données1!AJ87,Données1!AJ71) -> 0.7385390713 | CA71: =IF(Hypothèses!$J$24="SV",Données1!AK87,Données1!AK71) -> -0.03612508136 | CB71: =IF(Hypothèses!$J$24="SV",Données1!AL87,Données1!AL71) -> -2.515281638 | CC71: =IF(Hypothèses!$J$24="SV",Données1!AM87,Données1!AM71) -> 4.384517196 | CD71: =IF(Hypothèses!$J$24="SV",Données1!AN87,Données1!AN71) -> -1.687427437 | CE71: =IF(Hypothèses!$J$24="SV",Données1!AO87,Données1!AO71) -> 0.7126233894 | CF71: =IF(Hypothèses!$J$24="SV",Données1!AP87,Données1!AP71) -> -0.03376834927
B72: Juin | C72: -0.1056811351 | D72: -0.2927999045 | E72: 0.8230595169 | F72: 0.2987116716 | G72: -0.008606140437 | H72: 0.2325834052 | I72: -0.9508433241 | J72: 1.248715635 | K72: 0.3022123253 | L72: -0.008136776612 | M72: 0.07827987907 | N72: -0.6389057672 | O72: 1.031958616 | P72: 0.2934326255 | Q72: -0.008148868898 | R72: 0.07827987907 | S72: -0.6389057672 | T72: 1.031958616 | U72: 0.2934326255 | V72: -0.008148868898 | W72: 0.2335817163 | X72: -0.9475665732 | Y72: 1.239937104 | Z72: 0.2989787095 | AA72: -0.008044505861 | AB72: 0.09653852194 | AC72: -0.6747647665 | AD72: 1.055585222 | AE72: 0.2938235915 | AF72: -0.008129247711 | AG72: 0.09653852194 | AH72: -0.6747647665 | AI72: 1.055585222 | AJ72: 0.2938235915 | AK72: -0.008129247711 | AL72: 0.226104797 | AM72: -0.9373113379 | AN72: 1.238780612 | AO72: 0.3015824668 | AP72: -0.008129910709 | AR72: Juin | AS72: =IF(Hypothèses!$J$24="SV",Données1!C88,Données1!C72) -> -2.795981715 | AT72: =IF(Hypothèses!$J$24="SV",Données1!D88,Données1!D72) -> 4.995304665 | AU72: =IF(Hypothèses!$J$24="SV",Données1!E88,Données1!E72) -> -2.153583212 | AV72: =IF(Hypothèses!$J$24="SV",Données1!F88,Données1!F72) -> 0.7881006492 | AW72: =IF(Hypothèses!$J$24="SV",Données1!G88,Données1!G72) -> -0.03976016927 | AX72: =IF(Hypothèses!$J$24="SV",Données1!H88,Données1!H72) -> -2.493540039 | AY72: =IF(Hypothèses!$J$24="SV",Données1!I88,Données1!I72) -> 4.33787826 | AZ72: =IF(Hypothèses!$J$24="SV",Données1!J88,Données1!J72) -> -1.652900973 | BA72: =IF(Hypothèses!$J$24="SV",Données1!K88,Données1!K72) -> 0.7066786178 | BB72: =IF(Hypothèses!$J$24="SV",Données1!L88,Données1!L72) -> -0.03331354395 | BC72: =IF(Hypothèses!$J$24="SV",Données1!M88,Données1!M72) -> -2.579487583 | BD72: =IF(Hypothèses!$J$24="SV",Données1!N88,Données1!N72) -> 4.546210778 | BE72: =IF(Hypothèses!$J$24="SV",Données1!O88,Données1!O72) -> -1.844408307 | BF72: =IF(Hypothèses!$J$24="SV",Données1!P88,Données1!P72) -> 0.7290384159 | BG72: =IF(Hypothèses!$J$24="SV",Données1!Q88,Données1!Q72) -> -0.0355367327 | BH72: =IF(Hypothèses!$J$24="SV",Données1!R88,Données1!R72) -> -2.579487583 | BI72: =IF(Hypothèses!$J$24="SV",Données1!S88,Données1!S72) -> 4.546210778 | BJ72: =IF(Hypothèses!$J$24="SV",Données1!T88,Données1!T72) -> -1.844408307 | BK72: =IF(Hypothèses!$J$24="SV",Données1!U88,Données1!U72) -> 0.7290384159 | BL72: =IF(Hypothèses!$J$24="SV",Données1!V88,Données1!V72) -> -0.0355367327 | BM72: =IF(Hypothèses!$J$24="SV",Données1!W88,Données1!W72) -> -2.47533954 | BN72: =IF(Hypothèses!$J$24="SV",Données1!X88,Données1!X72) -> 4.305793994 | BO72: =IF(Hypothèses!$J$24="SV",Données1!Y88,Données1!Y72) -> -1.640066459 | BP72: =IF(Hypothèses!$J$24="SV",Données1!Z88,Données1!Z72) -> 0.7012263985 | BQ72: =IF(Hypothèses!$J$24="SV",Données1!AA88,Données1!AA72) -> -0.03305070754 | BR72: =IF(Hypothèses!$J$24="SV",Données1!AB88,Données1!AB72) -> -2.565188673 | BS72: =IF(Hypothèses!$J$24="SV",Données1!AC88,Données1!AC72) -> 4.514320327 | BT72: =IF(Hypothèses!$J$24="SV",Données1!AD88,Données1!AD72) -> -1.818903167 | BU72: =IF(Hypothèses!$J$24="SV",Données1!AE88,Données1!AE72) -> 0.7251916911 | BV72: =IF(Hypothèses!$J$24="SV",Données1!AF88,Données1!AF72) -> -0.03521621257 | BW72: =IF(Hypothèses!$J$24="SV",Données1!AG88,Données1!AG72) -> -2.565188673 | BX72: =IF(Hypothèses!$J$24="SV",Données1!AH88,Données1!AH72) -> 4.514320327 | BY72: =IF(Hypothèses!$J$24="SV",Données1!AI88,Données1!AI72) -> -1.818903167 | BZ72: =IF(Hypothèses!$J$24="SV",Données1!AJ88,Données1!AJ72) -> 0.7251916911 | CA72: =IF(Hypothèses!$J$24="SV",Données1!AK88,Données1!AK72) -> -0.03521621257 | CB72: =IF(Hypothèses!$J$24="SV",Données1!AL88,Données1!AL72) -> -2.494854405 | CC72: =IF(Hypothèses!$J$24="SV",Données1!AM88,Données1!AM72) -> 4.342556841 | CD72: =IF(Hypothèses!$J$24="SV",Données1!AN88,Données1!AN72) -> -1.659249357 | CE72: =IF(Hypothèses!$J$24="SV",Données1!AO88,Données1!AO72) -> 0.7069612877 | CF72: =IF(Hypothèses!$J$24="SV",Données1!AP88,Données1!AP72) -> -0.03337449052
B73: Juillet | C73: -0.1492368799 | D73: -0.196108962 | E73: 0.745273426 | F73: 0.2909091103 | G73: -0.008460108757 | H73: 0.2023655415 | I73: -0.8934295689 | J73: 1.213333644 | K73: 0.3027839862 | L73: -0.008203289098 | M73: 0.05085441079 | N73: -0.5877900147 | O73: 1.001751792 | P73: 0.2945561486 | Q73: -0.008226249828 | R73: 0.05085441079 | S73: -0.5877900147 | T73: 1.001751792 | U73: 0.2945561486 | V73: -0.008226249828 | W73: 0.2335817163 | X73: -0.9475665732 | Y73: 1.239937104 | Z73: 0.2989787095 | AA73: -0.008044505861 | AB73: 0.0558763784 | AC73: -0.5975792824 | AD73: 1.008107354 | AE73: 0.2946121364 | AF73: -0.008219443664 | AG73: 0.0558763784 | AH73: -0.5975792824 | AI73: 1.008107354 | AJ73: 0.2946121364 | AK73: -0.008219443664 | AL73: 0.2024192199 | AM73: -0.8931461586 | AN73: 1.212655834 | AO73: 0.3025451158 | AP73: -0.008196496757 | AR73: Juillet | AS73: =IF(Hypothèses!$J$24="SV",Données1!C89,Données1!C73) -> -2.784535594 | AT73: =IF(Hypothèses!$J$24="SV",Données1!D89,Données1!D73) -> 4.991577124 | AU73: =IF(Hypothèses!$J$24="SV",Données1!E89,Données1!E73) -> -2.182904127 | AV73: =IF(Hypothèses!$J$24="SV",Données1!F89,Données1!F73) -> 0.784486472 | AW73: =IF(Hypothèses!$J$24="SV",Données1!G89,Données1!G73) -> -0.03991001982 | AX73: =IF(Hypothèses!$J$24="SV",Données1!H89,Données1!H73) -> -2.521847463 | AY73: =IF(Hypothèses!$J$24="SV",Données1!I89,Données1!I73) -> 4.398560615 | AZ73: =IF(Hypothèses!$J$24="SV",Données1!J89,Données1!J73) -> -1.697767693 | BA73: =IF(Hypothèses!$J$24="SV",Données1!K89,Données1!K73) -> 0.7144076957 | BB73: =IF(Hypothèses!$J$24="SV",Données1!L89,Données1!L73) -> -0.03390446348 | BC73: =IF(Hypothèses!$J$24="SV",Données1!M89,Données1!M73) -> -2.610735773 | BD73: =IF(Hypothèses!$J$24="SV",Données1!N89,Données1!N73) -> 4.611106721 | BE73: =IF(Hypothèses!$J$24="SV",Données1!O89,Données1!O73) -> -1.889195881 | BF73: =IF(Hypothèses!$J$24="SV",Données1!P89,Données1!P73) -> 0.7375754486 | BG73: =IF(Hypothèses!$J$24="SV",Données1!Q89,Données1!Q73) -> -0.03614827172 | BH73: =IF(Hypothèses!$J$24="SV",Données1!R89,Données1!R73) -> -2.610735773 | BI73: =IF(Hypothèses!$J$24="SV",Données1!S89,Données1!S73) -> 4.611106721 | BJ73: =IF(Hypothèses!$J$24="SV",Données1!T89,Données1!T73) -> -1.889195881 | BK73: =IF(Hypothèses!$J$24="SV",Données1!U89,Données1!U73) -> 0.7375754486 | BL73: =IF(Hypothèses!$J$24="SV",Données1!V89,Données1!V73) -> -0.03614827172 | BM73: =IF(Hypothèses!$J$24="SV",Données1!W89,Données1!W73) -> -2.47533954 | BN73: =IF(Hypothèses!$J$24="SV",Données1!X89,Données1!X73) -> 4.305793994 | BO73: =IF(Hypothèses!$J$24="SV",Données1!Y89,Données1!Y73) -> -1.640066459 | BP73: =IF(Hypothèses!$J$24="SV",Données1!Z89,Données1!Z73) -> 0.7012263985 | BQ73: =IF(Hypothèses!$J$24="SV",Données1!AA89,Données1!AA73) -> -0.03305070754 | BR73: =IF(Hypothèses!$J$24="SV",Données1!AB89,Données1!AB73) -> -2.606980259 | BS73: =IF(Hypothèses!$J$24="SV",Données1!AC89,Données1!AC73) -> 4.602686763 | BT73: =IF(Hypothèses!$J$24="SV",Données1!AD89,Données1!AD73) -> -1.882397955 | BU73: =IF(Hypothèses!$J$24="SV",Données1!AE89,Données1!AE73) -> 0.7365637812 | BV73: =IF(Hypothèses!$J$24="SV",Données1!AF89,Données1!AF73) -> -0.03606317186 | BW73: =IF(Hypothèses!$J$24="SV",Données1!AG89,Données1!AG73) -> -2.606980259 | BX73: =IF(Hypothèses!$J$24="SV",Données1!AH89,Données1!AH73) -> 4.602686763 | BY73: =IF(Hypothèses!$J$24="SV",Données1!AI89,Données1!AI73) -> -1.882397955 | BZ73: =IF(Hypothèses!$J$24="SV",Données1!AJ89,Données1!AJ73) -> 0.7365637812 | CA73: =IF(Hypothèses!$J$24="SV",Données1!AK89,Données1!AK73) -> -0.03606317186 | CB73: =IF(Hypothèses!$J$24="SV",Données1!AL89,Données1!AL73) -> -2.520191059 | CC73: =IF(Hypothèses!$J$24="SV",Données1!AM89,Données1!AM73) -> 4.395638274 | CD73: =IF(Hypothèses!$J$24="SV",Données1!AN89,Données1!AN73) -> -1.696574099 | CE73: =IF(Hypothèses!$J$24="SV",Données1!AO89,Données1!AO73) -> 0.7139433154 | CF73: =IF(Hypothèses!$J$24="SV",Données1!AP89,Données1!AP73) -> -0.03388173086
B74: Août | C74: -0.05253757259 | D74: -0.3487834945 | E74: 0.7989294044 | F74: 0.2704011997 | G74: -0.007720207045 | H74: 0.1632436858 | I74: -0.8213324832 | J74: 1.17181973 | K74: 0.3049031268 | L74: -0.008328094726 | M74: 0.04033143089 | N74: -0.5768615735 | O74: 1.006857569 | P74: 0.3003748952 | Q74: -0.00840694866 | R74: 0.04033143089 | S74: -0.5768615735 | T74: 1.006857569 | U74: 0.3003748952 | V74: -0.00840694866 | W74: 0.2335817163 | X74: -0.9475665732 | Y74: 1.239937104 | Z74: 0.2989787095 | AA74: -0.008044505861 | AB74: 0.05832729862 | AC74: -0.6117714484 | AD74: 1.029311532 | AE74: 0.3004912924 | AF74: -0.00838007351 | AG74: 0.05832729862 | AH74: -0.6117714484 | AI74: 1.029311532 | AJ74: 0.3004912924 | AK74: -0.00838007351 | AL74: 0.1589846354 | AM74: -0.8117019631 | AN74: 1.163875426 | AO74: 0.3040299084 | AP74: -0.008310732439 | AR74: Août | AS74: =IF(Hypothèses!$J$24="SV",Données1!C90,Données1!C74) -> -2.529698289 | AT74: =IF(Hypothèses!$J$24="SV",Données1!D90,Données1!D74) -> 4.506550528 | AU74: =IF(Hypothèses!$J$24="SV",Données1!E90,Données1!E74) -> -1.918436925 | AV74: =IF(Hypothèses!$J$24="SV",Données1!F90,Données1!F74) -> 0.7139277844 | AW74: =IF(Hypothèses!$J$24="SV",Données1!G90,Données1!G74) -> -0.03575283637 | AX74: =IF(Hypothèses!$J$24="SV",Données1!H90,Données1!H74) -> -2.566430447 | AY74: =IF(Hypothèses!$J$24="SV",Données1!I90,Données1!I74) -> 4.490944512 | AZ74: =IF(Hypothèses!$J$24="SV",Données1!J90,Données1!J74) -> -1.761183698 | BA74: =IF(Hypothèses!$J$24="SV",Données1!K90,Données1!K74) -> 0.7266166041 | BB74: =IF(Hypothèses!$J$24="SV",Données1!L90,Données1!L74) -> -0.03477405788 | BC74: =IF(Hypothèses!$J$24="SV",Données1!M90,Données1!M74) -> -2.654551679 | BD74: =IF(Hypothèses!$J$24="SV",Données1!N90,Données1!N74) -> 4.691499518 | BE74: =IF(Hypothèses!$J$24="SV",Données1!O90,Données1!O74) -> -1.927762221 | BF74: =IF(Hypothèses!$J$24="SV",Données1!P90,Données1!P74) -> 0.7498728942 | BG74: =IF(Hypothèses!$J$24="SV",Données1!Q90,Données1!Q74) -> -0.03681067154 | BH74: =IF(Hypothèses!$J$24="SV",Données1!R90,Données1!R74) -> -2.654551679 | BI74: =IF(Hypothèses!$J$24="SV",Données1!S90,Données1!S74) -> 4.691499518 | BJ74: =IF(Hypothèses!$J$24="SV",Données1!T90,Données1!T74) -> -1.927762221 | BK74: =IF(Hypothèses!$J$24="SV",Données1!U90,Données1!U74) -> 0.7498728942 | BL74: =IF(Hypothèses!$J$24="SV",Données1!V90,Données1!V74) -> -0.03681067154 | BM74: =IF(Hypothèses!$J$24="SV",Données1!W90,Données1!W74) -> -2.47533954 | BN74: =IF(Hypothèses!$J$24="SV",Données1!X90,Données1!X74) -> 4.305793994 | BO74: =IF(Hypothèses!$J$24="SV",Données1!Y90,Données1!Y74) -> -1.640066459 | BP74: =IF(Hypothèses!$J$24="SV",Données1!Z90,Données1!Z74) -> 0.7012263985 | BQ74: =IF(Hypothèses!$J$24="SV",Données1!AA90,Données1!AA74) -> -0.03305070754 | BR74: =IF(Hypothèses!$J$24="SV",Données1!AB90,Données1!AB74) -> -2.638910458 | BS74: =IF(Hypothèses!$J$24="SV",Données1!AC90,Données1!AC74) -> 4.657370958 | BT74: =IF(Hypothèses!$J$24="SV",Données1!AD90,Données1!AD74) -> -1.901590721 | BU74: =IF(Hypothèses!$J$24="SV",Données1!AE90,Données1!AE74) -> 0.7456401579 | BV74: =IF(Hypothèses!$J$24="SV",Données1!AF90,Données1!AF74) -> -0.03647390254 | BW74: =IF(Hypothèses!$J$24="SV",Données1!AG90,Données1!AG74) -> -2.638910458 | BX74: =IF(Hypothèses!$J$24="SV",Données1!AH90,Données1!AH74) -> 4.657370958 | BY74: =IF(Hypothèses!$J$24="SV",Données1!AI90,Données1!AI74) -> -1.901590721 | BZ74: =IF(Hypothèses!$J$24="SV",Données1!AJ90,Données1!AJ74) -> 0.7456401579 | CA74: =IF(Hypothèses!$J$24="SV",Données1!AK90,Données1!AK74) -> -0.03647390254 | CB74: =IF(Hypothèses!$J$24="SV",Données1!AL90,Données1!AL74) -> -2.565013913 | CC74: =IF(Hypothèses!$J$24="SV",Données1!AM90,Données1!AM74) -> 4.490074244 | CD74: =IF(Hypothèses!$J$24="SV",Données1!AN90,Données1!AN74) -> -1.763903107 | CE74: =IF(Hypothèses!$J$24="SV",Données1!AO90,Données1!AO74) -> 0.7261417345 | CF74: =IF(Hypothèses!$J$24="SV",Données1!AP90,Données1!AP74) -> -0.03478351869
B75: Septembre | C75: 0.1867611331 | D75: -0.8264642648 | E75: 1.123428926 | F75: 0.2804132898 | G75: -0.007599429529 | H75: 0.08256512349 | I75: -0.6672146605 | J75: 1.075754737 | K75: 0.3058935171 | L75: -0.00849078555 | M75: 0.06556613263 | N75: -0.6360410842 | O75: 1.05801113 | P75: 0.3069071474 | Q75: -0.008547632145 | R75: 0.06556613263 | S75: -0.6360410842 | T75: 1.05801113 | U75: 0.3069071474 | V75: -0.008547632145 | W75: 0.1450435663 | X75: -0.7406050227 | Y75: 1.061899567 | Z75: 0.2771052656 | AA75: -0.007576444954 | AB75: 0.07256579493 | AC75: -0.6491507609 | AD75: 1.065843498 | AE75: 0.3066618336 | AF75: -0.008529032371 | AG75: 0.07256579493 | AH75: -0.6491507609 | AI75: 1.065843498 | AJ75: 0.3066618336 | AK75: -0.008529032371 | AL75: 0.09105392443 | AM75: -0.6833558242 | AN75: 1.08571959 | AO75: 0.3057465393 | AP75: -0.008472447209 | AR75: Septembre | AS75: =IF(Hypothèses!$J$24="SV",Données1!C91,Données1!C75) -> -2.360005923 | AT75: =IF(Hypothèses!$J$24="SV",Données1!D91,Données1!D75) -> 4.118424107 | AU75: =IF(Hypothèses!$J$24="SV",Données1!E91,Données1!E75) -> -1.593813464 | AV75: =IF(Hypothèses!$J$24="SV",Données1!F91,Données1!F75) -> 0.6683357657 | AW75: =IF(Hypothèses!$J$24="SV",Données1!G91,Données1!G75) -> -0.03176193911 | AX75: =IF(Hypothèses!$J$24="SV",Données1!H91,Données1!H75) -> -2.643342599 | AY75: =IF(Hypothèses!$J$24="SV",Données1!I91,Données1!I75) -> 4.655542381 | AZ75: =IF(Hypothèses!$J$24="SV",Données1!J91,Données1!J75) -> -1.882607871 | BA75: =IF(Hypothèses!$J$24="SV",Données1!K91,Données1!K75) -> 0.7473798428 | BB75: =IF(Hypothèses!$J$24="SV",Données1!L91,Données1!L75) -> -0.03636496503 | BC75: =IF(Hypothèses!$J$24="SV",Données1!M91,Données1!M75) -> -2.664647863 | BD75: =IF(Hypothèses!$J$24="SV",Données1!N91,Données1!N75) -> 4.699138479 | BE75: =IF(Hypothèses!$J$24="SV",Données1!O91,Données1!O75) -> -1.91167268 | BF75: =IF(Hypothèses!$J$24="SV",Données1!P91,Données1!P75) -> 0.7531969208 | BG75: =IF(Hypothèses!$J$24="SV",Données1!Q91,Données1!Q75) -> -0.0367690339 | BH75: =IF(Hypothèses!$J$24="SV",Données1!R91,Données1!R75) -> -2.664647863 | BI75: =IF(Hypothèses!$J$24="SV",Données1!S91,Données1!S75) -> 4.699138479 | BJ75: =IF(Hypothèses!$J$24="SV",Données1!T91,Données1!T75) -> -1.91167268 | BK75: =IF(Hypothèses!$J$24="SV",Données1!U91,Données1!U75) -> 0.7531969208 | BL75: =IF(Hypothèses!$J$24="SV",Données1!V91,Données1!V75) -> -0.0367690339 | BM75: =IF(Hypothèses!$J$24="SV",Données1!W91,Données1!W75) -> -2.37800007 | BN75: =IF(Hypothèses!$J$24="SV",Données1!X91,Données1!X75) -> 4.165682018 | BO75: =IF(Hypothèses!$J$24="SV",Données1!Y91,Données1!Y75) -> -1.642114741 | BP75: =IF(Hypothèses!$J$24="SV",Données1!Z91,Données1!Z75) -> 0.6730858796 | BQ75: =IF(Hypothèses!$J$24="SV",Données1!AA91,Données1!AA75) -> -0.03230140635 | BR75: =IF(Hypothèses!$J$24="SV",Données1!AB91,Données1!AB75) -> -2.656664546 | BS75: =IF(Hypothèses!$J$24="SV",Données1!AC91,Données1!AC75) -> 4.682543374 | BT75: =IF(Hypothèses!$J$24="SV",Données1!AD91,Données1!AD75) -> -1.900190447 | BU75: =IF(Hypothèses!$J$24="SV",Données1!AE91,Données1!AE75) -> 0.7510236205 | BV75: =IF(Hypothèses!$J$24="SV",Données1!AF91,Données1!AF75) -> -0.03661279567 | BW75: =IF(Hypothèses!$J$24="SV",Données1!AG91,Données1!AG75) -> -2.656664546 | BX75: =IF(Hypothèses!$J$24="SV",Données1!AH91,Données1!AH75) -> 4.682543374 | BY75: =IF(Hypothèses!$J$24="SV",Données1!AI91,Données1!AI75) -> -1.900190447 | BZ75: =IF(Hypothèses!$J$24="SV",Données1!AJ91,Données1!AJ75) -> 0.7510236205 | CA75: =IF(Hypothèses!$J$24="SV",Données1!AK91,Données1!AK75) -> -0.03661279567 | CB75: =IF(Hypothèses!$J$24="SV",Données1!AL91,Données1!AL75) -> -2.634525077 | CC75: =IF(Hypothèses!$J$24="SV",Données1!AM91,Données1!AM75) -> 4.636921846 | CD75: =IF(Hypothèses!$J$24="SV",Données1!AN91,Données1!AN75) -> -1.86925928 | CE75: =IF(Hypothèses!$J$24="SV",Données1!AO91,Données1!AO75) -> 0.7449894912 | CF75: =IF(Hypothèses!$J$24="SV",Données1!AP91,Données1!AP75) -> -0.03618708172
B76: Octobre | C76: 0.2335817163 | D76: -0.9475665732 | E76: 1.239937104 | F76: 0.2989787095 | G76: -0.008044505861 | H76: 0.0647380415 | I76: -0.6243592775 | J76: 1.037604742 | K76: 0.30063848 | L76: -0.008373393324 | M76: 0.1386255932 | N76: -0.7749276986 | O76: 1.14370339 | P76: 0.3055920208 | Q76: -0.008388572881 | R76: 0.1386255932 | S76: -0.7749276986 | T76: 1.14370339 | U76: 0.3055920208 | V76: -0.008388572881 | W76: -0.09599440057 | X76: -0.2734166662 | Y76: 0.7618486164 | Z76: 0.2755080467 | AA76: -0.007937051512 | AB76: 0.1692228386 | AC76: -0.8349836077 | AD76: 1.183225037 | AE76: 0.306212313 | AF76: -0.008354792206 | AG76: 0.1692228386 | AH76: -0.8349836077 | AI76: 1.183225037 | AJ76: 0.306212313 | AK76: -0.008354792206 | AL76: 0.04632750657 | AM76: -0.5908978405 | AN76: 1.018965245 | AO76: 0.3019201047 | AP76: -0.00844012901 | AR76: Octobre | AS76: =IF(Hypothèses!$J$24="SV",Données1!C92,Données1!C76) -> -2.47533954 | AT76: =IF(Hypothèses!$J$24="SV",Données1!D92,Données1!D76) -> 4.305793994 | AU76: =IF(Hypothèses!$J$24="SV",Données1!E92,Données1!E76) -> -1.640066459 | AV76: =IF(Hypothèses!$J$24="SV",Données1!F92,Données1!F76) -> 0.7012263985 | AW76: =IF(Hypothèses!$J$24="SV",Données1!G92,Données1!G76) -> -0.03305070754 | AX76: =IF(Hypothèses!$J$24="SV",Données1!H92,Données1!H76) -> -2.632337267 | AY76: =IF(Hypothèses!$J$24="SV",Données1!I92,Données1!I76) -> 4.643351376 | AZ76: =IF(Hypothèses!$J$24="SV",Données1!J92,Données1!J76) -> -1.891308528 | BA76: =IF(Hypothèses!$J$24="SV",Données1!K92,Données1!K76) -> 0.7438855629 | BB76: =IF(Hypothèses!$J$24="SV",Données1!L92,Données1!L76) -> -0.03633964199 | BC76: =IF(Hypothèses!$J$24="SV",Données1!M92,Données1!M76) -> -2.591442924 | BD76: =IF(Hypothèses!$J$24="SV",Données1!N92,Données1!N76) -> 4.543818442 | BE76: =IF(Hypothèses!$J$24="SV",Données1!O92,Données1!O76) -> -1.799163198 | BF76: =IF(Hypothèses!$J$24="SV",Données1!P92,Données1!P76) -> 0.7334087964 | BG76: =IF(Hypothèses!$J$24="SV",Données1!Q92,Données1!Q76) -> -0.03528015066 | BH76: =IF(Hypothèses!$J$24="SV",Données1!R92,Données1!R76) -> -2.591442924 | BI76: =IF(Hypothèses!$J$24="SV",Données1!S92,Données1!S76) -> 4.543818442 | BJ76: =IF(Hypothèses!$J$24="SV",Données1!T92,Données1!T76) -> -1.799163198 | BK76: =IF(Hypothèses!$J$24="SV",Données1!U92,Données1!U76) -> 0.7334087964 | BL76: =IF(Hypothèses!$J$24="SV",Données1!V92,Données1!V76) -> -0.03528015066 | BM76: =IF(Hypothèses!$J$24="SV",Données1!W92,Données1!W76) -> -2.612447191 | BN76: =IF(Hypothèses!$J$24="SV",Données1!X92,Données1!X76) -> 4.668495175 | BO76: =IF(Hypothèses!$J$24="SV",Données1!Y92,Données1!Y76) -> -2.014474146 | BP76: =IF(Hypothèses!$J$24="SV",Données1!Z92,Données1!Z76) -> 0.7367174061 | BQ76: =IF(Hypothèses!$J$24="SV",Données1!AA92,Données1!AA76) -> -0.03718521007 | BR76: =IF(Hypothèses!$J$24="SV",Données1!AB92,Données1!AB76) -> -2.567926191 | BS76: =IF(Hypothèses!$J$24="SV",Données1!AC92,Données1!AC76) -> 4.491248221 | BT76: =IF(Hypothèses!$J$24="SV",Données1!AD92,Données1!AD76) -> -1.756884758 | BU76: =IF(Hypothèses!$J$24="SV",Données1!AE92,Données1!AE76) -> 0.7271708255 | BV76: =IF(Hypothèses!$J$24="SV",Données1!AF92,Données1!AF76) -> -0.03475406143 | BW76: =IF(Hypothèses!$J$24="SV",Données1!AG92,Données1!AG76) -> -2.567926191 | BX76: =IF(Hypothèses!$J$24="SV",Données1!AH92,Données1!AH76) -> 4.491248221 | BY76: =IF(Hypothèses!$J$24="SV",Données1!AI92,Données1!AI76) -> -1.756884758 | BZ76: =IF(Hypothèses!$J$24="SV",Données1!AJ92,Données1!AJ76) -> 0.7271708255 | CA76: =IF(Hypothèses!$J$24="SV",Données1!AK92,Données1!AK76) -> -0.03475406143 | CB76: =IF(Hypothèses!$J$24="SV",Données1!AL92,Données1!AL76) -> -2.656233494 | CC76: =IF(Hypothèses!$J$24="SV",Données1!AM92,Données1!AM76) -> 4.69200176 | CD76: =IF(Hypothèses!$J$24="SV",Données1!AN92,Données1!AN76) -> -1.923316697 | CE76: =IF(Hypothèses!$J$24="SV",Données1!AO92,Données1!AO76) -> 0.7504581848 | CF76: =IF(Hypothèses!$J$24="SV",Données1!AP92,Données1!AP76) -> -0.03678986773
B77: Novembre | C77: 0.2335817163 | D77: -0.9475665732 | E77: 1.239937104 | F77: 0.2989787095 | G77: -0.008044505861 | H77: 0.0747292863 | I77: -0.6329261078 | J77: 1.029278343 | K77: 0.2939911715 | L77: -0.008170361245 | M77: 0.2172374315 | N77: -0.9222042008 | O77: 1.231744337 | P77: 0.3028290529 | Q77: -0.008179673627 | R77: 0.2172374315 | S77: -0.9222042008 | T77: 1.231744337 | U77: 0.3028290529 | V77: -0.008179673627 | W77: -0.15230082 | X77: -0.2133567036 | Y77: 0.786026283 | Z77: 0.3052307499 | AA77: -0.008866932286 | AB77: 0.2560102556 | AC77: -0.9963961506 | AD77: 1.278151018 | AE77: 0.302423404 | AF77: -0.008103502813 | AG77: 0.2560102556 | AH77: -0.9963961506 | AI77: 1.278151018 | AJ77: 0.302423404 | AK77: -0.008103502813 | AL77: 0.03753602556 | AM77: -0.5627453622 | AN77: 0.9866570321 | AO77: 0.2949671046 | AP77: -0.008260035977 | AR77: Novembre | AS77: =IF(Hypothèses!$J$24="SV",Données1!C93,Données1!C77) -> -2.47533954 | AT77: =IF(Hypothèses!$J$24="SV",Données1!D93,Données1!D77) -> 4.305793994 | AU77: =IF(Hypothèses!$J$24="SV",Données1!E93,Données1!E77) -> -1.640066459 | AV77: =IF(Hypothèses!$J$24="SV",Données1!F93,Données1!F77) -> 0.7012263985 | AW77: =IF(Hypothèses!$J$24="SV",Données1!G93,Données1!G77) -> -0.03305070754 | AX77: =IF(Hypothèses!$J$24="SV",Données1!H93,Données1!H77) -> -2.584578608 | AY77: =IF(Hypothèses!$J$24="SV",Données1!I93,Données1!I77) -> 4.5563122 | AZ77: =IF(Hypothèses!$J$24="SV",Données1!J93,Données1!J77) -> -1.850623531 | BA77: =IF(Hypothèses!$J$24="SV",Données1!K93,Données1!K77) -> 0.7304500081 | BB77: =IF(Hypothèses!$J$24="SV",Données1!L93,Données1!L77) -> -0.03562792957 | BC77: =IF(Hypothèses!$J$24="SV",Données1!M93,Données1!M77) -> -2.508859474 | BD77: =IF(Hypothèses!$J$24="SV",Données1!N93,Données1!N77) -> 4.37028623 | BE77: =IF(Hypothèses!$J$24="SV",Données1!O93,Données1!O77) -> -1.676158277 | BF77: =IF(Hypothèses!$J$24="SV",Données1!P93,Données1!P77) -> 0.7109317405 | BG77: =IF(Hypothèses!$J$24="SV",Données1!Q93,Données1!Q77) -> -0.03362759774 | BH77: =IF(Hypothèses!$J$24="SV",Données1!R93,Données1!R77) -> -2.508859474 | BI77: =IF(Hypothèses!$J$24="SV",Données1!S93,Données1!S77) -> 4.37028623 | BJ77: =IF(Hypothèses!$J$24="SV",Données1!T93,Données1!T77) -> -1.676158277 | BK77: =IF(Hypothèses!$J$24="SV",Données1!U93,Données1!U77) -> 0.7109317405 | BL77: =IF(Hypothèses!$J$24="SV",Données1!V93,Données1!V77) -> -0.03362759774 | BM77: =IF(Hypothèses!$J$24="SV",Données1!W93,Données1!W77) -> -2.878023752 | BN77: =IF(Hypothèses!$J$24="SV",Données1!X93,Données1!X77) -> 5.156166643 | BO77: =IF(Hypothèses!$J$24="SV",Données1!Y93,Données1!Y77) -> -2.24943588 | BP77: =IF(Hypothèses!$J$24="SV",Données1!Z93,Données1!Z77) -> 0.8107676762 | BQ77: =IF(Hypothèses!$J$24="SV",Données1!AA93,Données1!AA77) -> -0.04118899655 | BR77: =IF(Hypothèses!$J$24="SV",Données1!AB93,Données1!AB77) -> -2.474089479 | BS77: =IF(Hypothèses!$J$24="SV",Données1!AC93,Données1!AC77) -> 4.295125387 | BT77: =IF(Hypothèses!$J$24="SV",Données1!AD93,Données1!AD77) -> -1.619569502 | BU77: =IF(Hypothèses!$J$24="SV",Données1!AE93,Données1!AE77) -> 0.7015383385 | BV77: =IF(Hypothèses!$J$24="SV",Données1!AF93,Données1!AF77) -> -0.0328934187 | BW77: =IF(Hypothèses!$J$24="SV",Données1!AG93,Données1!AG77) -> -2.474089479 | BX77: =IF(Hypothèses!$J$24="SV",Données1!AH93,Données1!AH77) -> 4.295125387 | BY77: =IF(Hypothèses!$J$24="SV",Données1!AI93,Données1!AI77) -> -1.619569502 | BZ77: =IF(Hypothèses!$J$24="SV",Données1!AJ93,Données1!AJ77) -> 0.7015383385 | CA77: =IF(Hypothèses!$J$24="SV",Données1!AK93,Données1!AK77) -> -0.0328934187 | CB77: =IF(Hypothèses!$J$24="SV",Données1!AL93,Données1!AL77) -> -2.624786209 | CC77: =IF(Hypothèses!$J$24="SV",Données1!AM93,Données1!AM77) -> 4.640637217 | CD77: =IF(Hypothèses!$J$24="SV",Données1!AN93,Données1!AN77) -> -1.910130811 | CE77: =IF(Hypothèses!$J$24="SV",Données1!AO93,Données1!AO77) -> 0.7414108773 | CF77: =IF(Hypothèses!$J$24="SV",Données1!AP93,Données1!AP77) -> -0.03642999309
B78: Décembre | C78: 0.2335817163 | D78: -0.9475665732 | E78: 1.239937104 | F78: 0.2989787095 | G78: -0.008044505861 | H78: 0.1242786855 | I78: -0.7267789743 | J78: 1.086745065 | K78: 0.2929104516 | L78: -0.008057058166 | M78: 0.2650341387 | N78: -1.010776816 | O78: 1.283402227 | P78: 0.3005389379 | Q78: -0.008035597923 | R78: 0.2650341387 | S78: -1.010776816 | T78: 1.283402227 | U78: 0.3005389379 | V78: -0.008035597923 | W78: -0.03597697437 | X78: -0.4501895349 | Y78: 0.9526819731 | Z78: 0.3130269291 | AA78: -0.008889986195 | AB78: 0.2648167469 | AC78: -1.010361743 | AD78: 1.283143091 | AE78: 0.3005387362 | AF78: -0.008035973852 | AG78: 0.2648167469 | AH78: -1.010361743 | AI78: 1.283143091 | AJ78: 0.3005387362 | AK78: -0.008035973852 | AL78: 0.1249886098 | AM78: -0.7288021049 | AN78: 1.088871824 | AO78: 0.2933117444 | AP78: -0.008067141212 | AR78: Décembre | AS78: =IF(Hypothèses!$J$24="SV",Données1!C94,Données1!C78) -> -2.47533954 | AT78: =IF(Hypothèses!$J$24="SV",Données1!D94,Données1!D78) -> 4.305793994 | AU78: =IF(Hypothèses!$J$24="SV",Données1!E94,Données1!E78) -> -1.640066459 | AV78: =IF(Hypothèses!$J$24="SV",Données1!F94,Données1!F78) -> 0.7012263985 | AW78: =IF(Hypothèses!$J$24="SV",Données1!G94,Données1!G78) -> -0.03305070754 | AX78: =IF(Hypothèses!$J$24="SV",Données1!H94,Données1!H78) -> -2.532460277 | AY78: =IF(Hypothèses!$J$24="SV",Données1!I94,Données1!I78) -> 4.446510768 | AZ78: =IF(Hypothèses!$J$24="SV",Données1!J94,Données1!J78) -> -1.772352026 | BA78: =IF(Hypothèses!$J$24="SV",Données1!K94,Données1!K78) -> 0.7162591422 | BB78: =IF(Hypothèses!$J$24="SV",Données1!L94,Données1!L78) -> -0.03457919408 | BC78: =IF(Hypothèses!$J$24="SV",Données1!M94,Données1!M78) -> -2.456362694 | BD78: =IF(Hypothèses!$J$24="SV",Données1!N94,Données1!N78) -> 4.260841957 | BE78: =IF(Hypothèses!$J$24="SV",Données1!O94,Données1!O78) -> -1.60004661 | BF78: =IF(Hypothèses!$J$24="SV",Données1!P94,Données1!P78) -> 0.6964603719 | BG78: =IF(Hypothèses!$J$24="SV",Données1!Q94,Données1!Q78) -> -0.03258698291 | BH78: =IF(Hypothèses!$J$24="SV",Données1!R94,Données1!R78) -> -2.456362694 | BI78: =IF(Hypothèses!$J$24="SV",Données1!S94,Données1!S78) -> 4.260841957 | BJ78: =IF(Hypothèses!$J$24="SV",Données1!T94,Données1!T78) -> -1.60004661 | BK78: =IF(Hypothèses!$J$24="SV",Données1!U94,Données1!U78) -> 0.6964603719 | BL78: =IF(Hypothèses!$J$24="SV",Données1!V94,Données1!V78) -> -0.03258698291 | BM78: =IF(Hypothèses!$J$24="SV",Données1!W94,Données1!W78) -> -2.809842333 | BN78: =IF(Hypothèses!$J$24="SV",Données1!X94,Données1!X78) -> 4.992207603 | BO78: =IF(Hypothèses!$J$24="SV",Données1!Y94,Données1!Y78) -> -2.100609698 | BP78: =IF(Hypothèses!$J$24="SV",Données1!Z94,Données1!Z78) -> 0.7928273052 | BQ78: =IF(Hypothèses!$J$24="SV",Données1!AA94,Données1!AA78) -> -0.03944315701 | BR78: =IF(Hypothèses!$J$24="SV",Données1!AB94,Données1!AB78) -> -2.457125949 | BS78: =IF(Hypothèses!$J$24="SV",Données1!AC94,Données1!AC78) -> 4.262288928 | BT78: =IF(Hypothèses!$J$24="SV",Données1!AD94,Données1!AD78) -> -1.600842811 | BU78: =IF(Hypothèses!$J$24="SV",Données1!AE94,Données1!AE78) -> 0.6966447246 | BV78: =IF(Hypothèses!$J$24="SV",Données1!AF94,Données1!AF78) -> -0.03259827524 | BW78: =IF(Hypothèses!$J$24="SV",Données1!AG94,Données1!AG78) -> -2.457125949 | BX78: =IF(Hypothèses!$J$24="SV",Données1!AH94,Données1!AH78) -> 4.262288928 | BY78: =IF(Hypothèses!$J$24="SV",Données1!AI94,Données1!AI78) -> -1.600842811 | BZ78: =IF(Hypothèses!$J$24="SV",Données1!AJ94,Données1!AJ78) -> 0.6966447246 | CA78: =IF(Hypothèses!$J$24="SV",Données1!AK94,Données1!AK78) -> -0.03259827524 | CB78: =IF(Hypothèses!$J$24="SV",Données1!AL94,Données1!AL78) -> -2.534567708 | CC78: =IF(Hypothèses!$J$24="SV",Données1!AM94,Données1!AM78) -> 4.449945002 | CD78: =IF(Hypothèses!$J$24="SV",Données1!AN94,Données1!AN78) -> -1.773222941 | CE78: =IF(Hypothèses!$J$24="SV",Données1!AO94,Données1!AO78) -> 0.7168571041 | CF78: =IF(Hypothèses!$J$24="SV",Données1!AP94,Données1!AP78) -> -0.03460283162
B80: SV | C80: ORIENTATION | AR80: Tampon 1 | AS80: ORIENTATION
C81: NORD | H81: NORD-EST | M81: EST | R81: SUD-EST | W81: SUD | AB81: SUD-OUEST | AG81: OUEST | AL81: NORD-OUEST | AS81: NORD | AX81: NORD-EST | BC81: EST | BH81: SUD-EST | BM81: SUD | BR81: SUD-OUEST | BW81: OUEST | CB81: NORD-OUEST
C82: a | D82: b | E82: c | F82: d | G82: e | H82: a | I82: b | J82: c | K82: d | L82: e | M82: a | N82: b | O82: c | P82: d | Q82: e | R82: a | S82: b | T82: c | U82: d | V82: e | W82: a | X82: b | Y82: c | Z82: d | AA82: e | AB82: a | AC82: b | AD82: c | AE82: d | AF82: e | AG82: a | AH82: b | AI82: c | AJ82: d | AK82: e | AL82: a | AM82: b | AN82: c | AO82: d | AP82: e | AS82: a | AT82: b | AU82: c | AV82: d | AW82: e | AX82: a | AY82: b | AZ82: c | BA82: d | BB82: e | BC82: a | BD82: b | BE82: c | BF82: d | BG82: e | BH82: a | BI82: b | BJ82: c | BK82: d | BL82: e | BM82: a | BN82: b | BO82: c | BP82: d | BQ82: e | BR82: a | BS82: b | BT82: c | BU82: d | BV82: e | BW82: a | BX82: b | BY82: c | BZ82: d | CA82: e | CB82: a | CC82: b | CD82: c | CE82: d | CF82: e
B83: Janvier | C83: -2.47533954 | D83: 4.305793994 | E83: -1.640066459 | F83: 0.7012263985 | G83: -0.03305070754 | H83: -2.545155165 | I83: 4.467502026 | J83: -1.778286653 | K83: 0.7198615746 | L83: -0.03472755316 | M83: -2.479354477 | N83: 4.308377697 | O83: -1.632500479 | P83: 0.7027677097 | Q83: -0.03303376723 | R83: -2.479354477 | S83: 4.308377697 | T83: -1.632500479 | U83: 0.7027677097 | V83: -0.03303376723 | W83: -2.777785029 | X83: 4.935337324 | Y83: -2.076849472 | Z83: 0.7837633561 | AA83: -0.03899410464 | AB83: -2.46817316 | AC83: 4.287459605 | AD83: -1.621760554 | AE83: 0.6996067107 | AF83: -0.03285595213 | AG83: -2.46817316 | AH83: 4.287459605 | AI83: -1.621760554 | AJ83: 0.6996067107 | AK83: -0.03285595213 | AL83: -2.541236893 | AM83: 4.45818349 | AN83: -1.769975886 | AO83: 0.7188202082 | AP83: -0.0346288568 | AR83: Janvier | AS83: =IF(Hypothèses!$J$24="SV",Données1!C116,Données1!C100) -> -2.452322896 | AT83: =IF(Hypothèses!$J$24="SV",Données1!D116,Données1!D100) -> 4.267758784 | AU83: =IF(Hypothèses!$J$24="SV",Données1!E116,Données1!E100) -> -1.629371381 | AV83: =IF(Hypothèses!$J$24="SV",Données1!F116,Données1!F100) -> 0.6946759407 | AW83: =IF(Hypothèses!$J$24="SV",Données1!G116,Données1!G100) -> -0.03278144132 | AX83: =IF(Hypothèses!$J$24="SV",Données1!H116,Données1!H100) -> -2.753056594 | AY83: =IF(Hypothèses!$J$24="SV",Données1!I116,Données1!I100) -> 4.893323797 | AZ83: =IF(Hypothèses!$J$24="SV",Données1!J116,Données1!J100) -> -2.062692125 | BA83: =IF(Hypothèses!$J$24="SV",Données1!K116,Données1!K100) -> 0.7768237278 | BB83: =IF(Hypothèses!$J$24="SV",Données1!L116,Données1!L100) -> -0.03868608946 | BC83: =IF(Hypothèses!$J$24="SV",Données1!M116,Données1!M100) -> -2.531098762 | BD83: =IF(Hypothèses!$J$24="SV",Données1!N116,Données1!N100) -> 4.415213948 | BE83: =IF(Hypothèses!$J$24="SV",Données1!O116,Données1!O100) -> -1.705173134 | BF83: =IF(Hypothèses!$J$24="SV",Données1!P116,Données1!P100) -> 0.7170207824 | BG83: =IF(Hypothèses!$J$24="SV",Données1!Q116,Données1!Q100) -> -0.03403868046 | BH83: =IF(Hypothèses!$J$24="SV",Données1!R116,Données1!R100) -> -2.531098762 | BI83: =IF(Hypothèses!$J$24="SV",Données1!S116,Données1!S100) -> 4.415213948 | BJ83: =IF(Hypothèses!$J$24="SV",Données1!T116,Données1!T100) -> -1.705173134 | BK83: =IF(Hypothèses!$J$24="SV",Données1!U116,Données1!U100) -> 0.7170207824 | BL83: =IF(Hypothèses!$J$24="SV",Données1!V116,Données1!V100) -> -0.03403868046 | BM83: =IF(Hypothèses!$J$24="SV",Données1!W116,Données1!W100) -> -2.504671071 | BN83: =IF(Hypothèses!$J$24="SV",Données1!X116,Données1!X100) -> 4.446037457 | BO83: =IF(Hypothèses!$J$24="SV",Données1!Y116,Données1!Y100) -> -1.863141614 | BP83: =IF(Hypothèses!$J$24="SV",Données1!Z116,Données1!Z100) -> 0.7072168433 | BQ83: =IF(Hypothèses!$J$24="SV",Données1!AA116,Données1!AA100) -> -0.03510067489 | BR83: =IF(Hypothèses!$J$24="SV",Données1!AB116,Données1!AB100) -> -2.531748877 | BS83: =IF(Hypothèses!$J$24="SV",Données1!AC116,Données1!AC100) -> 4.419125307 | BT83: =IF(Hypothèses!$J$24="SV",Données1!AD116,Données1!AD100) -> -1.711982596 | BU83: =IF(Hypothèses!$J$24="SV",Données1!AE116,Données1!AE100) -> 0.7170813241 | BV83: =IF(Hypothèses!$J$24="SV",Données1!AF116,Données1!AF100) -> -0.03409704771 | BW83: =IF(Hypothèses!$J$24="SV",Données1!AG116,Données1!AG100) -> -2.531748877 | BX83: =IF(Hypothèses!$J$24="SV",Données1!AH116,Données1!AH100) -> 4.419125307 | BY83: =IF(Hypothèses!$J$24="SV",Données1!AI116,Données1!AI100) -> -1.711982596 | BZ83: =IF(Hypothèses!$J$24="SV",Données1!AJ116,Données1!AJ100) -> 0.7170813241 | CA83: =IF(Hypothèses!$J$24="SV",Données1!AK116,Données1!AK100) -> -0.03409704771 | CB83: =IF(Hypothèses!$J$24="SV",Données1!AL116,Données1!AL100) -> -2.70596158 | CC83: =IF(Hypothèses!$J$24="SV",Données1!AM116,Données1!AM100) -> 4.796446857 | CD83: =IF(Hypothèses!$J$24="SV",Données1!AN116,Données1!AN100) -> -1.997312677 | CE83: =IF(Hypothèses!$J$24="SV",Données1!AO116,Données1!AO100) -> 0.7639338573 | CF83: =IF(Hypothèses!$J$24="SV",Données1!AP116,Données1!AP100) -> -0.03778172554
B84: Février | C84: -2.47533954 | D84: 4.305793994 | E84: -1.640066459 | F84: 0.7012263985 | G84: -0.03305070754 | H84: -2.582952392 | I84: 4.54027025 | J84: -1.81937305 | K84: 0.7303565855 | L84: -0.03536155438 | M84: -2.531721967 | N84: 4.416645811 | O84: -1.706402563 | P84: 0.717152439 | Q84: -0.0340520751 | R84: -2.531721967 | S84: 4.416645811 | T84: -1.706402563 | U84: 0.717152439 | V84: -0.0340520751 | W84: -2.673818433 | X84: 4.754115295 | Y84: -2.007006598 | Z84: 0.7544846174 | AA84: -0.0376053327 | AB84: -2.5177469 | AC84: 4.390700124 | AD84: -1.693424342 | AE84: 0.7132106626 | AF84: -0.03383408049 | AG84: -2.5177469 | AH84: 4.390700124 | AI84: -1.693424342 | AJ84: 0.7132106626 | AK84: -0.03383408049 | AL84: -2.570454289 | AM84: 4.512841864 | AN84: -1.798104444 | AO84: 0.7269717102 | AP84: -0.03508925836 | AR84: Février | AS84: =IF(Hypothèses!$J$24="SV",Données1!C117,Données1!C101) -> -2.419636781 | AT84: =IF(Hypothèses!$J$24="SV",Données1!D117,Données1!D101) -> 4.248522476 | AU84: =IF(Hypothèses!$J$24="SV",Données1!E117,Données1!E101) -> -1.693501491 | AV84: =IF(Hypothèses!$J$24="SV",Données1!F117,Données1!F101) -> 0.6845629747 | AW84: =IF(Hypothèses!$J$24="SV",Données1!G117,Données1!G101) -> -0.03304907195 | AX84: =IF(Hypothèses!$J$24="SV",Données1!H117,Données1!H101) -> -2.668198729 | AY84: =IF(Hypothèses!$J$24="SV",Données1!I117,Données1!I101) -> 4.705687781 | AZ84: =IF(Hypothèses!$J$24="SV",Données1!J117,Données1!J101) -> -1.914954398 | BA84: =IF(Hypothèses!$J$24="SV",Données1!K117,Données1!K101) -> 0.7540689946 | BB84: =IF(Hypothèses!$J$24="SV",Données1!L117,Données1!L101) -> -0.0368185541 | BC84: =IF(Hypothèses!$J$24="SV",Données1!M117,Données1!M101) -> -2.585066023 | BD84: =IF(Hypothèses!$J$24="SV",Données1!N117,Données1!N101) -> 4.533684358 | BE84: =IF(Hypothèses!$J$24="SV",Données1!O117,Données1!O101) -> -1.797204259 | BF84: =IF(Hypothèses!$J$24="SV",Données1!P117,Données1!P101) -> 0.731452889 | BG84: =IF(Hypothèses!$J$24="SV",Données1!Q117,Données1!Q101) -> -0.03520798766 | BH84: =IF(Hypothèses!$J$24="SV",Données1!R117,Données1!R101) -> -2.585066023 | BI84: =IF(Hypothèses!$J$24="SV",Données1!S117,Données1!S101) -> 4.533684358 | BJ84: =IF(Hypothèses!$J$24="SV",Données1!T117,Données1!T101) -> -1.797204259 | BK84: =IF(Hypothèses!$J$24="SV",Données1!U117,Données1!U101) -> 0.731452889 | BL84: =IF(Hypothèses!$J$24="SV",Données1!V117,Données1!V101) -> -0.03520798766 | BM84: =IF(Hypothèses!$J$24="SV",Données1!W117,Données1!W101) -> -2.443152188 | BN84: =IF(Hypothèses!$J$24="SV",Données1!X117,Données1!X101) -> 4.265702241 | BO84: =IF(Hypothèses!$J$24="SV",Données1!Y117,Données1!Y101) -> -1.654986079 | BP84: =IF(Hypothèses!$J$24="SV",Données1!Z117,Données1!Z101) -> 0.6917561155 | BQ84: =IF(Hypothèses!$J$24="SV",Données1!AA117,Données1!AA101) -> -0.0329187897 | BR84: =IF(Hypothèses!$J$24="SV",Données1!AB117,Données1!AB101) -> -2.579335264 | BS84: =IF(Hypothèses!$J$24="SV",Données1!AC117,Données1!AC101) -> 4.522206463 | BT84: =IF(Hypothèses!$J$24="SV",Données1!AD117,Données1!AD101) -> -1.78996477 | BU84: =IF(Hypothèses!$J$24="SV",Données1!AE117,Données1!AE101) -> 0.7298647024 | BV84: =IF(Hypothèses!$J$24="SV",Données1!AF117,Données1!AF101) -> -0.0351032622 | BW84: =IF(Hypothèses!$J$24="SV",Données1!AG117,Données1!AG101) -> -2.579335264 | BX84: =IF(Hypothèses!$J$24="SV",Données1!AH117,Données1!AH101) -> 4.522206463 | BY84: =IF(Hypothèses!$J$24="SV",Données1!AI117,Données1!AI101) -> -1.78996477 | BZ84: =IF(Hypothèses!$J$24="SV",Données1!AJ117,Données1!AJ101) -> 0.7298647024 | CA84: =IF(Hypothèses!$J$24="SV",Données1!AK117,Données1!AK101) -> -0.0351032622 | CB84: =IF(Hypothèses!$J$24="SV",Données1!AL117,Données1!AL101) -> -2.655057584 | CC84: =IF(Hypothèses!$J$24="SV",Données1!AM117,Données1!AM101) -> 4.678728454 | CD84: =IF(Hypothèses!$J$24="SV",Données1!AN117,Données1!AN101) -> -1.896871908 | CE84: =IF(Hypothèses!$J$24="SV",Données1!AO117,Données1!AO101) -> 0.7504787574 | CF84: =IF(Hypothèses!$J$24="SV",Données1!AP117,Données1!AP101) -> -0.03656788142
B85: Mars | C85: -2.439167806 | D85: 4.245242863 | E85: -1.621489691 | F85: 0.6909450914 | G85: -0.03261282354 | H85: -2.605671539 | I85: 4.577390662 | J85: -1.82885818 | K85: 0.7370007611 | L85: -0.0356259698 | M85: -2.61063476 | N85: 4.584884268 | O85: -1.829533122 | P85: 0.7384553886 | Q85: -0.03567179097 | R85: -2.61063476 | S85: 4.584884268 | T85: -1.829533122 | U85: 0.7384553886 | V85: -0.03567179097 | W85: -2.436807361 | X85: 4.261895659 | Y85: -1.667263041 | Z85: 0.6898044118 | AA85: -0.03296975982 | AB85: -2.609916336 | AC85: 4.583358215 | AD85: -1.828425318 | AE85: 0.7382606476 | AF85: -0.03565712365 | AG85: -2.609916336 | AH85: 4.583358215 | AI85: -1.828425318 | AJ85: 0.7382606476 | AK85: -0.03565712365 | AL85: -2.60374304 | AM85: 4.572470188 | AN85: -1.823998253 | AO85: 0.7365080461 | AP85: -0.03557161656 | AR85: Mars | AS85: =IF(Hypothèses!$J$24="SV",Données1!C118,Données1!C102) -> -2.687761898 | AT85: =IF(Hypothèses!$J$24="SV",Données1!D118,Données1!D102) -> 4.807709442 | AU85: =IF(Hypothèses!$J$24="SV",Données1!E118,Données1!E102) -> -2.08320301 | AV85: =IF(Hypothèses!$J$24="SV",Données1!F118,Données1!F102) -> 0.7576840081 | AW85: =IF(Hypothèses!$J$24="SV",Données1!G118,Données1!G102) -> -0.03833729549 | AX85: =IF(Hypothèses!$J$24="SV",Données1!H118,Données1!H102) -> -2.617088046 | AY85: =IF(Hypothèses!$J$24="SV",Données1!I118,Données1!I102) -> 4.591393147 | AZ85: =IF(Hypothèses!$J$24="SV",Données1!J118,Données1!J102) -> -1.822896429 | BA85: =IF(Hypothèses!$J$24="SV",Données1!K118,Données1!K102) -> 0.740639365 | BB85: =IF(Hypothèses!$J$24="SV",Données1!L118,Données1!L102) -> -0.03567934434 | BC85: =IF(Hypothèses!$J$24="SV",Données1!M118,Données1!M102) -> -2.625388687 | BD85: =IF(Hypothèses!$J$24="SV",Données1!N118,Données1!N102) -> 4.624417629 | BE85: =IF(Hypothèses!$J$24="SV",Données1!O118,Données1!O102) -> -1.871014735 | BF85: =IF(Hypothèses!$J$24="SV",Données1!P118,Données1!P102) -> 0.7421940534 | BG85: =IF(Hypothèses!$J$24="SV",Données1!Q118,Données1!Q102) -> -0.03612344549 | BH85: =IF(Hypothèses!$J$24="SV",Données1!R118,Données1!R102) -> -2.625388687 | BI85: =IF(Hypothèses!$J$24="SV",Données1!S118,Données1!S102) -> 4.624417629 | BJ85: =IF(Hypothèses!$J$24="SV",Données1!T118,Données1!T102) -> -1.871014735 | BK85: =IF(Hypothèses!$J$24="SV",Données1!U118,Données1!U102) -> 0.7421940534 | BL85: =IF(Hypothèses!$J$24="SV",Données1!V118,Données1!V102) -> -0.03612344549 | BM85: =IF(Hypothèses!$J$24="SV",Données1!W118,Données1!W102) -> -2.471143475 | BN85: =IF(Hypothèses!$J$24="SV",Données1!X118,Données1!X102) -> 4.29902366 | BO85: =IF(Hypothèses!$J$24="SV",Données1!Y118,Données1!Y102) -> -1.638490288 | BP85: =IF(Hypothèses!$J$24="SV",Données1!Z118,Données1!Z102) -> 0.7000280079 | BQ85: =IF(Hypothèses!$J$24="SV",Données1!AA118,Données1!AA102) -> -0.03300466333 | BR85: =IF(Hypothèses!$J$24="SV",Données1!AB118,Données1!AB102) -> -2.627738394 | BS85: =IF(Hypothèses!$J$24="SV",Données1!AC118,Données1!AC102) -> 4.626820704 | BT85: =IF(Hypothèses!$J$24="SV",Données1!AD118,Données1!AD102) -> -1.868716555 | BU85: =IF(Hypothèses!$J$24="SV",Données1!AE118,Données1!AE102) -> 0.742920864 | BV85: =IF(Hypothèses!$J$24="SV",Données1!AF118,Données1!AF102) -> -0.03612419083 | BW85: =IF(Hypothèses!$J$24="SV",Données1!AG118,Données1!AG102) -> -2.627738394 | BX85: =IF(Hypothèses!$J$24="SV",Données1!AH118,Données1!AH102) -> 4.626820704 | BY85: =IF(Hypothèses!$J$24="SV",Données1!AI118,Données1!AI102) -> -1.868716555 | BZ85: =IF(Hypothèses!$J$24="SV",Données1!AJ118,Données1!AJ102) -> 0.742920864 | CA85: =IF(Hypothèses!$J$24="SV",Données1!AK118,Données1!AK102) -> -0.03612419083 | CB85: =IF(Hypothèses!$J$24="SV",Données1!AL118,Données1!AL102) -> -2.608942676 | CC85: =IF(Hypothèses!$J$24="SV",Données1!AM118,Données1!AM102) -> 4.57416482 | CD85: =IF(Hypothèses!$J$24="SV",Données1!AN118,Données1!AN102) -> -1.810496699 | CE85: =IF(Hypothèses!$J$24="SV",Données1!AO118,Données1!AO102) -> 0.73844232 | CF85: =IF(Hypothèses!$J$24="SV",Données1!AP118,Données1!AP102) -> -0.03551491798
B86: Avril | C86: -2.431233818 | D86: 4.271550048 | E86: -1.707701276 | F86: 0.6877737462 | G86: -0.03325696482 | H86: -2.567158063 | I86: 4.495145136 | J86: -1.768461775 | K86: 0.7265926951 | L86: -0.0348323576 | M86: -2.606846061 | N86: 4.583919918 | O86: -1.839948833 | P86: 0.737101284 | Q86: -0.03572054919 | R86: -2.606846061 | S86: 4.583919918 | T86: -1.839948833 | U86: 0.737101284 | V86: -0.03572054919 | W86: -2.468398614 | X86: 4.293836132 | Y86: -1.635730682 | Z86: 0.699258848 | AA86: -0.03296024967 | AB86: -2.616009516 | AC86: 4.601824591 | AD86: -1.850500859 | AE86: 0.7396530625 | AF86: -0.03587969417 | AG86: -2.616009516 | AH86: 4.601824591 | AI86: -1.850500859 | AJ86: 0.7396530625 | AK86: -0.03587969417 | AL86: -2.56691997 | AM86: 4.493923981 | AN86: -1.766443128 | AO86: 0.7265762573 | AP86: -0.03481534476 | AR86: Avril | AS86: =IF(Hypothèses!$J$24="SV",Données1!C119,Données1!C103) -> -2.863098627 | AT86: =IF(Hypothèses!$J$24="SV",Données1!D119,Données1!D103) -> 5.11242729 | AU86: =IF(Hypothèses!$J$24="SV",Données1!E119,Données1!E103) -> -2.198859531 | AV86: =IF(Hypothèses!$J$24="SV",Données1!F119,Données1!F103) -> 0.8071788679 | AW86: =IF(Hypothèses!$J$24="SV",Données1!G119,Données1!G103) -> -0.04066617169 | AX86: =IF(Hypothèses!$J$24="SV",Données1!H119,Données1!H103) -> -2.518256471 | AY86: =IF(Hypothèses!$J$24="SV",Données1!I119,Données1!I103) -> 4.385412238 | AZ86: =IF(Hypothèses!$J$24="SV",Données1!J119,Données1!J103) -> -1.679506316 | BA86: =IF(Hypothèses!$J$24="SV",Données1!K119,Données1!K103) -> 0.7137739389 | BB86: =IF(Hypothèses!$J$24="SV",Données1!L119,Données1!L103) -> -0.03373615463 | BC86: =IF(Hypothèses!$J$24="SV",Données1!M119,Données1!M103) -> -2.609552385 | BD86: =IF(Hypothèses!$J$24="SV",Données1!N119,Données1!N103) -> 4.603551498 | BE86: =IF(Hypothèses!$J$24="SV",Données1!O119,Données1!O103) -> -1.87583684 | BF86: =IF(Hypothèses!$J$24="SV",Données1!P119,Données1!P103) -> 0.7374291469 | BG86: =IF(Hypothèses!$J$24="SV",Données1!Q119,Données1!Q103) -> -0.03603209342 | BH86: =IF(Hypothèses!$J$24="SV",Données1!R119,Données1!R103) -> -2.609552385 | BI86: =IF(Hypothèses!$J$24="SV",Données1!S119,Données1!S103) -> 4.603551498 | BJ86: =IF(Hypothèses!$J$24="SV",Données1!T119,Données1!T103) -> -1.87583684 | BK86: =IF(Hypothèses!$J$24="SV",Données1!U119,Données1!U103) -> 0.7374291469 | BL86: =IF(Hypothèses!$J$24="SV",Données1!V119,Données1!V103) -> -0.03603209342 | BM86: =IF(Hypothèses!$J$24="SV",Données1!W119,Données1!W103) -> -2.47533954 | BN86: =IF(Hypothèses!$J$24="SV",Données1!X119,Données1!X103) -> 4.305793994 | BO86: =IF(Hypothèses!$J$24="SV",Données1!Y119,Données1!Y103) -> -1.640066459 | BP86: =IF(Hypothèses!$J$24="SV",Données1!Z119,Données1!Z103) -> 0.7012263985 | BQ86: =IF(Hypothèses!$J$24="SV",Données1!AA119,Données1!AA103) -> -0.03305070754 | BR86: =IF(Hypothèses!$J$24="SV",Données1!AB119,Données1!AB103) -> -2.59599927 | BS86: =IF(Hypothèses!$J$24="SV",Données1!AC119,Données1!AC103) -> 4.574636298 | BT86: =IF(Hypothèses!$J$24="SV",Données1!AD119,Données1!AD103) -> -1.854654723 | BU86: =IF(Hypothèses!$J$24="SV",Données1!AE119,Données1!AE103) -> 0.7337515148 | BV86: =IF(Hypothèses!$J$24="SV",Données1!AF119,Données1!AF103) -> -0.03575277408 | BW86: =IF(Hypothèses!$J$24="SV",Données1!AG119,Données1!AG103) -> -2.59599927 | BX86: =IF(Hypothèses!$J$24="SV",Données1!AH119,Données1!AH103) -> 4.574636298 | BY86: =IF(Hypothèses!$J$24="SV",Données1!AI119,Données1!AI103) -> -1.854654723 | BZ86: =IF(Hypothèses!$J$24="SV",Données1!AJ119,Données1!AJ103) -> 0.7337515148 | CA86: =IF(Hypothèses!$J$24="SV",Données1!AK119,Données1!AK103) -> -0.03575277408 | CB86: =IF(Hypothèses!$J$24="SV",Données1!AL119,Données1!AL103) -> -2.527234318 | CC86: =IF(Hypothèses!$J$24="SV",Données1!AM119,Données1!AM103) -> 4.405146314 | CD86: =IF(Hypothèses!$J$24="SV",Données1!AN119,Données1!AN103) -> -1.694867812 | CE86: =IF(Hypothèses!$J$24="SV",Données1!AO119,Données1!AO103) -> 0.7161854157 | CF86: =IF(Hypothèses!$J$24="SV",Données1!AP119,Données1!AP103) -> -0.03393159115
B87: Mai | C87: -2.73470675 | D87: 4.89636809 | E87: -2.13034432 | F87: 0.7707022273 | G87: -0.039090366 | H87: -2.531345917 | I87: 4.417426153 | J87: -1.709407787 | K87: 0.7170397517 | L87: -0.03407492368 | M87: -2.615743548 | N87: 4.617739012 | O87: -1.887771703 | P87: 0.7390447592 | Q87: -0.03617637165 | R87: -2.615743548 | S87: 4.617739012 | T87: -1.887771703 | U87: 0.7390447592 | V87: -0.03617637165 | W87: -2.47533954 | X87: 4.305793994 | Y87: -1.640066459 | Z87: 0.7012263985 | AA87: -0.03305070754 | AB87: -2.613829412 | AC87: 4.613023795 | AD87: -1.883340561 | AE87: 0.7385390713 | AF87: -0.03612508136 | AG87: -2.613829412 | AH87: 4.613023795 | AI87: -1.883340561 | AJ87: 0.7385390713 | AK87: -0.03612508136 | AL87: -2.515281638 | AM87: 4.384517196 | AN87: -1.687427437 | AO87: 0.7126233894 | AP87: -0.03376834927 | AR87: Mai | AS87: =IF(Hypothèses!$J$24="SV",Données1!C120,Données1!C104) -> -2.785178791 | AT87: =IF(Hypothèses!$J$24="SV",Données1!D120,Données1!D104) -> 4.916852478 | AU87: =IF(Hypothèses!$J$24="SV",Données1!E120,Données1!E104) -> -2.009844744 | AV87: =IF(Hypothèses!$J$24="SV",Données1!F120,Données1!F104) -> 0.7872400574 | AW87: =IF(Hypothèses!$J$24="SV",Données1!G120,Données1!G104) -> -0.03853222984 | AX87: =IF(Hypothèses!$J$24="SV",Données1!H120,Données1!H104) -> -2.42199657 | AY87: =IF(Hypothèses!$J$24="SV",Données1!I120,Données1!I104) -> 4.186693089 | AZ87: =IF(Hypothèses!$J$24="SV",Données1!J120,Données1!J104) -> -1.544452941 | BA87: =IF(Hypothèses!$J$24="SV",Données1!K120,Données1!K104) -> 0.6871397714 | BB87: =IF(Hypothèses!$J$24="SV",Données1!L120,Données1!L104) -> -0.03186264549 | BC87: =IF(Hypothèses!$J$24="SV",Données1!M120,Données1!M104) -> -2.546069651 | BD87: =IF(Hypothèses!$J$24="SV",Données1!N120,Données1!N104) -> 4.482630036 | BE87: =IF(Hypothèses!$J$24="SV",Données1!O120,Données1!O104) -> -1.809785365 | BF87: =IF(Hypothèses!$J$24="SV",Données1!P120,Données1!P104) -> 0.7197764739 | BG87: =IF(Hypothèses!$J$24="SV",Données1!Q120,Données1!Q104) -> -0.03499167237 | BH87: =IF(Hypothèses!$J$24="SV",Données1!R120,Données1!R104) -> -2.546069651 | BI87: =IF(Hypothèses!$J$24="SV",Données1!S120,Données1!S104) -> 4.482630036 | BJ87: =IF(Hypothèses!$J$24="SV",Données1!T120,Données1!T104) -> -1.809785365 | BK87: =IF(Hypothèses!$J$24="SV",Données1!U120,Données1!U104) -> 0.7197764739 | BL87: =IF(Hypothèses!$J$24="SV",Données1!V120,Données1!V104) -> -0.03499167237 | BM87: =IF(Hypothèses!$J$24="SV",Données1!W120,Données1!W104) -> -2.47533954 | BN87: =IF(Hypothèses!$J$24="SV",Données1!X120,Données1!X104) -> 4.305793994 | BO87: =IF(Hypothèses!$J$24="SV",Données1!Y120,Données1!Y104) -> -1.640066459 | BP87: =IF(Hypothèses!$J$24="SV",Données1!Z120,Données1!Z104) -> 0.7012263985 | BQ87: =IF(Hypothèses!$J$24="SV",Données1!AA120,Données1!AA104) -> -0.03305070754 | BR87: =IF(Hypothèses!$J$24="SV",Données1!AB120,Données1!AB104) -> -2.519522321 | BS87: =IF(Hypothèses!$J$24="SV",Données1!AC120,Données1!AC104) -> 4.428617954 | BT87: =IF(Hypothèses!$J$24="SV",Données1!AD120,Données1!AD104) -> -1.774288607 | BU87: =IF(Hypothèses!$J$24="SV",Données1!AE120,Données1!AE104) -> 0.7125037589 | BV87: =IF(Hypothèses!$J$24="SV",Données1!AF120,Données1!AF104) -> -0.03449332554 | BW87: =IF(Hypothèses!$J$24="SV",Données1!AG120,Données1!AG104) -> -2.519522321 | BX87: =IF(Hypothèses!$J$24="SV",Données1!AH120,Données1!AH104) -> 4.428617954 | BY87: =IF(Hypothèses!$J$24="SV",Données1!AI120,Données1!AI104) -> -1.774288607 | BZ87: =IF(Hypothèses!$J$24="SV",Données1!AJ120,Données1!AJ104) -> 0.7125037589 | CA87: =IF(Hypothèses!$J$24="SV",Données1!AK120,Données1!AK104) -> -0.03449332554 | CB87: =IF(Hypothèses!$J$24="SV",Données1!AL120,Données1!AL104) -> -2.434958506 | CC87: =IF(Hypothèses!$J$24="SV",Données1!AM120,Données1!AM104) -> 4.214065381 | CD87: =IF(Hypothèses!$J$24="SV",Données1!AN120,Données1!AN104) -> -1.56404438 | CE87: =IF(Hypothèses!$J$24="SV",Données1!AO120,Données1!AO104) -> 0.6907021033 | CF87: =IF(Hypothèses!$J$24="SV",Données1!AP120,Données1!AP104) -> -0.03212601288
B88: Juin | C88: -2.795981715 | D88: 4.995304665 | E88: -2.153583212 | F88: 0.7881006492 | G88: -0.03976016927 | H88: -2.493540039 | I88: 4.33787826 | J88: -1.652900973 | K88: 0.7066786178 | L88: -0.03331354395 | M88: -2.579487583 | N88: 4.546210778 | O88: -1.844408307 | P88: 0.7290384159 | Q88: -0.0355367327 | R88: -2.579487583 | S88: 4.546210778 | T88: -1.844408307 | U88: 0.7290384159 | V88: -0.0355367327 | W88: -2.47533954 | X88: 4.305793994 | Y88: -1.640066459 | Z88: 0.7012263985 | AA88: -0.03305070754 | AB88: -2.565188673 | AC88: 4.514320327 | AD88: -1.818903167 | AE88: 0.7251916911 | AF88: -0.03521621257 | AG88: -2.565188673 | AH88: 4.514320327 | AI88: -1.818903167 | AJ88: 0.7251916911 | AK88: -0.03521621257 | AL88: -2.494854405 | AM88: 4.342556841 | AN88: -1.659249357 | AO88: 0.7069612877 | AP88: -0.03337449052 | AR88: Juin | AS88: =IF(Hypothèses!$J$24="SV",Données1!C121,Données1!C105) -> -2.707636129 | AT88: =IF(Hypothèses!$J$24="SV",Données1!D121,Données1!D105) -> 4.749913812 | AU88: =IF(Hypothèses!$J$24="SV",Données1!E121,Données1!E105) -> -1.88506713 | AV88: =IF(Hypothèses!$J$24="SV",Données1!F121,Données1!F105) -> 0.7664828085 | AW88: =IF(Hypothèses!$J$24="SV",Données1!G121,Données1!G105) -> -0.03691569029 | AX88: =IF(Hypothèses!$J$24="SV",Données1!H121,Données1!H105) -> -2.383800327 | AY88: =IF(Hypothèses!$J$24="SV",Données1!I121,Données1!I105) -> 4.107362781 | AZ88: =IF(Hypothèses!$J$24="SV",Données1!J121,Données1!J105) -> -1.489857098 | BA88: =IF(Hypothèses!$J$24="SV",Données1!K121,Données1!K105) -> 0.676449955 | BB88: =IF(Hypothèses!$J$24="SV",Données1!L121,Données1!L105) -> -0.03110516001 | BC88: =IF(Hypothèses!$J$24="SV",Données1!M121,Données1!M105) -> -2.516066104 | BD88: =IF(Hypothèses!$J$24="SV",Données1!N121,Données1!N105) -> 4.425889988 | BE88: =IF(Hypothèses!$J$24="SV",Données1!O121,Données1!O105) -> -1.77948782 | BF88: =IF(Hypothèses!$J$24="SV",Données1!P121,Données1!P105) -> 0.7114493774 | BG88: =IF(Hypothèses!$J$24="SV",Données1!Q121,Données1!Q105) -> -0.03450860769 | BH88: =IF(Hypothèses!$J$24="SV",Données1!R121,Données1!R105) -> -2.516066104 | BI88: =IF(Hypothèses!$J$24="SV",Données1!S121,Données1!S105) -> 4.425889988 | BJ88: =IF(Hypothèses!$J$24="SV",Données1!T121,Données1!T105) -> -1.77948782 | BK88: =IF(Hypothèses!$J$24="SV",Données1!U121,Données1!U105) -> 0.7114493774 | BL88: =IF(Hypothèses!$J$24="SV",Données1!V121,Données1!V105) -> -0.03450860769 | BM88: =IF(Hypothèses!$J$24="SV",Données1!W121,Données1!W105) -> -2.47533954 | BN88: =IF(Hypothèses!$J$24="SV",Données1!X121,Données1!X105) -> 4.305793994 | BO88: =IF(Hypothèses!$J$24="SV",Données1!Y121,Données1!Y105) -> -1.640066459 | BP88: =IF(Hypothèses!$J$24="SV",Données1!Z121,Données1!Z105) -> 0.7012263985 | BQ88: =IF(Hypothèses!$J$24="SV",Données1!AA121,Données1!AA105) -> -0.03305070754 | BR88: =IF(Hypothèses!$J$24="SV",Données1!AB121,Données1!AB105) -> -2.490422906 | BS88: =IF(Hypothèses!$J$24="SV",Données1!AC121,Données1!AC105) -> 4.371105734 | BT88: =IF(Hypothèses!$J$24="SV",Données1!AD121,Données1!AD105) -> -1.739239225 | BU88: =IF(Hypothèses!$J$24="SV",Données1!AE121,Données1!AE105) -> 0.7044919681 | BV88: =IF(Hypothèses!$J$24="SV",Données1!AF121,Données1!AF105) -> -0.03397868101 | BW88: =IF(Hypothèses!$J$24="SV",Données1!AG121,Données1!AG105) -> -2.490422906 | BX88: =IF(Hypothèses!$J$24="SV",Données1!AH121,Données1!AH105) -> 4.371105734 | BY88: =IF(Hypothèses!$J$24="SV",Données1!AI121,Données1!AI105) -> -1.739239225 | BZ88: =IF(Hypothèses!$J$24="SV",Données1!AJ121,Données1!AJ105) -> 0.7044919681 | CA88: =IF(Hypothèses!$J$24="SV",Données1!AK121,Données1!AK105) -> -0.03397868101 | CB88: =IF(Hypothèses!$J$24="SV",Données1!AL121,Données1!AL105) -> -2.405821783 | CC88: =IF(Hypothèses!$J$24="SV",Données1!AM121,Données1!AM105) -> 4.153235478 | CD88: =IF(Hypothèses!$J$24="SV",Données1!AN121,Données1!AN105) -> -1.52168447 | CE88: =IF(Hypothèses!$J$24="SV",Données1!AO121,Données1!AO105) -> 0.6825454065 | CF88: =IF(Hypothèses!$J$24="SV",Données1!AP121,Données1!AP105) -> -0.03154191912
B89: Juillet | C89: -2.784535594 | D89: 4.991577124 | E89: -2.182904127 | F89: 0.784486472 | G89: -0.03991001982 | H89: -2.521847463 | I89: 4.398560615 | J89: -1.697767693 | K89: 0.7144076957 | L89: -0.03390446348 | M89: -2.610735773 | N89: 4.611106721 | O89: -1.889195881 | P89: 0.7375754486 | Q89: -0.03614827172 | R89: -2.610735773 | S89: 4.611106721 | T89: -1.889195881 | U89: 0.7375754486 | V89: -0.03614827172 | W89: -2.47533954 | X89: 4.305793994 | Y89: -1.640066459 | Z89: 0.7012263985 | AA89: -0.03305070754 | AB89: -2.606980259 | AC89: 4.602686763 | AD89: -1.882397955 | AE89: 0.7365637812 | AF89: -0.03606317186 | AG89: -2.606980259 | AH89: 4.602686763 | AI89: -1.882397955 | AJ89: 0.7365637812 | AK89: -0.03606317186 | AL89: -2.520191059 | AM89: 4.395638274 | AN89: -1.696574099 | AO89: 0.7139433154 | AP89: -0.03388173086 | AR89: Juillet | AS89: =IF(Hypothèses!$J$24="SV",Données1!C122,Données1!C106) -> -2.748897035 | AT89: =IF(Hypothèses!$J$24="SV",Données1!D122,Données1!D106) -> 4.837129759 | AU89: =IF(Hypothèses!$J$24="SV",Données1!E122,Données1!E106) -> -1.947757223 | AV89: =IF(Hypothèses!$J$24="SV",Données1!F122,Données1!F106) -> 0.7776062512 | AW89: =IF(Hypothèses!$J$24="SV",Données1!G122,Données1!G106) -> -0.03774729349 | AX89: =IF(Hypothèses!$J$24="SV",Données1!H122,Données1!H106) -> -2.40589205 | AY89: =IF(Hypothèses!$J$24="SV",Données1!I122,Données1!I106) -> 4.152643446 | AZ89: =IF(Hypothèses!$J$24="SV",Données1!J122,Données1!J106) -> -1.520059702 | BA89: =IF(Hypothèses!$J$24="SV",Données1!K122,Données1!K106) -> 0.6826488615 | BB89: =IF(Hypothèses!$J$24="SV",Données1!L122,Données1!L106) -> -0.03153210333 | BC89: =IF(Hypothèses!$J$24="SV",Données1!M122,Données1!M106) -> -2.537045481 | BD89: =IF(Hypothèses!$J$24="SV",Données1!N122,Données1!N106) -> 4.468414326 | BE89: =IF(Hypothèses!$J$24="SV",Données1!O122,Données1!O106) -> -1.807176672 | BF89: =IF(Hypothèses!$J$24="SV",Données1!P122,Données1!P106) -> 0.717199396 | BG89: =IF(Hypothèses!$J$24="SV",Données1!Q122,Données1!Q106) -> -0.03489941216 | BH89: =IF(Hypothèses!$J$24="SV",Données1!R122,Données1!R106) -> -2.537045481 | BI89: =IF(Hypothèses!$J$24="SV",Données1!S122,Données1!S106) -> 4.468414326 | BJ89: =IF(Hypothèses!$J$24="SV",Données1!T122,Données1!T106) -> -1.807176672 | BK89: =IF(Hypothèses!$J$24="SV",Données1!U122,Données1!U106) -> 0.717199396 | BL89: =IF(Hypothèses!$J$24="SV",Données1!V122,Données1!V106) -> -0.03489941216 | BM89: =IF(Hypothèses!$J$24="SV",Données1!W122,Données1!W106) -> -2.47533954 | BN89: =IF(Hypothèses!$J$24="SV",Données1!X122,Données1!X106) -> 4.305793994 | BO89: =IF(Hypothèses!$J$24="SV",Données1!Y122,Données1!Y106) -> -1.640066459 | BP89: =IF(Hypothèses!$J$24="SV",Données1!Z122,Données1!Z106) -> 0.7012263985 | BQ89: =IF(Hypothèses!$J$24="SV",Données1!AA122,Données1!AA106) -> -0.03305070754 | BR89: =IF(Hypothèses!$J$24="SV",Données1!AB122,Données1!AB106) -> -2.495155437 | BS89: =IF(Hypothèses!$J$24="SV",Données1!AC122,Données1!AC106) -> 4.380434871 | BT89: =IF(Hypothèses!$J$24="SV",Données1!AD122,Données1!AD106) -> -1.74488443 | BU89: =IF(Hypothèses!$J$24="SV",Données1!AE122,Données1!AE106) -> 0.7057949773 | BV89: =IF(Hypothèses!$J$24="SV",Données1!AF122,Données1!AF106) -> -0.03406190495 | BW89: =IF(Hypothèses!$J$24="SV",Données1!AG122,Données1!AG106) -> -2.495155437 | BX89: =IF(Hypothèses!$J$24="SV",Données1!AH122,Données1!AH106) -> 4.380434871 | BY89: =IF(Hypothèses!$J$24="SV",Données1!AI122,Données1!AI106) -> -1.74488443 | BZ89: =IF(Hypothèses!$J$24="SV",Données1!AJ122,Données1!AJ106) -> 0.7057949773 | CA89: =IF(Hypothèses!$J$24="SV",Données1!AK122,Données1!AK106) -> -0.03406190495 | CB89: =IF(Hypothèses!$J$24="SV",Données1!AL122,Données1!AL106) -> -2.43250209 | CC89: =IF(Hypothèses!$J$24="SV",Données1!AM122,Données1!AM106) -> 4.208985108 | CD89: =IF(Hypothèses!$J$24="SV",Données1!AN122,Données1!AN106) -> -1.560614309 | CE89: =IF(Hypothèses!$J$24="SV",Données1!AO122,Données1!AO106) -> 0.6899635378 | CF89: =IF(Hypothèses!$J$24="SV",Données1!AP122,Données1!AP106) -> -0.03207573704
B90: Août | C90: -2.529698289 | D90: 4.506550528 | E90: -1.918436925 | F90: 0.7139277844 | G90: -0.03575283637 | H90: -2.566430447 | I90: 4.490944512 | J90: -1.761183698 | K90: 0.7266166041 | L90: -0.03477405788 | M90: -2.654551679 | N90: 4.691499518 | O90: -1.927762221 | P90: 0.7498728942 | Q90: -0.03681067154 | R90: -2.654551679 | S90: 4.691499518 | T90: -1.927762221 | U90: 0.7498728942 | V90: -0.03681067154 | W90: -2.47533954 | X90: 4.305793994 | Y90: -1.640066459 | Z90: 0.7012263985 | AA90: -0.03305070754 | AB90: -2.638910458 | AC90: 4.657370958 | AD90: -1.901590721 | AE90: 0.7456401579 | AF90: -0.03647390254 | AG90: -2.638910458 | AH90: 4.657370958 | AI90: -1.901590721 | AJ90: 0.7456401579 | AK90: -0.03647390254 | AL90: -2.565013913 | AM90: 4.490074244 | AN90: -1.763903107 | AO90: 0.7261417345 | AP90: -0.03478351869 | AR90: Août | AS90: =IF(Hypothèses!$J$24="SV",Données1!C123,Données1!C107) -> -2.849909662 | AT90: =IF(Hypothèses!$J$24="SV",Données1!D123,Données1!D107) -> 5.067180099 | AU90: =IF(Hypothèses!$J$24="SV",Données1!E123,Données1!E107) -> -2.139079301 | AV90: =IF(Hypothèses!$J$24="SV",Données1!F123,Données1!F107) -> 0.8042308536 | AW90: =IF(Hypothèses!$J$24="SV",Données1!G123,Données1!G107) -> -0.04008358503 | AX90: =IF(Hypothèses!$J$24="SV",Données1!H123,Données1!H107) -> -2.468481615 | AY90: =IF(Hypothèses!$J$24="SV",Données1!I123,Données1!I107) -> 4.282684575 | AZ90: =IF(Hypothèses!$J$24="SV",Données1!J123,Données1!J107) -> -1.609698865 | BA90: =IF(Hypothèses!$J$24="SV",Données1!K123,Données1!K107) -> 0.7000580658 | BB90: =IF(Hypothèses!$J$24="SV",Données1!L123,Données1!L107) -> -0.03277011333 | BC90: =IF(Hypothèses!$J$24="SV",Données1!M123,Données1!M107) -> -2.594027486 | BD90: =IF(Hypothèses!$J$24="SV",Données1!N123,Données1!N107) -> 4.576291773 | BE90: =IF(Hypothèses!$J$24="SV",Données1!O123,Données1!O107) -> -1.864969515 | BF90: =IF(Hypothèses!$J$24="SV",Données1!P123,Données1!P107) -> 0.7330380497 | BG90: =IF(Hypothèses!$J$24="SV",Données1!Q123,Données1!Q107) -> -0.03582008423 | BH90: =IF(Hypothèses!$J$24="SV",Données1!R123,Données1!R107) -> -2.594027486 | BI90: =IF(Hypothèses!$J$24="SV",Données1!S123,Données1!S107) -> 4.576291773 | BJ90: =IF(Hypothèses!$J$24="SV",Données1!T123,Données1!T107) -> -1.864969515 | BK90: =IF(Hypothèses!$J$24="SV",Données1!U123,Données1!U107) -> 0.7330380497 | BL90: =IF(Hypothèses!$J$24="SV",Données1!V123,Données1!V107) -> -0.03582008423 | BM90: =IF(Hypothèses!$J$24="SV",Données1!W123,Données1!W107) -> -2.47533954 | BN90: =IF(Hypothèses!$J$24="SV",Données1!X123,Données1!X107) -> 4.305793994 | BO90: =IF(Hypothèses!$J$24="SV",Données1!Y123,Données1!Y107) -> -1.640066459 | BP90: =IF(Hypothèses!$J$24="SV",Données1!Z123,Données1!Z107) -> 0.7012263985 | BQ90: =IF(Hypothèses!$J$24="SV",Données1!AA123,Données1!AA107) -> -0.03305070754 | BR90: =IF(Hypothèses!$J$24="SV",Données1!AB123,Données1!AB107) -> -2.585920278 | BS90: =IF(Hypothèses!$J$24="SV",Données1!AC123,Données1!AC107) -> 4.558624531 | BT90: =IF(Hypothèses!$J$24="SV",Données1!AD123,Données1!AD107) -> -1.851449075 | BU90: =IF(Hypothèses!$J$24="SV",Données1!AE123,Données1!AE107) -> 0.7308533975 | BV90: =IF(Hypothèses!$J$24="SV",Données1!AF123,Données1!AF107) -> -0.03564632747 | BW90: =IF(Hypothèses!$J$24="SV",Données1!AG123,Données1!AG107) -> -2.585920278 | BX90: =IF(Hypothèses!$J$24="SV",Données1!AH123,Données1!AH107) -> 4.558624531 | BY90: =IF(Hypothèses!$J$24="SV",Données1!AI123,Données1!AI107) -> -1.851449075 | BZ90: =IF(Hypothèses!$J$24="SV",Données1!AJ123,Données1!AJ107) -> 0.7308533975 | CA90: =IF(Hypothèses!$J$24="SV",Données1!AK123,Données1!AK107) -> -0.03564632747 | CB90: =IF(Hypothèses!$J$24="SV",Données1!AL123,Données1!AL107) -> -2.479426543 | CC90: =IF(Hypothèses!$J$24="SV",Données1!AM123,Données1!AM107) -> 4.305366691 | CD90: =IF(Hypothèses!$J$24="SV",Données1!AN123,Données1!AN107) -> -1.625251286 | CE90: =IF(Hypothèses!$J$24="SV",Données1!AO123,Données1!AO107) -> 0.703088638 | CF90: =IF(Hypothèses!$J$24="SV",Données1!AP123,Données1!AP107) -> -0.03298493311
B91: Septembre | C91: -2.360005923 | D91: 4.118424107 | E91: -1.593813464 | F91: 0.6683357657 | G91: -0.03176193911 | H91: -2.643342599 | I91: 4.655542381 | J91: -1.882607871 | K91: 0.7473798428 | L91: -0.03636496503 | M91: -2.664647863 | N91: 4.699138479 | O91: -1.91167268 | P91: 0.7531969208 | Q91: -0.0367690339 | R91: -2.664647863 | S91: 4.699138479 | T91: -1.91167268 | U91: 0.7531969208 | V91: -0.0367690339 | W91: -2.37800007 | X91: 4.165682018 | Y91: -1.642114741 | Z91: 0.6730858796 | AA91: -0.03230140635 | AB91: -2.656664546 | AC91: 4.682543374 | AD91: -1.900190447 | AE91: 0.7510236205 | AF91: -0.03661279567 | AG91: -2.656664546 | AH91: 4.682543374 | AI91: -1.900190447 | AJ91: 0.7510236205 | AK91: -0.03661279567 | AL91: -2.634525077 | AM91: 4.636921846 | AN91: -1.86925928 | AO91: 0.7449894912 | AP91: -0.03618708172 | AR91: Septembre | AS91: =IF(Hypothèses!$J$24="SV",Données1!C124,Données1!C108) -> -2.807211919 | AT91: =IF(Hypothèses!$J$24="SV",Données1!D124,Données1!D108) -> 5.0325404 | AU91: =IF(Hypothèses!$J$24="SV",Données1!E124,Données1!E108) -> -2.201385805 | AV91: =IF(Hypothèses!$J$24="SV",Données1!F124,Données1!F108) -> 0.7908839995 | AW91: =IF(Hypothèses!$J$24="SV",Données1!G124,Données1!G108) -> -0.04024152418 | AX91: =IF(Hypothèses!$J$24="SV",Données1!H124,Données1!H108) -> -2.575160057 | AY91: =IF(Hypothèses!$J$24="SV",Données1!I124,Données1!I108) -> 4.503570995 | AZ91: =IF(Hypothèses!$J$24="SV",Données1!J124,Données1!J108) -> -1.761040205 | BA91: =IF(Hypothèses!$J$24="SV",Données1!K124,Données1!K108) -> 0.7292951333 | BB91: =IF(Hypothèses!$J$24="SV",Données1!L124,Données1!L108) -> -0.03484845873 | BC91: =IF(Hypothèses!$J$24="SV",Données1!M124,Données1!M108) -> -2.629135288 | BD91: =IF(Hypothèses!$J$24="SV",Données1!N124,Données1!N108) -> 4.638432749 | BE91: =IF(Hypothèses!$J$24="SV",Données1!O124,Données1!O108) -> -1.890666778 | BF91: =IF(Hypothèses!$J$24="SV",Données1!P124,Données1!P108) -> 0.7429716981 | BG91: =IF(Hypothèses!$J$24="SV",Données1!Q124,Données1!Q108) -> -0.03630938471 | BH91: =IF(Hypothèses!$J$24="SV",Données1!R124,Données1!R108) -> -2.629135288 | BI91: =IF(Hypothèses!$J$24="SV",Données1!S124,Données1!S108) -> 4.638432749 | BJ91: =IF(Hypothèses!$J$24="SV",Données1!T124,Données1!T108) -> -1.890666778 | BK91: =IF(Hypothèses!$J$24="SV",Données1!U124,Données1!U108) -> 0.7429716981 | BL91: =IF(Hypothèses!$J$24="SV",Données1!V124,Données1!V108) -> -0.03630938471 | BM91: =IF(Hypothèses!$J$24="SV",Données1!W124,Données1!W108) -> -2.475024122 | BN91: =IF(Hypothèses!$J$24="SV",Données1!X124,Données1!X108) -> 4.305250637 | BO91: =IF(Hypothèses!$J$24="SV",Données1!Y124,Données1!Y108) -> -1.639869534 | BP91: =IF(Hypothèses!$J$24="SV",Données1!Z124,Données1!Z108) -> 0.7011369867 | BQ91: =IF(Hypothèses!$J$24="SV",Données1!AA124,Données1!AA108) -> -0.03304659775 | BR91: =IF(Hypothèses!$J$24="SV",Données1!AB124,Données1!AB108) -> -2.649043611 | BS91: =IF(Hypothèses!$J$24="SV",Données1!AC124,Données1!AC108) -> 4.674759428 | BT91: =IF(Hypothèses!$J$24="SV",Données1!AD124,Données1!AD108) -> -1.907705964 | BU91: =IF(Hypothèses!$J$24="SV",Données1!AE124,Données1!AE108) -> 0.7486048462 | BV91: =IF(Hypothèses!$J$24="SV",Données1!AF124,Données1!AF108) -> -0.03660819058 | BW91: =IF(Hypothèses!$J$24="SV",Données1!AG124,Données1!AG108) -> -2.649043611 | BX91: =IF(Hypothèses!$J$24="SV",Données1!AH124,Données1!AH108) -> 4.674759428 | BY91: =IF(Hypothèses!$J$24="SV",Données1!AI124,Données1!AI108) -> -1.907705964 | BZ91: =IF(Hypothèses!$J$24="SV",Données1!AJ124,Données1!AJ108) -> 0.7486048462 | CA91: =IF(Hypothèses!$J$24="SV",Données1!AK124,Données1!AK108) -> -0.03660819058 | CB91: =IF(Hypothèses!$J$24="SV",Données1!AL124,Données1!AL108) -> -2.558050838 | CC91: =IF(Hypothèses!$J$24="SV",Données1!AM124,Données1!AM108) -> 4.466582359 | CD91: =IF(Hypothèses!$J$24="SV",Données1!AN124,Données1!AN108) -> -1.733154005 | CE91: =IF(Hypothèses!$J$24="SV",Données1!AO124,Données1!AO108) -> 0.7247216178 | CF91: =IF(Hypothèses!$J$24="SV",Données1!AP124,Données1!AP108) -> -0.03448899603
B92: Octobre | C92: -2.47533954 | D92: 4.305793994 | E92: -1.640066459 | F92: 0.7012263985 | G92: -0.03305070754 | H92: -2.632337267 | I92: 4.643351376 | J92: -1.891308528 | K92: 0.7438855629 | L92: -0.03633964199 | M92: -2.591442924 | N92: 4.543818442 | O92: -1.799163198 | P92: 0.7334087964 | Q92: -0.03528015066 | R92: -2.591442924 | S92: 4.543818442 | T92: -1.799163198 | U92: 0.7334087964 | V92: -0.03528015066 | W92: -2.612447191 | X92: 4.668495175 | Y92: -2.014474146 | Z92: 0.7367174061 | AA92: -0.03718521007 | AB92: -2.567926191 | AC92: 4.491248221 | AD92: -1.756884758 | AE92: 0.7271708255 | AF92: -0.03475406143 | AG92: -2.567926191 | AH92: 4.491248221 | AI92: -1.756884758 | AJ92: 0.7271708255 | AK92: -0.03475406143 | AL92: -2.656233494 | AM92: 4.69200176 | AN92: -1.923316697 | AO92: 0.7504581848 | AP92: -0.03678986773 | AR92: Octobre | AS92: =IF(Hypothèses!$J$24="SV",Données1!C125,Données1!C109) -> -2.544741018 | AT92: =IF(Hypothèses!$J$24="SV",Données1!D125,Données1!D109) -> 4.516500443 | AU92: =IF(Hypothèses!$J$24="SV",Données1!E125,Données1!E109) -> -1.891460105 | AV92: =IF(Hypothèses!$J$24="SV",Données1!F125,Données1!F109) -> 0.7185010425 | AW92: =IF(Hypothèses!$J$24="SV",Données1!G125,Données1!G109) -> -0.03564802479 | AX92: =IF(Hypothèses!$J$24="SV",Données1!H125,Données1!H109) -> -2.650721799 | AY92: =IF(Hypothèses!$J$24="SV",Données1!I125,Données1!I109) -> 4.663662165 | AZ92: =IF(Hypothèses!$J$24="SV",Données1!J125,Données1!J109) -> -1.876712542 | BA92: =IF(Hypothèses!$J$24="SV",Données1!K125,Données1!K109) -> 0.7496249301 | BB92: =IF(Hypothèses!$J$24="SV",Données1!L125,Données1!L109) -> -0.03637708049 | BC92: =IF(Hypothèses!$J$24="SV",Données1!M125,Données1!M109) -> -2.597493496 | BD92: =IF(Hypothèses!$J$24="SV",Données1!N125,Données1!N109) -> 4.559789242 | BE92: =IF(Hypothèses!$J$24="SV",Données1!O125,Données1!O109) -> -1.815682327 | BF92: =IF(Hypothèses!$J$24="SV",Données1!P125,Données1!P109) -> 0.7348543034 | BG92: =IF(Hypothèses!$J$24="SV",Données1!Q125,Données1!Q109) -> -0.03545723214 | BH92: =IF(Hypothèses!$J$24="SV",Données1!R125,Données1!R109) -> -2.597493496 | BI92: =IF(Hypothèses!$J$24="SV",Données1!S125,Données1!S109) -> 4.559789242 | BJ92: =IF(Hypothèses!$J$24="SV",Données1!T125,Données1!T109) -> -1.815682327 | BK92: =IF(Hypothèses!$J$24="SV",Données1!U125,Données1!U109) -> 0.7348543034 | BL92: =IF(Hypothèses!$J$24="SV",Données1!V125,Données1!V109) -> -0.03545723214 | BM92: =IF(Hypothèses!$J$24="SV",Données1!W125,Données1!W109) -> -2.451157859 | BN92: =IF(Hypothèses!$J$24="SV",Données1!X125,Données1!X109) -> 4.276431723 | BO92: =IF(Hypothèses!$J$24="SV",Données1!Y125,Données1!Y109) -> -1.653004435 | BP92: =IF(Hypothèses!$J$24="SV",Données1!Z125,Données1!Z109) -> 0.694092633 | BQ92: =IF(Hypothèses!$J$24="SV",Données1!AA125,Données1!AA109) -> -0.03296571497 | BR92: =IF(Hypothèses!$J$24="SV",Données1!AB125,Données1!AB109) -> -2.58741383 | BS92: =IF(Hypothèses!$J$24="SV",Données1!AC125,Données1!AC109) -> 4.538656272 | BT92: =IF(Hypothèses!$J$24="SV",Données1!AD125,Données1!AD109) -> -1.80077503 | BU92: =IF(Hypothèses!$J$24="SV",Données1!AE125,Données1!AE109) -> 0.7321130738 | BV92: =IF(Hypothèses!$J$24="SV",Données1!AF125,Données1!AF109) -> -0.03525654447 | BW92: =IF(Hypothèses!$J$24="SV",Données1!AG125,Données1!AG109) -> -2.58741383 | BX92: =IF(Hypothèses!$J$24="SV",Données1!AH125,Données1!AH109) -> 4.538656272 | BY92: =IF(Hypothèses!$J$24="SV",Données1!AI125,Données1!AI109) -> -1.80077503 | BZ92: =IF(Hypothèses!$J$24="SV",Données1!AJ125,Données1!AJ109) -> 0.7321130738 | CA92: =IF(Hypothèses!$J$24="SV",Données1!AK125,Données1!AK109) -> -0.03525654447 | CB92: =IF(Hypothèses!$J$24="SV",Données1!AL125,Données1!AL109) -> -2.643717187 | CC92: =IF(Hypothèses!$J$24="SV",Données1!AM125,Données1!AM109) -> 4.649605558 | CD92: =IF(Hypothèses!$J$24="SV",Données1!AN125,Données1!AN109) -> -1.86779144 | CE92: =IF(Hypothèses!$J$24="SV",Données1!AO125,Données1!AO109) -> 0.7477001369 | CF92: =IF(Hypothèses!$J$24="SV",Données1!AP125,Données1!AP109) -> -0.03624917722
B93: Novembre | C93: -2.47533954 | D93: 4.305793994 | E93: -1.640066459 | F93: 0.7012263985 | G93: -0.03305070754 | H93: -2.584578608 | I93: 4.5563122 | J93: -1.850623531 | K93: 0.7304500081 | L93: -0.03562792957 | M93: -2.508859474 | N93: 4.37028623 | O93: -1.676158277 | P93: 0.7109317405 | Q93: -0.03362759774 | R93: -2.508859474 | S93: 4.37028623 | T93: -1.676158277 | U93: 0.7109317405 | V93: -0.03362759774 | W93: -2.878023752 | X93: 5.156166643 | Y93: -2.24943588 | Z93: 0.8107676762 | AA93: -0.04118899655 | AB93: -2.474089479 | AC93: 4.295125387 | AD93: -1.619569502 | AE93: 0.7015383385 | AF93: -0.0328934187 | AG93: -2.474089479 | AH93: 4.295125387 | AI93: -1.619569502 | AJ93: 0.7015383385 | AK93: -0.0328934187 | AL93: -2.624786209 | AM93: 4.640637217 | AN93: -1.910130811 | AO93: 0.7414108773 | AP93: -0.03642999309 | AR93: Novembre | AS93: =IF(Hypothèses!$J$24="SV",Données1!C126,Données1!C110) -> -2.414573871 | AT93: =IF(Hypothèses!$J$24="SV",Données1!D126,Données1!D110) -> 4.210512943 | AU93: =IF(Hypothèses!$J$24="SV",Données1!E126,Données1!E110) -> -1.62353149 | AV93: =IF(Hypothèses!$J$24="SV",Données1!F126,Données1!F110) -> 0.683828978 | AW93: =IF(Hypothèses!$J$24="SV",Données1!G126,Données1!G110) -> -0.03243641564 | AX93: =IF(Hypothèses!$J$24="SV",Données1!H126,Données1!H110) -> -2.709833062 | AY93: =IF(Hypothèses!$J$24="SV",Données1!I126,Données1!I110) -> 4.799988777 | AZ93: =IF(Hypothèses!$J$24="SV",Données1!J126,Données1!J110) -> -1.992562771 | BA93: =IF(Hypothèses!$J$24="SV",Données1!K126,Données1!K110) -> 0.7651587355 | BB93: =IF(Hypothèses!$J$24="SV",Données1!L126,Données1!L110) -> -0.03777583418 | BC93: =IF(Hypothèses!$J$24="SV",Données1!M126,Données1!M110) -> -2.548284377 | BD93: =IF(Hypothèses!$J$24="SV",Données1!N126,Données1!N110) -> 4.455143693 | BE93: =IF(Hypothèses!$J$24="SV",Données1!O126,Données1!O110) -> -1.73950397 | BF93: =IF(Hypothèses!$J$24="SV",Données1!P126,Données1!P110) -> 0.7215674577 | BG93: =IF(Hypothèses!$J$24="SV",Données1!Q126,Données1!Q110) -> -0.03445230908 | BH93: =IF(Hypothèses!$J$24="SV",Données1!R126,Données1!R110) -> -2.548284377 | BI93: =IF(Hypothèses!$J$24="SV",Données1!S126,Données1!S110) -> 4.455143693 | BJ93: =IF(Hypothèses!$J$24="SV",Données1!T126,Données1!T110) -> -1.73950397 | BK93: =IF(Hypothèses!$J$24="SV",Données1!U126,Données1!U110) -> 0.7215674577 | BL93: =IF(Hypothèses!$J$24="SV",Données1!V126,Données1!V110) -> -0.03445230908 | BM93: =IF(Hypothèses!$J$24="SV",Données1!W126,Données1!W110) -> -2.471545065 | BN93: =IF(Hypothèses!$J$24="SV",Données1!X126,Données1!X110) -> 4.360707424 | BO93: =IF(Hypothèses!$J$24="SV",Données1!Y126,Données1!Y110) -> -1.777920927 | BP93: =IF(Hypothèses!$J$24="SV",Données1!Z126,Données1!Z110) -> 0.6986023255 | BQ93: =IF(Hypothèses!$J$24="SV",Données1!AA126,Données1!AA110) -> -0.03414529709 | BR93: =IF(Hypothèses!$J$24="SV",Données1!AB126,Données1!AB110) -> -2.547006122 | BS93: =IF(Hypothèses!$J$24="SV",Données1!AC126,Données1!AC110) -> 4.451496734 | BT93: =IF(Hypothèses!$J$24="SV",Données1!AD126,Données1!AD110) -> -1.735391904 | BU93: =IF(Hypothèses!$J$24="SV",Données1!AE126,Données1!AE110) -> 0.7212679819 | BV93: =IF(Hypothèses!$J$24="SV",Données1!AF126,Données1!AF110) -> -0.03440977943 | BW93: =IF(Hypothèses!$J$24="SV",Données1!AG126,Données1!AG110) -> -2.547006122 | BX93: =IF(Hypothèses!$J$24="SV",Données1!AH126,Données1!AH110) -> 4.451496734 | BY93: =IF(Hypothèses!$J$24="SV",Données1!AI126,Données1!AI110) -> -1.735391904 | BZ93: =IF(Hypothèses!$J$24="SV",Données1!AJ126,Données1!AJ110) -> 0.7212679819 | CA93: =IF(Hypothèses!$J$24="SV",Données1!AK126,Données1!AK110) -> -0.03440977943 | CB93: =IF(Hypothèses!$J$24="SV",Données1!AL126,Données1!AL110) -> -2.709229538 | CC93: =IF(Hypothèses!$J$24="SV",Données1!AM126,Données1!AM110) -> 4.797819132 | CD93: =IF(Hypothèses!$J$24="SV",Données1!AN126,Données1!AN110) -> -1.989600856 | CE93: =IF(Hypothèses!$J$24="SV",Données1!AO126,Données1!AO110) -> 0.7650265661 | CF93: =IF(Hypothèses!$J$24="SV",Données1!AP126,Données1!AP110) -> -0.0377473384
B94: Décembre | C94: -2.47533954 | D94: 4.305793994 | E94: -1.640066459 | F94: 0.7012263985 | G94: -0.03305070754 | H94: -2.532460277 | I94: 4.446510768 | J94: -1.772352026 | K94: 0.7162591422 | L94: -0.03457919408 | M94: -2.456362694 | N94: 4.260841957 | O94: -1.60004661 | P94: 0.6964603719 | Q94: -0.03258698291 | R94: -2.456362694 | S94: 4.260841957 | T94: -1.60004661 | U94: 0.6964603719 | V94: -0.03258698291 | W94: -2.809842333 | X94: 4.992207603 | Y94: -2.100609698 | Z94: 0.7928273052 | AA94: -0.03944315701 | AB94: -2.457125949 | AC94: 4.262288928 | AD94: -1.600842811 | AE94: 0.6966447246 | AF94: -0.03259827524 | AG94: -2.457125949 | AH94: 4.262288928 | AI94: -1.600842811 | AJ94: 0.6966447246 | AK94: -0.03259827524 | AL94: -2.534567708 | AM94: 4.449945002 | AN94: -1.773222941 | AO94: 0.7168571041 | AP94: -0.03460283162 | AR94: Décembre | AS94: =IF(Hypothèses!$J$24="SV",Données1!C127,Données1!C111) -> -2.475213447 | AT94: =IF(Hypothèses!$J$24="SV",Données1!D127,Données1!D111) -> 4.305574939 | AU94: =IF(Hypothèses!$J$24="SV",Données1!E127,Données1!E111) -> -1.639983552 | AV94: =IF(Hypothèses!$J$24="SV",Données1!F127,Données1!F111) -> 0.7011906757 | AW94: =IF(Hypothèses!$J$24="SV",Données1!G127,Données1!G111) -> -0.03304902934 | AX94: =IF(Hypothèses!$J$24="SV",Données1!H127,Données1!H111) -> -2.669908996 | AY94: =IF(Hypothèses!$J$24="SV",Données1!I127,Données1!I111) -> 4.726461805 | AZ94: =IF(Hypothèses!$J$24="SV",Données1!J127,Données1!J111) -> -1.956814884 | BA94: =IF(Hypothèses!$J$24="SV",Données1!K127,Données1!K111) -> 0.7539286944 | BB94: =IF(Hypothèses!$J$24="SV",Données1!L127,Données1!L111) -> -0.03716591875 | BC94: =IF(Hypothèses!$J$24="SV",Données1!M127,Données1!M111) -> -2.516425162 | BD94: =IF(Hypothèses!$J$24="SV",Données1!N127,Données1!N111) -> 4.389053015 | BE94: =IF(Hypothèses!$J$24="SV",Données1!O127,Données1!O111) -> -1.69405853 | BF94: =IF(Hypothèses!$J$24="SV",Données1!P127,Données1!P111) -> 0.7127849042 | BG94: =IF(Hypothèses!$J$24="SV",Données1!Q127,Données1!Q111) -> -0.03382721729 | BH94: =IF(Hypothèses!$J$24="SV",Données1!R127,Données1!R111) -> -2.516425162 | BI94: =IF(Hypothèses!$J$24="SV",Données1!S127,Données1!S111) -> 4.389053015 | BJ94: =IF(Hypothèses!$J$24="SV",Données1!T127,Données1!T111) -> -1.69405853 | BK94: =IF(Hypothèses!$J$24="SV",Données1!U127,Données1!U111) -> 0.7127849042 | BL94: =IF(Hypothèses!$J$24="SV",Données1!V127,Données1!V111) -> -0.03382721729 | BM94: =IF(Hypothèses!$J$24="SV",Données1!W127,Données1!W111) -> -2.507189754 | BN94: =IF(Hypothèses!$J$24="SV",Données1!X127,Données1!X111) -> 4.444948136 | BO94: =IF(Hypothèses!$J$24="SV",Données1!Y127,Données1!Y111) -> -1.852326655 | BP94: =IF(Hypothèses!$J$24="SV",Données1!Z127,Données1!Z111) -> 0.7080690253 | BQ94: =IF(Hypothèses!$J$24="SV",Données1!AA127,Données1!AA111) -> -0.0350324906 | BR94: =IF(Hypothèses!$J$24="SV",Données1!AB127,Données1!AB111) -> -2.527971625 | BS94: =IF(Hypothèses!$J$24="SV",Données1!AC127,Données1!AC111) -> 4.412103011 | BT94: =IF(Hypothèses!$J$24="SV",Données1!AD127,Données1!AD111) -> -1.708447728 | BU94: =IF(Hypothèses!$J$24="SV",Données1!AE127,Données1!AE111) -> 0.7160244234 | BV94: =IF(Hypothèses!$J$24="SV",Données1!AF127,Données1!AF111) -> -0.03403826954 | BW94: =IF(Hypothèses!$J$24="SV",Données1!AG127,Données1!AG111) -> -2.527971625 | BX94: =IF(Hypothèses!$J$24="SV",Données1!AH127,Données1!AH111) -> 4.412103011 | BY94: =IF(Hypothèses!$J$24="SV",Données1!AI127,Données1!AI111) -> -1.708447728 | BZ94: =IF(Hypothèses!$J$24="SV",Données1!AJ127,Données1!AJ111) -> 0.7160244234 | CA94: =IF(Hypothèses!$J$24="SV",Données1!AK127,Données1!AK111) -> -0.03403826954 | CB94: =IF(Hypothèses!$J$24="SV",Données1!AL127,Données1!AL111) -> -2.675731203 | CC94: =IF(Hypothèses!$J$24="SV",Données1!AM127,Données1!AM111) -> 4.73767789 | CD94: =IF(Hypothèses!$J$24="SV",Données1!AN127,Données1!AN111) -> -1.963160314 | CE94: =IF(Hypothèses!$J$24="SV",Données1!AO127,Données1!AO111) -> 0.7555442747 | CF94: =IF(Hypothèses!$J$24="SV",Données1!AP127,Données1!AP111) -> -0.03726367577
B96: ST-DENIS REUNION
B97: DV | C97: ORIENTATION | AR97: Final | AS97: ORIENTATION
C98: NORD | H98: NORD-EST | M98: EST | R98: SUD-EST | W98: SUD | AB98: SUD-OUEST | AG98: OUEST | AL98: NORD-OUEST | AS98: NORD | AX98: NORD-EST | BC98: EST | BH98: SUD-EST | BM98: SUD | BR98: SUD-OUEST | BW98: OUEST | CB98: NORD-OUEST
C99: a | D99: b | E99: c | F99: d | G99: e | H99: a | I99: b | J99: c | K99: d | L99: e | M99: a | N99: b | O99: c | P99: d | Q99: e | R99: a | S99: b | T99: c | U99: d | V99: e | W99: a | X99: b | Y99: c | Z99: d | AA99: e | AB99: a | AC99: b | AD99: c | AE99: d | AF99: e | AG99: a | AH99: b | AI99: c | AJ99: d | AK99: e | AL99: a | AM99: b | AN99: c | AO99: d | AP99: e | AS99: a | AT99: b | AU99: c | AV99: d | AW99: e | AX99: a | AY99: b | AZ99: c | BA99: d | BB99: e | BC99: a | BD99: b | BE99: c | BF99: d | BG99: e | BH99: a | BI99: b | BJ99: c | BK99: d | BL99: e | BM99: a | BN99: b | BO99: c | BP99: d | BQ99: e | BR99: a | BS99: b | BT99: c | BU99: d | BV99: e | BW99: a | BX99: b | BY99: c | BZ99: d | CA99: e | CB99: a | CC99: b | CD99: c | CE99: d | CF99: e
B100: Janvier | C100: 0.225984715 | D100: -0.9271323571 | E100: 1.219528214 | F100: 0.2954954112 | G100: -0.007958995182 | H100: -0.0376021639 | I100: -0.4327894569 | J100: 0.923276428 | K100: 0.3042365394 | L100: -0.008645971432 | M100: 0.2011791599 | N100: -0.8931900798 | O100: 1.215815116 | P100: 0.3040448339 | Q100: -0.008240679858 | R100: 0.2011791599 | S100: -0.8931900798 | T100: 1.215815116 | U100: 0.3040448339 | V100: -0.008240679858 | W100: -0.00961678849 | X100: -0.4368403748 | Y100: 0.8617141843 | Z100: 0.2737053059 | AA100: -0.007740628508 | AB100: 0.1935869435 | AC100: -0.8771380553 | AD100: 1.203799514 | AE100: 0.3031870963 | AF100: -0.008229276654 | AG100: 0.1935869435 | AH100: -0.8771380553 | AI100: 1.203799514 | AJ100: 0.3031870963 | AK100: -0.008229276654 | AL100: 0.0008847375257 | AM100: -0.5040655133 | AN100: 0.9647944515 | AO100: 0.3023980192 | AP100: -0.008529914749 | AR100: Janvier | AS100: =IF(Station=Données1!$J$5,AS67,AS83) -> -2.47533954 | AT100: =IF(Station=Données1!$J$5,AT67,AT83) -> 4.305793994 | AU100: =IF(Station=Données1!$J$5,AU67,AU83) -> -1.640066459 | AV100: =IF(Station=Données1!$J$5,AV67,AV83) -> 0.7012263985 | AW100: =IF(Station=Données1!$J$5,AW67,AW83) -> -0.03305070754 | AX100: =IF(Station=Données1!$J$5,AX67,AX83) -> -2.545155165 | AY100: =IF(Station=Données1!$J$5,AY67,AY83) -> 4.467502026 | AZ100: =IF(Station=Données1!$J$5,AZ67,AZ83) -> -1.778286653 | BA100: =IF(Station=Données1!$J$5,BA67,BA83) -> 0.7198615746 | BB100: =IF(Station=Données1!$J$5,BB67,BB83) -> -0.03472755316 | BC100: =IF(Station=Données1!$J$5,BC67,BC83) -> -2.479354477 | BD100: =IF(Station=Données1!$J$5,BD67,BD83) -> 4.308377697 | BE100: =IF(Station=Données1!$J$5,BE67,BE83) -> -1.632500479 | BF100: =IF(Station=Données1!$J$5,BF67,BF83) -> 0.7027677097 | BG100: =IF(Station=Données1!$J$5,BG67,BG83) -> -0.03303376723 | BH100: =IF(Station=Données1!$J$5,BH67,BH83) -> -2.479354477 | BI100: =IF(Station=Données1!$J$5,BI67,BI83) -> 4.308377697 | BJ100: =IF(Station=Données1!$J$5,BJ67,BJ83) -> -1.632500479 | BK100: =IF(Station=Données1!$J$5,BK67,BK83) -> 0.7027677097 | BL100: =IF(Station=Données1!$J$5,BL67,BL83) -> -0.03303376723 | BM100: =IF(Station=Données1!$J$5,BM67,BM83) -> -2.777785029 | BN100: =IF(Station=Données1!$J$5,BN67,BN83) -> 4.935337324 | BO100: =IF(Station=Données1!$J$5,BO67,BO83) -> -2.076849472 | BP100: =IF(Station=Données1!$J$5,BP67,BP83) -> 0.7837633561 | BQ100: =IF(Station=Données1!$J$5,BQ67,BQ83) -> -0.03899410464 | BR100: =IF(Station=Données1!$J$5,BR67,BR83) -> -2.46817316 | BS100: =IF(Station=Données1!$J$5,BS67,BS83) -> 4.287459605 | BT100: =IF(Station=Données1!$J$5,BT67,BT83) -> -1.621760554 | BU100: =IF(Station=Données1!$J$5,BU67,BU83) -> 0.6996067107 | BV100: =IF(Station=Données1!$J$5,BV67,BV83) -> -0.03285595213 | BW100: =IF(Station=Données1!$J$5,BW67,BW83) -> -2.46817316 | BX100: =IF(Station=Données1!$J$5,BX67,BX83) -> 4.287459605 | BY100: =IF(Station=Données1!$J$5,BY67,BY83) -> -1.621760554 | BZ100: =IF(Station=Données1!$J$5,BZ67,BZ83) -> 0.6996067107 | CA100: =IF(Station=Données1!$J$5,CA67,CA83) -> -0.03285595213 | CB100: =IF(Station=Données1!$J$5,CB67,CB83) -> -2.541236893 | CC100: =IF(Station=Données1!$J$5,CC67,CC83) -> 4.45818349 | CD100: =IF(Station=Données1!$J$5,CD67,CD83) -> -1.769975886 | CE100: =IF(Station=Données1!$J$5,CE67,CE83) -> 0.7188202082 | CF100: =IF(Station=Données1!$J$5,CF67,CF83) -> -0.0346288568
